Workbook

Sheet MENU
S25: Copyright © 2011 Brand Research Institute, Inc. All rights reserved.
S26: 株式会社ブランド総合研究所

Sheet 個別1
A2: 表示したい結果を選択してください
A3: ステップ１（結果の種類を選択） | K3: =SPEC!$BC$3 -> ステップ2（都道府県を選択 ： 北から順）
A5: ↑②都道府県結果、③道州結果の順に並んでいます。
A6: 個別分析シート （１） 総合指標 | U6: 地域ブランド調査2011
B9: =DATA!$E$2 -> 都道府県名 | F9: =DATA!$E$4 -> 北海道 | J9: =DATA!$E$5 -> 
B10: よみ | F10: =DATA!E6 -> ほっかいどう
T12: =DATA!$C$14 -> 有効回収数（2011年）：609人
P22: =DATA!$F$4 -> 貴道 | S22: 2011平均
P23: 2009 | Q23: 2010 | R23: 2011 | S23: 県(*1) | T23: 全国
I24: A. 認知度 （A=A1＋A2×3/4＋A3/2＋A4/4） | O24: （点） | P24: =DATA!C84 -> 59.9 | Q24: =DATA!D84 -> 60 | R24: =DATA!E84 -> 58.7 | S24: =DATA!F84 -> - | T24: =DATA!G84 -> 46.11914894
J25: A1. | K25: よく知っている | O25: （％） | P25: =DATA!C85 -> 11.8 | Q25: =DATA!D85 -> 14 | R25: =DATA!E85 -> 12.7 | S25: =DATA!F85 -> - | T25: =DATA!G85 -> 4.893617021
J26: A2. | K26: 知っている | O26: （％） | P26: =DATA!C86 -> 32.4 | Q26: =DATA!D86 -> 28.5 | R26: =DATA!E86 -> 27.6 | S26: =DATA!F86 -> - | T26: =DATA!G86 -> 16.84042553
E27: 2009 | F27: 2010 | G27: 2011 | J27: A3. | K27: 少しだけ知っている | O27: （％） | P27: =DATA!C87 -> 38.4 | Q27: =DATA!D87 -> 40.9 | R27: =DATA!E87 -> 41.3 | S27: =DATA!F87 -> - | T27: =DATA!G87 -> 35.75744681
B28: 県内順位 (*1) | E28: =DATA!J24 -> - | F28: =DATA!K24 -> - | G28: =DATA!L24 -> - | J28: A4. | K28: 名前だけは知っている | O28: （％） | P28: =DATA!C88 -> 16.1 | Q28: =DATA!D88 -> 16.4 | R28: =DATA!E88 -> 18.3 | S28: =DATA!F88 -> - | T28: =DATA!G88 -> 41.97446809
B29: 全国順位 (*2) | E29: =DATA!J25 -> 2 | F29: =DATA!K25 -> 2 | G29: =DATA!L25 -> 2 | J29: A5. | K29: 名前も知らない | O29: （％） | P29: =DATA!C89 -> 0.3 | Q29: =DATA!D89 -> 0 | R29: =DATA!E89 -> 0 | S29: =DATA!F89 -> - | T29: =DATA!G89 -> 0.03617021277
P40: =DATA!$F$4 -> 貴道 | S40: 2011平均
P41: 2009 | Q41: 2010 | R41: 2011 | S41: 県(*1) | T41: 全国
I42: B. 魅力度 （B=B1＋B2/2） | O42: （点） | P42: =DATA!C90 -> 68.9 | Q42: =DATA!D90 -> 68 | R42: =DATA!E90 -> 70.7 | S42: =DATA!F90 -> - | T42: =DATA!G90 -> 20.12340426
J43: B1. | K43: とても魅力的 | O43: （％） | P43: =DATA!C91 -> 48 | Q43: =DATA!D91 -> 48.4 | R43: =DATA!E91 -> 49.6 | S43: =DATA!F91 -> - | T43: =DATA!G91 -> 7.30212766
J44: B2. | K44: やや魅力的 | O44: （％） | P44: =DATA!C92 -> 41.7 | Q44: =DATA!D92 -> 39.2 | R44: =DATA!E92 -> 42.2 | S44: =DATA!F92 -> - | T44: =DATA!G92 -> 25.64255319
E45: 2009 | F45: 2010 | G45: 2011 | J45: B3. | K45: どちらでもない | O45: （％） | P45: =DATA!C93 -> 6.3 | Q45: =DATA!D93 -> 9.4 | R45: =DATA!E93 -> 6.8 | S45: =DATA!F93 -> - | T45: =DATA!G93 -> 50.13829787
B46: 県内順位 (*1) | E46: =DATA!J45 -> - | F46: =DATA!K45 -> - | G46: =DATA!L45 -> - | J46: B4. | K46: あまり魅力的でない | O46: （％） | P46: =DATA!C94 -> 2.1 | Q46: =DATA!D94 -> 2.1 | R46: =DATA!E94 -> 1.1 | S46: =DATA!F94 -> - | T46: =DATA!G94 -> 13.06170213
B47: 全国順位 (*2) | E47: =DATA!J46 -> 1 | F47: =DATA!K46 -> 1 | G47: =DATA!L46 -> 1 | J47: B5. | K47: 全く魅力的でない | O47: （％） | P47: =DATA!C95 -> 0.3 | Q47: =DATA!D95 -> 0.6 | R47: =DATA!E95 -> 0 | S47: =DATA!F95 -> - | T47: =DATA!G95 -> 2.757446809
P60: =DATA!$F$4 -> 貴道 | S60: 2011平均
P61: 2009 | Q61: 2010 | R61: 2011 | S61: 県(*1) | T61: 全国
I62: C. 情報接触度 （C=C1＋C2/2） | O62: （点） | P62: =DATA!C96 -> 68.4 | Q62: =DATA!D96 -> 64.2 | R62: =DATA!E96 -> 64.3 | S62: =DATA!F96 -> - | T62: =DATA!G96 -> 44.19787234
E63: 2009 | F63: 2010 | G63: 2011 | J63: C1. | K63: 何度も見聞きした | O63: （％） | P63: =DATA!C97 -> 47.5 | Q63: =DATA!D97 -> 40.7 | R63: =DATA!E97 -> 37.4 | S63: =DATA!F97 -> - | T63: =DATA!G97 -> 20.14468085
B64: 県内順位 (*1) | E64: =DATA!J66 -> - | F64: =DATA!K66 -> - | G64: =DATA!L66 -> - | J64: C2. | K64: 一度だけ見聞きした | O64: （％） | P64: =DATA!C98 -> 42 | Q64: =DATA!D98 -> 47.1 | R64: =DATA!E98 -> 53.8 | S64: =DATA!F98 -> - | T64: =DATA!G98 -> 48.11489362
B65: 全国順位 (*2) | E65: =DATA!J67 -> 2 | F65: =DATA!K67 -> 2 | G65: =DATA!L67 -> 6 | J65: C3. | K65: 全く見聞きしていない | O65: （％） | P65: =DATA!C99 -> 10.3 | Q65: =DATA!D99 -> 12.1 | R65: =DATA!E99 -> 8 | S65: =DATA!F99 -> - | T65: =DATA!G99 -> 31.25319149
A71: Copyright © 2011 Brand Research Institute, Inc. All rights reserved. | U71: 株式会社ブランド総合研究所

Sheet 個別2
A2: 表示したい結果を選択してください
A3: ステップ１（結果の種類を選択） | K3: =SPEC!$BC$3 -> ステップ2（都道府県を選択 ： 北から順）
A5: ↑②都道府県結果、③道州結果の順に並んでいます。
A6: 個別分析シート （２） 情報関連指標 | V6: 地域ブランド調査2011
B9: =DATA!$E$2 -> 都道府県名 | F9: =DATA!$E$4 -> 北海道 | J9: =DATA!$E$5 -> 
B10: よみ | F10: =DATA!$E$6 -> ほっかいどう
U12: =DATA!$C$14 -> 有効回収数（2011年）：609人
K29: =DATA!$F$4 -> 貴道 | N29: 2011平均 | P29: 県内順位(*1) | S29: 全国順位 (*2)
J30: （sd…偏差値） | K30: 2009 | L30: 2010 | M30: 2011 | N30: 県(*1) | O30: 全国 | P30: 2009 | Q30: 2010 | R30: 2011 | S30: 2009 | T30: 2010 | U30: 2011
B31: D. コミュニケーション・バランス （*3）
C32: 物語系 | J32: （sd） | K32: =DATA!C151 -> 73.9 | L32: =DATA!D151 -> 77.5 | M32: =DATA!E151 -> 79.8 | N32: =DATA!F151 -> - | O32: =DATA!G151 -> 49.9893617 | P32: =DATA!H151 -> - | Q32: =DATA!I151 -> - | R32: =DATA!J151 -> - | S32: =DATA!K151 -> 2 | T32: =DATA!L151 -> 2 | U32: =DATA!M151 -> 2
C33: 旅行系 | J33: （sd） | K33: =DATA!C152 -> 91 | L33: =DATA!D152 -> 93.6 | M33: =DATA!E152 -> 91.9 | N33: =DATA!F152 -> - | O33: =DATA!G152 -> 50 | P33: =DATA!H152 -> - | Q33: =DATA!I152 -> - | R33: =DATA!J152 -> - | S33: =DATA!K152 -> 1 | T33: =DATA!L152 -> 1 | U33: =DATA!M152 -> 1
C34: 商品系 | J34: （sd） | K34: =DATA!C153 -> 102.5 | L34: =DATA!D153 -> 107.7 | M34: =DATA!E153 -> 108 | N34: =DATA!F153 -> - | O34: =DATA!G153 -> 50.00638298 | P34: =DATA!H153 -> - | Q34: =DATA!I153 -> - | R34: =DATA!J153 -> - | S34: =DATA!K153 -> 1 | T34: =DATA!L153 -> 1 | U34: =DATA!M153 -> 1
C35: 広告系 | J35: （sd） | K35: =DATA!C154 -> 80.2 | L35: =DATA!D154 -> 87.9 | M35: =DATA!E154 -> 84.5 | N35: =DATA!F154 -> - | O35: =DATA!G154 -> 49.99574468 | P35: =DATA!H154 -> - | Q35: =DATA!I154 -> - | R35: =DATA!J154 -> - | S35: =DATA!K154 -> 2 | T35: =DATA!L154 -> 1 | U35: =DATA!M154 -> 1
C36: 口コミ系 | J36: （sd） | K36: =DATA!C155 -> 78.9 | L36: =DATA!D155 -> 72.2 | M36: =DATA!E155 -> 73.3 | N36: =DATA!F155 -> - | O36: =DATA!G155 -> 49.99787234 | P36: =DATA!H155 -> - | Q36: =DATA!I155 -> - | R36: =DATA!J155 -> - | S36: =DATA!K155 -> 2 | T36: =DATA!L155 -> 2 | U36: =DATA!M155 -> 2
B37: E. 情報接触経路
C38: ドラマや映画 | I38: 物語系 | J38: （％） | K38: =DATA!C157 -> 20.5 | L38: =DATA!D157 -> 18.7 | M38: =DATA!E157 -> 18.5 | N38: =DATA!F157 -> - | O38: =DATA!G157 -> 4.123404255 | P38: =DATA!H157 -> - | Q38: =DATA!I157 -> - | R38: =DATA!J157 -> - | S38: =DATA!K157 -> 2 | T38: =DATA!L157 -> 2 | U38: =DATA!M157 -> 2
C39: 小説・エッセイ・マンガなど | J39: （％） | K39: =DATA!C158 -> 5.1 | L39: =DATA!D158 -> 5.7 | M39: =DATA!E158 -> 5.8 | N39: =DATA!F158 -> - | O39: =DATA!G158 -> 1.825531915 | P39: =DATA!H158 -> - | Q39: =DATA!I158 -> - | R39: =DATA!J158 -> - | S39: =DATA!K158 -> 4 | T39: =DATA!L158 -> 3 | U39: =DATA!M158 -> 2
C40: 旅やグルメに関する番組 | I40: 旅行系 | J40: （％） | K40: =DATA!C159 -> 55.1 | L40: =DATA!D159 -> 51.1 | M40: =DATA!E159 -> 47.2 | N40: =DATA!F159 -> - | O40: =DATA!G159 -> 17.35319149 | P40: =DATA!H159 -> - | Q40: =DATA!I159 -> - | R40: =DATA!J159 -> - | S40: =DATA!K159 -> 1 | T40: =DATA!L159 -> 1 | U40: =DATA!M159 -> 1
C41: 旅行・グルメ関連記事 | J41: （％） | K41: =DATA!C160 -> 25.4 | L41: =DATA!D160 -> 26.2 | M41: =DATA!E160 -> 21.9 | N41: =DATA!F160 -> - | O41: =DATA!G160 -> 7.627659574 | P41: =DATA!H160 -> - | Q41: =DATA!I160 -> - | R41: =DATA!J160 -> - | S41: =DATA!K160 -> 2 | T41: =DATA!L160 -> 1 | U41: =DATA!M160 -> 1
C42: 旅行パンフやガイドブック | J42: （％） | K42: =DATA!C161 -> 34.3 | L42: =DATA!D161 -> 33.5 | M42: =DATA!E161 -> 29.6 | N42: =DATA!F161 -> - | O42: =DATA!G161 -> 8.104255319 | P42: =DATA!H161 -> - | Q42: =DATA!I161 -> - | R42: =DATA!J161 -> - | S42: =DATA!K161 -> 1 | T42: =DATA!L161 -> 1 | U42: =DATA!M161 -> 1
C43: 通販カタログや商品パンフレット | I43: 商品系 | J43: （％） | K43: =DATA!C162 -> 10.1 | L43: =DATA!D162 -> 7.6 | M43: =DATA!E162 -> 7.1 | N43: =DATA!F162 -> - | O43: =DATA!G162 -> 1.64893617 | P43: =DATA!H162 -> - | Q43: =DATA!I162 -> - | R43: =DATA!J162 -> - | S43: =DATA!K162 -> 1 | T43: =DATA!L162 -> 1 | U43: =DATA!M162 -> 1
C44: 物産展や催事など | J44: （％） | K44: =DATA!C163 -> 32 | L44: =DATA!D163 -> 35.7 | M44: =DATA!E163 -> 35.8 | N44: =DATA!F163 -> - | O44: =DATA!G163 -> 4.95106383 | P44: =DATA!H163 -> - | Q44: =DATA!I163 -> - | R44: =DATA!J163 -> - | S44: =DATA!K163 -> 1 | T44: =DATA!L163 -> 1 | U44: =DATA!M163 -> 1
C45: 店頭および商品 | J45: （％） | K45: =DATA!C164 -> 18.6 | L45: =DATA!D164 -> 18.2 | M45: =DATA!E164 -> 17.7 | N45: =DATA!F164 -> - | O45: =DATA!G164 -> 3.004255319 | P45: =DATA!H164 -> - | Q45: =DATA!I164 -> - | R45: =DATA!J164 -> - | S45: =DATA!K164 -> 1 | T45: =DATA!L164 -> 1 | U45: =DATA!M164 -> 1
C46: テレビＣＭや新聞雑誌の広告 | I46: 広告系 | J46: （％） | K46: =DATA!C165 -> 24.3 | L46: =DATA!D165 -> 25.6 | M46: =DATA!E165 -> 22.7 | N46: =DATA!F165 -> - | O46: =DATA!G165 -> 9.091489362 | P46: =DATA!H165 -> - | Q46: =DATA!I165 -> - | R46: =DATA!J165 -> - | S46: =DATA!K165 -> 2 | T46: =DATA!L165 -> 2 | U46: =DATA!M165 -> 1
C47: ポスターやチラシ | J47: （％） | K47: =DATA!C166 -> 7.5 | L47: =DATA!D166 -> 6.1 | M47: =DATA!E166 -> 5.4 | N47: =DATA!F166 -> - | O47: =DATA!G166 -> 1.680851064 | P47: =DATA!H166 -> - | Q47: =DATA!I166 -> - | R47: =DATA!J166 -> - | S47: =DATA!K166 -> 2 | T47: =DATA!L166 -> 1 | U47: =DATA!M166 -> 1
C48: 自治体のホームページ | J48: （％） | K48: =DATA!C167 -> 3.7 | L48: =DATA!D167 -> 4.5 | M48: =DATA!E167 -> 4.4 | N48: =DATA!F167 -> - | O48: =DATA!G167 -> 1.880851064 | P48: =DATA!H167 -> - | Q48: =DATA!I167 -> - | R48: =DATA!J167 -> - | S48: =DATA!K167 -> 5 | T48: =DATA!L167 -> 1 | U48: =DATA!M167 -> 2
C49: 他のサイトや掲示板など | I49: 口コミ系 | J49: （％） | K49: =DATA!C168 -> 7.8 | L49: =DATA!D168 -> 6.9 | M49: =DATA!E168 -> 7.2 | N49: =DATA!F168 -> - | O49: =DATA!G168 -> 3.695744681 | P49: =DATA!H168 -> - | Q49: =DATA!I168 -> - | R49: =DATA!J168 -> - | S49: =DATA!K168 -> 2 | T49: =DATA!L168 -> 2 | U49: =DATA!M168 -> 2
C50: 友人や知人・家族から | J50: （％） | K50: =DATA!C169 -> 16.6 | L50: =DATA!D169 -> 11.8 | M50: =DATA!E169 -> 13.3 | N50: =DATA!F169 -> - | O50: =DATA!G169 -> 7.021276596 | P50: =DATA!H169 -> - | Q50: =DATA!I169 -> - | R50: =DATA!J169 -> - | S50: =DATA!K169 -> 2 | T50: =DATA!L169 -> 4 | U50: =DATA!M169 -> 4
C51: 事件やニュース | J51: （％） | K51: =DATA!C170 -> 19 | L51: =DATA!D170 -> 17.3 | M51: =DATA!E170 -> 20.5 | N51: =DATA!F170 -> - | O51: =DATA!G170 -> 25.45319149 | P51: =DATA!H170 -> - | Q51: =DATA!I170 -> - | R51: =DATA!J170 -> - | S51: =DATA!K170 -> 8 | T51: =DATA!L170 -> 10 | U51: =DATA!M170 -> 23
C52: その他 | J52: （％） | K52: =DATA!C171 -> 8 | L52: =DATA!D171 -> 6.9 | M52: =DATA!E171 -> 8.7 | N52: =DATA!F171 -> - | O52: =DATA!G171 -> 8.629787234 | P52: =DATA!H171 -> - | Q52: =DATA!I171 -> - | R52: =DATA!J171 -> - | S52: =DATA!K171 -> 11 | T52: =DATA!L171 -> 33 | U52: =DATA!M171 -> 28
A70: Copyright © 2011 Brand Research Institute, Inc. All rights reserved. | V70: 株式会社ブランド総合研究所

Sheet 個別3
A2: 表示したい結果を選択してください
A3: ステップ１（結果の種類を選択） | K3: =SPEC!$BC$3 -> ステップ2（都道府県を選択 ： 北から順）
A5: ↑②都道府県結果、③道州結果の順に並んでいます。
A6: 個別分析シート （３） 居住・観光・産品関連指標 | U6: 地域ブランド調査2011
B9: =DATA!$E$2 -> 都道府県名 | F9: =DATA!$E$4 -> 北海道 | J9: =DATA!$E$5 -> 
B10: よみ | F10: =DATA!$E$6 -> ほっかいどう
T12: =DATA!$C$14 -> 有効回収数（2011年）：609人
P24: =DATA!$F$4 -> 貴道 | S24: 2011平均
P25: 2009 | Q25: 2010 | R25: 2011 | S25: 県(*1) | T25: 全国
I26: F. | J26: 居住意欲度 （F=F1＋F2/2＋F3/4） | O26: （点） | P26: =DATA!C275 -> 24.2 | Q26: =DATA!D275 -> 24.4 | R26: =DATA!E275 -> 24.3 | S26: =DATA!F275 -> - | T26: =DATA!G275 -> 8.844680851
J27: F1. | K27: ぜひ住みたい | O27: （％） | P27: =DATA!C276 -> 11 | Q27: =DATA!D276 -> 11.9 | R27: =DATA!E276 -> 10.2 | S27: =DATA!F276 -> - | T27: =DATA!G276 -> 2.414893617
J28: F2. | K28: できれば住みたい | O28: （％） | P28: =DATA!C277 -> 14.2 | Q28: =DATA!D277 -> 11.3 | R28: =DATA!E277 -> 13.3 | S28: =DATA!F277 -> - | T28: =DATA!G277 -> 4.19787234
E29: 2009 | F29: 2010 | G29: 2011 | J29: F3. | K29: 住んでもよい | O29: （％） | P29: =DATA!C278 -> 24.3 | Q29: =DATA!D278 -> 27.4 | R29: =DATA!E278 -> 29.7 | S29: =DATA!F278 -> - | T29: =DATA!G278 -> 17.28723404
B30: 県内順位 (*1) | E30: =DATA!J203 -> - | F30: =DATA!K203 -> - | G30: =DATA!L203 -> - | J30: F4. | K30: どちらともいえない | O30: （％） | P30: =DATA!C279 -> 25.3 | Q30: =DATA!D279 -> 23.8 | R30: =DATA!E279 -> 23.4 | S30: =DATA!F279 -> - | T30: =DATA!G279 -> 35.78297872
B31: 全国順位 (*2) | E31: =DATA!J204 -> 4 | F31: =DATA!K204 -> 2 | G31: =DATA!L204 -> 1 | J31: F5. | K31: あまり住みたくない | O31: （％） | P31: =DATA!C280 -> 23.6 | Q31: =DATA!D280 -> 24.7 | R31: =DATA!E280 -> 22.4 | S31: =DATA!F280 -> - | T31: =DATA!G280 -> 38.47659574
P44: =DATA!$F$4 -> 貴道 | S44: 2011平均
P45: 2009 | Q45: 2010 | R45: 2011 | S45: 県(*1) | T45: 全国
I46: G. | J46: 観光意欲度 （G＝G1＋G2/2） | O46: （点） | P46: =DATA!C281 -> 78.1 | Q46: =DATA!D281 -> 75.9 | R46: =DATA!E281 -> 78.3 | S46: =DATA!F281 -> - | T46: =DATA!G281 -> 38.43617021
J47: G1. | K47: ぜひ行ってみたい | O47: （％） | P47: =DATA!C282 -> 63.4 | Q47: =DATA!D282 -> 60.8 | R47: =DATA!E282 -> 63.1 | S47: =DATA!F282 -> - | T47: =DATA!G282 -> 18.0893617
E48: 2009 | F48: 2010 | G48: 2011 | J48: G2. | K48: 機会があれば行ってみたい | O48: （％） | P48: =DATA!C283 -> 29.4 | Q48: =DATA!D283 -> 30.4 | R48: =DATA!E283 -> 30.5 | S48: =DATA!F283 -> - | T48: =DATA!G283 -> 40.6787234
B49: 県内順位 (*1) | E49: =DATA!J224 -> - | F49: =DATA!K224 -> - | G49: =DATA!L224 -> - | J49: G3. | K49: どちらともいえない | O49: （％） | P49: =DATA!C284 -> 4.6 | Q49: =DATA!D284 -> 6.3 | R49: =DATA!E284 -> 4.2 | S49: =DATA!F284 -> - | T49: =DATA!G284 -> 24.94042553
B50: 全国順位 (*2) | E50: =DATA!J225 -> 1 | F50: =DATA!K225 -> 1 | G50: =DATA!L225 -> 1 | J50: G4. | K50: あまり行きたいとは思わない | O50: （％） | P50: =DATA!C285 -> 1.5 | Q50: =DATA!D285 -> 2 | R50: =DATA!E285 -> 1.4 | S50: =DATA!F285 -> - | T50: =DATA!G285 -> 14.36170213
R55: 2009 | S55: 2010 | T55: 2011
P56: 県内順位 (*1) | R56: =DATA!I267 -> - | S56: =DATA!J267 -> - | T56: =DATA!K267 -> -
P57: 全国順位 (*2) | R57: =DATA!I268 -> 1 | S57: =DATA!J268 -> 1 | T57: =DATA!K268 -> 1
R60: 2009 | S60: 2010 | T60: 2011
P61: 県内順位 (*1) | R61: =DATA!I245 -> - | S61: =DATA!J245 -> - | T61: =DATA!K245 -> -
P62: 全国順位 (*2) | R62: =DATA!I246 -> 1 | S62: =DATA!J246 -> 1 | T62: =DATA!K246 -> 1
R65: 2009 | S65: 2010 | T65: 2011
P66: 県内順位 (*1) | R66: =DATA!I256 -> - | S66: =DATA!J256 -> - | T66: =DATA!K256 -> -
P67: 全国順位 (*2) | R67: =DATA!I257 -> 1 | S67: =DATA!J257 -> 1 | T67: =DATA!K257 -> 1
P69: =DATA!$F$4 -> 貴道 | S69: 2011平均
P70: 2009 | Q70: 2010 | R70: 2011 | S70: 県(*1) | T70: 全国
J71: 産品購入意欲度 (H＋I） | O71: （点） | P71: =DATA!C286 -> 101.2 | Q71: =DATA!D286 -> 107 | R71: =DATA!E286 -> 93.1 | S71: =DATA!F286 -> - | T71: =DATA!G286 -> 25.02765957
I72: H. | J72: 食品購入意欲度 （H＝H1×H2） | O72: （点） | P72: =DATA!C287 -> 87.1 | Q72: =DATA!D287 -> 92 | R72: =DATA!E287 -> 82.7 | S72: =DATA!F287 -> - | T72: =DATA!G287 -> 22.35106383
J73: H1. | K73: 想起率 （*3） | O73: （％） | P73: =DATA!C288 -> 59.5 | Q73: =DATA!D288 -> 62.1 | R73: =DATA!E288 -> 55.6 | S73: =DATA!F288 -> - | T73: =DATA!G288 -> 18.1
J74: H2. | K74: 平均想起数 （*4） | O74: （個/人） | P74: =DATA!C289 -> 1.46 | Q74: =DATA!D289 -> 1.48 | R74: =DATA!E289 -> 1.49 | S74: =DATA!F289 -> - | T74: =DATA!G289 -> 1.206595745
I75: I. | J75: 食品以外の購入意欲度 （I＝I1×I2） | O75: （点） | P75: =DATA!C290 -> 14.1 | Q75: =DATA!D290 -> 15.1 | R75: =DATA!E290 -> 10.4 | S75: =DATA!F290 -> - | T75: =DATA!G290 -> 2.7
J76: I1. | K76: 想起率 （*3） | O76: （％） | P76: =DATA!C291 -> 12.2 | Q76: =DATA!D291 -> 14.5 | R76: =DATA!E291 -> 10 | S76: =DATA!F291 -> - | T76: =DATA!G291 -> 2.491489362
J77: I2. | K77: 平均想起数 （*4） | O77: （個/人） | P77: =DATA!C292 -> 1.15 | Q77: =DATA!D292 -> 1.04 | R77: =DATA!E292 -> 1.04 | S77: =DATA!F292 -> - | T77: =DATA!G292 -> 1.079148936
A79: Copyright © 2011 Brand Research Institute, Inc. All rights reserved. | U79: 株式会社ブランド総合研究所

Sheet 個別4
A2: 表示したい結果を選択してください
A3: ステップ１（結果の種類を選択） | K3: =" "&SPEC!$BC$3 -> ステップ2（都道府県を選択 ： 北から順）
A5: ↑②都道府県結果、③道州結果の順に並んでいます。
A6: 個別分析シート （４） 訪問経験関連指標 | V6: 地域ブランド調査2011
B9: =DATA!$E$2 -> 都道府県名 | F9: =DATA!$E$4 -> 北海道 | J9: =DATA!$E$5 -> 
B10: よみ | F10: =DATA!$E$6 -> ほっかいどう
U12: =DATA!$C$14 -> 有効回収数（2011年）：609人
K33: =DATA!$F$4 -> 貴道 | N33: 2011平均 | P33: 県内順位(*1) | S33: 全国順位
K34: 2009 | L34: 2010 | M34: 2011 | N34: 県(*1) | O34: 全国 | P34: 2009 | Q34: 2010 | R34: 2011 | S34: 2009 | T34: 2010 | U34: 2011
B35: J. | C35: 訪問目的 （*2） | J35: （％）
C36: J1. | D36: 来訪 | F36: （J1＝K1＋K2＋K3） | K36: =DATA!C363 -> 33.4 | L36: =DATA!D363 -> 42.7 | M36: =DATA!E363 -> 35.3 | N36: =DATA!F363 -> - | O36: =DATA!G363 -> 22.87234043 | P36: =DATA!H363 -> - | Q36: =DATA!I363 -> - | R36: =DATA!J363 -> - | S36: =DATA!K363 -> 6 | T36: =DATA!L363 -> 4 | U36: =DATA!M363 -> 6
C37: J2. | D37: 生活 | F37: （J2＝K4＋K5＋K6） | K37: =DATA!C364 -> 4.1 | L37: =DATA!D364 -> 6.8 | M37: =DATA!E364 -> 6.7 | N37: =DATA!F364 -> - | O37: =DATA!G364 -> 5.578723404 | P37: =DATA!H364 -> - | Q37: =DATA!I364 -> - | R37: =DATA!J364 -> - | S37: =DATA!K364 -> 20 | T37: =DATA!L364 -> 10 | U37: =DATA!M364 -> 11
C38: J3. | D38: 居住 | F38: （J3＝K7＋K8＋K9） | K38: =DATA!C365 -> 7 | L38: =DATA!D365 -> 8.5 | M38: =DATA!E365 -> 7 | N38: =DATA!F365 -> - | O38: =DATA!G365 -> 3.721276596 | P38: =DATA!H365 -> - | Q38: =DATA!I365 -> - | R38: =DATA!J365 -> - | S38: =DATA!K365 -> 8 | T38: =DATA!L365 -> 5 | U38: =DATA!M365 -> 7
C39: J4. | D39: その他 | F39: （J4＝K10＋K11） | K39: =DATA!C366 -> 1.1 | L39: =DATA!D366 -> 2 | M39: =DATA!E366 -> 1.5 | N39: =DATA!F366 -> - | O39: =DATA!G366 -> 4.34893617 | P39: =DATA!H366 -> - | Q39: =DATA!I366 -> - | R39: =DATA!J366 -> - | S39: =DATA!K366 -> 46 | T39: =DATA!L366 -> 38 | U39: =DATA!M366 -> 41
B40: K. | C40: 訪問率 （*3） | J40: （％） | K40: =DATA!C367 -> 35.3 | L40: =DATA!D367 -> 42.5 | M40: =DATA!E367 -> 36.4 | N40: =DATA!F367 -> - | O40: =DATA!G367 -> 28.09787234 | P40: =DATA!H367 -> - | Q40: =DATA!I367 -> - | R40: =DATA!J367 -> - | S40: =DATA!K367 -> 10 | T40: =DATA!L367 -> 6 | U40: =DATA!M367 -> 11
C41: K1. | D41: 観光のため | I41: 来訪 | K41: =DATA!C368 -> 25.4 | L41: =DATA!D368 -> 33.2 | M41: =DATA!E368 -> 28 | N41: =DATA!F368 -> - | O41: =DATA!G368 -> 15.87446809 | P41: =DATA!H368 -> - | Q41: =DATA!I368 -> - | R41: =DATA!J368 -> - | S41: =DATA!K368 -> 3 | T41: =DATA!L368 -> 2 | U41: =DATA!M368 -> 3
C42: K2. | D42: ビジネス（出張等）のため | K42: =DATA!C369 -> 5.5 | L42: =DATA!D369 -> 3.9 | M42: =DATA!E369 -> 3.7 | N42: =DATA!F369 -> - | O42: =DATA!G369 -> 3.640425532 | P42: =DATA!H369 -> - | Q42: =DATA!I369 -> - | R42: =DATA!J369 -> - | S42: =DATA!K369 -> 8 | T42: =DATA!L369 -> 13 | U42: =DATA!M369 -> 14
C43: K3. | D43: 親戚・家族・友人の訪問のため | K43: =DATA!C370 -> 2.5 | L43: =DATA!D370 -> 5.6 | M43: =DATA!E370 -> 3.6 | N43: =DATA!F370 -> - | O43: =DATA!G370 -> 3.357446809 | P43: =DATA!H370 -> - | Q43: =DATA!I370 -> - | R43: =DATA!J370 -> - | S43: =DATA!K370 -> 22 | T43: =DATA!L370 -> 8 | U43: =DATA!M370 -> 12
C44: K4. | D44: 医療・福祉のため | I44: 生活 | K44: =DATA!C371 -> 0.2 | L44: =DATA!D371 -> 0.6 | M44: =DATA!E371 -> 0.3 | N44: =DATA!F371 -> - | O44: =DATA!G371 -> 0.2723404255 | P44: =DATA!H371 -> - | Q44: =DATA!I371 -> - | R44: =DATA!J371 -> - | S44: =DATA!K371 -> 21 | T44: =DATA!L371 -> 9 | U44: =DATA!M371 -> 13
C45: K5. | D45: 買い物・食事のため | K45: =DATA!C372 -> 2.1 | L45: =DATA!D372 -> 2.8 | M45: =DATA!E372 -> 2.9 | N45: =DATA!F372 -> - | O45: =DATA!G372 -> 2.461702128 | P45: =DATA!H372 -> - | Q45: =DATA!I372 -> - | R45: =DATA!J372 -> - | S45: =DATA!K372 -> 13 | T45: =DATA!L372 -> 10 | U45: =DATA!M372 -> 10
C46: K6. | D46: 趣味・娯楽のため | K46: =DATA!C373 -> 1.8 | L46: =DATA!D373 -> 3.4 | M46: =DATA!E373 -> 3.5 | N46: =DATA!F373 -> - | O46: =DATA!G373 -> 2.844680851 | P46: =DATA!H373 -> - | Q46: =DATA!I373 -> - | R46: =DATA!J373 -> - | S46: =DATA!K373 -> 30 | T46: =DATA!L373 -> 11 | U46: =DATA!M373 -> 11
C47: K7. | D47: 通勤・通学している、していた | I47: 居住 | K47: =DATA!C374 -> 1.1 | L47: =DATA!D374 -> 2.1 | M47: =DATA!E374 -> 1 | N47: =DATA!F374 -> - | O47: =DATA!G374 -> 0.8957446809 | P47: =DATA!H374 -> - | Q47: =DATA!I374 -> - | R47: =DATA!J374 -> - | S47: =DATA!K374 -> 10 | T47: =DATA!L374 -> 4 | U47: =DATA!M374 -> 12
C48: K8. | D48: 住んでいる・住んでいた | K48: =DATA!C375 -> 5.9 | L48: =DATA!D375 -> 6.3 | M48: =DATA!E375 -> 5.8 | N48: =DATA!F375 -> - | O48: =DATA!G375 -> 2.659574468 | P48: =DATA!H375 -> - | Q48: =DATA!I375 -> - | R48: =DATA!J375 -> - | S48: =DATA!K375 -> 7 | T48: =DATA!L375 -> 7 | U48: =DATA!M375 -> 7
C49: K9. | D49: セカンドハウスがあるため | K49: =DATA!C376 -> 0 | L49: =DATA!D376 -> 0.1 | M49: =DATA!E376 -> 0.2 | N49: =DATA!F376 -> - | O49: =DATA!G376 -> 0.1659574468 | P49: =DATA!H376 -> - | Q49: =DATA!I376 -> - | R49: =DATA!J376 -> - | S49: =DATA!K376 -> 17 | T49: =DATA!L376 -> 21 | U49: =DATA!M376 -> 13
C50: K10. | D50: 通過・乗り換えのため | I50: その他 | K50: =DATA!C377 -> 0.2 | L50: =DATA!D377 -> 0.3 | M50: =DATA!E377 -> 0.3 | N50: =DATA!F377 -> - | O50: =DATA!G377 -> 2.436170213 | P50: =DATA!H377 -> - | Q50: =DATA!I377 -> - | R50: =DATA!J377 -> - | S50: =DATA!K377 -> 46 | T50: =DATA!L377 -> 43 | U50: =DATA!M377 -> 45
C51: K11. | D51: その他の目的のため | K51: =DATA!C378 -> 0.9 | L51: =DATA!D378 -> 1.7 | M51: =DATA!E378 -> 1.2 | N51: =DATA!F378 -> - | O51: =DATA!G378 -> 1.912765957 | P51: =DATA!H378 -> - | Q51: =DATA!I378 -> - | R51: =DATA!J378 -> - | S51: =DATA!K378 -> 43 | T51: =DATA!L378 -> 14 | U51: =DATA!M378 -> 29
C52: K12. | D52: 訪れたことがない | K52: =DATA!C379 -> 58.4 | L52: =DATA!D379 -> 52.8 | M52: =DATA!E379 -> 58.5 | N52: =DATA!F379 -> - | O52: =DATA!G379 -> 64.22978723 | P52: =DATA!H379 -> - | Q52: =DATA!I379 -> - | R52: =DATA!J379 -> - | S52: =DATA!K379 -> - | T52: =DATA!L379 -> - | U52: =DATA!M379 -> -
A70: Copyright © 2011 Brand Research Institute, Inc. All rights reserved. | V70: 株式会社ブランド総合研究所

Sheet 個別5
A2: 表示したい結果を選択してください
A3: ステップ１（結果の種類を選択） | J3: =" "&SPEC!$BC$3 -> ステップ2（都道府県を選択 ： 北から順）
A5: ↑②都道府県結果、③道州結果の順に並んでいます。
A6: 個別分析シート （５） 地域資源、イメージ指標 | V6: 地域ブランド調査2011
B9: =DATA!$E$2 -> 都道府県名 | F9: =DATA!$E$4 -> 北海道 | I9: =DATA!$E$5 -> 
B10: よみ | F10: =DATA!$E$6 -> ほっかいどう | U10: =DATA!$C$14 -> 有効回収数（2011年）：609人
P23: ｓｄ…偏差値 | Q23: =DATA!$F$4 -> 貴道 | S23: 2011平均 | T23: 2011順位
P24: N=N1～N4の平均 | Q24: 2010 | R24: 2011 | S24: 県(*1) | T24: 県(*1) | U24: 全国
M25: N. 地域資源総合 | P25: （点） | Q25: =DATA!D397 -> 80.8 | R25: =DATA!E397 -> 84.9 | S25: =DATA!F397 -> - | T25: =DATA!J397 -> - | U25: =DATA!M397 -> 1
M26: N1. 自然資源 | P26: （sd） | Q26: =DATA!D398 -> 93.5 | R26: =DATA!E398 -> 99.4 | S26: =DATA!F398 -> - | T26: =DATA!J398 -> - | U26: =DATA!M398 -> 1
M27: N2. 歴史資源 | P27: （sd） | Q27: =DATA!D399 -> 58 | R27: =DATA!E399 -> 59.6 | S27: =DATA!F399 -> - | T27: =DATA!J399 -> - | U27: =DATA!M399 -> 4
M28: N3. モノ資源 | P28: （sd） | Q28: =DATA!D400 -> 91.5 | R28: =DATA!E400 -> 98.3 | S28: =DATA!F400 -> - | T28: =DATA!J400 -> - | U28: =DATA!M400 -> 1
M29: N4. サービス資源 | P29: （sd） | Q29: =DATA!D401 -> 80.2 | R29: =DATA!E401 -> 82.4 | S29: =DATA!F401 -> - | T29: =DATA!J401 -> - | U29: =DATA!M401 -> 1
K32: =DATA!$F$4 -> 貴道 | N32: 2011平均 | P32: 県内順位(*1) | S32: 全国順位
K33: 2009 | L33: 2010 | M33: 2011 | N33: 県(*1) | O33: 全国 | P33: 2009 | Q33: 2010 | R33: 2011 | S33: 2009 | T33: 2010 | U33: 2011
B34: ="L."&DATA!$D$2&"の地域資源に対する評価" -> L.都道府県の地域資源に対する評価 | I34: （％） | J34: （*2）
C35: 海・山・川・湖などの自然が豊か | J35: 自 | K35: =DATA!C403 -> 83 | L35: =DATA!D403 -> 80.6 | M35: =DATA!E403 -> 79.6 | N35: =DATA!F403 -> - | O35: =DATA!G403 -> 29.06382979 | P35: =DATA!H403 -> - | Q35: =DATA!I403 -> - | R35: =DATA!J403 -> - | S35: =DATA!K403 -> 1 | T35: =DATA!L403 -> 1 | U35: =DATA!M403 -> 1
C36: 魅力的な温泉やレジャー施設・公園などがある | J36: 自、モ | K36: =DATA!C404 -> 46.4 | L36: =DATA!D404 -> 45.6 | M36: =DATA!E404 -> 44.3 | N36: =DATA!F404 -> - | O36: =DATA!G404 -> 13.66382979 | P36: =DATA!H404 -> - | Q36: =DATA!I404 -> - | R36: =DATA!J404 -> - | S36: =DATA!K404 -> 1 | T36: =DATA!L404 -> 1 | U36: =DATA!M404 -> 1
C37: スポーツの参加・観戦が楽しめる | J37: サ | K37: =DATA!C405 -> 11 | L37: =DATA!D405 -> 7.4 | M37: =DATA!E405 -> 11.2 | N37: =DATA!F405 -> - | O37: =DATA!G405 -> 4.538297872 | P37: =DATA!H405 -> - | Q37: =DATA!I405 -> - | R37: =DATA!J405 -> - | S37: =DATA!K405 -> 7 | T37: =DATA!L405 -> 8 | U37: =DATA!M405 -> 5
C38: 魅力的な伝統芸能、祭り、イベントがある | J38: 歴、サ | K38: =DATA!C406 -> 17.7 | L38: =DATA!D406 -> 15 | M38: =DATA!E406 -> 15.6 | N38: =DATA!F406 -> - | O38: =DATA!G406 -> 8.508510638 | P38: =DATA!H406 -> - | Q38: =DATA!I406 -> - | R38: =DATA!J406 -> - | S38: =DATA!K406 -> 5 | T38: =DATA!L406 -> 5 | U38: =DATA!M406 -> 6
C39: 魅力的な街並みや歴史建造物がある | J39: 自、歴 | K39: =DATA!C407 -> 20.5 | L39: =DATA!D407 -> 18 | M39: =DATA!E407 -> 20.8 | N39: =DATA!F407 -> - | O39: =DATA!G407 -> 9.734042553 | P39: =DATA!H407 -> - | Q39: =DATA!I407 -> - | R39: =DATA!J407 -> - | S39: =DATA!K407 -> 4 | T39: =DATA!L407 -> 4 | U39: =DATA!M407 -> 3
C40: 歴史人物、著名人、職人などにゆかりがある | J40: 歴 | K40: =DATA!C408 -> 12 | L40: =DATA!D408 -> 12.2 | M40: =DATA!E408 -> 11.9 | N40: =DATA!F408 -> - | O40: =DATA!G408 -> 8.870212766 | P40: =DATA!H408 -> - | Q40: =DATA!I408 -> - | R40: =DATA!J408 -> - | S40: =DATA!K408 -> 11 | T40: =DATA!L408 -> 10 | U40: =DATA!M408 -> 10
C41: 魅力的な美術館・博物館がある | J41: モ、サ | K41: =DATA!C409 -> 5.2 | L41: =DATA!D409 -> 4.2 | M41: =DATA!E409 -> 6.1 | N41: =DATA!F409 -> - | O41: =DATA!G409 -> 3.761702128 | P41: =DATA!H409 -> - | Q41: =DATA!I409 -> - | R41: =DATA!J409 -> - | S41: =DATA!K409 -> 7 | T41: =DATA!L409 -> 8 | U41: =DATA!M409 -> 5
C42: 買いたい土産や地域産品がある | J42: モ | K42: =DATA!C410 -> 39.9 | L42: =DATA!D410 -> 36.6 | M42: =DATA!E410 -> 35.4 | N42: =DATA!F410 -> - | O42: =DATA!G410 -> 7.90212766 | P42: =DATA!H410 -> - | Q42: =DATA!I410 -> - | R42: =DATA!J410 -> - | S42: =DATA!K410 -> 1 | T42: =DATA!L410 -> 1 | U42: =DATA!M410 -> 1
C43: 優れた伝統的技術がある | J43: モ、サ | K43: =DATA!C411 -> 4.6 | L43: =DATA!D411 -> 2.3 | M43: =DATA!E411 -> 5.5 | N43: =DATA!F411 -> - | O43: =DATA!G411 -> 4.974468085 | P43: =DATA!H411 -> - | Q43: =DATA!I411 -> - | R43: =DATA!J411 -> - | S43: =DATA!K411 -> 16 | T43: =DATA!L411 -> 30 | U43: =DATA!M411 -> 14
C44: 魅力的な商店街や店舗がある | J44: モ | K44: =DATA!C412 -> 7.4 | L44: =DATA!D412 -> 7.1 | M44: =DATA!E412 -> 6.9 | N44: =DATA!F412 -> - | O44: =DATA!G412 -> 3.329787234 | P44: =DATA!H412 -> - | Q44: =DATA!I412 -> - | R44: =DATA!J412 -> - | S44: =DATA!K412 -> 6 | T44: =DATA!L412 -> 5 | U44: =DATA!M412 -> 7
C45: 地元産の食材が豊富 | J45: 自、モ | K45: =DATA!C413 -> - | L45: =DATA!D413 -> - | M45: =DATA!E413 -> 50.5 | N45: =DATA!F413 -> - | O45: =DATA!G413 -> 13.20425532 | P45: =DATA!H413 -> - | Q45: =DATA!I413 -> - | R45: =DATA!J413 -> - | S45: =DATA!K413 -> - | T45: =DATA!L413 -> - | U45: =DATA!M413 -> 1
C46: 食事がおいしい | J46: モ、サ | K46: =DATA!C414 -> 57.3 | L46: =DATA!D414 -> 56.2 | M46: =DATA!E414 -> 53.6 | N46: =DATA!F414 -> - | O46: =DATA!G414 -> 10.84893617 | P46: =DATA!H414 -> - | Q46: =DATA!I414 -> - | R46: =DATA!J414 -> - | S46: =DATA!K414 -> 1 | T46: =DATA!L414 -> 1 | U46: =DATA!M414 -> 1
C47: 道路や交通の便がよい | J47: 自 | K47: =DATA!C415 -> 5.4 | L47: =DATA!D415 -> 3.6 | M47: =DATA!E415 -> 6.1 | N47: =DATA!F415 -> - | O47: =DATA!G415 -> 5.631914894 | P47: =DATA!H415 -> - | Q47: =DATA!I415 -> - | R47: =DATA!J415 -> - | S47: =DATA!K415 -> 10 | T47: =DATA!L415 -> 12 | U47: =DATA!M415 -> 11
C48: 泊まりたい宿泊施設がある | J48: 自、サ | K48: =DATA!C416 -> 19 | L48: =DATA!D416 -> 20.1 | M48: =DATA!E416 -> 21.4 | N48: =DATA!F416 -> - | O48: =DATA!G416 -> 5.053191489 | P48: =DATA!H416 -> - | Q48: =DATA!I416 -> - | R48: =DATA!J416 -> - | S48: =DATA!K416 -> 1 | T48: =DATA!L416 -> 1 | U48: =DATA!M416 -> 1
C49: 人のよさや優しさ、おもてなしがよい | J49: サ | K49: =DATA!C417 -> 14.8 | L49: =DATA!D417 -> 13.6 | M49: =DATA!E417 -> 14.7 | N49: =DATA!F417 -> - | O49: =DATA!G417 -> 7.14893617 | P49: =DATA!H417 -> - | Q49: =DATA!I417 -> - | R49: =DATA!J417 -> - | S49: =DATA!K417 -> 4 | T49: =DATA!L417 -> 2 | U49: =DATA!M417 -> 6
C50: 地域を代表する産業や企業がある | J50: モ | K50: =DATA!C418 -> 9.6 | L50: =DATA!D418 -> 10.8 | M50: =DATA!E418 -> 12.3 | N50: =DATA!F418 -> - | O50: =DATA!G418 -> 5.363829787 | P50: =DATA!H418 -> - | Q50: =DATA!I418 -> - | R50: =DATA!J418 -> - | S50: =DATA!K418 -> 6 | T50: =DATA!L418 -> 5 | U50: =DATA!M418 -> 3
C51: 無回答（ひとつもない） | K51: =DATA!C419 -> 3.9 | L51: =DATA!D419 -> 7.5 | M51: =DATA!E419 -> 6.3 | N51: =DATA!F419 -> - | O51: =DATA!G419 -> 38.19361702 | P51: =DATA!H419 -> - | Q51: =DATA!I419 -> - | R51: =DATA!J419 -> - | S51: =DATA!K419 -> - | T51: =DATA!L419 -> - | U51: =DATA!M419 -> -
K53: =DATA!$F$4 -> 貴道 | N53: 2011平均 | P53: 県内順位(*1) | S53: 全国順位
K54: 2009 | L54: 2010 | M54: 2011 | N54: 県(*1) | O54: 全国 | P54: 2009 | Q54: 2010 | R54: 2011 | S54: 2009 | T54: 2010 | U54: 2011
B55: ="M."&DATA!$D$2&"のイメージ" -> M.都道府県のイメージ
C56: イメージ想起率 （100-無回答（％）） | J56: （点） | K56: =DATA!C421 -> 92.6 | L56: =DATA!D421 -> 90.8 | M56: =DATA!E421 -> 91.6 | N56: =DATA!F421 -> - | O56: =DATA!G421 -> 65.13191489 | P56: =DATA!H421 -> - | Q56: =DATA!I421 -> - | R56: =DATA!J421 -> - | S56: =DATA!K421 -> 1 | T56: =DATA!L421 -> 1 | U56: =DATA!M421 -> 1
C57: M1. | D57: =SPEC!BD9 -> 歴史・文化の地域 | J57: （％） | K57: =DATA!C422 -> 13.5 | L57: =DATA!D422 -> 11.9 | M57: =DATA!E422 -> 13.3 | N57: =DATA!F422 -> - | O57: =DATA!G422 -> 15.21489362 | P57: =DATA!H422 -> - | Q57: =DATA!I422 -> - | R57: =DATA!J422 -> - | S57: =DATA!K422 -> 25 | T57: =DATA!L422 -> 27 | U57: =DATA!M422 -> 23
C58: M2. | D58: =SPEC!BD10 -> 学術・芸術の地域 | J58: （％） | K58: =DATA!C423 -> 1.8 | L58: =DATA!D423 -> 2.2 | M58: =DATA!E423 -> 3.6 | N58: =DATA!F423 -> - | O58: =DATA!G423 -> 3.791489362 | P58: =DATA!H423 -> - | Q58: =DATA!I423 -> - | R58: =DATA!J423 -> - | S58: =DATA!K423 -> 34 | T58: =DATA!L423 -> 19 | U58: =DATA!M423 -> 15
C59: M3. | D59: =SPEC!BD11 -> 観光・レジャーの地域 | J59: （％） | K59: =DATA!C424 -> 83.6 | L59: =DATA!D424 -> 82.5 | M59: =DATA!E424 -> 75.4 | N59: =DATA!F424 -> - | O59: =DATA!G424 -> 25.96808511 | P59: =DATA!H424 -> - | Q59: =DATA!I424 -> - | R59: =DATA!J424 -> - | S59: =DATA!K424 -> 1 | T59: =DATA!L424 -> 1 | U59: =DATA!M424 -> 1
C60: M4. | D60: =SPEC!BD12 -> スポーツの地域 | J60: （％） | K60: =DATA!C425 -> 8.1 | L60: =DATA!D425 -> 7 | M60: =DATA!E425 -> 7.2 | N60: =DATA!F425 -> - | O60: =DATA!G425 -> 3.217021277 | P60: =DATA!H425 -> - | Q60: =DATA!I425 -> - | R60: =DATA!J425 -> - | S60: =DATA!K425 -> 6 | T60: =DATA!L425 -> 6 | U60: =DATA!M425 -> 8
C61: M5. | D61: =SPEC!BD13 -> 国際交流の地域 | J61: （％） | K61: =DATA!C426 -> 3.7 | L61: =DATA!D426 -> 5.6 | M61: =DATA!E426 -> 3.2 | N61: =DATA!F426 -> - | O61: =DATA!G426 -> 4.344680851 | P61: =DATA!H426 -> - | Q61: =DATA!I426 -> - | R61: =DATA!J426 -> - | S61: =DATA!K426 -> 13 | T61: =DATA!L426 -> 11 | U61: =DATA!M426 -> 13
C62: M6. | D62: =SPEC!BD14 -> 環境にやさしい地域 | J62: （％） | K62: =DATA!C427 -> 24.1 | L62: =DATA!D427 -> 22 | M62: =DATA!E427 -> 22.6 | N62: =DATA!F427 -> - | O62: =DATA!G427 -> 5.929787234 | P62: =DATA!H427 -> - | Q62: =DATA!I427 -> - | R62: =DATA!J427 -> - | S62: =DATA!K427 -> 1 | T62: =DATA!L427 -> 1 | U62: =DATA!M427 -> 1
C63: M7. | D63: =SPEC!BD15 -> デザインやセンスの良い地域 | J63: （％） | K63: =DATA!C428 -> 2.8 | L63: =DATA!D428 -> 2.2 | M63: =DATA!E428 -> 2.6 | N63: =DATA!F428 -> - | O63: =DATA!G428 -> 2.742553191 | P63: =DATA!H428 -> - | Q63: =DATA!I428 -> - | R63: =DATA!J428 -> - | S63: =DATA!K428 -> 11 | T63: =DATA!L428 -> 13 | U63: =DATA!M428 -> 12
C64: M8. | D64: =SPEC!BD16 -> 住民参加の地域 | J64: （％） | K64: =DATA!C429 -> 3.2 | L64: =DATA!D429 -> 1.8 | M64: =DATA!E429 -> 3.8 | N64: =DATA!F429 -> - | O64: =DATA!G429 -> 2.374468085 | P64: =DATA!H429 -> - | Q64: =DATA!I429 -> - | R64: =DATA!J429 -> - | S64: =DATA!K429 -> 21 | T64: =DATA!L429 -> 40 | U64: =DATA!M429 -> 3
C65: M9. | D65: =SPEC!BD17 -> 教育・子育ての地域 | J65: （％） | K65: =DATA!C430 -> 0.9 | L65: =DATA!D430 -> 1.2 | M65: =DATA!E430 -> 2.5 | N65: =DATA!F430 -> - | O65: =DATA!G430 -> 2.30212766 | P65: =DATA!H430 -> - | Q65: =DATA!I430 -> - | R65: =DATA!J430 -> - | S65: =DATA!K430 -> 39 | T65: =DATA!L430 -> 29 | U65: =DATA!M430 -> 13
C66: M10. | D66: =SPEC!BD18 -> 健康増進・医療福祉の地域 | J66: （％） | K66: =DATA!C431 -> 0.3 | L66: =DATA!D431 -> 1.2 | M66: =DATA!E431 -> 1.2 | N66: =DATA!F431 -> - | O66: =DATA!G431 -> 1.412765957 | P66: =DATA!H431 -> - | Q66: =DATA!I431 -> - | R66: =DATA!J431 -> - | S66: =DATA!K431 -> 40 | T66: =DATA!L431 -> 11 | U66: =DATA!M431 -> 25
C67: M11. | D67: =SPEC!BD19 -> 農林水産業が盛んな地域 | J67: （％） | K67: =DATA!C432 -> - | L67: =DATA!D432 -> - | M67: =DATA!E432 -> 40.9 | N67: =DATA!F432 -> - | O67: =DATA!G432 -> 17.70638298 | P67: =DATA!H432 -> - | Q67: =DATA!I432 -> - | R67: =DATA!J432 -> - | S67: =DATA!K432 -> - | T67: =DATA!L432 -> - | U67: =DATA!M432 -> 3
C68: M12. | D68: =SPEC!BD20 -> 地場産業が盛んな地域 | J68: （％） | K68: =DATA!C433 -> - | L68: =DATA!D433 -> - | M68: =DATA!E433 -> 17.2 | N68: =DATA!F433 -> - | O68: =DATA!G433 -> 7.736170213 | P68: =DATA!H433 -> - | Q68: =DATA!I433 -> - | R68: =DATA!J433 -> - | S68: =DATA!K433 -> - | T68: =DATA!L433 -> - | U68: =DATA!M433 -> 1
C69: M13. | D69: =SPEC!BD21 -> IT・先端技術の地域 | J69: （％） | K69: =DATA!C434 -> 0.4 | L69: =DATA!D434 -> 0.8 | M69: =DATA!E434 -> 0.7 | N69: =DATA!F434 -> - | O69: =DATA!G434 -> 2.3 | P69: =DATA!H434 -> - | Q69: =DATA!I434 -> - | R69: =DATA!J434 -> - | S69: =DATA!K434 -> 25 | T69: =DATA!L434 -> 18 | U69: =DATA!M434 -> 28
C70: M14. | D70: =SPEC!BD22 -> 生活に便利・快適な地域 | J70: （％） | K70: =DATA!C435 -> 4.8 | L70: =DATA!D435 -> 4.8 | M70: =DATA!E435 -> 3.8 | N70: =DATA!F435 -> - | O70: =DATA!G435 -> 4.959574468 | P70: =DATA!H435 -> - | Q70: =DATA!I435 -> - | R70: =DATA!J435 -> - | S70: =DATA!K435 -> 12 | T70: =DATA!L435 -> 12 | U70: =DATA!M435 -> 13
C71: M15. | D71: =SPEC!BD23 -> 災害リスクが大きい地域 | J71: （％） | K71: =DATA!C436 -> - | L71: =DATA!D436 -> - | M71: =DATA!E436 -> 2.3 | N71: =DATA!F436 -> - | O71: =DATA!G436 -> 7.870212766 | P71: =DATA!H436 -> - | Q71: =DATA!I436 -> - | R71: =DATA!J436 -> - | S71: =DATA!K436 -> - | T71: =DATA!L436 -> - | U71: =DATA!M436 -> -
C72: M16. | D72: =SPEC!BD24 -> 事件・事故が多い地域 | J72: （％） | K72: =DATA!C437 -> - | L72: =DATA!D437 -> - | M72: =DATA!E437 -> 3.9 | N72: =DATA!F437 -> - | O72: =DATA!G437 -> 5.046808511 | P72: =DATA!H437 -> - | Q72: =DATA!I437 -> - | R72: =DATA!J437 -> - | S72: =DATA!K437 -> - | T72: =DATA!L437 -> - | U72: =DATA!M437 -> -
A74: Copyright © 2011 Brand Research Institute, Inc. All rights reserved. | V74: 株式会社ブランド総合研究所

Sheet 属性別
A2: 表示したい結果を選択してください
A3: ステップ１（結果の種類を選択） | F3: =" "&SPEC!$BC$3 -> ステップ2（都道府県を選択 ： 北から順）
A5: ↑②都道府県結果、③道州結果の順に並んでいます。
B6: 属性別結果 | D6: =SPEC!$Q$4 -> 北海道 ※都道府県結果 | AI6: 地域ブランド調査2011 | AJ6: =SPEC!$Q$4 -> 北海道 ※都道府県結果 | BR6: 地域ブランド調査2011 | BS6: =SPEC!$Q$4 -> 北海道 ※都道府県結果 | DD6: 地域ブランド調査2011
E8: 認知 (Q1) | K8: 魅力 (Q2) | Q8: 情報接触 (Q3) | U8: 情報接触経路 (Q4) | AJ8: コミュニケーション・バランス | AO8: 居住意欲 (Q7) | AU8: 観光意欲 (Q9) | AZ8: 産品購入意欲（Q11） | BC8: 訪問目的 (Q8) | BO8: 訪問目的割合 | BS8: =SPEC!BD8 -> 都道府県のイメージ要素 (Q5) | CJ8: =SPEC!BD25 -> 都道府県の地域資源に対する評価 (Q6) | DA8: 地域資源評価
B9: 属 性 | D9: サンプル数 | E9: よく知っている | F9: 知っている | G9: 少しだけ知っている | H9: 名前だけは知っている | I9: 名前も知らない | J9: 認知度 | K9: とても魅力的 | L9: やや魅力的 | M9: どちらでもない | N9: あまり魅力的でない | O9: 全く魅力的でない | P9: 魅力度 | Q9: 何度も見聞きした | R9: 見聞きしたことがある | S9: 全く見聞きしていない | T9: 情報接触度 | U9: ドラマや映画 | V9: 小説・エッセイ・マンガなど | W9: 旅やグルメに関する番組 | X9: 雑誌や新聞の旅行グルメ関連記事 | Y9: 旅行パンフやガイドブック | Z9: 通販カタログや商品パンフレット | AA9: 物産展や催事（イベント）など | AB9: 百貨店やスーパーの店頭および商品 | AC9: テレビＣＭや新聞雑誌の広告 | AD9: ポスターやチラシ | AE9: 市区町村や都道府県のホームページ | AF9: そのほかのサイトや掲示板など | AG9: 友人や知人・家族から | AH9: 事件やニュース | AI9: その他 | AJ9: 物語系 | AK9: 旅行系 | AL9: 商品系 | AM9: 広告系 | AN9: 口コミ系 | AO9: ぜひ住みたい | AP9: できれば住みたい | AQ9: 住んでもよい | AR9: どちらとも言えない | AS9: あまり住みたくない | AT9: 居住意欲度 | AU9: ぜひ行ってみたい | AV9: 機会があれば行ってみたい | AW9: どちらともいえない | AX9: あまり行きたいとは思わない | AY9: 観光意欲度 | AZ9: 食品 | BA9: 食品以外 | BB9: 産品購入意欲度 | BC9: 観光のため | BD9: ビジネス（出張等）のため | BE9: 親戚・家族・友人の訪問のため | BF9: 医療・福祉のため | BG9: 買い物・食事のため | BH9: 趣味・娯楽のため | BI9: 通勤・通学している、していた | BJ9: 住んでいる・住んでいた | BK9: セカンドハウスがあるため | BL9: 通過・乗り換えのため | BM9: その他 | BN9: 訪問率 | BO9: 来訪 | BP9: 生活 | BQ9: 居住 | BR9: その他 | BS9: =SPEC!$BD9 -> 歴史・文化の地域 | BT9: =SPEC!$BD10 -> 学術・芸術の地域 | BU9: =SPEC!$BD11 -> 観光・レジャーの地域 | BV9: =SPEC!$BD12 -> スポーツの地域 | BW9: =SPEC!$BD13 -> 国際交流の地域 | BX9: =SPEC!$BD14 -> 環境にやさしい地域 | BY9: =SPEC!$BD15 -> デザインやセンスの良い地域 | BZ9: =SPEC!$BD16 -> 住民参加の地域 | CA9: =SPEC!$BD17 -> 教育・子育ての地域 | CB9: =SPEC!$BD18 -> 健康増進・医療福祉の地域 | CC9: =SPEC!$BD19 -> 農林水産業が盛んな地域 | CD9: =SPEC!$BD20 -> 地場産業が盛んな地域 | CE9: =SPEC!$BD21 -> IT・先端技術の地域 | CF9: =SPEC!$BD22 -> 生活に便利・快適な地域 | CG9: =SPEC!$BD23 -> 災害リスクが大きい地域 | CH9: =SPEC!$BD24 -> 事件・事故が多い地域 | CI9: イメージ想起率 | CJ9: 海・山・川・湖などの自然が豊か | CK9: 魅力的な温泉やレジャー施設・公園などがある | CL9: スポーツの参加・観戦が楽しめる | CM9: 魅力的な伝統芸能、祭り、イベントがある | CN9: 魅力的な街並みや歴史建造物がある | CO9: 歴史人物、著名人、職人などにゆかりがある | CP9: 魅力的な美術館・博物館がある | CQ9: 買いたい土産や地域産品がある | CR9: 優れた伝統的技術がある | CS9: 魅力的な商店街や店舗がある | CT9: 地元産の食材が豊富 | CU9: 食事がおいしい | CV9: 道路や交通の便がよい | CW9: 泊まりたい宿泊施設がある | CX9: 人のよさや優しさ、おもてなしがよい | CY9: 地域を代表する産業や企業がある | CZ9: (平均) 地域資源総合点 | DA9: 自然資源 | DB9: 歴史資源 | DC9: モノ資源 | DD9: サービス資源
C10: 単位 | D10: 人 | E10: ％ | F10: ％ | G10: ％ | H10: ％ | I10: ％ | J10: 点 | K10: ％ | L10: ％ | M10: ％ | N10: ％ | O10: ％ | P10: 点 | Q10: ％ | R10: ％ | S10: ％ | T10: 点 | U10: ％ | V10: ％ | W10: ％ | X10: ％ | Y10: ％ | Z10: ％ | AA10: ％ | AB10: ％ | AC10: ％ | AD10: ％ | AE10: ％ | AF10: ％ | AG10: ％ | AH10: ％ | AI10: ％ | AJ10: 偏差値 | AK10: 偏差値 | AL10: 偏差値 | AM10: 偏差値 | AN10: 偏差値 | AO10: ％ | AP10: ％ | AQ10: ％ | AR10: ％ | AS10: ％ | AT10: 点 | AU10: ％ | AV10: ％ | AW10: ％ | AX10: ％ | AY10: 点 | AZ10: 点 | BA10: 点 | BB10: 点 | BC10: ％ | BD10: ％ | BE10: ％ | BF10: ％ | BG10: ％ | BH10: ％ | BI10: ％ | BJ10: ％ | BK10: ％ | BL10: ％ | BM10: ％ | BN10: ％ | BO10: ％ | BP10: ％ | BQ10: ％ | BR10: ％ | BS10: ％ | BT10: ％ | BU10: ％ | BV10: ％ | BW10: ％ | BX10: ％ | BY10: ％ | BZ10: ％ | CA10: ％ | CB10: ％ | CC10: ％ | CD10: ％ | CE10: ％ | CF10: ％ | CG10: ％ | CH10: ％ | CI10: ％ | CJ10: ％ | CK10: ％ | CL10: ％ | CM10: ％ | CN10: ％ | CO10: ％ | CP10: ％ | CQ10: ％ | CR10: ％ | CS10: ％ | CT10: ％ | CU10: ％ | CV10: ％ | CW10: ％ | CX10: ％ | CY10: ％ | CZ10: 点 | DA10: 偏差値 | DB10: 偏差値 | DC10: 偏差値 | DD10: 偏差値
C11: =SPEC!BD7 -> 都道府県平均 | D11: 614.2765957 | E11: 4.893617021 | F11: 16.84042553 | G11: 35.75744681 | H11: 41.97446809 | I11: 0.03617021277 | J11: 46.11914894 | K11: 7.30212766 | L11: 25.64255319 | M11: 50.13829787 | N11: 13.06170213 | O11: 2.757446809 | P11: 20.12340426 | Q11: 20.14468085 | R11: 48.11489362 | S11: 31.25319149 | T11: 44.19787234 | U11: 4.123404255 | V11: 1.825531915 | W11: 17.35319149 | X11: 7.627659574 | Y11: 8.104255319 | Z11: 1.64893617 | AA11: 4.95106383 | AB11: 3.004255319 | AC11: 9.091489362 | AD11: 1.680851064 | AE11: 1.880851064 | AF11: 3.695744681 | AG11: 7.021276596 | AH11: 25.45319149 | AI11: 8.629787234 | AJ11: 49.9893617 | AK11: 50 | AL11: 50.00638298 | AM11: 49.99574468 | AN11: 49.99787234 | AO11: 2.414893617 | AP11: 4.19787234 | AQ11: 17.28723404 | AR11: 35.78297872 | AS11: 38.47659574 | AT11: 8.844680851 | AU11: 18.0893617 | AV11: 40.6787234 | AW11: 24.94042553 | AX11: 14.36170213 | AY11: 38.43617021 | AZ11: 22.35106383 | BA11: 2.7 | BB11: 25.02765957 | BC11: 15.87446809 | BD11: 3.640425532 | BE11: 3.357446809 | BF11: 0.2723404255 | BG11: 2.461702128 | BH11: 2.844680851 | BI11: 0.8957446809 | BJ11: 2.659574468 | BK11: 0.1659574468 | BL11: 2.436170213 | BM11: 1.912765957 | BN11: 28.09787234 | BO11: 22.87234043 | BP11: 5.578723404 | BQ11: 3.721276596 | BR11: 4.34893617 | BS11: 15.21489362 | BT11: 3.791489362 | BU11: 25.96808511 | BV11: 3.217021277 | BW11: 4.344680851 | BX11: 5.929787234 | BY11: 2.742553191 | BZ11: 2.374468085 | CA11: 2.30212766 | CB11: 1.412765957 | CC11: 17.70638298 | CD11: 7.736170213 | CE11: 2.3 | CF11: 4.959574468 | CG11: 7.870212766 | CH11: 5.046808511 | CI11: 65.13191489 | CJ11: 29.06382979 | CK11: 13.66382979 | CL11: 4.538297872 | CM11: 8.508510638 | CN11: 9.734042553 | CO11: 8.870212766 | CP11: 3.761702128 | CQ11: 7.90212766 | CR11: 4.974468085 | CS11: 3.329787234 | CT11: 13.20425532 | CU11: 10.84893617 | CV11: 5.631914894 | CW11: 5.053191489 | CX11: 7.14893617 | CY11: 5.363829787 | CZ11: 50.00851064 | DA11: 50.00851064 | DB11: 49.99574468 | DC11: 50 | DD11: 50
C12: 全 体 | D12: 609 | E12: 12.7 | F12: 27.6 | G12: 41.3 | H12: 18.3 | I12: 0 | J12: 58.7 | K12: 49.6 | L12: 42.2 | M12: 6.8 | N12: 1.1 | O12: 0 | P12: 70.7 | Q12: 37.4 | R12: 53.8 | S12: 8 | T12: 64.3 | U12: 18.5 | V12: 5.8 | W12: 47.2 | X12: 21.9 | Y12: 29.6 | Z12: 7.1 | AA12: 35.8 | AB12: 17.7 | AC12: 22.7 | AD12: 5.4 | AE12: 4.4 | AF12: 7.2 | AG12: 13.3 | AH12: 20.5 | AI12: 8.7 | AJ12: 79.8 | AK12: 91.9 | AL12: 108 | AM12: 84.5 | AN12: 73.3 | AO12: 10.2 | AP12: 13.3 | AQ12: 29.7 | AR12: 23.4 | AS12: 22.4 | AT12: 24.3 | AU12: 63.1 | AV12: 30.5 | AW12: 4.2 | AX12: 1.4 | AY12: 78.3 | AZ12: 82.7 | BA12: 10.4 | BB12: 93.1 | BC12: 28 | BD12: 3.7 | BE12: 3.6 | BF12: 0.3 | BG12: 2.9 | BH12: 3.5 | BI12: 1 | BJ12: 5.8 | BK12: 0.2 | BL12: 0.3 | BM12: 1.2 | BN12: 36.4 | BO12: 35.3 | BP12: 6.7 | BQ12: 7 | BR12: 1.5 | BS12: 13.3 | BT12: 3.6 | BU12: 75.4 | BV12: 7.2 | BW12: 3.2 | BX12: 22.6 | BY12: 2.6 | BZ12: 3.8 | CA12: 2.5 | CB12: 1.2 | CC12: 40.9 | CD12: 17.2 | CE12: 0.7 | CF12: 3.8 | CG12: 2.3 | CH12: 3.9 | CI12: 91.6 | CJ12: 79.6 | CK12: 44.3 | CL12: 11.2 | CM12: 15.6 | CN12: 20.8 | CO12: 11.9 | CP12: 6.1 | CQ12: 35.4 | CR12: 5.5 | CS12: 6.9 | CT12: 50.5 | CU12: 53.6 | CV12: 6.1 | CW12: 21.4 | CX12: 14.7 | CY12: 12.3 | CZ12: 84.9 | DA12: 99.4 | DB12: 59.6 | DC12: 98.3 | DD12: 82.4
B13: 居住地 | C13: 北海道・東北 | D13: 59 | E13: 50.4 | F13: 16.9 | G13: 27.1 | H13: 5.5 | I13: 0 | J13: 78.1 | K13: 59.1 | L13: 35 | M13: 3.1 | N13: 2.7 | O13: 0 | P13: 76.7 | Q13: 62.2 | R13: 36.7 | S13: 1.2 | T13: 80.5 | U13: 34 | V13: 13.5 | W13: 48.8 | X13: 37.8 | Y13: 35.2 | Z13: 21.1 | AA13: 46.8 | AB13: 23.5 | AC13: 29.4 | AD13: 16 | AE13: 16.6 | AF13: 10.5 | AG13: 19 | AH13: 40.4 | AI13: 19.1 | AJ13: 117.5 | AK13: 106.7 | AL13: 143 | AM13: 135.7 | AN13: 94.8 | AO13: 39.3 | AP13: 18.9 | AQ13: 26 | AR13: 13.1 | AS13: 2.7 | AT13: 55.2 | AU13: 71.8 | AV13: 23.6 | AW13: 4.6 | AX13: 0 | AY13: 83.6 | AZ13: 73.1 | BA13: 11.7 | BB13: 84.8 | BC13: 23.1 | BD13: 10.5 | BE13: 8.5 | BF13: 1.4 | BG13: 9.2 | BH13: 4.5 | BI13: 8.9 | BJ13: 43.8 | BK13: 0 | BL13: 1.4 | BM13: 6 | BN13: 62.1 | BO13: 42.1 | BP13: 15.1 | BQ13: 52.7 | BR13: 7.4 | BS13: 16.3 | BT13: 6.1 | BU13: 79.3 | BV13: 16.2 | BW13: 3.3 | BX13: 40.2 | BY13: 2.9 | BZ13: 3.3 | CA13: 9.5 | CB13: 1.8 | CC13: 57.1 | CD13: 27.3 | CE13: 1.8 | CF13: 11.7 | CG13: 2.7 | CH13: 6.1 | CI13: 98.4 | CJ13: 98.4 | CK13: 60.8 | CL13: 24 | CM13: 15.3 | CN13: 16.4 | CO13: 11.7 | CP13: 5.2 | CQ13: 43.7 | CR13: 6.4 | CS13: 14.7 | CT13: 70.1 | CU13: 71.5 | CV13: 13.7 | CW13: 32.3 | CX13: 29.2 | CY13: 22.4 | CZ13: 102 | DA13: 122.6 | DB13: 57.3 | DC13: 123.9 | DD13: 104.2
C14: 関東 | D14: 213 | E14: 10 | F14: 33.6 | G14: 41 | H14: 15.3 | I14: 0 | J14: 59.6 | K14: 52.9 | L14: 37.3 | M14: 8.3 | N14: 0.9 | O14: 0 | P14: 71.6 | Q14: 42.4 | R14: 51.3 | S14: 5.7 | T14: 68 | U14: 18.4 | V14: 3.4 | W14: 53.9 | X14: 22.6 | Y14: 31 | Z14: 6.8 | AA14: 33.7 | AB14: 15.6 | AC14: 23.5 | AD14: 4 | AE14: 3.7 | AF14: 8.5 | AG14: 19.4 | AH14: 21.7 | AI14: 7.3 | AJ14: 75.8 | AK14: 97.5 | AL14: 102.9 | AM14: 82.2 | AN14: 91 | AO14: 8.8 | AP14: 14.7 | AQ14: 29.5 | AR14: 22.4 | AS14: 23.7 | AT14: 23.5 | AU14: 65.8 | AV14: 29 | AW14: 2.9 | AX14: 1 | AY14: 80.3 | AZ14: 85 | BA14: 9.2 | BB14: 94.2 | BC14: 32.3 | BD14: 4.4 | BE14: 4.7 | BF14: 0 | BG14: 4.4 | BH14: 5.9 | BI14: 0 | BJ14: 2.6 | BK14: 0 | BL14: 0.6 | BM14: 1.7 | BN14: 41.8 | BO14: 41.4 | BP14: 10.3 | BQ14: 2.6 | BR14: 2.3 | BS14: 14.8 | BT14: 3 | BU14: 78.9 | BV14: 7 | BW14: 2.4 | BX14: 21.3 | BY14: 1.6 | BZ14: 4.2 | CA14: 2.5 | CB14: 2 | CC14: 43.6 | CD14: 17 | CE14: 1.1 | CF14: 3.2 | CG14: 3.5 | CH14: 2.7 | CI14: 92 | CJ14: 78 | CK14: 44 | CL14: 10.8 | CM14: 15.2 | CN14: 24.1 | CO14: 13.3 | CP14: 5.8 | CQ14: 37.7 | CR14: 7.8 | CS14: 6.1 | CT14: 49.7 | CU14: 56.2 | CV14: 7.4 | CW14: 24.8 | CX14: 18.7 | CY14: 9.7 | CZ14: 87.2 | DA14: 101.2 | DB14: 61.5 | DC14: 99.1 | DD14: 86.8
C15: 中部 | D15: 133 | E15: 9.1 | F15: 28.6 | G15: 43 | H15: 19.3 | I15: 0 | J15: 56.9 | K15: 47 | L15: 45.5 | M15: 6.7 | N15: 0.8 | O15: 0 | P15: 69.7 | Q15: 33.4 | R15: 53.4 | S15: 13.2 | T15: 60.1 | U15: 17.7 | V15: 5.2 | W15: 39.4 | X15: 22.4 | Y15: 30.2 | Z15: 6.9 | AA15: 37.1 | AB15: 18.8 | AC15: 18.6 | AD15: 3.7 | AE15: 4.3 | AF15: 7.8 | AG15: 10.1 | AH15: 14.3 | AI15: 6 | AJ15: 77.5 | AK15: 87.6 | AL15: 110.5 | AM15: 74.2 | AN15: 67.1 | AO15: 7.5 | AP15: 12.1 | AQ15: 37.2 | AR15: 20.9 | AS15: 21.6 | AT15: 22.9 | AU15: 64.5 | AV15: 28 | AW15: 3.9 | AX15: 3.5 | AY15: 78.5 | AZ15: 78.3 | BA15: 12.4 | BB15: 90.7 | BC15: 24.9 | BD15: 3.1 | BE15: 2.6 | BF15: 0 | BG15: 0 | BH15: 1.9 | BI15: 0 | BJ15: 1.9 | BK15: 0 | BL15: 0 | BM15: 0 | BN15: 28.1 | BO15: 30.6 | BP15: 1.9 | BQ15: 1.9 | BR15: 0 | BS15: 9.3 | BT15: 3.8 | BU15: 70.7 | BV15: 5.9 | BW15: 5.8 | BX15: 23 | BY15: 4.1 | BZ15: 3.4 | CA15: 2.3 | CB15: 1.5 | CC15: 32.6 | CD15: 11.7 | CE15: 0 | CF15: 4.1 | CG15: 1.7 | CH15: 3.9 | CI15: 89.6 | CJ15: 82.1 | CK15: 36.5 | CL15: 7.5 | CM15: 12.7 | CN15: 20.4 | CO15: 11.6 | CP15: 6.3 | CQ15: 32 | CR15: 3.4 | CS15: 8.8 | CT15: 46.8 | CU15: 51.6 | CV15: 5.3 | CW15: 15.6 | CX15: 12.3 | CY15: 13.2 | CZ15: 80.1 | DA15: 94 | DB15: 57.9 | DC15: 93.2 | DD15: 75.2
C16: 近畿 | D16: 88 | E16: 7.5 | F16: 29.8 | G16: 41.3 | H16: 20.5 | I16: 0 | J16: 56.1 | K16: 38.1 | L16: 56.2 | M16: 4.9 | N16: 0 | O16: 0 | P16: 66.2 | Q16: 34.1 | R16: 51.5 | S16: 12 | T16: 59.9 | U16: 18.4 | V16: 5.6 | W16: 40.3 | X16: 17.8 | Y16: 33.6 | Z16: 5 | AA16: 38.2 | AB16: 18.1 | AC16: 23.6 | AD16: 8 | AE16: 2.8 | AF16: 9.1 | AG16: 5 | AH16: 13.3 | AI16: 6.4 | AJ16: 79.3 | AK16: 87.4 | AL16: 108.8 | AM16: 87.8 | AN16: 58.1 | AO16: 5.7 | AP16: 11.1 | AQ16: 22.4 | AR16: 27.9 | AS16: 32 | AT16: 16.8 | AU16: 49 | AV16: 43.9 | AW16: 6.1 | AX16: 1 | AY16: 70.9 | AZ16: 83.1 | BA16: 9.8 | BB16: 92.8 | BC16: 29.3 | BD16: 1.8 | BE16: 2.6 | BF16: 0 | BG16: 2.9 | BH16: 2.9 | BI16: 1 | BJ16: 1.8 | BK16: 0 | BL16: 0 | BM16: 0 | BN16: 31.1 | BO16: 33.7 | BP16: 5.8 | BQ16: 2.8 | BR16: 0 | BS16: 13.6 | BT16: 5.9 | BU16: 71 | BV16: 7.4 | BW16: 3.1 | BX16: 17.8 | BY16: 2.5 | BZ16: 3.9 | CA16: 0 | CB16: 0 | CC16: 33 | CD16: 15.4 | CE16: 0 | CF16: 3.4 | CG16: 2.5 | CH16: 5.2 | CI16: 86.6 | CJ16: 68.5 | CK16: 46 | CL16: 8.2 | CM16: 14.2 | CN16: 14.7 | CO16: 10 | CP16: 6.8 | CQ16: 35.7 | CR16: 7 | CS16: 6.1 | CT16: 49 | CU16: 54.7 | CV16: 5.6 | CW16: 23.9 | CX16: 10.2 | CY16: 12.3 | CZ16: 82.5 | DA16: 94.3 | DB16: 55.3 | DC16: 99.2 | DD16: 81.2
C17: 中国・四国 | D17: 54 | E17: 9.2 | F17: 21.5 | G17: 43.2 | H17: 26 | I17: 0 | J17: 53.5 | K17: 48.1 | L17: 38.1 | M17: 10.2 | N17: 3.6 | O17: 0 | P17: 67.2 | Q17: 18.5 | R17: 72.6 | S17: 9 | T17: 54.8 | U17: 5 | V17: 4.9 | W17: 35.7 | X17: 18.1 | Y17: 19.3 | Z17: 0 | AA17: 28.1 | AB17: 17.1 | AC17: 26 | AD17: 1.6 | AE17: 0 | AF17: 3.1 | AG17: 14.9 | AH17: 22.4 | AI17: 10.6 | AJ17: 56.4 | AK17: 75.6 | AL17: 90.5 | AM17: 76 | AN17: 67.4 | AO17: 3.8 | AP17: 6.8 | AQ17: 38.1 | AR17: 36.7 | AS17: 11.2 | AT17: 16.8 | AU17: 54.7 | AV17: 29.9 | AW17: 10.3 | AX17: 1.7 | AY17: 69.6 | AZ17: 94.8 | BA17: 7.6 | BB17: 102.5 | BC17: 25.7 | BD17: 0 | BE17: 1.7 | BF17: 0 | BG17: 0 | BH17: 0 | BI17: 0 | BJ17: 0 | BK17: 2.1 | BL17: 0 | BM17: 0 | BN17: 27.4 | BO17: 27.4 | BP17: 0 | BQ17: 2.1 | BR17: 0 | BS17: 15.1 | BT17: 3.4 | BU17: 71.9 | BV17: 3.4 | BW17: 1.7 | BX17: 7.4 | BY17: 1.6 | BZ17: 0 | CA17: 0 | CB17: 0 | CC17: 34 | CD17: 22.7 | CE17: 1.7 | CF17: 0 | CG17: 1.3 | CH17: 6.2 | CI17: 90.3 | CJ17: 74.8 | CK17: 44.6 | CL17: 13.5 | CM17: 21.1 | CN17: 18.9 | CO17: 12.4 | CP17: 3 | CQ17: 26.1 | CR17: 3.1 | CS17: 1.6 | CT17: 42.8 | CU17: 44.2 | CV17: 0 | CW17: 19.2 | CX17: 5.2 | CY17: 8.8 | CZ17: 78.4 | DA17: 91.8 | DB17: 61.4 | DC17: 85.4 | DD17: 75.1
C18: 九州・沖縄 | D18: 63 | E18: 4 | F18: 17.2 | G18: 50.4 | H18: 28.4 | I18: 0 | J18: 49.2 | K18: 52 | L18: 42.6 | M18: 5.4 | N18: 0 | O18: 0 | P18: 73.3 | Q18: 27.1 | R18: 66.6 | S18: 4.6 | T18: 60.4 | U18: 18 | V18: 8.9 | W18: 58.7 | X18: 12.8 | Y18: 21.2 | Z18: 4.6 | AA18: 33.1 | AB18: 17.1 | AC18: 17.9 | AD18: 3.1 | AE18: 1.7 | AF18: 0 | AG18: 3.8 | AH18: 19.4 | AI18: 10.9 | AJ18: 84 | AK18: 88.1 | AL18: 101.4 | AM18: 67.5 | AN18: 33.5 | AO18: 5.6 | AP18: 14.7 | AQ18: 21.2 | AR18: 23.9 | AS18: 34.6 | AT18: 18.3 | AU18: 69.6 | AV18: 29.1 | AW18: 1.4 | AX18: 0 | AY18: 84.1 | AZ18: 80.7 | BA18: 12.4 | BB18: 93.1 | BC18: 24.9 | BD18: 2.2 | BE18: 0 | BF18: 1.7 | BG18: 0 | BH18: 2.2 | BI18: 0 | BJ18: 0 | BK18: 0 | BL18: 0 | BM18: 0 | BN18: 26.6 | BO18: 27.1 | BP18: 3.9 | BQ18: 0 | BR18: 0 | BS18: 12.1 | BT18: 0 | BU18: 78.9 | BV18: 5.1 | BW18: 1.9 | BX18: 29.9 | BY18: 3.2 | BZ18: 7 | CA18: 1.9 | CB18: 0 | CC18: 50.6 | CD18: 17.8 | CE18: 0 | CF18: 1.9 | CG18: 0 | CH18: 1.8 | CI18: 96.3 | CJ18: 81.6 | CK18: 43.4 | CL18: 10.4 | CM18: 20.7 | CN18: 24.4 | CO18: 10.7 | CP18: 9.3 | CQ18: 35 | CR18: 1.9 | CS18: 3.8 | CT18: 51.1 | CU18: 39 | CV18: 1.9 | CW18: 10.8 | CX18: 7.4 | CY18: 12.9 | CZ18: 80.7 | DA18: 96.2 | DB18: 62.9 | DC18: 92.5 | DD18: 71.3
B19: 年代 | C19: 20代 | D19: 114 | E19: 11.3 | F19: 27.2 | G19: 35.7 | H19: 25.8 | I19: 0 | J19: 56 | K19: 50.7 | L19: 41 | M19: 7.5 | N19: 0.8 | O19: 0 | P19: 71.2 | Q19: 28.5 | R19: 58.2 | S19: 13.3 | T19: 57.6 | U19: 15.1 | V19: 9.8 | W19: 43.7 | X19: 25.8 | Y19: 29 | Z19: 3.5 | AA19: 35.9 | AB19: 14.2 | AC19: 16.6 | AD19: 2 | AE19: 5.3 | AF19: 8.4 | AG19: 21.2 | AH19: 13.8 | AI19: 9.5 | AJ19: 80.8 | AK19: 91.8 | AL19: 100 | AM19: 69.5 | AN19: 95 | AO19: 10.3 | AP19: 8.8 | AQ19: 39 | AR19: 20.2 | AS19: 21.7 | AT19: 24.5 | AU19: 69.8 | AV19: 22.1 | AW19: 4.9 | AX19: 2.4 | AY19: 80.9 | AZ19: 85.1 | BA19: 11 | BB19: 96.1 | BC19: 25.7 | BD19: 0 | BE19: 0 | BF19: 0 | BG19: 0 | BH19: 2.7 | BI19: 0 | BJ19: 1 | BK19: 0 | BL19: 0 | BM19: 1.9 | BN19: 29.5 | BO19: 25.7 | BP19: 2.7 | BQ19: 1 | BR19: 1.9 | BS19: 16.5 | BT19: 3.2 | BU19: 70.6 | BV19: 9.5 | BW19: 3.2 | BX19: 27.7 | BY19: 3.4 | BZ19: 5 | CA19: 3.6 | CB19: 0.8 | CC19: 37 | CD19: 17.3 | CE19: 0.8 | CF19: 4.3 | CG19: 1.9 | CH19: 0 | CI19: 85.4 | CJ19: 73.6 | CK19: 37.7 | CL19: 8.9 | CM19: 19.7 | CN19: 23.2 | CO19: 14.1 | CP19: 6.4 | CQ19: 40.6 | CR19: 4.5 | CS19: 6.9 | CT19: 43 | CU19: 46.5 | CV19: 2.4 | CW19: 19 | CX19: 24.6 | CY19: 12.1 | CZ19: 82.7 | DA19: 91.3 | DB19: 63.5 | DC19: 92.9 | DD19: 83
C20: 30代 | D20: 138 | E20: 11.8 | F20: 21 | G20: 44 | H20: 22.7 | I20: 0 | J20: 55.5 | K20: 46.8 | L20: 40.9 | M20: 9 | N20: 1.9 | O20: 0 | P20: 67.2 | Q20: 35 | R20: 56.4 | S20: 8.7 | T20: 63.1 | U20: 11 | V20: 4.9 | W20: 44.2 | X20: 13.8 | Y20: 23.9 | Z20: 8.2 | AA20: 30.6 | AB20: 20.1 | AC20: 14.6 | AD20: 2.6 | AE20: 1.7 | AF20: 7.4 | AG20: 10.3 | AH20: 28.3 | AI20: 8.1 | AJ20: 66.2 | AK20: 81.2 | AL20: 106 | AM20: 60.9 | AN20: 66.6 | AO20: 9.1 | AP20: 13.2 | AQ20: 35.3 | AR20: 20.1 | AS20: 20.7 | AT20: 24.5 | AU20: 64.7 | AV20: 29.5 | AW20: 5.2 | AX20: 0.5 | AY20: 79.5 | AZ20: 73.7 | BA20: 7.2 | BB20: 80.9 | BC20: 26 | BD20: 2.8 | BE20: 2.3 | BF20: 0 | BG20: 3.3 | BH20: 2.4 | BI20: 0 | BJ20: 6.6 | BK20: 0 | BL20: 0.9 | BM20: 0 | BN20: 35.5 | BO20: 31.1 | BP20: 5.7 | BQ20: 6.6 | BR20: 0.9 | BS20: 14.7 | BT20: 4.9 | BU20: 76.7 | BV20: 10.7 | BW20: 3.2 | BX20: 22 | BY20: 2.2 | BZ20: 4.1 | CA20: 3 | CB20: 2.6 | CC20: 41.1 | CD20: 23.1 | CE20: 0.5 | CF20: 6.2 | CG20: 4.3 | CH20: 3.2 | CI20: 93.1 | CJ20: 80.6 | CK20: 37.6 | CL20: 13.5 | CM20: 17.8 | CN20: 21.9 | CO20: 12.1 | CP20: 7.6 | CQ20: 32.6 | CR20: 6.7 | CS20: 5.4 | CT20: 51.1 | CU20: 59.6 | CV20: 8.2 | CW20: 22.9 | CX20: 13.6 | CY20: 13.5 | CZ20: 86.5 | DA20: 99.2 | DB20: 61.1 | DC20: 98.1 | DD20: 87.7
C21: 40代 | D21: 125 | E21: 16.4 | F21: 28.1 | G21: 39.4 | H21: 16.2 | I21: 0 | J21: 61.2 | K21: 56 | L21: 36.1 | M21: 6.3 | N21: 1.6 | O21: 0 | P21: 74 | Q21: 43.7 | R21: 46.5 | S21: 9.3 | T21: 66.9 | U21: 21.5 | V21: 7.5 | W21: 48.7 | X21: 23.1 | Y21: 30.9 | Z21: 11.4 | AA21: 37.4 | AB21: 19.9 | AC21: 22.9 | AD21: 10.8 | AE21: 6.8 | AF21: 9.3 | AG21: 14.2 | AH21: 24 | AI21: 8.4 | AJ21: 87.5 | AK21: 94.5 | AL21: 117.2 | AM21: 98.4 | AN21: 80.5 | AO21: 13.3 | AP21: 11.6 | AQ21: 28.9 | AR21: 24.8 | AS21: 20.9 | AT21: 26.3 | AU21: 63.3 | AV21: 30.3 | AW21: 4.4 | AX21: 1.5 | AY21: 78.4 | AZ21: 75.7 | BA21: 6.8 | BB21: 82.5 | BC21: 20.7 | BD21: 3.7 | BE21: 5.4 | BF21: 0 | BG21: 3.7 | BH21: 4.3 | BI21: 2 | BJ21: 8.8 | BK21: 0 | BL21: 0 | BM21: 2.5 | BN21: 33.4 | BO21: 29.8 | BP21: 8 | BQ21: 10.8 | BR21: 2.5 | BS21: 16.8 | BT21: 4.4 | BU21: 74.4 | BV21: 6.3 | BW21: 4.7 | BX21: 22.3 | BY21: 4.4 | BZ21: 1.3 | CA21: 2 | CB21: 0 | CC21: 36.4 | CD21: 16.3 | CE21: 0.7 | CF21: 2.2 | CG21: 1.5 | CH21: 5.7 | CI21: 88.6 | CJ21: 80.6 | CK21: 46.6 | CL21: 16 | CM21: 19.3 | CN21: 22.5 | CO21: 12 | CP21: 5.1 | CQ21: 39.2 | CR21: 6.7 | CS21: 8.4 | CT21: 56.6 | CU21: 55.9 | CV21: 6.8 | CW21: 17.5 | CX21: 13 | CY21: 14.9 | CZ21: 88.2 | DA21: 102 | DB21: 62 | DC21: 104.3 | DD21: 84.5
C22: 50代 | D22: 118 | E22: 10.6 | F22: 30.8 | G22: 47.9 | H22: 10.7 | I22: 0 | J22: 60.3 | K22: 44.9 | L22: 47.5 | M22: 7.6 | N22: 0 | O22: 0 | P22: 68.7 | Q22: 32.8 | R22: 61.8 | S22: 4.5 | T22: 63.7 | U22: 21.1 | V22: 3.5 | W22: 52.8 | X22: 23.5 | Y22: 25.1 | Z22: 7.1 | AA22: 37.5 | AB22: 19 | AC22: 28 | AD22: 6.4 | AE22: 2.9 | AF22: 5.3 | AG22: 9.2 | AH22: 19.7 | AI22: 5.3 | AJ22: 80.3 | AK22: 93.6 | AL22: 111.4 | AM22: 92.8 | AN22: 59 | AO22: 6.9 | AP22: 16.6 | AQ22: 26.2 | AR22: 24.7 | AS22: 23.4 | AT22: 21.7 | AU22: 59.5 | AV22: 37 | AW22: 2.3 | AX22: 1.1 | AY22: 78 | AZ22: 105.1 | BA22: 12.4 | BB22: 117.5 | BC22: 30.4 | BD22: 7.6 | BE22: 3.8 | BF22: 1.6 | BG22: 2.7 | BH22: 1.9 | BI22: 1.4 | BJ22: 5 | BK22: 0 | BL22: 0.7 | BM22: 0.7 | BN22: 39.2 | BO22: 41.8 | BP22: 6.2 | BQ22: 6.4 | BR22: 1.4 | BS22: 6.6 | BT22: 2.4 | BU22: 81.5 | BV22: 4.7 | BW22: 1.7 | BX22: 13.7 | BY22: 2.8 | BZ22: 2.9 | CA22: 1.3 | CB22: 0.6 | CC22: 49.5 | CD22: 17.1 | CE22: 0.7 | CF22: 2.6 | CG22: 1.9 | CH22: 4.1 | CI22: 97.1 | CJ22: 81.1 | CK22: 53.7 | CL22: 10.4 | CM22: 11.3 | CN22: 17 | CO22: 9.4 | CP22: 4 | CQ22: 35.3 | CR22: 2.6 | CS22: 4.9 | CT22: 51.4 | CU22: 52.4 | CV22: 3.2 | CW22: 25.3 | CX22: 11.9 | CY22: 9.4 | CZ22: 83.4 | DA22: 102.4 | DB22: 54.8 | DC22: 98 | DD22: 78.5
C23: 60代 | D23: 114 | E23: 13.2 | F23: 32.1 | G23: 39 | H23: 15.7 | I23: 0 | J23: 60.7 | K23: 49.6 | L23: 46.3 | M23: 3.2 | N23: 0.9 | O23: 0 | P23: 72.8 | Q23: 47.3 | R23: 46.2 | S23: 4 | T23: 70.4 | U23: 25.2 | V23: 3.2 | W23: 46.8 | X23: 24.9 | Y23: 40.2 | Z23: 4.9 | AA23: 38.4 | AB23: 14.4 | AC23: 32.7 | AD23: 5.1 | AE23: 5.7 | AF23: 5.7 | AG23: 12.1 | AH23: 14.7 | AI23: 12.5 | AJ23: 86.5 | AK23: 100.3 | AL23: 104.7 | AM23: 103.6 | AN23: 66.9 | AO23: 11.7 | AP23: 16.5 | AQ23: 18.1 | AR23: 27.8 | AS23: 25.9 | AT23: 24.5 | AU23: 57.8 | AV23: 33.6 | AW23: 4.1 | AX23: 1.7 | AY23: 74.6 | AZ23: 75.5 | BA23: 15.6 | BB23: 91.1 | BC23: 38.4 | BD23: 4.4 | BE23: 6.4 | BF23: 0 | BG23: 4.4 | BH23: 6.6 | BI23: 1.7 | BJ23: 7.3 | BK23: 1 | BL23: 0 | BM23: 0.9 | BN23: 44.8 | BO23: 49.2 | BP23: 11 | BQ23: 10 | BR23: 0.9 | BS23: 11.7 | BT23: 2.7 | BU23: 73.5 | BV23: 4.1 | BW23: 3.2 | BX23: 28.1 | BY23: 0 | BZ23: 6.1 | CA23: 2.6 | CB23: 1.9 | CC23: 40.4 | CD23: 11 | CE23: 0.9 | CF23: 3.4 | CG23: 1.7 | CH23: 6.4 | CI23: 93.8 | CJ23: 81.7 | CK23: 46.6 | CL23: 6.4 | CM23: 9.2 | CN23: 19.1 | CO23: 12.2 | CP23: 7.3 | CQ23: 29.7 | CR23: 6.9 | CS23: 9 | CT23: 49.5 | CU23: 52.2 | CV23: 9.3 | CW23: 22.5 | CX23: 11.2 | CY23: 11.2 | CZ23: 83.2 | DA23: 101.4 | DB23: 56 | DC23: 97.6 | DD23: 77.6
B24: 性別 | C24: 男性 | D24: 317 | E24: 15.7 | F24: 27.7 | G24: 39.3 | H24: 17.4 | I24: 0 | J24: 60.4 | K24: 51.6 | L24: 40 | M24: 6.9 | N24: 1.1 | O24: 0 | P24: 71.6 | Q24: 35.8 | R24: 54.9 | S24: 8.5 | T24: 63.2 | U24: 21.1 | V24: 7.8 | W24: 41.5 | X24: 22.8 | Y24: 28.3 | Z24: 7.1 | AA24: 34 | AB24: 16.4 | AC24: 26.4 | AD24: 6.7 | AE24: 5.7 | AF24: 9.6 | AG24: 10.5 | AH24: 23.4 | AI24: 10.5 | AJ24: 87.3 | AK24: 88 | AL24: 104.5 | AM24: 95.4 | AN24: 72.4 | AO24: 11.9 | AP24: 16.1 | AQ24: 31.9 | AR24: 19.5 | AS24: 20.2 | AT24: 27.9 | AU24: 63.8 | AV24: 29.6 | AW24: 3.7 | AX24: 2.5 | AY24: 78.6 | AZ24: 78.8 | BA24: 7.8 | BB24: 86.6 | BC24: 31.1 | BD24: 6.6 | BE24: 3.1 | BF24: 0.6 | BG24: 3.6 | BH24: 3.9 | BI24: 1.7 | BJ24: 6.1 | BK24: 0.4 | BL24: 0.7 | BM24: 1.8 | BN24: 40.7 | BO24: 40.8 | BP24: 8.1 | BQ24: 8.2 | BR24: 2.5 | BS24: 12 | BT24: 3.8 | BU24: 72.5 | BV24: 10.1 | BW24: 4.3 | BX24: 25.8 | BY24: 3.2 | BZ24: 5 | CA24: 2.4 | CB24: 1.3 | CC24: 43 | CD24: 19.4 | CE24: 0.6 | CF24: 6 | CG24: 2.3 | CH24: 4.1 | CI24: 91.1 | CJ24: 78.6 | CK24: 45.1 | CL24: 12.8 | CM24: 14.1 | CN24: 18.4 | CO24: 11.6 | CP24: 6.7 | CQ24: 29.5 | CR24: 4.7 | CS24: 7.9 | CT24: 52.1 | CU24: 50.4 | CV24: 7.3 | CW24: 24.2 | CX24: 16 | CY24: 12.7 | CZ24: 84.4 | DA24: 100.4 | DB24: 57.7 | DC24: 96.5 | DD24: 82.8
C25: 女性 | D25: 292 | E25: 9.4 | F25: 27.5 | G25: 43.5 | H25: 19.3 | I25: 0 | J25: 56.8 | K25: 47.4 | L25: 44.6 | M25: 6.7 | N25: 1 | O25: 0 | P25: 69.7 | Q25: 39.2 | R25: 52.7 | S25: 7.4 | T25: 65.6 | U25: 15.8 | V25: 3.6 | W25: 53.3 | X25: 21 | Y25: 30.9 | Z25: 7.1 | AA25: 37.8 | AB25: 19.1 | AC25: 18.6 | AD25: 3.9 | AE25: 3.1 | AF25: 4.7 | AG25: 16.3 | AH25: 17.4 | AI25: 6.7 | AJ25: 71.9 | AK25: 96.1 | AL25: 111.8 | AM25: 72.5 | AN25: 74.5 | AO25: 8.4 | AP25: 10.3 | AQ25: 27.4 | AR25: 27.6 | AS25: 24.8 | AT25: 20.4 | AU25: 62.2 | AV25: 31.5 | AW25: 4.8 | AX25: 0.2 | AY25: 78 | AZ25: 86.9 | BA25: 13.2 | BB25: 100.1 | BC25: 24.6 | BD25: 0.5 | BE25: 4.1 | BF25: 0 | BG25: 2.1 | BH25: 3.1 | BI25: 0.2 | BJ25: 5.5 | BK25: 0 | BL25: 0 | BM25: 0.5 | BN25: 31.8 | BO25: 29.2 | BP25: 5.2 | BQ25: 5.7 | BR25: 0.5 | BS25: 14.8 | BT25: 3.4 | BU25: 78.6 | BV25: 4 | BW25: 2.1 | BX25: 19.3 | BY25: 1.9 | BZ25: 2.5 | CA25: 2.6 | CB25: 1.1 | CC25: 38.6 | CD25: 14.8 | CE25: 0.8 | CF25: 1.4 | CG25: 2.4 | CH25: 3.7 | CI25: 92.2 | CJ25: 80.7 | CK25: 43.4 | CL25: 9.4 | CM25: 17.3 | CN25: 23.4 | CO25: 12.4 | CP25: 5.5 | CQ25: 41.9 | CR25: 6.4 | CS25: 5.7 | CT25: 48.8 | CU25: 57.1 | CV25: 4.7 | CW25: 18.4 | CX25: 13.4 | CY25: 11.9 | CZ25: 85.6 | DA25: 98.3 | DB25: 61.7 | DC25: 100.2 | DD25: 82.2
B26: 婚姻 | C26: 既婚 | D26: 364 | E26: 13.2 | F26: 30.6 | G26: 39.3 | H26: 16.9 | I26: 0 | J26: 60 | K26: 53.6 | L26: 40.1 | M26: 5.3 | N26: 0.7 | O26: 0 | P26: 73.6 | Q26: 40.5 | R26: 53.3 | S26: 4.9 | T26: 67.2 | U26: 19.6 | V26: 2.7 | W26: 48.4 | X26: 21.4 | Y26: 31.5 | Z26: 6.9 | AA26: 37.5 | AB26: 18.2 | AC26: 26.2 | AD26: 5.3 | AE26: 4.8 | AF26: 5.8 | AG26: 11.2 | AH26: 18.3 | AI26: 8.5 | AJ26: 76.6 | AK26: 93.6 | AL26: 110.3 | AM26: 91.1 | AN26: 65 | AO26: 9.5 | AP26: 14.6 | AQ26: 26.8 | AR26: 25.2 | AS26: 23 | AT26: 23.5 | AU26: 66.3 | AV26: 29.4 | AW26: 2.3 | AX26: 1 | AY26: 81 | AZ26: 91.4 | BA26: 12.9 | BB26: 104.3 | BC26: 30.5 | BD26: 4.9 | BE26: 3.8 | BF26: 0.5 | BG26: 3.9 | BH26: 2.8 | BI26: 1.2 | BJ26: 5.5 | BK26: 0.3 | BL26: 0.2 | BM26: 1.1 | BN26: 38.3 | BO26: 39.2 | BP26: 7.2 | BQ26: 7 | BR26: 1.3 | BS26: 11.1 | BT26: 3.8 | BU26: 79.7 | BV26: 6.1 | BW26: 3.3 | BX26: 22.5 | BY26: 1.5 | BZ26: 3.6 | CA26: 2 | CB26: 1.6 | CC26: 39.9 | CD26: 14.8 | CE26: 0.6 | CF26: 2.7 | CG26: 1.6 | CH26: 4.5 | CI26: 94 | CJ26: 80.6 | CK26: 46.8 | CL26: 10.5 | CM26: 14.4 | CN26: 19.3 | CO26: 10.4 | CP26: 4.7 | CQ26: 34.4 | CR26: 4.6 | CS26: 6.4 | CT26: 52.3 | CU26: 55.4 | CV26: 5.7 | CW26: 21.9 | CX26: 12.4 | CY26: 12.4 | CZ26: 84.6 | DA26: 100.7 | DB26: 57.7 | DC26: 99.1 | DD26: 80.8
C27: 未婚 | D27: 246 | E27: 11.8 | F27: 23.2 | G27: 44.3 | H27: 20.4 | I27: 0 | J27: 56.6 | K27: 43.6 | L27: 45.4 | M27: 9.1 | N27: 1.6 | O27: 0 | P27: 66.3 | Q27: 32.9 | R27: 54.5 | S27: 12.6 | T27: 60.2 | U27: 16.9 | V27: 10.3 | W27: 45.3 | X27: 22.6 | Y27: 26.8 | Z27: 7.5 | AA27: 33.2 | AB27: 17 | AC27: 17.4 | AD27: 5.5 | AE27: 3.9 | AF27: 9.4 | AG27: 16.3 | AH27: 23.7 | AI27: 9 | AJ27: 84.5 | AK27: 89.4 | AL27: 104.7 | AM27: 74.6 | AN27: 85.7 | AO27: 11.3 | AP27: 11.5 | AQ27: 34 | AR27: 20.7 | AS27: 21.6 | AT27: 25.5 | AU27: 58.3 | AV27: 32.2 | AW27: 7.1 | AX27: 2.1 | AY27: 74.4 | AZ27: 69.4 | BA27: 6.7 | BB27: 76.1 | BC27: 24.3 | BD27: 1.9 | BE27: 3.2 | BF27: 0 | BG27: 1.2 | BH27: 4.6 | BI27: 0.7 | BJ27: 6.3 | BK27: 0 | BL27: 0.5 | BM27: 1.3 | BN27: 33.6 | BO27: 29.4 | BP27: 5.8 | BQ27: 7 | BR27: 1.8 | BS27: 16.7 | BT27: 3.3 | BU27: 69 | BV27: 8.9 | BW27: 3.1 | BX27: 22.9 | BY27: 4.3 | BZ27: 4.1 | CA27: 3.2 | CB27: 0.7 | CC27: 42.3 | CD27: 20.7 | CE27: 1 | CF27: 5.5 | CG27: 3.5 | CH27: 3 | CI27: 88.1 | CJ27: 78 | CK27: 40.5 | CL27: 12.2 | CM27: 17.4 | CN27: 22.9 | CO27: 14.3 | CP27: 8.1 | CQ27: 37 | CR27: 6.9 | CS27: 7.6 | CT27: 47.8 | CU27: 51 | CV27: 6.6 | CW27: 20.7 | CX27: 18.2 | CY27: 12.2 | CZ27: 85.5 | DA27: 97.3 | DB27: 62.4 | DC27: 97.2 | DD27: 84.9
B28: 子供 | C28: いる | D28: 185 | E28: 12.2 | F28: 30.8 | G28: 38.4 | H28: 18.7 | I28: 0 | J28: 59.1 | K28: 52.2 | L28: 41 | M28: 4.8 | N28: 1.3 | O28: 0 | P28: 72.7 | Q28: 39.2 | R28: 55.2 | S28: 5.3 | T28: 66.8 | U28: 15.2 | V28: 2.4 | W28: 51.9 | X28: 24.7 | Y28: 28.3 | Z28: 5.9 | AA28: 32.8 | AB28: 17.2 | AC28: 21.1 | AD28: 3.4 | AE28: 4 | AF28: 4.4 | AG28: 9.8 | AH28: 24 | AI28: 7.3 | AJ28: 68.9 | AK28: 95.9 | AL28: 102.6 | AM28: 77.5 | AN28: 58.3 | AO28: 8.6 | AP28: 12.8 | AQ28: 30 | AR28: 26.9 | AS28: 21.3 | AT28: 22.5 | AU28: 63.1 | AV28: 32 | AW28: 3.4 | AX28: 0.5 | AY28: 79.1 | AZ28: 86.2 | BA28: 15.7 | BB28: 101.9 | BC28: 26.2 | BD28: 3.7 | BE28: 3.3 | BF28: 0 | BG28: 2.7 | BH28: 1 | BI28: 0.8 | BJ28: 4.8 | BK28: 0.6 | BL28: 0 | BM28: 0 | BN28: 32.8 | BO28: 33.2 | BP28: 3.7 | BQ28: 6.2 | BR28: 0 | BS28: 12.2 | BT28: 2.4 | BU28: 81.3 | BV28: 6.2 | BW28: 3.8 | BX28: 20.4 | BY28: 1.7 | BZ28: 1.3 | CA28: 2 | CB28: 0.9 | CC28: 38.1 | CD28: 14.5 | CE28: 0.5 | CF28: 1 | CG28: 1.6 | CH28: 2.9 | CI28: 93.1 | CJ28: 81.6 | CK28: 44.8 | CL28: 11.2 | CM28: 17.6 | CN28: 18.6 | CO28: 8.7 | CP28: 5.2 | CQ28: 31.7 | CR28: 3.8 | CS28: 5.1 | CT28: 56.4 | CU28: 58.9 | CV28: 4 | CW28: 23 | CX28: 13.1 | CY28: 12.9 | CZ28: 85.8 | DA28: 101.3 | DB28: 58 | DC28: 99.6 | DD28: 84.3
C29: いない | D29: 423 | E29: 12.9 | F29: 26.3 | G29: 42.8 | H29: 17.8 | I29: 0 | J29: 58.6 | K29: 48.2 | L29: 42.9 | M29: 7.7 | N29: 1 | O29: 0 | P29: 69.7 | Q29: 36.8 | R29: 53.4 | S29: 8.8 | T29: 63.5 | U29: 20.1 | V29: 7.3 | W29: 45.3 | X29: 20.8 | Y29: 30.2 | Z29: 7.7 | AA29: 37.3 | AB29: 18 | AC29: 23.4 | AD29: 6.3 | AE29: 4.6 | AF29: 8.5 | AG29: 14.8 | AH29: 19.1 | AI29: 9.3 | AJ29: 84.9 | AK29: 90.4 | AL29: 110.7 | AM29: 87.6 | AN29: 80 | AO29: 11 | AP29: 13.6 | AQ29: 29.7 | AR29: 21.5 | AS29: 23 | AT29: 25.2 | AU29: 62.9 | AV29: 30 | AW29: 4.6 | AX29: 1.8 | AY29: 77.9 | AZ29: 80.9 | BA29: 8.1 | BB29: 89 | BC29: 28.9 | BD29: 3.7 | BE29: 3.7 | BF29: 0.5 | BG29: 2.9 | BH29: 4.7 | BI29: 1.1 | BJ29: 6.3 | BK29: 0 | BL29: 0.5 | BM29: 1.7 | BN29: 38.1 | BO29: 36.3 | BP29: 8.1 | BQ29: 7.4 | BR29: 2.2 | BS29: 13.9 | BT29: 4.2 | BU29: 72.7 | BV29: 7.7 | BW29: 3 | BX29: 23.7 | BY29: 3 | BZ29: 4.9 | CA29: 2.7 | CB29: 1.4 | CC29: 42.2 | CD29: 18.4 | CE29: 0.8 | CF29: 5.1 | CG29: 2.7 | CH29: 4.3 | CI29: 90.9 | CJ29: 78.6 | CK29: 44.2 | CL29: 11.3 | CM29: 14.8 | CN29: 21.8 | CO29: 13.4 | CP29: 6.5 | CQ29: 37.2 | CR29: 6.3 | CS29: 7.7 | CT29: 48.1 | CU29: 51.1 | CV29: 7 | CW29: 20.8 | CX29: 15.5 | CY29: 12.1 | CZ29: 84.6 | DA29: 98.6 | DB29: 60.3 | DC29: 97.8 | DD29: 81.7
B30: 職業 | C30: 会社員、会社役員 | D30: 233 | E30: 14.8 | F30: 25.3 | G30: 40.8 | H30: 18.7 | I30: 0 | J30: 59.1 | K30: 56.3 | L30: 35.8 | M30: 5.8 | N30: 1.2 | O30: 0 | P30: 74.2 | Q30: 38.4 | R30: 52.4 | S30: 8.7 | T30: 64.6 | U30: 19.2 | V30: 8.2 | W30: 43 | X30: 23.1 | Y30: 32 | Z30: 9.1 | AA30: 38.7 | AB30: 18.3 | AC30: 23.7 | AD30: 5.4 | AE30: 3.7 | AF30: 10.3 | AG30: 15.8 | AH30: 24 | AI30: 10.9 | AJ30: 84.9 | AK30: 91.5 | AL30: 114.2 | AM30: 85 | AN30: 86.7 | AO30: 14.4 | AP30: 14.7 | AQ30: 34.2 | AR30: 17.6 | AS30: 18.6 | AT30: 30.3 | AU30: 71 | AV30: 24 | AW30: 2.8 | AX30: 1.8 | AY30: 83 | AZ30: 89.8 | BA30: 9.8 | BB30: 99.6 | BC30: 28.6 | BD30: 3.3 | BE30: 4.4 | BF30: 0 | BG30: 2.8 | BH30: 2.9 | BI30: 0.7 | BJ30: 6.8 | BK30: 0.5 | BL30: 0 | BM30: 0.9 | BN30: 37.9 | BO30: 36.3 | BP30: 5.7 | BQ30: 8 | BR30: 0.9 | BS30: 16.2 | BT30: 3.6 | BU30: 72.9 | BV30: 9.3 | BW30: 4.2 | BX30: 22.5 | BY30: 3.2 | BZ30: 3.6 | CA30: 3.9 | CB30: 1.5 | CC30: 41.7 | CD30: 20.9 | CE30: 0.7 | CF30: 3.1 | CG30: 1.6 | CH30: 5.1 | CI30: 90.8 | CJ30: 82.6 | CK30: 43.9 | CL30: 13.2 | CM30: 16.5 | CN30: 22.8 | CO30: 11.8 | CP30: 5.2 | CQ30: 35.7 | CR30: 6.8 | CS30: 7.3 | CT30: 51.5 | CU30: 55.1 | CV30: 7.7 | CW30: 23 | CX30: 14.5 | CY30: 13.4 | CZ30: 86.9 | DA30: 102.3 | DB30: 60.8 | DC30: 99.7 | DD30: 84.9
C31: 公務員、団体役員、団体職員 | D31: 34 | E31: 24.5 | F31: 20.9 | G31: 33.6 | H31: 21 | I31: 0 | J31: 62.2 | K31: 46.5 | L31: 39.3 | M31: 9.5 | N31: 4.7 | O31: 0 | P31: 66.1 | Q31: 46.9 | R31: 42.9 | S31: 8.1 | T31: 68.4 | U31: 21.1 | V31: 10.5 | W31: 42.8 | X31: 28.1 | Y31: 37.5 | Z31: 7.1 | AA31: 29 | AB31: 10.3 | AC31: 37.5 | AD31: 17.7 | AE31: 13 | AF31: 15.8 | AG31: 12.7 | AH31: 24.9 | AI31: 22.2 | AJ31: 91.7 | AK31: 98.1 | AL31: 91.8 | AM31: 146.5 | AN31: 92.4 | AO31: 15.2 | AP31: 8.2 | AQ31: 38.3 | AR31: 19.5 | AS31: 18.7 | AT31: 28.9 | AU31: 59.4 | AV31: 37.9 | AW31: 2.7 | AX31: 0 | AY31: 78.3 | AZ31: 62.3 | BA31: 10.7 | BB31: 73 | BC31: 33.9 | BD31: 14.2 | BE31: 7.8 | BF31: 2.5 | BG31: 12.9 | BH31: 5.1 | BI31: 8.3 | BJ31: 15.6 | BK31: 0 | BL31: 2.5 | BM31: 2.6 | BN31: 47.4 | BO31: 55.9 | BP31: 20.5 | BQ31: 23.9 | BR31: 5.1 | BS31: 8 | BT31: 5.9 | BU31: 82.4 | BV31: 11 | BW31: 5.9 | BX31: 22.5 | BY31: 0 | BZ31: 5.6 | CA31: 6.6 | CB31: 3.2 | CC31: 43.1 | CD31: 11.4 | CE31: 5.9 | CF31: 5.6 | CG31: 0 | CH31: 5.9 | CI31: 94.3 | CJ31: 89.8 | CK31: 43.4 | CL31: 13.6 | CM31: 13 | CN31: 11.3 | CO31: 11.8 | CP31: 11.6 | CQ31: 20.8 | CR31: 6.6 | CS31: 11.8 | CT31: 49.4 | CU31: 34.2 | CV31: 3.2 | CW31: 23.9 | CX31: 13.9 | CY31: 11 | CZ31: 80.3 | DA31: 98.8 | DB31: 54.1 | DC31: 90.1 | DD31: 78
C32: 自営業・自由業 | D32: 65 | E32: 12 | F32: 21.3 | G32: 50.5 | H32: 16.3 | I32: 0 | J32: 57.2 | K32: 44.5 | L32: 48.2 | M32: 5.6 | N32: 1.7 | O32: 0 | P32: 68.6 | Q32: 33.9 | R32: 58.5 | S32: 7.5 | T32: 63.2 | U32: 16.8 | V32: 6.8 | W32: 46.9 | X32: 16 | Y32: 20.5 | Z32: 1.1 | AA32: 16 | AB32: 11.7 | AC32: 16.9 | AD32: 6.2 | AE32: 1.3 | AF32: 8.8 | AG32: 9.8 | AH32: 17 | AI32: 2.2 | AJ32: 78.7 | AK32: 82.1 | AL32: 71.8 | AM32: 70.4 | AN32: 68.8 | AO32: 5.3 | AP32: 14.5 | AQ32: 29.5 | AR32: 22.6 | AS32: 28.1 | AT32: 19.9 | AU32: 53.6 | AV32: 40.7 | AW32: 3 | AX32: 2.7 | AY32: 74 | AZ32: 63.9 | BA32: 4 | BB32: 67.9 | BC32: 29 | BD32: 4.9 | BE32: 4.9 | BF32: 1.7 | BG32: 4.5 | BH32: 11 | BI32: 1.4 | BJ32: 4.2 | BK32: 0 | BL32: 0 | BM32: 2.5 | BN32: 37.9 | BO32: 38.8 | BP32: 17.2 | BQ32: 5.6 | BR32: 2.5 | BS32: 3.8 | BT32: 3.1 | BU32: 71.1 | BV32: 5.4 | BW32: 0 | BX32: 20.5 | BY32: 1.1 | BZ32: 8.8 | CA32: 0 | CB32: 0 | CC32: 36.6 | CD32: 18.9 | CE32: 0 | CF32: 6.7 | CG32: 3.4 | CH32: 2.9 | CI32: 95.8 | CJ32: 75.3 | CK32: 45.4 | CL32: 11 | CM32: 14 | CN32: 18.7 | CO32: 14 | CP32: 7.8 | CQ32: 24.4 | CR32: 8.9 | CS32: 3.9 | CT32: 56.6 | CU32: 50.5 | CV32: 4.4 | CW32: 14.2 | CX32: 16.5 | CY32: 8.4 | CZ32: 82.8 | DA32: 96.6 | DB32: 58.8 | DC32: 95.5 | DD32: 80.4
C33: 専業主婦 | D33: 124 | E33: 9.2 | F33: 33.6 | G33: 40 | H33: 17.2 | I33: 0 | J33: 58.7 | K33: 44.1 | L33: 47.6 | M33: 7.8 | N33: 0.4 | O33: 0 | P33: 67.9 | Q33: 40.7 | R33: 53.1 | S33: 4.5 | T33: 67.3 | U33: 14.1 | V33: 1.8 | W33: 56.8 | X33: 28.6 | Y33: 31.9 | Z33: 7.4 | AA33: 44.5 | AB33: 21.9 | AC33: 23.2 | AD33: 1.8 | AE33: 3.3 | AF33: 2.9 | AG33: 10.1 | AH33: 19.8 | AI33: 7.1 | AJ33: 66.2 | AK33: 103.8 | AL33: 123 | AM33: 77.2 | AN33: 55.4 | AO33: 7.6 | AP33: 8.1 | AQ33: 20.5 | AR33: 30.6 | AS33: 30.6 | AT33: 16.7 | AU33: 56.5 | AV33: 38.5 | AW33: 4.4 | AX33: 0 | AY33: 75.8 | AZ33: 88.1 | BA33: 14 | BB33: 102.1 | BC33: 21.5 | BD33: 0.6 | BE33: 3 | BF33: 0 | BG33: 2.8 | BH33: 1.5 | BI33: 0 | BJ33: 5 | BK33: 0 | BL33: 0 | BM33: 1.2 | BN33: 28.6 | BO33: 25.1 | BP33: 4.3 | BQ33: 5 | BR33: 1.2 | BS33: 8.8 | BT33: 3.7 | BU33: 85.9 | BV33: 1.5 | BW33: 1.2 | BX33: 19 | BY33: 1.1 | BZ33: 3.7 | CA33: 1.7 | CB33: 1.3 | CC33: 42.1 | CD33: 11.9 | CE33: 0 | CF33: 0.8 | CG33: 3.5 | CH33: 4.5 | CI33: 94.1 | CJ33: 78.2 | CK33: 45.7 | CL33: 5.9 | CM33: 14.7 | CN33: 18.2 | CO33: 6.2 | CP33: 4.2 | CQ33: 40.2 | CR33: 2.9 | CS33: 2.6 | CT33: 45.5 | CU33: 55.7 | CV33: 2.1 | CW33: 20.3 | CX33: 13.8 | CY33: 11.6 | CZ33: 81.3 | DA33: 95.1 | DB33: 55.4 | DC33: 96.3 | DD33: 78.3
C34: 学生 | D34: 12 | E34: 22.6 | F34: 37.5 | G34: 15 | H34: 25 | I34: 0 | J34: 64.4 | K34: 52.5 | L34: 47.5 | M34: 0 | N34: 0 | O34: 0 | P34: 76.2 | Q34: 15 | R34: 62.5 | S34: 22.6 | T34: 46.2 | U34: 30 | V34: 22.6 | W34: 47.5 | X34: 7.5 | Y34: 37.5 | Z34: 0 | AA34: 30 | AB34: 22.6 | AC34: 0 | AD34: 0 | AE34: 22.6 | AF34: 7.5 | AG34: 29.9 | AH34: 15 | AI34: 0 | AJ34: 125.8 | AK34: 88 | AL34: 98.9 | AM34: 67.3 | AN34: 113.6 | AO34: 22.6 | AP34: 15 | AQ34: 30 | AR34: 17.5 | AS34: 15 | AT34: 37.6 | AU34: 60 | AV34: 0 | AW34: 10 | AX34: 22.6 | AY34: 60 | AZ34: 122.4 | BA34: 45.9 | BB34: 168.3 | BC34: 40 | BD34: 0 | BE34: 0 | BF34: 0 | BG34: 0 | BH34: 0 | BI34: 0 | BJ34: 0 | BK34: 0 | BL34: 0 | BM34: 0 | BN34: 40 | BO34: 40 | BP34: 0 | BQ34: 0 | BR34: 0 | BS34: 29.9 | BT34: 7.5 | BU34: 47.5 | BV34: 7.5 | BW34: 7.5 | BX34: 30 | BY34: 0 | BZ34: 0 | CA34: 0 | CB34: 0 | CC34: 45 | CD34: 37.5 | CE34: 0 | CF34: 22.6 | CG34: 0 | CH34: 0 | CI34: 70 | CJ34: 90 | CK34: 15 | CL34: 17.5 | CM34: 22.4 | CN34: 29.9 | CO34: 15 | CP34: 22.4 | CQ34: 52.5 | CR34: 7.5 | CS34: 22.6 | CT34: 52.5 | CU34: 52.5 | CV34: 0 | CW34: 7.5 | CX34: 30 | CY34: 22.6 | CZ34: 90.4 | DA34: 90 | DB34: 68.1 | DC34: 108.8 | DD34: 94.8
C35: パート、アルバイト、フリーターなど | D35: 80 | E35: 6.5 | F35: 33.2 | G35: 43 | H35: 17.3 | I35: 0 | J35: 57.2 | K35: 51.1 | L35: 42 | M35: 7 | N35: 0 | O35: 0 | P35: 72 | Q35: 36.2 | R35: 52.7 | S35: 11.1 | T35: 62.5 | U35: 20.3 | V35: 2 | W35: 46.2 | X35: 16.2 | Y35: 22.9 | Z35: 6.4 | AA35: 35.5 | AB35: 18.2 | AC35: 16.5 | AD35: 6.1 | AE35: 6.4 | AF35: 3.6 | AG35: 15.1 | AH35: 15.5 | AI35: 5.3 | AJ35: 76.6 | AK35: 83.4 | AL35: 107.4 | AM35: 78.4 | AN35: 69 | AO35: 7.2 | AP35: 14.7 | AQ35: 28.7 | AR35: 26.8 | AS35: 22.6 | AT35: 21.8 | AU35: 66.3 | AV35: 26.5 | AW35: 4.8 | AX35: 0 | AY35: 79.5 | AZ35: 75.4 | BA35: 9.1 | BB35: 84.5 | BC35: 27.7 | BD35: 1 | BE35: 1.7 | BF35: 0 | BG35: 0 | BH35: 0.9 | BI35: 0.8 | BJ35: 4.5 | BK35: 0 | BL35: 0 | BM35: 0 | BN35: 33.2 | BO35: 30.4 | BP35: 0.9 | BQ35: 5.3 | BR35: 0 | BS35: 19.2 | BT35: 2.3 | BU35: 69.7 | BV35: 4.7 | BW35: 3.1 | BX35: 19.8 | BY35: 6 | BZ35: 0 | CA35: 0.8 | CB35: 0 | CC35: 34.7 | CD35: 9.1 | CE35: 1 | CF35: 0.8 | CG35: 1.5 | CH35: 1.5 | CI35: 86.2 | CJ35: 69.6 | CK35: 42.1 | CL35: 10.2 | CM35: 12.3 | CN35: 18.3 | CO35: 18.6 | CP35: 1.7 | CQ35: 35.7 | CR35: 1.8 | CS35: 6.8 | CT35: 45.1 | CU35: 52 | CV35: 6.2 | CW35: 18.8 | CX35: 10.1 | CY35: 10.6 | CZ35: 79.6 | DA35: 91.7 | DB35: 60 | DC35: 92.3 | DD35: 74.2
C36: 無職 | D36: 59 | E36: 12.3 | F36: 26.3 | G36: 41.3 | H36: 20.2 | I36: 0 | J36: 57.7 | K36: 41.3 | L36: 47.9 | M36: 9.9 | N36: 0.9 | O36: 0 | P36: 65.2 | Q36: 32.9 | R36: 59.8 | S36: 5.8 | T36: 62.8 | U36: 21.5 | V36: 2.6 | W36: 49.9 | X36: 17.8 | Y36: 25 | Z36: 7.9 | AA36: 35 | AB36: 16.3 | AC36: 29.2 | AD36: 5.1 | AE36: 2 | AF36: 2.9 | AG36: 8.7 | AH36: 18.3 | AI36: 9.3 | AJ36: 79.5 | AK36: 88.1 | AL36: 106.4 | AM36: 91.1 | AN36: 52.1 | AO36: 3.7 | AP36: 19.1 | AQ36: 29.3 | AR36: 27.3 | AS36: 18.5 | AT36: 20.5 | AU36: 52.6 | AV36: 37.2 | AW36: 10.2 | AX36: 0 | AY36: 71.2 | AZ36: 75.8 | BA36: 7.1 | BB36: 82.9 | BC36: 29.7 | BD36: 9 | BE36: 0.9 | BF36: 0 | BG36: 0 | BH36: 1.4 | BI36: 0 | BJ36: 3.4 | BK36: 0 | BL36: 2.1 | BM36: 1.8 | BN36: 39.8 | BO36: 39.6 | BP36: 1.4 | BQ36: 3.4 | BR36: 3.9 | BS36: 14.4 | BT36: 3.9 | BU36: 76.4 | BV36: 14.3 | BW36: 5.1 | BX36: 36.6 | BY36: 2.7 | BZ36: 4.5 | CA36: 1.8 | CB36: 1.8 | CC36: 47.6 | CD36: 22.6 | CE36: 0 | CF36: 9.1 | CG36: 4.9 | CH36: 1.8 | CI36: 95.2 | CJ36: 80 | CK36: 48.5 | CL36: 13.7 | CM36: 20.9 | CN36: 28.6 | CO36: 13.3 | CP36: 11.6 | CQ36: 38.2 | CR36: 6.8 | CS36: 11.8 | CT36: 59.8 | CU36: 62.7 | CV36: 12.8 | CW36: 31.7 | CX36: 19.9 | CY36: 15.4 | CZ36: 96.8 | DA36: 112.4 | DB36: 66.1 | DC36: 111.1 | DD36: 97.7
B37: 旅行頻度 | C37: 年４回以上 | D37: 121 | E37: 16.4 | F37: 28.7 | G37: 36.8 | H37: 18.1 | I37: 0 | J37: 60.9 | K37: 48.8 | L37: 45.2 | M37: 4.7 | N37: 1.3 | O37: 0 | P37: 71.4 | Q37: 42.5 | R37: 50.6 | S37: 4.6 | T37: 67.8 | U37: 24.4 | V37: 5.5 | W37: 58.3 | X37: 28.2 | Y37: 42.9 | Z37: 5.5 | AA37: 37 | AB37: 22.8 | AC37: 24.4 | AD37: 4.3 | AE37: 5.2 | AF37: 9.6 | AG37: 14.5 | AH37: 14.7 | AI37: 11.4 | AJ37: 88.9 | AK37: 111.5 | AL37: 113.3 | AM37: 86.9 | AN37: 81.9 | AO37: 10.5 | AP37: 12.7 | AQ37: 26.7 | AR37: 23.1 | AS37: 26.2 | AT37: 23.5 | AU37: 69.9 | AV37: 22.8 | AW37: 1.8 | AX37: 3.9 | AY37: 81.3 | AZ37: 90.7 | BA37: 7.2 | BB37: 97.9 | BC37: 44.6 | BD37: 6.7 | BE37: 3.7 | BF37: 0.7 | BG37: 8.1 | BH37: 8.5 | BI37: 2.1 | BJ37: 4.2 | BK37: 0 | BL37: 0.7 | BM37: 0.7 | BN37: 49.1 | BO37: 55 | BP37: 17.3 | BQ37: 6.3 | BR37: 1.4 | BS37: 7.9 | BT37: 5.3 | BU37: 83 | BV37: 6.2 | BW37: 3.3 | BX37: 20 | BY37: 2.5 | BZ37: 4.5 | CA37: 2.8 | CB37: 1.6 | CC37: 38.7 | CD37: 20.2 | CE37: 0 | CF37: 1.9 | CG37: 4.2 | CH37: 3.9 | CI37: 93 | CJ37: 81.7 | CK37: 43.3 | CL37: 8.8 | CM37: 13.8 | CN37: 17 | CO37: 12.9 | CP37: 6.6 | CQ37: 36.1 | CR37: 4.4 | CS37: 6.8 | CT37: 57.3 | CU37: 53.2 | CV37: 4.9 | CW37: 25.8 | CX37: 12.8 | CY37: 6.9 | CZ37: 84.8 | DA37: 101.8 | DB37: 57.5 | DC37: 98.3 | DD37: 81.4
C38: 年２，３回 | D38: 177 | E38: 14.2 | F38: 30 | G38: 42.5 | H38: 12.9 | I38: 0 | J38: 61.4 | K38: 53.9 | L38: 38.5 | M38: 6 | N38: 1.2 | O38: 0 | P38: 73.1 | Q38: 37 | R38: 57.4 | S38: 5.6 | T38: 65.7 | U38: 18.9 | V38: 5.6 | W38: 42.6 | X38: 19.6 | Y38: 36 | Z38: 9.6 | AA38: 41.4 | AB38: 19.5 | AC38: 19 | AD38: 8.6 | AE38: 5.4 | AF38: 9 | AG38: 18.6 | AH38: 18.9 | AI38: 5.1 | AJ38: 80.1 | AK38: 91.6 | AL38: 119.2 | AM38: 85.4 | AN38: 90.2 | AO38: 13.6 | AP38: 13.6 | AQ38: 29.3 | AR38: 18 | AS38: 24.2 | AT38: 27.8 | AU38: 71.5 | AV38: 24.5 | AW38: 2.9 | AX38: 0 | AY38: 83.8 | AZ38: 88.3 | BA38: 14.6 | BB38: 102.9 | BC38: 38.5 | BD38: 4.3 | BE38: 5.7 | BF38: 0 | BG38: 2.1 | BH38: 3.9 | BI38: 0.6 | BJ38: 6.5 | BK38: 0.6 | BL38: 0 | BM38: 1.7 | BN38: 46.2 | BO38: 48.5 | BP38: 6 | BQ38: 7.7 | BR38: 1.7 | BS38: 12.7 | BT38: 2.4 | BU38: 75.1 | BV38: 7.2 | BW38: 3.3 | BX38: 20.3 | BY38: 2.2 | BZ38: 2.9 | CA38: 2.1 | CB38: 1.7 | CC38: 41.4 | CD38: 16.4 | CE38: 1.1 | CF38: 4.8 | CG38: 0.8 | CH38: 4.8 | CI38: 91.3 | CJ38: 81.9 | CK38: 49.7 | CL38: 10.8 | CM38: 14.2 | CN38: 22.6 | CO38: 8.5 | CP38: 6 | CQ38: 35.3 | CR38: 5.2 | CS38: 9.3 | CT38: 50.3 | CU38: 55.1 | CV38: 6.8 | CW38: 25.7 | CX38: 16 | CY38: 13.6 | CZ38: 87.1 | DA38: 104.2 | DB38: 58.2 | DC38: 101.4 | DD38: 84.4
C39: 年１回程度 | D39: 202 | E39: 10.9 | F39: 28.5 | G39: 43.6 | H39: 17 | I39: 0 | J39: 58.3 | K39: 54 | L39: 37.7 | M39: 6.8 | N39: 0.9 | O39: 0 | P39: 72.8 | Q39: 39.7 | R39: 49.5 | S39: 9.8 | T39: 64.5 | U39: 16.8 | V39: 6.2 | W39: 48.8 | X39: 25.1 | Y39: 23.8 | Z39: 6.5 | AA39: 35.5 | AB39: 15.3 | AC39: 25.9 | AD39: 5.3 | AE39: 3.5 | AF39: 4.2 | AG39: 10.4 | AH39: 21.9 | AI39: 10.7 | AJ39: 77.7 | AK39: 91.3 | AL39: 104.2 | AM39: 88.3 | AN39: 59.3 | AO39: 9.8 | AP39: 12.3 | AQ39: 35 | AR39: 22.6 | AS39: 19.1 | AT39: 24.7 | AU39: 60.7 | AV39: 33.1 | AW39: 4.8 | AX39: 0.9 | AY39: 77.3 | AZ39: 84.6 | BA39: 12.3 | BB39: 96.9 | BC39: 19 | BD39: 2.4 | BE39: 2.9 | BF39: 0.5 | BG39: 1.3 | BH39: 2.2 | BI39: 1.2 | BJ39: 6.5 | BK39: 0 | BL39: 0.6 | BM39: 1.1 | BN39: 29.8 | BO39: 24.3 | BP39: 4 | BQ39: 7.7 | BR39: 1.7 | BS39: 17.7 | BT39: 3.6 | BU39: 76.7 | BV39: 9.4 | BW39: 3.2 | BX39: 28.3 | BY39: 2.6 | BZ39: 4.5 | CA39: 3.7 | CB39: 0.9 | CC39: 45.1 | CD39: 18.4 | CE39: 0.8 | CF39: 5 | CG39: 2.7 | CH39: 3.2 | CI39: 94.1 | CJ39: 81.5 | CK39: 47.2 | CL39: 13.7 | CM39: 20.7 | CN39: 24.8 | CO39: 14 | CP39: 7.9 | CQ39: 37.1 | CR39: 7.3 | CS39: 5.1 | CT39: 51.2 | CU39: 58.1 | CV39: 6 | CW39: 20.8 | CX39: 19.3 | CY39: 12.7 | CZ39: 89.8 | DA39: 102.3 | DB39: 64.6 | DC39: 102.1 | DD39: 90.1
C40: 行かない | D40: 107 | E40: 8.2 | F40: 20.6 | G40: 41 | H40: 30.2 | I40: 0 | J40: 51.7 | K40: 34.7 | L40: 53.6 | M40: 10.8 | N40: 0.9 | O40: 0 | P40: 61.5 | Q40: 27.6 | R40: 59.9 | S40: 12.4 | T40: 57.6 | U40: 14.3 | V40: 5.7 | W40: 39.3 | X40: 12.3 | Y40: 14.9 | Z40: 5.6 | AA40: 26 | AB40: 13.3 | AC40: 20.3 | AD40: 1.5 | AE40: 3.8 | AF40: 7.6 | AG40: 8.7 | AH40: 27.4 | AI40: 7.9 | AJ40: 72.8 | AK40: 71.3 | AL40: 90.1 | AM40: 72.5 | AN40: 63.3 | AO40: 5.4 | AP40: 15.1 | AQ40: 23.1 | AR40: 34.3 | AS40: 22.1 | AT40: 18.7 | AU40: 45.3 | AV40: 44.5 | AW40: 8.3 | AX40: 1.9 | AY40: 67.6 | AZ40: 59.8 | BA40: 3.8 | BB40: 63.6 | BC40: 9.5 | BD40: 1.9 | BE40: 1.3 | BF40: 0 | BG40: 0 | BH40: 0 | BI40: 0 | BJ40: 5.5 | BK40: 0 | BL40: 0 | BM40: 1 | BN40: 17.9 | BO40: 12.7 | BP40: 0 | BQ40: 5.5 | BR40: 1 | BS40: 11.8 | BT40: 2.9 | BU40: 65.7 | BV40: 4.2 | BW40: 3.1 | BX40: 18.6 | BY40: 3.5 | BZ40: 3.2 | CA40: 0 | CB40: 0 | CC40: 34.7 | CD40: 12.5 | CE40: 0.7 | CF40: 2 | CG40: 2.1 | CH40: 3.7 | CI40: 86.9 | CJ40: 70.7 | CK40: 31 | CL40: 8.8 | CM40: 10.6 | CN40: 14.1 | CO40: 12.4 | CP40: 2.3 | CQ40: 31.9 | CR40: 4.1 | CS40: 6.5 | CT40: 42 | CU40: 43.3 | CV40: 6.4 | CW40: 10.4 | CX40: 6.5 | CY40: 15.2 | CZ40: 72.4 | DA40: 83.1 | DB40: 54.5 | DC40: 86.1 | DD40: 66
B41: 物産展 | C41: ４都道府県以上 | D41: 92 | E41: 20.9 | F41: 32.8 | G41: 35.5 | H41: 10.9 | I41: 0 | J41: 65.9 | K41: 63.1 | L41: 35.9 | M41: 1 | N41: 0 | O41: 0 | P41: 81.1 | Q41: 56.1 | R41: 42.2 | S41: 0.6 | T41: 77.2 | U41: 34 | V41: 10.9 | W41: 69 | X41: 35.2 | Y41: 47.8 | Z41: 8.9 | AA41: 51.7 | AB41: 39.5 | AC41: 27.1 | AD41: 12.2 | AE41: 5.8 | AF41: 12 | AG41: 17 | AH41: 22.3 | AI41: 11.5 | AJ41: 113.3 | AK41: 126 | AL41: 152.9 | AM41: 106.4 | AN41: 93.6 | AO41: 21.3 | AP41: 15.8 | AQ41: 27.5 | AR41: 24.4 | AS41: 10.9 | AT41: 36.1 | AU41: 77.9 | AV41: 19.9 | AW41: 1 | AX41: 0 | AY41: 87.8 | AZ41: 110.9 | BA41: 16.8 | BB41: 127.7 | BC41: 43.1 | BD41: 4 | BE41: 8.9 | BF41: 0.9 | BG41: 8.9 | BH41: 8.1 | BI41: 1.9 | BJ41: 10.2 | BK41: 1.2 | BL41: 0.9 | BM41: 0 | BN41: 52.4 | BO41: 56 | BP41: 17.9 | BQ41: 13.3 | BR41: 0.9 | BS41: 14.2 | BT41: 5.8 | BU41: 85.7 | BV41: 7.9 | BW41: 4.6 | BX41: 32.2 | BY41: 2 | BZ41: 7.3 | CA41: 4.6 | CB41: 3.4 | CC41: 54.1 | CD41: 27.9 | CE41: 1.8 | CF41: 6.2 | CG41: 2.5 | CH41: 1.6 | CI41: 95.5 | CJ41: 91 | CK41: 57.1 | CL41: 18.4 | CM41: 24.4 | CN41: 26.3 | CO41: 21.5 | CP41: 13.8 | CQ41: 48.1 | CR41: 10.8 | CS41: 14.1 | CT41: 73 | CU41: 63.7 | CV41: 11.2 | CW41: 25.8 | CX41: 20.9 | CY41: 16.7 | CZ41: 104.2 | DA41: 120.2 | DB41: 70.3 | DC41: 124.6 | DD41: 101.8
C42: ２～３都道府県 | D42: 110 | E42: 18.7 | F42: 28.5 | G42: 41 | H42: 11.1 | I42: 0 | J42: 63.8 | K42: 49.4 | L42: 43.9 | M42: 5.9 | N42: 0 | O42: 0 | P42: 71.4 | Q42: 44.6 | R42: 46.3 | S42: 6.4 | T42: 67.8 | U42: 18.7 | V42: 8.1 | W42: 55.2 | X42: 31.9 | Y42: 40.1 | Z42: 13 | AA42: 41.5 | AB42: 18.3 | AC42: 32.2 | AD42: 4.4 | AE42: 5.4 | AF42: 5.2 | AG42: 14.6 | AH42: 17.3 | AI42: 7.2 | AJ42: 83.9 | AK42: 110.1 | AL42: 121.8 | AM42: 101 | AN42: 71.7 | AO42: 7.7 | AP42: 12.1 | AQ42: 33.7 | AR42: 24.6 | AS42: 22 | AT42: 22.1 | AU42: 72.9 | AV42: 21.9 | AW42: 2.7 | AX42: 2.5 | AY42: 83.8 | AZ42: 92 | BA42: 10.3 | BB42: 102.4 | BC42: 30.8 | BD42: 6.9 | BE42: 3.5 | BF42: 1 | BG42: 3.8 | BH42: 7.6 | BI42: 0.8 | BJ42: 6.3 | BK42: 0 | BL42: 0 | BM42: 0.7 | BN42: 43.4 | BO42: 41.2 | BP42: 12.4 | BQ42: 7.1 | BR42: 0.7 | BS42: 14.8 | BT42: 4.4 | BU42: 79.8 | BV42: 8.6 | BW42: 3.4 | BX42: 25.5 | BY42: 5.5 | BZ42: 6.2 | CA42: 2.2 | CB42: 0.6 | CC42: 49 | CD42: 24 | CE42: 0 | CF42: 6.1 | CG42: 5.2 | CH42: 4.2 | CI42: 93.9 | CJ42: 84.5 | CK42: 51.9 | CL42: 13.2 | CM42: 14.2 | CN42: 22.9 | CO42: 11.1 | CP42: 6.7 | CQ42: 40.8 | CR42: 6.5 | CS42: 7.5 | CT42: 50.4 | CU42: 54.6 | CV42: 5.9 | CW42: 27 | CX42: 21.2 | CY42: 14 | CZ42: 89.5 | DA42: 106.1 | DB42: 59.5 | DC42: 104 | DD42: 88.4
C43: １都道府県 | D43: 152 | E43: 14.1 | F43: 26.7 | G43: 41.4 | H43: 17.9 | I43: 0 | J43: 59.2 | K43: 53.6 | L43: 39.9 | M43: 3.6 | N43: 2.1 | O43: 0 | P43: 73.5 | Q43: 43.8 | R43: 52.4 | S43: 3.8 | T43: 70 | U43: 19.1 | V43: 7.4 | W43: 49 | X43: 21.6 | Y43: 30.7 | Z43: 6.6 | AA43: 46.5 | AB43: 18.6 | AC43: 22.2 | AD43: 4.9 | AE43: 5.5 | AF43: 10.3 | AG43: 12 | AH43: 20.4 | AI43: 11.2 | AJ43: 83.4 | AK43: 93.6 | AL43: 120.6 | AM43: 84.7 | AN43: 77.6 | AO43: 10.6 | AP43: 9.3 | AQ43: 33.1 | AR43: 22.3 | AS43: 23.6 | AT43: 23.6 | AU43: 62.7 | AV43: 31.5 | AW43: 1.7 | AX43: 1.8 | AY43: 78.5 | AZ43: 93 | BA43: 11.5 | BB43: 104.6 | BC43: 31.6 | BD43: 4.2 | BE43: 3.5 | BF43: 0 | BG43: 2.2 | BH43: 1.9 | BI43: 1.7 | BJ43: 5.9 | BK43: 0 | BL43: 0 | BM43: 2.5 | BN43: 41.8 | BO43: 39.3 | BP43: 4.1 | BQ43: 7.6 | BR43: 2.5 | BS43: 16.9 | BT43: 3 | BU43: 78.8 | BV43: 7.3 | BW43: 3.4 | BX43: 25.5 | BY43: 1.9 | BZ43: 4.3 | CA43: 3.4 | CB43: 1.9 | CC43: 40.2 | CD43: 18.4 | CE43: 0.7 | CF43: 2.2 | CG43: 1.3 | CH43: 6.1 | CI43: 92.8 | CJ43: 85.6 | CK43: 43.1 | CL43: 9.6 | CM43: 15.5 | CN43: 18.2 | CO43: 13.9 | CP43: 4.7 | CQ43: 40.6 | CR43: 4.8 | CS43: 7.7 | CT43: 55.7 | CU43: 55.8 | CV43: 6.7 | CW43: 18.6 | CX43: 14.7 | CY43: 14.9 | CZ43: 85.8 | DA43: 101.1 | DB43: 59.2 | DC43: 102.3 | DD43: 80.7
C44: 過去１年は行っていない | D44: 256 | E44: 6.3 | F44: 25.9 | G44: 43.6 | H44: 24.3 | I44: 0 | J44: 53.5 | K44: 42.4 | L44: 45.1 | M44: 11.2 | N44: 1.3 | O44: 0 | P44: 64.9 | Q44: 23.8 | R44: 62.1 | S44: 13.8 | T44: 54.9 | U44: 12.6 | V44: 2 | W44: 34.8 | X44: 13 | Y44: 17.8 | Z44: 4.3 | AA44: 21.3 | AB44: 9 | AC44: 17.2 | AD44: 3.6 | AE44: 2.9 | AF44: 4.6 | AG44: 12.1 | AH44: 21.3 | AI44: 6.8 | AJ44: 64.1 | AK44: 70.8 | AL44: 78.4 | AM44: 69.2 | AN44: 64.3 | AO44: 7.1 | AP44: 15.4 | AQ44: 26.8 | AR44: 23.1 | AS44: 26.1 | AT44: 21.5 | AU44: 53.7 | AV44: 37.4 | AW44: 7.6 | AX44: 1.2 | AY44: 72.5 | AZ44: 62 | BA44: 7.5 | BB44: 69.5 | BC44: 19.2 | BD44: 1.9 | BE44: 1.6 | BF44: 0 | BG44: 0.6 | BH44: 1.1 | BI44: 0.3 | BJ44: 4 | BK44: 0 | BL44: 0.5 | BM44: 1 | BN44: 24.4 | BO44: 22.7 | BP44: 1.7 | BQ44: 4.3 | BR44: 1.5 | BS44: 10.3 | BT44: 2.8 | BU44: 67.8 | BV44: 6.2 | BW44: 2.5 | BX44: 16.3 | BY44: 2 | BZ44: 1.2 | CA44: 1.3 | CB44: 0.3 | CC44: 33 | CD44: 9.7 | CE44: 0.7 | CF44: 2.9 | CG44: 1.7 | CH44: 3.3 | CI44: 88.5 | CJ44: 69.8 | CK44: 37 | CL44: 8.7 | CM44: 13.1 | CN44: 19.4 | CO44: 7.7 | CP44: 3.9 | CQ44: 25.5 | CR44: 3.7 | CS44: 3.6 | CT44: 39.3 | CU44: 48.2 | CV44: 4 | CW44: 19.2 | CX44: 9.8 | CY44: 8.4 | CZ44: 75.5 | DA44: 87.9 | DB44: 55.9 | DC44: 84 | DD44: 74.1
B45: 体験観光 | C45: ぜひ参加したいと思う | D45: 67 | E45: 25.2 | F45: 28.2 | G45: 28.5 | H45: 16.9 | I45: 0 | J45: 65.6 | K45: 73.3 | L45: 24.4 | M45: 1.3 | N45: 0 | O45: 0 | P45: 85.4 | Q45: 55 | R45: 42.4 | S45: 2.6 | T45: 76.2 | U45: 30.3 | V45: 7.3 | W45: 49 | X45: 27.9 | Y45: 39.7 | Z45: 8.6 | AA45: 39.3 | AB45: 19.4 | AC45: 21.7 | AD45: 9.4 | AE45: 2.9 | AF45: 8.2 | AG45: 21.4 | AH45: 16 | AI45: 7.6 | AJ45: 101.4 | AK45: 103.4 | AL45: 115.6 | AM45: 87.1 | AN45: 95 | AO45: 18.7 | AP45: 8.7 | AQ45: 40.4 | AR45: 11.8 | AS45: 20.4 | AT45: 33.1 | AU45: 85.9 | AV45: 11.4 | AW45: 2.7 | AX45: 0 | AY45: 91.6 | AZ45: 89.5 | BA45: 9.4 | BB45: 98.8 | BC45: 38.4 | BD45: 5.7 | BE45: 2.3 | BF45: 1.3 | BG45: 3.1 | BH45: 4.5 | BI45: 1.3 | BJ45: 6 | BK45: 0 | BL45: 1.3 | BM45: 0 | BN45: 47.1 | BO45: 46.4 | BP45: 8.9 | BQ45: 7.3 | BR45: 1.3 | BS45: 13.9 | BT45: 2 | BU45: 87.7 | BV45: 17.3 | BW45: 1.1 | BX45: 18.5 | BY45: 1 | BZ45: 6.1 | CA45: 4 | CB45: 2.6 | CC45: 46 | CD45: 22.9 | CE45: 0 | CF45: 7.5 | CG45: 7.4 | CH45: 3.8 | CI45: 90.8 | CJ45: 77.8 | CK45: 50.5 | CL45: 23.3 | CM45: 22.6 | CN45: 26.9 | CO45: 10.6 | CP45: 9.3 | CQ45: 35.9 | CR45: 8.9 | CS45: 8.2 | CT45: 54.4 | CU45: 57.3 | CV45: 7.9 | CW45: 28.1 | CX45: 19 | CY45: 14.7 | CZ45: 94.1 | DA45: 107.1 | DB45: 64.9 | DC45: 106.1 | DD45: 98.2
C46: 参加したいと思う | D46: 126 | E46: 14.4 | F46: 30.7 | G46: 35.9 | H46: 18.9 | I46: 0 | J46: 60.2 | K46: 49.4 | L46: 43.7 | M46: 4.8 | N46: 2.1 | O46: 0 | P46: 71.2 | Q46: 41.5 | R46: 56.5 | S46: 1.3 | T46: 69.8 | U46: 18.4 | V46: 3.5 | W46: 56.2 | X46: 27.1 | Y46: 38.7 | Z46: 7.4 | AA46: 42.6 | AB46: 25 | AC46: 24.7 | AD46: 7 | AE46: 5.4 | AF46: 6.3 | AG46: 12.7 | AH46: 19.2 | AI46: 7.7 | AJ46: 75.9 | AK46: 106.8 | AL46: 124.3 | AM46: 92.5 | AN46: 69.7 | AO46: 13.9 | AP46: 12 | AQ46: 26.4 | AR46: 26.3 | AS46: 21.5 | AT46: 26.5 | AU46: 69.6 | AV46: 25.6 | AW46: 2.6 | AX46: 1.4 | AY46: 82.3 | AZ46: 97.4 | BA46: 19.6 | BB46: 117 | BC46: 35.1 | BD46: 4.3 | BE46: 5.8 | BF46: 0 | BG46: 2.6 | BH46: 6.3 | BI46: 1.6 | BJ46: 6.5 | BK46: 0.9 | BL46: 0 | BM46: 0.6 | BN46: 43.6 | BO46: 45.2 | BP46: 8.9 | BQ46: 9 | BR46: 0.6 | BS46: 12.5 | BT46: 5.4 | BU46: 80.9 | BV46: 6 | BW46: 4.5 | BX46: 19 | BY46: 1.9 | BZ46: 3 | CA46: 2.1 | CB46: 2.2 | CC46: 45.2 | CD46: 17.6 | CE46: 2.1 | CF46: 6.6 | CG46: 1.2 | CH46: 5.1 | CI46: 95 | CJ46: 86.4 | CK46: 49.5 | CL46: 11.5 | CM46: 10 | CN46: 15.7 | CO46: 9.8 | CP46: 7.2 | CQ46: 37.4 | CR46: 4.8 | CS46: 11.7 | CT46: 53.5 | CU46: 52.8 | CV46: 5.1 | CW46: 23 | CX46: 19.1 | CY46: 14.1 | CZ46: 85.7 | DA46: 102.9 | DB46: 53.8 | DC46: 103.5 | DD46: 82.6
C47: 参加してもよい | D47: 192 | E47: 12.4 | F47: 30.4 | G47: 42.6 | H47: 14.6 | I47: 0 | J47: 60.1 | K47: 47.5 | L47: 46.9 | M47: 4.5 | N47: 0.5 | O47: 0 | P47: 71 | Q47: 33.4 | R47: 57.3 | S47: 8.2 | T47: 62.1 | U47: 20.1 | V47: 7.2 | W47: 46.3 | X47: 24.4 | Y47: 29.6 | Z47: 8.5 | AA47: 35.8 | AB47: 19.3 | AC47: 24.9 | AD47: 6.1 | AE47: 6.4 | AF47: 7.8 | AG47: 12.5 | AH47: 21 | AI47: 7.4 | AJ47: 84.7 | AK47: 92.9 | AL47: 111.4 | AM47: 93 | AN47: 72.8 | AO47: 8.3 | AP47: 15.9 | AQ47: 33.9 | AR47: 24.4 | AS47: 16.5 | AT47: 24.7 | AU47: 59.1 | AV47: 35.3 | AW47: 3.8 | AX47: 1.4 | AY47: 76.7 | AZ47: 69.3 | BA47: 8.4 | BB47: 77.7 | BC47: 27.5 | BD47: 4.2 | BE47: 3.7 | BF47: 0.6 | BG47: 4.1 | BH47: 3.8 | BI47: 0.8 | BJ47: 7.3 | BK47: 0 | BL47: 0 | BM47: 2.4 | BN47: 38.7 | BO47: 35.4 | BP47: 8.5 | BQ47: 8.1 | BR47: 2.4 | BS47: 12.2 | BT47: 2.7 | BU47: 71.8 | BV47: 6.9 | BW47: 2.4 | BX47: 25 | BY47: 3.3 | BZ47: 3.4 | CA47: 1.4 | CB47: 0.4 | CC47: 36.3 | CD47: 17.1 | CE47: 0 | CF47: 2 | CG47: 2.2 | CH47: 2.8 | CI47: 90.1 | CJ47: 76.8 | CK47: 39.9 | CL47: 9.7 | CM47: 14.9 | CN47: 22.9 | CO47: 10.9 | CP47: 7.2 | CQ47: 34.6 | CR47: 5.8 | CS47: 5.1 | CT47: 52.3 | CU47: 53.5 | CV47: 7.6 | CW47: 21.1 | CX47: 14.5 | CY47: 8.9 | CZ47: 84.1 | DA47: 98.7 | DB47: 59.7 | DC47: 96 | DD47: 81.9
C48: あまり参加したくない | D48: 130 | E48: 11.6 | F48: 20.6 | G48: 52.1 | H48: 15.7 | I48: 0 | J48: 57 | K48: 41.7 | L48: 44.6 | M48: 12.5 | N48: 1.1 | O48: 0 | P48: 64 | Q48: 34.7 | R48: 54 | S48: 10.4 | T48: 61.7 | U48: 13.9 | V48: 8.1 | W48: 41.7 | X48: 16.6 | Y48: 19.6 | Z48: 4.1 | AA48: 29 | AB48: 14.8 | AC48: 20.9 | AD48: 4.5 | AE48: 3.7 | AF48: 7.2 | AG48: 14.5 | AH48: 21.7 | AI48: 12.8 | AJ48: 76.1 | AK48: 78.6 | AL48: 93.5 | AM48: 78.6 | AN48: 76.2 | AO48: 8.8 | AP48: 15.4 | AQ48: 26.3 | AR48: 25.4 | AS48: 22.9 | AT48: 23 | AU48: 55.7 | AV48: 34.6 | AW48: 7.6 | AX48: 2.1 | AY48: 73 | AZ48: 100.2 | BA48: 2.4 | BB48: 102.6 | BC48: 24.7 | BD48: 2.9 | BE48: 4 | BF48: 0 | BG48: 2.2 | BH48: 1.6 | BI48: 1.3 | BJ48: 5.7 | BK48: 0 | BL48: 0 | BM48: 0 | BN48: 30.6 | BO48: 31.6 | BP48: 3.8 | BQ48: 7 | BR48: 0 | BS48: 12.9 | BT48: 4.2 | BU48: 74 | BV48: 1.6 | BW48: 2.6 | BX48: 23.2 | BY48: 3.2 | BZ48: 5.6 | CA48: 3.2 | CB48: 1 | CC48: 41.3 | CD48: 16.1 | CE48: 0 | CF48: 1.2 | CG48: 0.6 | CH48: 6.5 | CI48: 96.4 | CJ48: 77.3 | CK48: 44.6 | CL48: 7 | CM48: 16.5 | CN48: 17.9 | CO48: 11.3 | CP48: 2.7 | CQ48: 32.5 | CR48: 3.9 | CS48: 5.3 | CT48: 42.7 | CU48: 53.1 | CV48: 2.6 | CW48: 20 | CX48: 11.8 | CY48: 11.5 | CZ48: 80.4 | DA48: 93.4 | DB48: 58.4 | DC48: 92.5 | DD48: 77.3
C49: 体験観光を知らない、わからない | D49: 93 | E49: 3.4 | F49: 26.3 | G49: 40.6 | H49: 29.7 | I49: 0 | J49: 50.9 | K49: 47.6 | L49: 40.3 | M49: 10.5 | N49: 1.6 | O49: 0 | P49: 67.7 | Q49: 31.7 | R49: 50.5 | S49: 17.1 | T49: 57 | U49: 13.8 | V49: 1.6 | W49: 43.7 | X49: 13.1 | Y49: 24 | Z49: 7.1 | AA49: 33.9 | AB49: 7.5 | AC49: 18.6 | AD49: 0 | AE49: 1.2 | AF49: 6.8 | AG49: 8.1 | AH49: 22.1 | AI49: 7.9 | AJ49: 65.4 | AK49: 80.5 | AL49: 94.2 | AM49: 62.4 | AN49: 60 | AO49: 4.3 | AP49: 10.5 | AQ49: 22.9 | AR49: 23.1 | AS49: 36.9 | AT49: 15.3 | AU49: 56.2 | AV49: 35.6 | AW49: 3.7 | AX49: 1.4 | AY49: 74 | AZ49: 61.9 | BA49: 14.1 | BB49: 76 | BC49: 16.9 | BD49: 1.7 | BE49: 0.6 | BF49: 0 | BG49: 1.5 | BH49: 1.3 | BI49: 0 | BJ49: 1 | BK49: 0 | BL49: 1.3 | BM49: 1.9 | BN49: 21.8 | BO49: 19.2 | BP49: 2.8 | BQ49: 1 | BR49: 3.2 | BS49: 17.1 | BT49: 3.3 | BU49: 68.3 | BV49: 10 | BW49: 5.6 | BX49: 24.3 | BY49: 2.5 | BZ49: 1.7 | CA49: 3.2 | CB49: 1 | CC49: 39.5 | CD49: 14.5 | CE49: 2 | CF49: 4.9 | CG49: 3.1 | CH49: 1 | CI49: 84.1 | CJ49: 80.3 | CK49: 41.7 | CL49: 10.2 | CM49: 18.3 | CN49: 23.1 | CO49: 18.9 | CP49: 4.9 | CQ49: 38.6 | CR49: 5.9 | CS49: 5.4 | CT49: 51.1 | CU49: 52.6 | CV49: 7.1 | CW49: 17.4 | CX49: 10.6 | CY49: 15.5 | CZ49: 85.4 | DA49: 98.7 | DB49: 65 | DC49: 98.6 | DD49: 79.2
B50: 環境行動 | C50: ７項目以上選択 | D50: 185 | E50: 12.3 | F50: 27 | G50: 48.5 | H50: 12.3 | I50: 0 | J50: 59.8 | K50: 50.9 | L50: 44.7 | M50: 4.1 | N50: 0.3 | O50: 0 | P50: 73.3 | Q50: 43 | R50: 53.7 | S50: 3.4 | T50: 69.8 | U50: 19.9 | V50: 6.9 | W50: 59.4 | X50: 26 | Y50: 32.1 | Z50: 10.2 | AA50: 44 | AB50: 17.5 | AC50: 24 | AD50: 5.3 | AE50: 3.8 | AF50: 7.5 | AG50: 17.9 | AH50: 23.6 | AI50: 8.6 | AJ50: 83.9 | AK50: 103.9 | AL50: 120.6 | AM50: 85.5 | AN50: 85 | AO50: 10.9 | AP50: 11.8 | AQ50: 24.9 | AR50: 26.4 | AS50: 24.5 | AT50: 23.1 | AU50: 58.8 | AV50: 35 | AW50: 5.1 | AX50: 0 | AY50: 76.3 | AZ50: 104.2 | BA50: 11.4 | BB50: 115.6 | BC50: 31.2 | BD50: 1.8 | BE50: 2.3 | BF50: 0.5 | BG50: 5.1 | BH50: 2.5 | BI50: 0.5 | BJ50: 2.9 | BK50: 0 | BL50: 0.5 | BM50: 1.4 | BN50: 35.9 | BO50: 35.3 | BP50: 8.1 | BQ50: 3.4 | BR50: 1.9 | BS50: 16.6 | BT50: 4.2 | BU50: 80.6 | BV50: 6.7 | BW50: 3.5 | BX50: 31 | BY50: 2.6 | BZ50: 6.7 | CA50: 2.6 | CB50: 2.4 | CC50: 51.9 | CD50: 23.8 | CE50: 0.9 | CF50: 2 | CG50: 4 | CH50: 4.5 | CI50: 94.2 | CJ50: 83.1 | CK50: 53.7 | CL50: 13.6 | CM50: 21.1 | CN50: 28.1 | CO50: 14.4 | CP50: 5.5 | CQ50: 44.3 | CR50: 7.9 | CS50: 8 | CT50: 64.3 | CU50: 63.3 | CV50: 7.4 | CW50: 22.1 | CX50: 22 | CY50: 16.3 | CZ50: 96.2 | DA50: 111.5 | DB50: 66.5 | DC50: 113.8 | DD50: 93.1
C51: ５，６項目選択 | D51: 128 | E51: 17.1 | F51: 28.2 | G51: 33.8 | H51: 20.9 | I51: 0 | J51: 60.3 | K51: 54.9 | L51: 37.2 | M51: 6.7 | N51: 1.2 | O51: 0 | P51: 73.5 | Q51: 45.2 | R51: 46 | S51: 8.8 | T51: 68.2 | U51: 25.4 | V51: 4.7 | W51: 50.4 | X51: 22.9 | Y51: 34.3 | Z51: 9.6 | AA51: 39.3 | AB51: 24.4 | AC51: 22.8 | AD51: 6.2 | AE51: 3.9 | AF51: 6.5 | AG51: 10.9 | AH51: 15.9 | AI51: 9.8 | AJ51: 89.2 | AK51: 97.6 | AL51: 122.4 | AM51: 85.2 | AN51: 65.9 | AO51: 12.4 | AP51: 13.6 | AQ51: 27.4 | AR51: 26.8 | AS51: 19.8 | AT51: 26.1 | AU51: 73.7 | AV51: 22.6 | AW51: 3 | AX51: 0 | AY51: 85 | AZ51: 76.9 | BA51: 13.1 | BB51: 90 | BC51: 26.1 | BD51: 6.1 | BE51: 7.1 | BF51: 0 | BG51: 3.6 | BH51: 6.1 | BI51: 2 | BJ51: 11.6 | BK51: 0 | BL51: 0 | BM51: 1.2 | BN51: 37.3 | BO51: 39.3 | BP51: 9.7 | BQ51: 13.6 | BR51: 1.2 | BS51: 16.3 | BT51: 4.8 | BU51: 77.4 | BV51: 7.2 | BW51: 3.4 | BX51: 23.6 | BY51: 1.9 | BZ51: 5.6 | CA51: 4.6 | CB51: 1.7 | CC51: 43.3 | CD51: 16.2 | CE51: 0.8 | CF51: 5.5 | CG51: 1.2 | CH51: 2.8 | CI51: 92.5 | CJ51: 84.3 | CK51: 49.1 | CL51: 10 | CM51: 19 | CN51: 21.3 | CO51: 19.1 | CP51: 9.7 | CQ51: 39.9 | CR51: 8.4 | CS51: 8.7 | CT51: 51.9 | CU51: 56.4 | CV51: 11 | CW51: 25.3 | CX51: 14.4 | CY51: 17.6 | CZ51: 91.5 | DA51: 106.2 | DB51: 64.6 | DC51: 106.9 | DD51: 88.3
C52: ３，４項目選択 | D52: 172 | E52: 12.2 | F52: 29.4 | G52: 41.3 | H52: 16.6 | I52: 0 | J52: 59.4 | K52: 53.8 | L52: 38.5 | M52: 5.4 | N52: 1.2 | O52: 0 | P52: 73 | Q52: 36.6 | R52: 53.9 | S52: 7.3 | T52: 63.5 | U52: 19.3 | V52: 8.2 | W52: 44.6 | X52: 19.9 | Y52: 30.8 | Z52: 5 | AA52: 36.2 | AB52: 20.7 | AC52: 24 | AD52: 6.8 | AE52: 6.3 | AF52: 8.1 | AG52: 13.2 | AH52: 22.4 | AI52: 6.2 | AJ52: 85 | AK52: 89.7 | AL52: 109.5 | AM52: 92.5 | AN52: 75.2 | AO52: 10.1 | AP52: 16 | AQ52: 33.7 | AR52: 22.1 | AS52: 17 | AT52: 26.5 | AU52: 70.7 | AV52: 24.2 | AW52: 2.4 | AX52: 1.7 | AY52: 82.8 | AZ52: 84.4 | BA52: 10.6 | BB52: 94.9 | BC52: 31 | BD52: 4.8 | BE52: 2.7 | BF52: 0.6 | BG52: 1 | BH52: 4.8 | BI52: 1 | BJ52: 5.5 | BK52: 0.7 | BL52: 0.7 | BM52: 0 | BN52: 41.7 | BO52: 38.5 | BP52: 6.4 | BQ52: 7.2 | BR52: 0.7 | BS52: 9.2 | BT52: 1.3 | BU52: 78.8 | BV52: 9 | BW52: 1.4 | BX52: 16.1 | BY52: 3.9 | BZ52: 1.7 | CA52: 1.6 | CB52: 0.4 | CC52: 42.1 | CD52: 17.1 | CE52: 0.4 | CF52: 6.7 | CG52: 2.5 | CH52: 3.5 | CI52: 92 | CJ52: 80.4 | CK52: 43.3 | CL52: 14.7 | CM52: 13.4 | CN52: 19.5 | CO52: 9.9 | CP52: 6.6 | CQ52: 33.4 | CR52: 3.5 | CS52: 7.1 | CT52: 51.2 | CU52: 54.5 | CV52: 4.5 | CW52: 25.3 | CX52: 12.1 | CY52: 6.9 | CZ52: 84 | DA52: 99.9 | DB52: 57.1 | DC52: 95.7 | DD52: 83.2
C53: ２項目以下選択 | D53: 124 | E53: 9.3 | F53: 25.5 | G53: 38.3 | H53: 26.9 | I53: 0 | J53: 54.3 | K53: 36.2 | L53: 48.8 | M53: 13 | N53: 2 | O53: 0 | P53: 60.6 | Q53: 22.4 | R53: 62 | S53: 14.9 | T53: 53.4 | U53: 8.3 | V53: 1.8 | W53: 29.1 | X53: 17.6 | Y53: 19.2 | Z53: 2.9 | AA53: 19.3 | AB53: 6.7 | AC53: 18.7 | AD53: 2.6 | AE53: 3.2 | AF53: 6.5 | AG53: 8.9 | AH53: 17.9 | AI53: 11.1 | AJ53: 56.7 | AK53: 71 | AL53: 71.9 | AM53: 70.6 | AN53: 61.2 | AO53: 7.2 | AP53: 11.7 | AQ53: 33.7 | AR53: 17.1 | AS53: 29.6 | AT53: 21.4 | AU53: 47.8 | AV53: 40.7 | AW53: 6.9 | AX53: 4.6 | AY53: 68.2 | AZ53: 54.2 | BA53: 5.9 | BB53: 60.1 | BC53: 21 | BD53: 2.5 | BE53: 3 | BF53: 0 | BG53: 1.3 | BH53: 0.7 | BI53: 0.7 | BJ53: 4.7 | BK53: 0 | BL53: 0 | BM53: 2.5 | BN53: 29 | BO53: 26.5 | BP53: 2 | BQ53: 5.4 | BR53: 2.5 | BS53: 11.1 | BT53: 4.7 | BU53: 60.9 | BV53: 5.5 | BW53: 5.1 | BX53: 18.3 | BY53: 1.6 | BZ53: 0.7 | CA53: 1.4 | CB53: 0 | CC53: 20.1 | CD53: 8.5 | CE53: 0.8 | CF53: 0.7 | CG53: 1 | CH53: 4.7 | CI53: 86.2 | CJ53: 68.3 | CK53: 26.5 | CL53: 3.9 | CM53: 7.1 | CN53: 11.1 | CO53: 3.8 | CP53: 2.4 | CQ53: 20.4 | CR53: 1.7 | CS53: 2.9 | CT53: 27.2 | CU53: 34.9 | CV53: 1.3 | CW53: 11.1 | CX53: 7.9 | CY53: 8.4 | CZ53: 62.5 | DA53: 73.3 | DB53: 47.7 | DC53: 69.6 | DD53: 59.4
B54: 出身地 | C54: 北海道・東北 | D54: 74 | E54: 47.7 | F54: 24 | G54: 22.9 | H54: 5.3 | I54: 0 | J54: 78.5 | K54: 61.3 | L54: 33.2 | M54: 3.4 | N54: 2.2 | O54: 0 | P54: 77.9 | Q54: 65.5 | R54: 30.5 | S54: 4 | T54: 80.8 | U54: 37.2 | V54: 16.3 | W54: 44.6 | X54: 33.3 | Y54: 35.7 | Z54: 19.6 | AA54: 46.6 | AB54: 27.9 | AC54: 31.4 | AD54: 17.2 | AE54: 16.1 | AF54: 14.8 | AG54: 24 | AH54: 37.2 | AI54: 17.4 | AJ54: 127.3 | AK54: 101.4 | AL54: 146.1 | AM54: 140.4 | AN54: 116.9 | AO54: 40.4 | AP54: 14.7 | AQ54: 26.8 | AR54: 13.8 | AS54: 4.3 | AT54: 54.5 | AU54: 72.1 | AV54: 23.1 | AW54: 3.7 | AX54: 1.2 | AY54: 83.6 | AZ54: 74.8 | BA54: 11.8 | BB54: 86.6 | BC54: 24.9 | BD54: 9.5 | BE54: 20.1 | BF54: 1.1 | BG54: 8.5 | BH54: 6.3 | BI54: 8.3 | BJ54: 45.7 | BK54: 0 | BL54: 1.1 | BM54: 3.3 | BN54: 64.7 | BO54: 54.5 | BP54: 15.9 | BQ54: 54 | BR54: 4.4 | BS54: 16.8 | BT54: 5.8 | BU54: 72.4 | BV54: 13.9 | BW54: 3.6 | BX54: 37 | BY54: 3.3 | BZ54: 5.3 | CA54: 7.6 | CB54: 1.5 | CC54: 56.8 | CD54: 23.8 | CE54: 1.5 | CF54: 10.2 | CG54: 2.2 | CH54: 7 | CI54: 96.8 | CJ54: 96.8 | CK54: 54.2 | CL54: 19.2 | CM54: 14.9 | CN54: 16.8 | CO54: 11.1 | CP54: 6.9 | CQ54: 40.7 | CR54: 7.8 | CS54: 14.5 | CT54: 62.4 | CU54: 70.1 | CV54: 16.6 | CW54: 31.3 | CX54: 24.7 | CY54: 22.5 | CZ54: 98.7 | DA54: 118.1 | DB54: 57.1 | DC54: 118.8 | DD54: 100.7
C55: 関東 | D55: 156 | E55: 10.4 | F55: 26.4 | G55: 46.3 | H55: 17 | I55: 0 | J55: 57.5 | K55: 50.7 | L55: 38.3 | M55: 8.9 | N55: 1.3 | O55: 0 | P55: 69.8 | Q55: 38 | R55: 54.7 | S55: 6.3 | T55: 65.4 | U55: 16.6 | V55: 2 | W55: 54.6 | X55: 20.4 | Y55: 29.9 | Z55: 4.8 | AA55: 29.5 | AB55: 15.1 | AC55: 19.9 | AD55: 1.7 | AE55: 2.8 | AF55: 6.1 | AG55: 19.7 | AH55: 20 | AI55: 4.8 | AJ55: 70.6 | AK55: 95.9 | AL55: 95.2 | AM55: 70.4 | AN55: 86 | AO55: 5.7 | AP55: 16.2 | AQ55: 34.2 | AR55: 18 | AS55: 25 | AT55: 22.4 | AU55: 67.5 | AV55: 27.1 | AW55: 3.9 | AX55: 0.9 | AY55: 81 | AZ55: 89 | BA55: 8.5 | BB55: 97.5 | BC55: 33.4 | BD55: 5 | BE55: 1.9 | BF55: 0 | BG55: 4.7 | BH55: 5.1 | BI55: 0 | BJ55: 1.2 | BK55: 0 | BL55: 0.8 | BM55: 2.4 | BN55: 42.1 | BO55: 40.3 | BP55: 9.8 | BQ55: 1.2 | BR55: 3.2 | BS55: 15 | BT55: 2.7 | BU55: 82.9 | BV55: 8.2 | BW55: 1.8 | BX55: 17.4 | BY55: 1.8 | BZ55: 3.1 | CA55: 1.1 | CB55: 0.9 | CC55: 42.7 | CD55: 15.8 | CE55: 1 | CF55: 3.9 | CG55: 4.8 | CH55: 2.8 | CI55: 94.6 | CJ55: 79.2 | CK55: 45 | CL55: 11 | CM55: 13.5 | CN55: 23.5 | CO55: 11.5 | CP55: 6 | CQ55: 36 | CR55: 8.3 | CS55: 5.4 | CT55: 46.2 | CU55: 57.2 | CV55: 5.2 | CW55: 24.9 | CX55: 15.6 | CY55: 6.4 | CZ55: 85.5 | DA55: 99.8 | DB55: 59.6 | DC55: 97 | DD55: 85.7
C56: 中部 | D56: 125 | E56: 5.6 | F56: 32.5 | G56: 45.6 | H56: 16.3 | I56: 0 | J56: 56.8 | K56: 48 | L56: 44 | M56: 7.1 | N56: 0.9 | O56: 0 | P56: 70 | Q56: 35.6 | R56: 54.4 | S56: 10 | T56: 62.8 | U56: 13.5 | V56: 3.3 | W56: 37.1 | X56: 24.1 | Y56: 28 | Z56: 8.5 | AA56: 34 | AB56: 14.6 | AC56: 19.5 | AD56: 5.8 | AE56: 2.3 | AF56: 8.4 | AG56: 12.3 | AH56: 18.5 | AI56: 6.3 | AJ56: 67.6 | AK56: 85.8 | AL56: 104 | AM56: 76 | AN56: 73.8 | AO56: 5.1 | AP56: 13.2 | AQ56: 35.7 | AR56: 23.1 | AS56: 22.2 | AT56: 20.6 | AU56: 63.8 | AV56: 31.1 | AW56: 1.3 | AX56: 3.8 | AY56: 79.4 | AZ56: 73.8 | BA56: 11.1 | BB56: 84.9 | BC56: 23 | BD56: 2.6 | BE56: 1.7 | BF56: 0 | BG56: 0 | BH56: 0.5 | BI56: 0 | BJ56: 0 | BK56: 0 | BL56: 0 | BM56: 0.9 | BN56: 25 | BO56: 27.3 | BP56: 0.5 | BQ56: 0 | BR56: 0.9 | BS56: 9.5 | BT56: 1.8 | BU56: 68.3 | BV56: 6.2 | BW56: 3.3 | BX56: 21 | BY56: 4.4 | BZ56: 2.8 | CA56: 3.2 | CB56: 2.3 | CC56: 33.9 | CD56: 12 | CE56: 0.7 | CF56: 2.1 | CG56: 1.8 | CH56: 4.1 | CI56: 87.9 | CJ56: 82 | CK56: 40 | CL56: 9.3 | CM56: 15.9 | CN56: 27.1 | CO56: 13.3 | CP56: 8.3 | CQ56: 35.8 | CR56: 4.8 | CS56: 9.5 | CT56: 51.6 | CU56: 45.3 | CV56: 6.3 | CW56: 16.8 | CX56: 15.6 | CY56: 11 | CZ56: 84.1 | DA56: 99.7 | DB56: 63.2 | DC56: 95.6 | DD56: 77.7
C57: 近畿 | D57: 103 | E57: 6.3 | F57: 31.7 | G57: 41 | H57: 20.2 | I57: 0 | J57: 56.1 | K57: 40.4 | L57: 52.2 | M57: 6.6 | N57: 0 | O57: 0 | P57: 66.5 | Q57: 36 | R57: 53.5 | S57: 8.5 | T57: 62.7 | U57: 20.7 | V57: 4.1 | W57: 49.6 | X57: 20 | Y57: 32.1 | Z57: 5.7 | AA57: 39.7 | AB57: 19.9 | AC57: 25.2 | AD57: 6 | AE57: 3.8 | AF57: 7 | AG57: 5.3 | AH57: 11 | AI57: 7.4 | AJ57: 80.6 | AK57: 93.8 | AL57: 113.3 | AM57: 88.8 | AN57: 53.8 | AO57: 3.5 | AP57: 11.9 | AQ57: 22.2 | AR57: 30.6 | AS57: 31.1 | AT57: 15 | AU57: 53.2 | AV57: 41.9 | AW57: 5 | AX57: 0 | AY57: 74.1 | AZ57: 72.2 | BA57: 4.9 | BB57: 77.1 | BC57: 29.6 | BD57: 2.8 | BE57: 0.7 | BF57: 0 | BG57: 2.5 | BH57: 2.5 | BI57: 0 | BJ57: 0 | BK57: 0 | BL57: 0 | BM57: 0 | BN57: 31.1 | BO57: 33.1 | BP57: 5 | BQ57: 0 | BR57: 0 | BS57: 10.4 | BT57: 6.3 | BU57: 73.8 | BV57: 5.6 | BW57: 2.6 | BX57: 20.1 | BY57: 2.2 | BZ57: 5.1 | CA57: 1.5 | CB57: 0.6 | CC57: 41.3 | CD57: 18.2 | CE57: 0 | CF57: 2.9 | CG57: 1.5 | CH57: 4.5 | CI57: 86.6 | CJ57: 70.1 | CK57: 41.3 | CL57: 8.7 | CM57: 13.5 | CN57: 14 | CO57: 10.6 | CP57: 5.1 | CQ57: 35.4 | CR57: 5.6 | CS57: 4.4 | CT57: 51.8 | CU57: 55.5 | CV57: 4 | CW57: 19 | CX57: 11.7 | CY57: 11.1 | CZ57: 80.7 | DA57: 91.8 | DB57: 55 | DC57: 96.9 | DD57: 78.9
C58: 中国・四国 | D58: 67 | E58: 10.7 | F58: 24.3 | G58: 35.8 | H58: 29.3 | I58: 0 | J58: 54.1 | K58: 48.3 | L58: 40.7 | M58: 8.1 | N58: 2.8 | O58: 0 | P58: 68.6 | Q58: 24.6 | R58: 63.9 | S58: 11.4 | T58: 56.6 | U58: 11.9 | V58: 3.9 | W58: 42 | X58: 14.5 | Y58: 22 | Z58: 2 | AA58: 30.9 | AB58: 16.1 | AC58: 24.7 | AD58: 1.3 | AE58: 0 | AF58: 4.8 | AG58: 11.5 | AH58: 22.2 | AI58: 10.2 | AJ58: 66 | AK58: 79 | AL58: 94.8 | AM58: 73.2 | AN58: 63.3 | AO58: 6.2 | AP58: 9.3 | AQ58: 31.4 | AR58: 33.9 | AS58: 15.4 | AT58: 18.7 | AU58: 56 | AV58: 31 | AW58: 7.6 | AX58: 1.4 | AY58: 71.5 | AZ58: 89.3 | BA58: 9 | BB58: 98.3 | BC58: 25.8 | BD58: 0 | BE58: 1.4 | BF58: 0 | BG58: 1.9 | BH58: 1.9 | BI58: 0 | BJ58: 0 | BK58: 0 | BL58: 0 | BM58: 0 | BN58: 27.2 | BO58: 27.2 | BP58: 3.8 | BQ58: 0 | BR58: 0 | BS58: 16.4 | BT58: 2.7 | BU58: 76.8 | BV58: 3.9 | BW58: 2.6 | BX58: 14.4 | BY58: 1.3 | BZ58: 1.9 | CA58: 1.9 | CB58: 1.9 | CC58: 29.4 | CD58: 17.8 | CE58: 1.4 | CF58: 0 | CG58: 2.1 | CH58: 5 | CI58: 92 | CJ58: 74.9 | CK58: 48.4 | CL58: 12.3 | CM58: 21.6 | CN58: 24.5 | CO58: 19 | CP58: 2.4 | CQ58: 30.7 | CR58: 3.1 | CS58: 2.6 | CT58: 47.6 | CU58: 49.5 | CV58: 4.2 | CW58: 23.9 | CX58: 8.3 | CY58: 12.7 | CZ58: 84.8 | DA58: 99.6 | DB58: 67.1 | DC58: 92.7 | DD58: 79.7
C59: 九州・沖縄 | D59: 79 | E59: 1.4 | F59: 24.8 | G59: 48.5 | H59: 25.3 | I59: 0 | J59: 50.6 | K59: 48.9 | L59: 46.2 | M59: 4.9 | N59: 0 | O59: 0 | P59: 72 | Q59: 26.6 | R59: 63.4 | S59: 8.7 | T59: 58.3 | U59: 13.5 | V59: 8 | W59: 49.1 | X59: 19.5 | Y59: 27.2 | Z59: 4.5 | AA59: 38.7 | AB59: 14.2 | AC59: 21.3 | AD59: 4 | AE59: 1.4 | AF59: 3.5 | AG59: 3.2 | AH59: 21.3 | AI59: 13.1 | AJ59: 75.3 | AK59: 90.1 | AL59: 104.3 | AM59: 74.4 | AN59: 40.4 | AO59: 7.1 | AP59: 11.6 | AQ59: 24.2 | AR59: 26.3 | AS59: 30.8 | AT59: 19 | AU59: 62.9 | AV59: 29.8 | AW59: 6.5 | AX59: 0.8 | AY59: 77.8 | AZ59: 92.1 | BA59: 17.5 | BB59: 109.6 | BC59: 24.7 | BD59: 2 | BE59: 0 | BF59: 1.4 | BG59: 0 | BH59: 5.8 | BI59: 0 | BJ59: 0 | BK59: 0 | BL59: 0 | BM59: 0 | BN59: 28.9 | BO59: 26.7 | BP59: 7.2 | BQ59: 0 | BR59: 0 | BS59: 15 | BT59: 3.5 | BU59: 75.5 | BV59: 5.8 | BW59: 7.2 | BX59: 30.4 | BY59: 2.5 | BZ59: 5.6 | CA59: 1.5 | CB59: 0 | CC59: 41.7 | CD59: 17.7 | CE59: 0 | CF59: 1.5 | CG59: 0 | CH59: 1.4 | CI59: 93.8 | CJ59: 78.1 | CK59: 41.9 | CL59: 10 | CM59: 18.5 | CN59: 16.1 | CO59: 7.9 | CP59: 6.9 | CQ59: 30.6 | CR59: 1.5 | CS59: 2.3 | CT59: 46.4 | CU59: 44.9 | CV59: 2.4 | CW59: 15 | CX59: 9.3 | CY59: 15 | CZ59: 78.2 | DA59: 91.7 | DB59: 56.9 | DC59: 90.3 | DD59: 73.9
D60: Copyright © 2011 Brand Research Institute, Inc. All rights reserved. | AI60: 株式会社ブランド総合研究所 | AJ60: Copyright © 2011 Brand Research Institute, Inc. All rights reserved. | BR60: 株式会社ブランド総合研究所 | BS60: Copyright © 2011 Brand Research Institute, Inc. All rights reserved. | DD60: 株式会社ブランド総合研究所

Sheet HELP
A4: このＣＤの使い方 | U4: 地域ブランド調査2011
A6: ●「トップメニュー」の使い方
A33: ●「個別分析(1) 総合指標」の使い方
A60: ●「個別分析(2) 情報関連指標」の使い方
A87: ●「個別分析(3) 居住・観光・産品関連指標」の使い方
A114: ●「個別分析(4) 訪問経験関連指標」の使い方
A141: ●「個別分析(5) 地域資源、イメージ指標」の使い方
A168: ●「属性別結果」の使い方

Sheet DATA (hidden)
A1: ●現在選択中の市／都道府県／道州 | O1: ●TBL名一覧
B2: 選択調査結果⇒ | C2: =SPEC!$D$3 -> 2 | D2: =SPEC!$E$3 -> 都道府県 | E2: =IF(C2=0,"調査結果",D2&"名") -> 都道府県名 | H2: ※道州結果は、コメントを表示しない | Q2: 2008GT | R2: 2009GT | S2: 2010GT | T2: 2011GT | U2: 全国順位 | V2: 全国順位 | W2: 全国順位 | X2: 全国順位 | Y2: 県内順位 | Z2: 県内順位 | AA2: 県内順位 | AB2: 県内順位 | AC2: 全国平均 | AD2: 県平均
B3: SEQ | C3: 地域No. | D3: 県No. | E3: 表記名 | F3: 貴● | H3: ※道州結果は、順位と平均値を表示しない。 | Q3: 三年前 | R3: 一昨年 | S3: 昨年 | T3: 今年 | U3: 三年前 | V3: 一昨年 | W3: 昨年 | X3: 今年 | Y3: 三年前 | Z3: 一昨年 | AA3: 昨年 | AB3: 今年 | AC3: 今年 | AD3: 今年
B4: =IF($C$2=0,0,IF($C$2=1,SPEC!$O$2,SPEC!$L$2)) -> 1 | C4: =SPEC!$I$2 -> 1 | D4: =SPEC!$J$2 -> 1 | E4: =SPEC!$N$2 -> 北海道 | F4: =IF(B4=0,"未選択",IF(C2=3,"貴道州","貴"&RIGHT(E4,1))) -> 貴道 | P4: 市区町村 | Q4: L3GT_C | R4: L2GT_C | S4: L1GT_C | T4: GT_C | U4: L3RANK1_C | V4: L2RANK1_C | W4: L1RANK1_C | X4: RANK1_C | Y4: L3RANK2_C | Z4: L2RANK2_C | AA4: L1RANK2_C | AB4: RANK2_C | AC4: AVE1_C | AD4: AVE2_C
E5: =SPEC!Q3 ->  | P5: 県＋道州 | Q5: - | R5: L2GT_P | S5: L1GT_P | T5: GT_P | U5: - | V5: L2RANK1_P | W5: L1RANK1_P | X5: RANK1_P | Y5: - | Z5: - | AA5: - | AB5: - | AC5: AVE1_P | AD5: -
E6: =SPEC!P2 -> ほっかいどう
A9: 総合指標
A11: ●有効回収数
B12: TBL名 | C12: =IF($C$2=1,$T$4,$T$5) -> GT_P | E12: INDEX
B13: 有効回収数 | C13: =IF($B$4=0,"-",INDEX(INDIRECT(C$19),$B$4,E13)) -> 609 | E13: 1
C14: ="有効回収数（2011年）："&TEXT(C13,0)&"人" -> 有効回収数（2011年）：609人
A17: ●認知円グラフ | H17: ●認知度順位
B19: TBL名 | C19: =IF($C$2=1,$T$4,$T$5) -> GT_P | E19: INDEX | H19: TBL名 | I19: =IF($C$2=1,Q$4,Q$5) -> - | J19: =IF($C$2=1,R$4,R$5) -> L2GT_P | K19: =IF($C$2=1,S$4,S$5) -> L1GT_P | L19: =IF($C$2=1,T$4,T$5) -> GT_P
B20: A1 | C20: =IF($B$4=0,"-",INDEX(INDIRECT(C$19),$B$4,E20)) -> 12.7 | D20: よく知っている | E20: 2 | I20: =IF($C$2=1,Y$4,Y$5) -> - | J20: =IF($C$2=1,Z$4,Z$5) -> - | K20: =IF($C$2=1,AA$4,AA$5) -> - | L20: =IF($C$2=1,AB$4,AB$5) -> -
B21: A2 | C21: =IF($B$4=0,"-",INDEX(INDIRECT(C$19),$B$4,E21)) -> 27.6 | D21: 知っている | E21: 3 | I21: =IF($C$2=1,U$4,U$5) -> - | J21: =IF($C$2=1,V$4,V$5) -> L2RANK1_P | K21: =IF($C$2=1,W$4,W$5) -> L1RANK1_P | L21: =IF($C$2=1,X$4,X$5) -> RANK1_P
B22: A3 | C22: =IF($B$4=0,"-",INDEX(INDIRECT(C$19),$B$4,E22)) -> 41.3 | D22: 少しだけ知っている | E22: 4 | I22: 2008 | J22: 2009 | K22: 2010 | L22: 2011 | M22: 増減 | P22: INDEX
B23: A4 | C23: =IF($B$4=0,"-",INDEX(INDIRECT(C$19),$B$4,E23)) -> 18.3 | D23: 名前だけは知っている | E23: 5 | H23: 認知度 | I23: =IF($B$4=0,"-",IF($C$2<>1,"-",INDEX(INDIRECT(I19),$B$4,P23))) -> - | J23: =IF($B$4=0,"-",INDEX(INDIRECT(J19),$B$4,Q23)) -> 59.9 | K23: =IF($B$4=0,"-",INDEX(INDIRECT(K19),$B$4,R23)) -> 60 | L23: =IF($B$4=0,"-",INDEX(INDIRECT(L19),$B$4,S23)) -> 58.7 | M23: =IF(K23="-","-",L23-K23) -> -1.3 | N23: ="点 （"&IF(M23="-","-）",(IF(M23>0,"↑",IF(M23<0,"－",""))&TEXT(M23,"0.0；0.0；0.0")&"点）")) -> 点 （－1.3点） | P23: 1 | Q23: 7 | R23: 7 | S23: 7
B24: A5 | C24: =IF($B$4=0,"-",INDEX(INDIRECT(C$19),$B$4,E24)) -> 0 | D24: 名前も知らない | E24: 6 | H24: 県内順位 | I24: =IF($B$4=0,"-",IF($C$2<>1,"-",INDEX(INDIRECT(I20),$B$4,P24))) -> - | J24: =IF($B$4=0,"-",IF($C$2<>1,"-",INDEX(INDIRECT(J20),$B$4,Q24))) -> - | K24: =IF($B$4=0,"-",IF($C$2<>1,"-",INDEX(INDIRECT(K20),$B$4,R24))) -> - | L24: =IF($B$4=0,"-",IF($C$2<>1,"-",INDEX(INDIRECT(L20),$B$4,S24))) -> - | P24: 1 | Q24: 7 | R24: 7 | S24: 7
B25: 無回答 | C25: =IF($B$4=0,"-",100-SUM(C20:C24)) -> 0.1 | H25: 全国順位 | I25: =IF($B$4=0,"-",IF($C$2<>1,"-",INDEX(INDIRECT(I21),$B$4,P25))) -> - | J25: =IF($B$4=0,"-",IF($C$2=3,"-",INDEX(INDIRECT(J21),$B$4,Q25))) -> 2 | K25: =IF($B$4=0,"-",IF($C$2=3,"-",INDEX(INDIRECT(K21),$B$4,R25))) -> 2 | L25: =IF($B$4=0,"-",IF($C$2=3,"-",INDEX(INDIRECT(L21),$B$4,S25))) -> 2 | P25: 1 | Q25: 7 | R25: 7 | S25: 7
H27: （折れ線グラフ用）
I28: 2008 | J28: 2009 | K28: 2010 | L28: 2011
H29: 認知度 | I29: =IF(I23="-",#N/A,I23) ->  | J29: 59.9 | K29: 60 | L29: 58.7
H30: 県内順位
H31: 全国順位 | J31: 2 | K31: 2 | L31: 2
I33: 最大値 | J33: 最小値 | K33: 目盛大 | L33: 目盛小
H34: スコア | I34: =MAX(I23:L23) -> 60 | J34: =MIN(I23:L23) -> 58.7 | K34: =IF(INT((I34+10)/5)*5<20,20,INT((I34+10)/5)*5) -> 70 | L34: =IF(INT((J34-5)/5)*5<0,0,IF(K34-(INT((J34-5)/5)*5)<20,K34-20,INT((J34-5)/5)*5)) -> 50
H35: 全国順位 | I35: =MAX(I25:L25) -> 2 | J35: =MIN(I25:L25) -> 2 | K35: =IF(INT((I35+5)/5)*5<20,20,INT((I35+5)/5)*5) -> 20 | L35: =IF(INT((J35-5)/5)*5<0,0,IF(K35-(INT((J35-5)/5)*5)<20,K35-20,INT((J35-5)/5)*5)) -> 0
A38: ●魅力円グラフ | H38: ●魅力度順位
B40: TBL名 | C40: =C19 -> GT_P | E40: INDEX | H40: TBL名 | I40: =I19 -> - | J40: =J19 -> L2GT_P | K40: L1GT_P | L40: GT_P
B41: B1 | C41: =IF($B$4=0,"-",INDEX(INDIRECT(C$40),$B$4,E41)) -> 49.6 | D41: とても魅力的 | E41: 8 | I41: =I20 -> - | J41: - | K41: - | L41: -
B42: B2 | C42: =IF($B$4=0,"-",INDEX(INDIRECT(C$40),$B$4,E42)) -> 42.2 | D42: やや魅力的 | E42: 9 | I42: =I21 -> - | J42: L2RANK1_P | K42: L1RANK1_P | L42: RANK1_P
B43: B3 | C43: =IF($B$4=0,"-",INDEX(INDIRECT(C$40),$B$4,E43)) -> 6.8 | D43: どちらでもない | E43: 10 | I43: 2008 | J43: 2009 | K43: 2010 | L43: 2011 | M43: 増減 | P43: INDEX
B44: B4 | C44: =IF($B$4=0,"-",INDEX(INDIRECT(C$40),$B$4,E44)) -> 1.1 | D44: あまり魅力的でない | E44: 11 | H44: 魅力度 | I44: =IF($B$4=0,"-",IF($C$2<>1,"-",INDEX(INDIRECT(I40),$B$4,P44))) -> - | J44: =IF($B$4=0,"-",INDEX(INDIRECT(J40),$B$4,Q44)) -> 68.9 | K44: =IF($B$4=0,"-",INDEX(INDIRECT(K40),$B$4,R44)) -> 68 | L44: =IF($B$4=0,"-",INDEX(INDIRECT(L40),$B$4,S44)) -> 70.7 | M44: =IF(K44="-","-",L44-K44) -> 2.7 | N44: ="点 （"&IF(M44="-","-）",(IF(M44>0,"↑",IF(M44<0,"－",""))&TEXT(M44,"0.0；0.0；0.0")&"点）")) -> 点 （↑2.7点） | P44: 2 | Q44: 13 | R44: 13 | S44: 13
B45: B5 | C45: =IF($B$4=0,"-",INDEX(INDIRECT(C$40),$B$4,E45)) -> 0 | D45: 全く魅力的でない | E45: 12 | H45: 県内順位 | I45: =IF($B$4=0,"-",IF($C$2<>1,"-",INDEX(INDIRECT(I41),$B$4,P45))) -> - | J45: =IF($B$4=0,"-",IF($C$2<>1,"-",INDEX(INDIRECT(J41),$B$4,Q45))) -> - | K45: =IF($B$4=0,"-",IF($C$2<>1,"-",INDEX(INDIRECT(K41),$B$4,R45))) -> - | L45: =IF($B$4=0,"-",IF($C$2<>1,"-",INDEX(INDIRECT(L41),$B$4,S45))) -> - | P45: 2 | Q45: 13 | R45: 13 | S45: 13
B46: 無回答 | C46: =IF($B$4=0,"-",100-SUM(C41:C45)) -> 0.3 | H46: 全国順位 | I46: =IF($B$4=0,"-",IF($C$2<>1,"-",INDEX(INDIRECT(I42),$B$4,P46))) -> - | J46: =IF($B$4=0,"-",IF($C$2=3,"-",INDEX(INDIRECT(J42),$B$4,Q46))) -> 1 | K46: =IF($B$4=0,"-",IF($C$2=3,"-",INDEX(INDIRECT(K42),$B$4,R46))) -> 1 | L46: =IF($B$4=0,"-",IF($C$2=3,"-",INDEX(INDIRECT(L42),$B$4,S46))) -> 1 | P46: 2 | Q46: 13 | R46: 13 | S46: 13
H48: （折れ線グラフ用）
I49: 2008 | J49: 2009 | K49: 2010 | L49: 2011
H50: 認知度 | I50: =IF(I44="-",#N/A,I44) ->  | J50: 68.9 | K50: 68 | L50: 70.7
H51: 県内順位
H52: 全国順位 | J52: 1 | K52: 1 | L52: 1
I54: 最大値 | J54: 最小値 | K54: 目盛大 | L54: 目盛小
H55: スコア | I55: =MAX(I44:L44) -> 70.7 | J55: =MIN(I44:L44) -> 68 | K55: =IF(INT((I55+10)/5)*5<20,20,INT((I55+10)/5)*5) -> 80 | L55: =IF(INT((J55-5)/5)*5<0,0,IF(K55-(INT((J55-5)/5)*5)<20,K55-20,INT((J55-5)/5)*5)) -> 60
H56: 全国順位 | I56: =MAX(I46:L46) -> 1 | J56: =MIN(I46:L46) -> 1 | K56: =IF(INT((I56+5)/5)*5<20,20,INT((I56+5)/5)*5) -> 20 | L56: =IF(INT((J56-5)/5)*5<0,0,IF(K56-(INT((J56-5)/5)*5)<20,K56-20,INT((J56-5)/5)*5)) -> 0
A59: ●情報接触円グラフ | H59: ●情報接触度順位
B61: TBL名 | C61: =C19 -> GT_P | E61: INDEX | H61: TBL名 | I61: =I19 -> - | J61: =J19 -> L2GT_P | K61: L1GT_P | L61: GT_P
B62: C1 | C62: =IF($B$4=0,"-",INDEX(INDIRECT(C$61),$B$4,E62)) -> 37.4 | D62: 何度も見聞きした | E62: 14 | I62: =I20 -> - | J62: - | K62: - | L62: -
B63: C2 | C63: =IF($B$4=0,"-",INDEX(INDIRECT(C$61),$B$4,E63)) -> 53.8 | D63: 見聞きしたことがある | E63: 15 | I63: =I21 -> - | J63: L2RANK1_P | K63: L1RANK1_P | L63: RANK1_P
B64: C3 | C64: =IF($B$4=0,"-",INDEX(INDIRECT(C$61),$B$4,E64)) -> 8 | D64: 全く見聞きしていない | E64: 16 | I64: 2008 | J64: 2009 | K64: 2010 | L64: 2011 | M64: 増減 | P64: INDEX
B65: 無回答 | C65: =IF($B$4=0,"-",100-SUM(C62:C64)) -> 0.8 | H65: 情報接触度 | I65: =IF($B$4=0,"-",IF($C$2<>1,"-",INDEX(INDIRECT(I61),$B$4,P65))) -> - | J65: =IF($B$4=0,"-",INDEX(INDIRECT(J61),$B$4,Q65)) -> 68.4 | K65: =IF($B$4=0,"-",INDEX(INDIRECT(K61),$B$4,R65)) -> 64.2 | L65: =IF($B$4=0,"-",INDEX(INDIRECT(L61),$B$4,S65)) -> 64.3 | M65: =IF(K65="-","-",L65-K65) -> 0.1 | N65: ="点 （"&IF(M65="-","-）",(IF(M65>0,"↑",IF(M65<0,"－",""))&TEXT(M65,"0.0；0.0；0.0")&"点）")) -> 点 （↑0.1点） | P65: 3 | Q65: 17 | R65: 17 | S65: 17
H66: 県内順位 | I66: =IF($B$4=0,"-",IF($C$2<>1,"-",INDEX(INDIRECT(I62),$B$4,P66))) -> - | J66: =IF($B$4=0,"-",IF($C$2<>1,"-",INDEX(INDIRECT(J62),$B$4,Q66))) -> - | K66: =IF($B$4=0,"-",IF($C$2<>1,"-",INDEX(INDIRECT(K62),$B$4,R66))) -> - | L66: =IF($B$4=0,"-",IF($C$2<>1,"-",INDEX(INDIRECT(L62),$B$4,S66))) -> - | P66: 3 | Q66: 17 | R66: 17 | S66: 17
H67: 全国順位 | I67: =IF($B$4=0,"-",IF($C$2<>1,"-",INDEX(INDIRECT(I63),$B$4,P67))) -> - | J67: =IF($B$4=0,"-",IF($C$2=3,"-",INDEX(INDIRECT(J63),$B$4,Q67))) -> 2 | K67: =IF($B$4=0,"-",IF($C$2=3,"-",INDEX(INDIRECT(K63),$B$4,R67))) -> 2 | L67: =IF($B$4=0,"-",IF($C$2=3,"-",INDEX(INDIRECT(L63),$B$4,S67))) -> 6 | P67: 3 | Q67: 17 | R67: 17 | S67: 17
H69: （折れ線グラフ用）
I70: 2008 | J70: 2009 | K70: 2010 | L70: 2011
H71: 認知度 | I71: =IF(I65="-",#N/A,I65) ->  | J71: 68.4 | K71: 64.2 | L71: 64.3
H72: 県内順位
H73: 全国順位 | J73: 2 | K73: 2 | L73: 6
I75: 最大値 | J75: 最小値 | K75: 目盛大 | L75: 目盛小
H76: スコア | I76: =MAX(I65:L65) -> 68.4 | J76: =MIN(I65:L65) -> 64.2 | K76: =IF(INT((I76+10)/5)*5<20,20,INT((I76+10)/5)*5) -> 75 | L76: =IF(INT((J76-5)/5)*5<0,0,IF(K76-(INT((J76-5)/5)*5)<20,K76-20,INT((J76-5)/5)*5)) -> 55
H77: 全国順位 | I77: =MAX(I67:L67) -> 6 | J77: =MIN(I67:L67) -> 2 | K77: =IF(INT((I77+5)/5)*5<20,20,INT((I77+5)/5)*5) -> 20 | L77: =IF(INT((J77-5)/5)*5<0,0,IF(K77-(INT((J77-5)/5)*5)<20,K77-20,INT((J77-5)/5)*5)) -> 0
A80: ●数表
B81: TBL名 | C81: =IF($C$2=1,R$4,R$5) -> L2GT_P | D81: =IF($C$2=1,S$4,S$5) -> L1GT_P | E81: =IF($C$2=1,T$4,T$5) -> GT_P | F81: =IF($C$2=1,AD$4,AD$5) -> - | G81: =IF($C$2=1,AC$4,AC$5) -> AVE1_P
C82: 貴市 | F82: 平均値
C83: 2009 | D83: 2010 | E83: 2011 | F83: 県 | G83: 全国 | L83: INDEX
B84: ＜認知度＞ | C84: =IF($B$4=0,"-",INDEX(INDIRECT(C$81),$B$4,L84)) -> 59.9 | D84: 60 | E84: 58.7 | F84: =IF($B$4=0,"-",IF($C$2<>1,"-",INDEX(INDIRECT(F$81),$D$4,O84))) -> - | G84: =IF($B$4=0,"-",IF($C$2=3,"-",INDEX(INDIRECT(G$81),1,P84))) -> 46.11914894 | L84: 7 | M84: 7 | N84: 7 | O84: 7 | P84: 7
B85: よく知っている | C85: 11.8 | D85: 14 | E85: 12.7 | F85: - | G85: 4.893617021 | L85: 2 | M85: 2 | N85: 2 | O85: 2 | P85: 2
B86: 知っている | C86: 32.4 | D86: 28.5 | E86: 27.6 | F86: - | G86: 16.84042553 | L86: 3 | M86: 3 | N86: 3 | O86: 3 | P86: 3
B87: 少しだけ知っている | C87: 38.4 | D87: 40.9 | E87: 41.3 | F87: - | G87: 35.75744681 | L87: 4 | M87: 4 | N87: 4 | O87: 4 | P87: 4
B88: 名前だけは知っている | C88: 16.1 | D88: 16.4 | E88: 18.3 | F88: - | G88: 41.97446809 | L88: 5 | M88: 5 | N88: 5 | O88: 5 | P88: 5
B89: 名前も知らない | C89: 0.3 | D89: 0 | E89: 0 | F89: - | G89: 0.03617021277 | L89: 6 | M89: 6 | N89: 6 | O89: 6 | P89: 6
B90: ＜魅力度＞ | C90: 68.9 | D90: 68 | E90: 70.7 | F90: - | G90: 20.12340426 | L90: 13 | M90: 13 | N90: 13 | O90: 13 | P90: 13
B91: とても魅力的 | C91: 48 | D91: 48.4 | E91: 49.6 | F91: - | G91: 7.30212766 | L91: 8 | M91: 8 | N91: 8 | O91: 8 | P91: 8
B92: やや魅力的 | C92: 41.7 | D92: 39.2 | E92: 42.2 | F92: - | G92: 25.64255319 | L92: 9 | M92: 9 | N92: 9 | O92: 9 | P92: 9
B93: どちらでもない | C93: 6.3 | D93: 9.4 | E93: 6.8 | F93: - | G93: 50.13829787 | L93: 10 | M93: 10 | N93: 10 | O93: 10 | P93: 10
B94: あまり魅力的でない | C94: 2.1 | D94: 2.1 | E94: 1.1 | F94: - | G94: 13.06170213 | L94: 11 | M94: 11 | N94: 11 | O94: 11 | P94: 11
B95: 全く魅力的でない | C95: 0.3 | D95: 0.6 | E95: 0 | F95: - | G95: 2.757446809 | L95: 12 | M95: 12 | N95: 12 | O95: 12 | P95: 12
B96: ＜情報接触度＞ | C96: 68.4 | D96: 64.2 | E96: 64.3 | F96: - | G96: 44.19787234 | L96: 17 | M96: 17 | N96: 17 | O96: 17 | P96: 17
B97: 何度も見聞きした | C97: 47.5 | D97: 40.7 | E97: 37.4 | F97: - | G97: 20.14468085 | L97: 14 | M97: 14 | N97: 14 | O97: 14 | P97: 14
B98: 見聞きしたことがある | C98: 42 | D98: 47.1 | E98: 53.8 | F98: - | G98: 48.11489362 | L98: 15 | M98: 15 | N98: 15 | O98: 15 | P98: 15
B99: 全く見聞きしていない | C99: 10.3 | D99: 12.1 | E99: 8 | F99: - | G99: 31.25319149 | L99: 16 | M99: 16 | N99: 16 | O99: 16 | P99: 16
A102: ●認知帯グラフ | L102: ●コメント
D103: 2009 | E103: 2010 | F103: 2011 | M103: 市名 | N103: =E4 -> 北海道
B104: よく知っている | C104: 1 | D104: =C85 -> 11.8 | E104: =D85 -> 14 | F104: 12.7 | M104: 連結 | N104: の認知度は
B105: 知っている | C105: 1 | D105: 32.4 | E105: 28.5 | F105: 27.6 | M105: 認知度 | N105: =TEXT(L23,"0.0") -> 58.7
B106: 少しだけ知っている | C106: 1 | D106: 38.4 | E106: 40.9 | F106: 41.3 | M106: 連結 | N106: 点（前年
B107: 名前だけは知っている | C107: 1 | D107: =C88 -> 16.1 | E107: 16.4 | F107: 18.3 | M107: 前年認知度 | N107: =TEXT(K23,"0.0") -> 60.0
B108: 名前も知らない | C108: 1 | D108: 0.3 | E108: 0 | F108: 0 | M108: 連結 | N108: ）で全国順位は
B109: 無回答 | C109: 1 | D109: =IF(D104="-","-",100-SUM(D104:D108)) -> 1 | E109: =IF(E104="-","-",100-SUM(E104:E108)) -> 0.2 | F109: =IF(F104="-","-",100-SUM(F104:F108)) -> 0.1 | M109: 認知度全国順位 | N109: =TEXT(L25,"0") -> 2
M110: 連結 | N110: 位である。
M111: 改行
A112: ●魅力帯グラフ | M112: 連結 | N112: 魅力度は
D113: 2009 | E113: 2010 | F113: 2011 | M113: 魅力度 | N113: =TEXT(L44,"0.0") -> 70.7
B114: とても魅力的 | C114: 1 | D114: =C91 -> 48 | E114: 48.4 | F114: 49.6 | M114: 連結 | N114: 点（前年
B115: やや魅力的 | C115: 1 | D115: 41.7 | E115: 39.2 | F115: 42.2 | M115: 前年魅力度 | N115: =TEXT(K44,"0.0") -> 68.0
B116: どちらでもない | C116: 1 | D116: 6.3 | E116: 9.4 | F116: 6.8 | M116: 連結 | N116: ）で全国順位は
B117: あまり魅力的でない | C117: 1 | D117: =C94 -> 2.1 | E117: 2.1 | F117: 1.1 | M117: 魅力度全国順位 | N117: =TEXT(L46,"0") -> 1
B118: 全く魅力的でない | C118: 1 | D118: 0.3 | E118: 0.6 | F118: 0 | M118: 連結 | N118: 位である。
B119: 無回答 | C119: 1 | D119: =IF(D114="-","-",100-SUM(D114:D118)) -> 1.6 | E119: =IF(E114="-","-",100-SUM(E114:E118)) -> 0.3 | F119: =IF(F114="-","-",100-SUM(F114:F118)) -> 0.3 | M119: 改行
M120: 連結 | N120: 情報接触度は
M121: 情報接触度 | N121: =TEXT(L65,"0.0") -> 64.3
A122: ●情報接触帯グラフ | M122: 連結 | N122: 点（前年
D123: 2009 | E123: 2010 | F123: 2011 | M123: 前年情報接触度 | N123: =TEXT(K65,"0.0") -> 64.2
B124: 何度も見聞きした | C124: 1 | D124: =C97 -> 47.5 | E124: 40.7 | F124: 37.4 | M124: 連結 | N124: ）で全国順位は
B125: 見聞きしたことがある | C125: 1 | D125: 42 | E125: 47.1 | F125: 53.8 | M125: 情報接触度全国順位 | N125: =TEXT(L67,"0") -> 6
B126: 全く見聞きしていない | C126: 1 | D126: 10.3 | E126: 12.1 | F126: 8 | M126: 連結 | N126: 位である。
B127: 無回答 | C127: 1 | D127: =IF(D124="-","-",100-SUM(D124:D126)) -> 0.2 | E127: =IF(E124="-","-",100-SUM(E124:E126)) -> 0.1 | F127: =IF(F124="-","-",100-SUM(F124:F126)) -> 0.8 | M127: コメント⇒ | N127: =IF($B$4=0,"未選択",IF($C$2=3,"-",N103&N104&N105&N106&N107&N108&N109&N110&CHAR(10)&N112&N113&N114&N115&N116&N117&N118&CHAR(10)&N120&N121&N122&N123&N124&N125&N126)) -> 北海道の認知度は58.7点（前年60.0）で全国順位は2位である。 魅力度は70.7点（前年68.0）で全国順位は1位である。 情報接触度は64.3点（前年64.2）で全国順位は6位である。
A131: 情報関連指標
A133: ●コミュニケーション・バランス・レーダーチャート | L133: ●コメント
M134: 市名 | N134: =E4 -> 北海道
B135: TBL名 | C135: =IF($C$2=1,T$4,T$5) -> GT_P | D135: =IF($C$2=1,AD$4,AD$5) -> - | M135: 連結 | N135: =IF(E143=5,"のコミュニケーションバランスは５指標すべて同じ値","のコミュニケーションバランスで最も高かった指標は") -> のコミュニケーションバランスで最も高かった指標は
C136: =$F$4 -> 貴道 | D136: 県平均 | H136: INDEX | M136: ｺﾐｭﾆｹｰｼｮﾝﾊﾞﾗﾝｽ項目名 | N136: =IF(E143=5,"",F142) -> 「商品系」
B137: 物語系 | C137: =IF($B$4=0,#N/A,INDEX(INDIRECT(C$135),$B$4,H137)) -> 79.8 | D137: =IF($B$4=0,#N/A,IF($C$2<>1,#N/A,INDEX(INDIRECT(D$135),$D$4,I137))) ->  | E137: =IF(C137=E$142,1,0) -> 0 | F137: =IF(E137=1,"「"&B137&"」","") ->  | H137: 33 | I137: 33 | M137: 連結 | N137: で偏差値
B138: 旅行系 | C138: =IF($B$4=0,#N/A,INDEX(INDIRECT(C$135),$B$4,H138)) -> 91.9 | D138: =IF($B$4=0,#N/A,IF($C$2<>1,#N/A,INDEX(INDIRECT(D$135),$D$4,I138))) ->  | E138: =IF(C138=E$142,1,0) -> 0 | F138: =IF(E138=1,"「"&B138&"」","") ->  | H138: 34 | I138: 34 | M138: ｺﾐｭﾆｹｰｼｮﾝﾊﾞﾗﾝｽ最大値 | N138: =TEXT(E142,"0.0") -> 108.0
B139: 商品系 | C139: =IF($B$4=0,#N/A,INDEX(INDIRECT(C$135),$B$4,H139)) -> 108 | D139: =IF($B$4=0,#N/A,IF($C$2<>1,#N/A,INDEX(INDIRECT(D$135),$D$4,I139))) ->  | E139: =IF(C139=E$142,1,0) -> 1 | F139: =IF(E139=1,"「"&B139&"」","") -> 「商品系」 | H139: 35 | I139: 35 | M139: 連結 | N139: である。
B140: 広告系 | C140: =IF($B$4=0,#N/A,INDEX(INDIRECT(C$135),$B$4,H140)) -> 84.5 | D140: =IF($B$4=0,#N/A,IF($C$2<>1,#N/A,INDEX(INDIRECT(D$135),$D$4,I140))) ->  | E140: =IF(C140=E$142,1,0) -> 0 | F140: =IF(E140=1,"「"&B140&"」","") ->  | H140: 36 | I140: 36 | M140: コメント⇒ | N140: =IF($B$4=0,"未選択",IF($C$2=3,"-",N134&N135&N136&N137&N138&N139)) -> 北海道のコミュニケーションバランスで最も高かった指標は「商品系」で偏差値108.0である。
B141: 口コミ系 | C141: =IF($B$4=0,#N/A,INDEX(INDIRECT(C$135),$B$4,H141)) -> 73.3 | D141: =IF($B$4=0,#N/A,IF($C$2<>1,#N/A,INDEX(INDIRECT(D$135),$D$4,I141))) ->  | E141: =IF(C141=E$142,1,0) -> 0 | F141: =IF(E141=1,"「"&B141&"」","") ->  | H141: 37 | I141: 37
D142: 最大値= | E142: =MAX(C137:C141) -> 108 | F142: =F137&F138&F139&F140&F141 -> 「商品系」
D143: 最大値項目数= | E143: =SUM(E137:E141) -> 1
A146: ●数表
B147: TBL名 | C147: =IF($C$2=1,R$4,R$5) -> L2GT_P | D147: =IF($C$2=1,S$4,S$5) -> L1GT_P | E147: =IF($C$2=1,T$4,T$5) -> GT_P | F147: =IF($C$2=1,AD$4,AD$5) -> - | G147: =IF($C$2=1,AC$4,AC$5) -> AVE1_P | H147: =IF($C$2=1,Z$4,Z$5) -> - | I147: =IF($C$2=1,AA$4,AA$5) -> - | J147: =IF($C$2=1,AB$4,AB$5) -> - | K147: =IF($C$2=1,V$4,V$5) -> L2RANK1_P | L147: =IF($C$2=1,W$4,W$5) -> L1RANK1_P | M147: =IF($C$2=1,X$4,X$5) -> RANK1_P
C148: 貴市 | F148: 平均値 | H148: 県内順位 | K148: 全国順位
C149: 2009 | D149: 2010 | E149: 2011 | F149: 県 | G149: 全国 | H149: 2009 | I149: 2010 | J149: 2011 | K149: 2009 | L149: 2010 | M149: 2011 | O149: INDEX
B150: ＜コミュニケーション・バランス＞ | O150: - | P150: - | Q150: - | R150: - | S150: - | T150: - | U150: - | V150: - | W150: - | X150: - | Y150: -
B151: 物語系 | C151: =IF($B$4=0,"-",INDEX(INDIRECT(C$147),$B$4,O151)) -> 73.9 | D151: 77.5 | E151: 79.8 | F151: =IF($B$4=0,"-",IF($C$2<>1,"-",INDEX(INDIRECT(F$147),$D$4,R151))) -> - | G151: =IF($B$4=0,"-",IF($C$2=3,"-",INDEX(INDIRECT(G$147),1,S151))) -> 49.9893617 | H151: =IF($B$4=0,"-",IF($C$2<>1,"-",INDEX(INDIRECT(H$147),$B$4,T151))) -> - | I151: - | J151: - | K151: =IF($B$4=0,"-",IF($C$2=3,"-",INDEX(INDIRECT(K$147),$B$4,W151))) -> 2 | L151: 2 | M151: 2 | O151: 33 | P151: 33 | Q151: 33 | R151: 33 | S151: 33 | T151: 33 | U151: 33 | V151: 33 | W151: 33 | X151: 33 | Y151: 33
B152: 旅行系 | C152: 91 | D152: 93.6 | E152: 91.9 | F152: =IF($B$4=0,"-",IF($C$2<>1,"-",INDEX(INDIRECT(F$147),$D$4,R152))) -> - | G152: =IF($B$4=0,"-",IF($C$2=3,"-",INDEX(INDIRECT(G$147),1,S152))) -> 50 | H152: - | I152: - | J152: - | K152: 1 | L152: 1 | M152: 1 | O152: 34 | P152: 34 | Q152: 34 | R152: 34 | S152: 34 | T152: 34 | U152: 34 | V152: 34 | W152: 34 | X152: 34 | Y152: 34
B153: 商品系 | C153: 102.5 | D153: 107.7 | E153: 108 | F153: =IF($B$4=0,"-",IF($C$2<>1,"-",INDEX(INDIRECT(F$147),$D$4,R153))) -> - | G153: =IF($B$4=0,"-",IF($C$2=3,"-",INDEX(INDIRECT(G$147),1,S153))) -> 50.00638298 | H153: - | I153: - | J153: - | K153: 1 | L153: 1 | M153: 1 | O153: 35 | P153: 35 | Q153: 35 | R153: 35 | S153: 35 | T153: 35 | U153: 35 | V153: 35 | W153: 35 | X153: 35 | Y153: 35
B154: 広告系 | C154: 80.2 | D154: 87.9 | E154: 84.5 | F154: =IF($B$4=0,"-",IF($C$2<>1,"-",INDEX(INDIRECT(F$147),$D$4,R154))) -> - | G154: =IF($B$4=0,"-",IF($C$2=3,"-",INDEX(INDIRECT(G$147),1,S154))) -> 49.99574468 | H154: - | I154: - | J154: - | K154: 2 | L154: 1 | M154: 1 | O154: 36 | P154: 36 | Q154: 36 | R154: 36 | S154: 36 | T154: 36 | U154: 36 | V154: 36 | W154: 36 | X154: 36 | Y154: 36
B155: 口コミ系 | C155: 78.9 | D155: 72.2 | E155: 73.3 | F155: =IF($B$4=0,"-",IF($C$2<>1,"-",INDEX(INDIRECT(F$147),$D$4,R155))) -> - | G155: =IF($B$4=0,"-",IF($C$2=3,"-",INDEX(INDIRECT(G$147),1,S155))) -> 49.99787234 | H155: - | I155: - | J155: - | K155: 2 | L155: 2 | M155: 2 | O155: 37 | P155: 37 | Q155: 37 | R155: 37 | S155: 37 | T155: 37 | U155: 37 | V155: 37 | W155: 37 | X155: 37 | Y155: 37
B156: ＜情報接触経路＞ | O156: - | P156: - | Q156: - | R156: - | S156: - | T156: - | U156: - | V156: - | W156: - | X156: - | Y156: -
B157: ドラマや映画 | C157: =IF($B$4=0,"-",INDEX(INDIRECT(C$147),$B$4,O157)) -> 20.5 | D157: =IF($B$4=0,"-",INDEX(INDIRECT(D$147),$B$4,P157)) -> 18.7 | E157: 18.5 | F157: =IF($B$4=0,"-",IF($C$2<>1,"-",INDEX(INDIRECT(F$147),$D$4,R157))) -> - | G157: =IF($B$4=0,"-",IF($C$2=3,"-",INDEX(INDIRECT(G$147),1,S157))) -> 4.123404255 | H157: =IF($B$4=0,"-",IF($C$2<>1,"-",INDEX(INDIRECT(H$147),$B$4,T157))) -> - | I157: =IF($B$4=0,"-",IF($C$2<>1,"-",INDEX(INDIRECT(I$147),$B$4,U157))) -> - | J157: =IF($B$4=0,"-",IF($C$2<>1,"-",INDEX(INDIRECT(J$147),$B$4,V157))) -> - | K157: =IF($B$4=0,"-",IF($C$2=3,"-",INDEX(INDIRECT(K$147),$B$4,W157))) -> 2 | L157: =IF($B$4=0,"-",IF($C$2=3,"-",INDEX(INDIRECT(L$147),$B$4,X157))) -> 2 | M157: 2 | O157: 18 | P157: 18 | Q157: 18 | R157: 18 | S157: 18 | T157: 18 | U157: 18 | V157: 18 | W157: 18 | X157: 18 | Y157: 18
B158: 小説・エッセイ・ マンガなど | C158: 5.1 | D158: 5.7 | E158: 5.8 | F158: - | G158: 1.825531915 | H158: - | I158: - | J158: - | K158: 4 | L158: 3 | M158: 2 | O158: 19 | P158: 19 | Q158: 19 | R158: 19 | S158: 19 | T158: 19 | U158: 19 | V158: 19 | W158: 19 | X158: 19 | Y158: 19
B159: 旅やグルメに 関する番組 | C159: 55.1 | D159: 51.1 | E159: 47.2 | F159: - | G159: 17.35319149 | H159: - | I159: - | J159: - | K159: 1 | L159: 1 | M159: 1 | O159: 20 | P159: 20 | Q159: 20 | R159: 20 | S159: 20 | T159: 20 | U159: 20 | V159: 20 | W159: 20 | X159: 20 | Y159: 20
B160: 旅行・グルメ 関連記事 | C160: 25.4 | D160: 26.2 | E160: 21.9 | F160: - | G160: 7.627659574 | H160: - | I160: - | J160: - | K160: 2 | L160: 1 | M160: 1 | O160: 21 | P160: 21 | Q160: 21 | R160: 21 | S160: 21 | T160: 21 | U160: 21 | V160: 21 | W160: 21 | X160: 21 | Y160: 21
B161: 旅行パンフや ガイドブック | C161: 34.3 | D161: 33.5 | E161: 29.6 | F161: - | G161: 8.104255319 | H161: - | I161: - | J161: - | K161: 1 | L161: 1 | M161: 1 | O161: 22 | P161: 22 | Q161: 22 | R161: 22 | S161: 22 | T161: 22 | U161: 22 | V161: 22 | W161: 22 | X161: 22 | Y161: 22
B162: 通販カタログや 商品パンフレット | C162: 10.1 | D162: 7.6 | E162: 7.1 | F162: - | G162: 1.64893617 | H162: - | I162: - | J162: - | K162: 1 | L162: 1 | M162: 1 | O162: 23 | P162: 23 | Q162: 23 | R162: 23 | S162: 23 | T162: 23 | U162: 23 | V162: 23 | W162: 23 | X162: 23 | Y162: 23
B163: 物産展や催事など | C163: 32 | D163: 35.7 | E163: 35.8 | F163: - | G163: 4.95106383 | H163: - | I163: - | J163: - | K163: 1 | L163: 1 | M163: 1 | O163: 24 | P163: 24 | Q163: 24 | R163: 24 | S163: 24 | T163: 24 | U163: 24 | V163: 24 | W163: 24 | X163: 24 | Y163: 24
B164: 店頭および商品 | C164: 18.6 | D164: 18.2 | E164: 17.7 | F164: - | G164: 3.004255319 | H164: - | I164: - | J164: - | K164: 1 | L164: 1 | M164: 1 | O164: 25 | P164: 25 | Q164: 25 | R164: 25 | S164: 25 | T164: 25 | U164: 25 | V164: 25 | W164: 25 | X164: 25 | Y164: 25
B165: テレビＣＭや 新聞雑誌の広告 | C165: 24.3 | D165: 25.6 | E165: 22.7 | F165: - | G165: 9.091489362 | H165: - | I165: - | J165: - | K165: 2 | L165: 2 | M165: 1 | O165: 26 | P165: 26 | Q165: 26 | R165: 26 | S165: 26 | T165: 26 | U165: 26 | V165: 26 | W165: 26 | X165: 26 | Y165: 26
B166: ポスターやチラシ | C166: 7.5 | D166: 6.1 | E166: 5.4 | F166: - | G166: 1.680851064 | H166: - | I166: - | J166: - | K166: 2 | L166: 1 | M166: 1 | O166: 27 | P166: 27 | Q166: 27 | R166: 27 | S166: 27 | T166: 27 | U166: 27 | V166: 27 | W166: 27 | X166: 27 | Y166: 27
B167: 自治体の ホームページ | C167: 3.7 | D167: 4.5 | E167: 4.4 | F167: - | G167: 1.880851064 | H167: - | I167: - | J167: - | K167: 5 | L167: 1 | M167: 2 | O167: 28 | P167: 28 | Q167: 28 | R167: 28 | S167: 28 | T167: 28 | U167: 28 | V167: 28 | W167: 28 | X167: 28 | Y167: 28
B168: 他のサイトや 掲示板など | C168: 7.8 | D168: 6.9 | E168: 7.2 | F168: - | G168: 3.695744681 | H168: - | I168: - | J168: - | K168: 2 | L168: 2 | M168: 2 | O168: 29 | P168: 29 | Q168: 29 | R168: 29 | S168: 29 | T168: 29 | U168: 29 | V168: 29 | W168: 29 | X168: 29 | Y168: 29
B169: 友人や知人・ 家族から | C169: 16.6 | D169: 11.8 | E169: 13.3 | F169: - | G169: 7.021276596 | H169: - | I169: - | J169: - | K169: 2 | L169: 4 | M169: 4 | O169: 30 | P169: 30 | Q169: 30 | R169: 30 | S169: 30 | T169: 30 | U169: 30 | V169: 30 | W169: 30 | X169: 30 | Y169: 30
B170: 事件やニュース | C170: 19 | D170: 17.3 | E170: 20.5 | F170: - | G170: 25.45319149 | H170: - | I170: - | J170: - | K170: 8 | L170: 10 | M170: 23 | O170: 31 | P170: 31 | Q170: 31 | R170: 31 | S170: 31 | T170: 31 | U170: 31 | V170: 31 | W170: 31 | X170: 31 | Y170: 31
B171: その他 | C171: 8 | D171: 6.9 | E171: 8.7 | F171: - | G171: 8.629787234 | H171: - | I171: - | J171: - | K171: 11 | L171: 33 | M171: 28 | O171: 32 | P171: 32 | Q171: 32 | R171: 32 | S171: 32 | T171: 32 | U171: 32 | V171: 32 | W171: 32 | X171: 32 | Y171: 32
A174: ●コミュニケーションバランス棒グラフ | I174: ●情報接触経路棒グラフ
C175: 2009 | D175: 2010 | E175: 2011 | K175: 2009 | L175: 2010 | M175: 2011
B176: 物語系 | C176: =C151 -> 73.9 | D176: 77.5 | E176: 79.8 | J176: ドラマや映画 | K176: =C157 -> 20.5 | L176: =D157 -> 18.7 | M176: =E157 -> 18.5
B177: 旅行系 | C177: 91 | D177: 93.6 | E177: 91.9 | J177: 小説・エッセイ・ マンガなど | K177: =C158 -> 5.1 | L177: 5.7 | M177: 5.8
B178: 商品系 | C178: 102.5 | D178: 107.7 | E178: 108 | J178: 旅やグルメに 関する番組 | K178: 55.1 | L178: 51.1 | M178: 47.2
B179: 広告系 | C179: =C154 -> 80.2 | D179: 87.9 | E179: 84.5 | J179: 旅行・グルメ 関連記事 | K179: 25.4 | L179: 26.2 | M179: 21.9
B180: 口コミ系 | C180: 78.9 | D180: 72.2 | E180: 73.3 | J180: 旅行パンフや ガイドブック | K180: 34.3 | L180: 33.5 | M180: 29.6
J181: 通販カタログや 商品パンフレット | K181: 10.1 | L181: 7.6 | M181: 7.1
J182: 物産展や催事など | K182: 32 | L182: 35.7 | M182: 35.8
J183: 店頭および商品 | K183: 18.6 | L183: 18.2 | M183: 17.7
J184: テレビＣＭや 新聞雑誌の広告 | K184: 24.3 | L184: 25.6 | M184: 22.7
J185: ポスターやチラシ | K185: 7.5 | L185: 6.1 | M185: 5.4
J186: 自治体の ホームページ | K186: 3.7 | L186: 4.5 | M186: 4.4
J187: 他のサイトや 掲示板など | K187: 7.8 | L187: 6.9 | M187: 7.2
J188: 友人や知人・ 家族から | K188: 16.6 | L188: 11.8 | M188: 13.3
J189: 事件やニュース | K189: 19 | L189: 17.3 | M189: 20.5
J190: その他 | K190: 8 | L190: 6.9 | M190: 8.7
A194: 居住・観光・産品関連指標
A196: ●居住意欲円グラフ | H196: ●居住意欲度順位
B198: TBL名 | C198: =IF($C$2=1,T$4,T$5) -> GT_P | E198: INDEX | H198: TBL名 | I198: =IF($C$2=1,Q$4,Q$5) -> - | J198: =IF($C$2=1,R$4,R$5) -> L2GT_P | K198: =IF($C$2=1,S$4,S$5) -> L1GT_P | L198: =IF($C$2=1,T$4,T$5) -> GT_P
B199: F1 | C199: =IF($B$4=0,"-",INDEX(INDIRECT(C$198),$B$4,E199)) -> 10.2 | D199: ぜひ住みたい | E199: 38 | I199: =IF($C$2=1,Y$4,Y$5) -> - | J199: =IF($C$2=1,Z$4,Z$5) -> - | K199: =IF($C$2=1,AA$4,AA$5) -> - | L199: =IF($C$2=1,AB$4,AB$5) -> -
B200: F2 | C200: =IF($B$4=0,"-",INDEX(INDIRECT(C$198),$B$4,E200)) -> 13.3 | D200: できれば住みたい | E200: 39 | I200: =IF($C$2=1,U$4,U$5) -> - | J200: =IF($C$2=1,V$4,V$5) -> L2RANK1_P | K200: =IF($C$2=1,W$4,W$5) -> L1RANK1_P | L200: =IF($C$2=1,X$4,X$5) -> RANK1_P
B201: F3 | C201: =IF($B$4=0,"-",INDEX(INDIRECT(C$198),$B$4,E201)) -> 29.7 | D201: 住んでもよい | E201: 40 | I201: 2008 | J201: 2009 | K201: 2010 | L201: 2011 | M201: 増減 | P201: INDEX
B202: F4 | C202: =IF($B$4=0,"-",INDEX(INDIRECT(C$198),$B$4,E202)) -> 23.4 | D202: どちらともいえない | E202: 41 | H202: 居住意欲度 | I202: =IF($B$4=0,"-",IF($C$2<>1,"-",INDEX(INDIRECT(I198),$B$4,P202))) -> - | J202: =IF($B$4=0,"-",INDEX(INDIRECT(J198),$B$4,Q202)) -> 24.2 | K202: =IF($B$4=0,"-",INDEX(INDIRECT(K198),$B$4,R202)) -> 24.4 | L202: =IF($B$4=0,"-",INDEX(INDIRECT(L198),$B$4,S202)) -> 24.3 | M202: =IF(K202="-","-",L202-K202) -> -0.1 | N202: ="点 （"&IF(M202="-","-）",(IF(M202>0,"↑",IF(M202<0,"－",""))&TEXT(M202,"0.0；0.0；0.0")&"点）")) -> 点 （－0.1点） | P202: 4 | Q202: 43 | R202: 43 | S202: 43
B203: F5 | C203: =IF($B$4=0,"-",INDEX(INDIRECT(C$198),$B$4,E203)) -> 22.4 | D203: あまり住みたくない | E203: 42 | H203: 県内順位 | I203: =IF($B$4=0,"-",IF($C$2<>1,"-",INDEX(INDIRECT(I199),$B$4,P203))) -> - | J203: =IF($B$4=0,"-",IF($C$2<>1,"-",INDEX(INDIRECT(J199),$B$4,Q203))) -> - | K203: =IF($B$4=0,"-",IF($C$2<>1,"-",INDEX(INDIRECT(K199),$B$4,R203))) -> - | L203: =IF($B$4=0,"-",IF($C$2<>1,"-",INDEX(INDIRECT(L199),$B$4,S203))) -> - | P203: 4 | Q203: 43 | R203: 43 | S203: 43
B204: 無回答 | C204: =IF($B$4=0,"-",100-SUM(C199:C203)) -> 1 | H204: 全国順位 | I204: =IF($B$4=0,"-",IF($C$2<>1,"-",INDEX(INDIRECT(I200),$B$4,P204))) -> - | J204: =IF($B$4=0,"-",IF($C$2=3,"-",INDEX(INDIRECT(J200),$B$4,Q204))) -> 4 | K204: =IF($B$4=0,"-",IF($C$2=3,"-",INDEX(INDIRECT(K200),$B$4,R204))) -> 2 | L204: =IF($B$4=0,"-",IF($C$2=3,"-",INDEX(INDIRECT(L200),$B$4,S204))) -> 1 | P204: 4 | Q204: 43 | R204: 43 | S204: 43
H206: （折れ線グラフ用）
I207: 2008 | J207: 2009 | K207: 2010 | L207: 2011
H208: 認知度 | I208: =IF(I202="-",#N/A,I202) ->  | J208: 24.2 | K208: 24.4 | L208: 24.3
H209: 県内順位
H210: 全国順位 | J210: 4 | K210: 2 | L210: 1
I212: 最大値 | J212: 最小値 | K212: 目盛大 | L212: 目盛小
H213: スコア | I213: =MAX(I202:L202) -> 24.4 | J213: =MIN(I202:L202) -> 24.2 | K213: =IF(INT((I213+10)/5)*5<20,20,INT((I213+10)/5)*5) -> 30 | L213: =IF(INT((J213-5)/5)*5<0,0,IF(K213-(INT((J213-5)/5)*5)<20,K213-20,INT((J213-5)/5)*5)) -> 10
H214: 全国順位 | I214: =MAX(I204:L204) -> 4 | J214: =MIN(I204:L204) -> 1 | K214: =IF(INT((I214+5)/5)*5<20,20,INT((I214+5)/5)*5) -> 20 | L214: =IF(INT((J214-5)/5)*5<0,0,IF(K214-(INT((J214-5)/5)*5)<20,K214-20,INT((J214-5)/5)*5)) -> 0
A217: ●観光意欲円グラフ | H217: ●観光意欲度順位
B219: TBL名 | C219: =C198 -> GT_P | E219: INDEX | H219: TBL名 | I219: =I198 -> - | J219: =J198 -> L2GT_P | K219: L1GT_P | L219: GT_P
B220: G1 | C220: =IF($B$4=0,"-",INDEX(INDIRECT(C$219),$B$4,E220)) -> 63.1 | D220: ぜひ行ってみたい | E220: 44 | I220: =I199 -> - | J220: - | K220: - | L220: -
B221: G2 | C221: =IF($B$4=0,"-",INDEX(INDIRECT(C$219),$B$4,E221)) -> 30.5 | D221: 機会があれば行ってみたい | E221: 45 | I221: =I200 -> - | J221: L2RANK1_P | K221: L1RANK1_P | L221: RANK1_P
B222: G3 | C222: =IF($B$4=0,"-",INDEX(INDIRECT(C$219),$B$4,E222)) -> 4.2 | D222: どちらともいえない | E222: 46 | I222: 2008 | J222: 2009 | K222: 2010 | L222: 2011 | M222: 増減 | P222: INDEX
B223: G4 | C223: =IF($B$4=0,"-",INDEX(INDIRECT(C$219),$B$4,E223)) -> 1.4 | D223: あまり行きたいとは思わない | E223: 47 | H223: 観光意欲度 | I223: =IF($B$4=0,"-",IF($C$2<>1,"-",INDEX(INDIRECT(I219),$B$4,P223))) -> - | J223: =IF($B$4=0,"-",INDEX(INDIRECT(J219),$B$4,Q223)) -> 78.1 | K223: =IF($B$4=0,"-",INDEX(INDIRECT(K219),$B$4,R223)) -> 75.9 | L223: =IF($B$4=0,"-",INDEX(INDIRECT(L219),$B$4,S223)) -> 78.3 | M223: =IF(K223="-","-",L223-K223) -> 2.4 | N223: ="点 （"&IF(M223="-","-）",(IF(M223>0,"↑",IF(M223<0,"－",""))&TEXT(M223,"0.0；0.0；0.0")&"点）")) -> 点 （↑2.4点） | P223: 5 | Q223: 48 | R223: 48 | S223: 48
B224: 無回答 | C224: =IF($B$4=0,"-",100-SUM(C220:C223)) -> 0.8 | H224: 県内順位 | I224: =IF($B$4=0,"-",IF($C$2<>1,"-",INDEX(INDIRECT(I220),$B$4,P224))) -> - | J224: =IF($B$4=0,"-",IF($C$2<>1,"-",INDEX(INDIRECT(J220),$B$4,Q224))) -> - | K224: =IF($B$4=0,"-",IF($C$2<>1,"-",INDEX(INDIRECT(K220),$B$4,R224))) -> - | L224: =IF($B$4=0,"-",IF($C$2<>1,"-",INDEX(INDIRECT(L220),$B$4,S224))) -> - | P224: 5 | Q224: 48 | R224: 48 | S224: 48
H225: 全国順位 | I225: =IF($B$4=0,"-",IF($C$2<>1,"-",INDEX(INDIRECT(I221),$B$4,P225))) -> - | J225: =IF($B$4=0,"-",IF($C$2=3,"-",INDEX(INDIRECT(J221),$B$4,Q225))) -> 1 | K225: =IF($B$4=0,"-",IF($C$2=3,"-",INDEX(INDIRECT(K221),$B$4,R225))) -> 1 | L225: =IF($B$4=0,"-",IF($C$2=3,"-",INDEX(INDIRECT(L221),$B$4,S225))) -> 1 | P225: 5 | Q225: 48 | R225: 48 | S225: 48
H227: （折れ線グラフ用）
I228: 2008 | J228: 2009 | K228: 2010 | L228: 2011
H229: 認知度 | I229: =IF(I223="-",#N/A,I223) ->  | J229: 78.1 | K229: 75.9 | L229: 78.3
H230: 県内順位
H231: 全国順位 | J231: 1 | K231: 1 | L231: 1
I233: 最大値 | J233: 最小値 | K233: 目盛大 | L233: 目盛小
H234: スコア | I234: =MAX(I223:L223) -> 78.3 | J234: =MIN(I223:L223) -> 75.9 | K234: =IF(INT((I234+10)/5)*5<20,20,INT((I234+10)/5)*5) -> 85 | L234: =IF(INT((J234-5)/5)*5<0,0,IF(K234-(INT((J234-5)/5)*5)<20,K234-20,INT((J234-5)/5)*5)) -> 65
H235: 全国順位 | I235: =MAX(I225:L225) -> 1 | J235: =MIN(I225:L225) -> 1 | K235: =IF(INT((I235+5)/5)*5<20,20,INT((I235+5)/5)*5) -> 20 | L235: =IF(INT((J235-5)/5)*5<0,0,IF(K235-(INT((J235-5)/5)*5)<20,K235-20,INT((J235-5)/5)*5)) -> 0
A238: ●食品購入意欲円グラフ | H238: ●食品購入意欲度順位
B240: TBL名 | C240: =C198 -> GT_P | E240: INDEX | H240: TBL名 | I240: =J198 -> L2GT_P | J240: L1GT_P | K240: GT_P
B241: 平均想起数 | C241: =IF($B$4=0,"-",INDEX(INDIRECT(C$240),$B$4,E241)) -> 1.49 | E241: 54 | I241: - | J241: - | K241: -
B242: 想起有 | C242: =IF($B$4=0,"-",INDEX(INDIRECT(C$240),$B$4,E242)) -> 55.6 | E242: 52 | I242: L2RANK1_P | J242: L1RANK1_P | K242: RANK1_P
B243: なし | C243: =IF($B$4=0,"-",100-C242) -> 44.4 | I243: 2009 | J243: 2010 | K243: 2011 | L243: 増減 | O243: INDEX
H244: 食品購入意欲度 | I244: =IF($B$4=0,"-",INDEX(INDIRECT(I240),$B$4,O244)) -> 87.1 | J244: =IF($B$4=0,"-",INDEX(INDIRECT(J240),$B$4,P244)) -> 92 | K244: =IF($B$4=0,"-",INDEX(INDIRECT(K240),$B$4,Q244)) -> 82.7 | L244: =IF(J244="-","-",K244-J244) -> -9.3 | M244: ="点 （"&IF(L244="-","-）",(IF(L244>0,"↑",IF(L244<0,"－",""))&TEXT(L244,"0.0；0.0；0.0")&"点）")) -> 点 （－9.3点） | O244: 49 | P244: 49 | Q244: 49
B245: グラフ中のコメント | C245: ="1人当たり "&TEXT(C241,"0.00")&"個想起" -> 1人当たり 1.49個想起 | H245: 県内順位 | I245: =IF($B$4=0,"-",IF($C$2<>1,"-",INDEX(INDIRECT(I241),$B$4,O245))) -> - | J245: =IF($B$4=0,"-",IF($C$2<>1,"-",INDEX(INDIRECT(J241),$B$4,P245))) -> - | K245: =IF($B$4=0,"-",IF($C$2<>1,"-",INDEX(INDIRECT(K241),$B$4,Q245))) -> - | O245: 49 | P245: 49 | Q245: 49
... 225 more rows

Sheet SPEC (hidden)
B1: ●選択第１キー | H1: ●選択第２キー | Q1: 表記名 | T1: ●選択第２キーのリスト（市区町村） | AE1: ●選択第２キーのリスト（都道府県） | AP1: ●選択第２キーのリスト（道州） | BA1: ●選択調査結果が、市区町村か都道府県or道州によって表現が異なる箇所
B2: 2 | C2: =INDEX(C7:C9,$B2) -> ②都道府県結果 | D2: =INDEX(D7:D9,$B2) -> - | E2: =INDEX(E7:E9,$B2) -> 2000 | H2: 1 | I2: =INDEX(I7:I1026,$H2) -> 1 | J2: 1 | K2: 北海道・東北 | L2: 1 | M2: 北海道 （ほっかいどう） | N2: =INDEX(N7:N1026,$H2) -> 北海道 | O2: 2001 | P2: ほっかいどう | Q2: =IF($D$3=0," 未選択"," "&$N$2) -> 北海道 | T2: ※未選択の場合
C3: 選択調査結果⇒ | D3: =IF($E$2=3000,3,IF(AND($O$2>=2000,$O$2<3000),2,IF($O$2<2000,1,0))) -> 2 | E3: =IF(D3=1,"市区町村",IF(D3=2,"都道府県",IF(D3=3,"道州","未選択"))) -> 都道府県 | N3: クロスBD数 | O3: 48 | P3: (全体含む) | Q3: =IF($D$3=1,"（"&$L$2&"）","") ->  | U3: - | V3: - | W3: 未選択 | X3: 未選択 | Y3: ステップ１を実行してください | Z3: 未選択 | AA3: - | AB3: みせんたく | BB3: ステップ２表現： | BC3: =IF($E$2<2000,"ステップ2（市区町村を選択 ： 50音順）",IF($E$2=2000,"ステップ2（都道府県を選択 ： 北から順）",IF($E$2=3000,"ステップ2（道州を選択 ： 北から順）","ステップ2（表示したいものを選択）"))) -> ステップ2（都道府県を選択 ： 北から順） | BE3: ←何を第１キーに選択したかで、表現が変わる
D4: ↑北海道は、都道府県結果と道州結果で、 表現が異なるので注意 | Q4: =IF($D$3=0," 未選択",IF($D$3=1,Q2&Q3,Q2&Q3&" ※"&E3&"結果")) -> 北海道 ※都道府県結果 | BB4: 選択調査結果⇒ | BC4: =D3 -> 2 | BD4: =E3 -> 都道府県 | BE4: ←北海道は、都道府県結果と道州結果で、 表現が異なるので注意
T5: =SUM(T7:T1006) -> 0 | U5: ←選択された市の数 | AE5: =COUNT(AE7:AE53) -> 47 | AF5: ←都道府県数 | AP5: =COUNT(AP7:AP20) -> 14 | AQ5: ←道州数 | BB5: Q5項目名⇒ | BC5: =IF(OR(BC4=2,BC4=3),"地域","まち") -> 地域
B6: # | C6: 選択第１キー | D6: ｿｰﾄｷｰ(0=全市,1=地域,2=県) | E6: 対象No. | H6: # | I6: 地域No. | J6: 県No. | K6: 地域 | L6: 県２orINDEX | M6: ドロップダウン表示名（県＋市名＋よみがな 等） | N6: 市or県or道州 | O6: SEQ | P6: よみがな | T6: 選択対象=1 | U6: 地域No. | V6: 県No. | W6: 地域 | X6: 県２ | Y6: 県＋市名＋よみがな | Z6: 市 | AA6: SEQ | AB6: よみがな | AE6: # | AF6: 地域No. | AG6: 県No. | AH6: 地域 | AI6: INDEX | AJ6: 県＋よみがな | AK6: 県 | AL6: SEQ | AM6: よみがな | AP6: # | AQ6: 地域No. | AR6: 県No. | AS6: 地域 | AT6: INDEX | AU6: 道州＋よみがな | AV6: 道州 | AW6: SEQ | AX6: よみがな
B7: 1 | C7: 選択してください | D7: - | E7: - | H7: 1 | I7: 1 | J7: 1 | K7: 北海道・東北 | L7: 1 | M7: 北海道 （ほっかいどう） | N7: 北海道 | O7: 2001 | P7: ほっかいどう | T7: =IF($D$2="-",0,IF($D$2=0,1,IF(INDEX($U7:$V7,1,$D$2)=$E$2,1,0))) -> 0 | U7: 4 | V7: 28 | W7: 近畿 | X7: 兵庫県 | Y7: 兵庫県 相生市 （あいおいし） | Z7: 相生市 | AA7: 554 | AB7: あいおいし | AE7: 1 | AF7: 1 | AG7: 1 | AH7: 北海道・東北 | AI7: 1 | AJ7: 北海道 （ほっかいどう） | AK7: 北海道 | AL7: 2001 | AM7: ほっかいどう | AP7: 1 | AQ7: 1 | AR7: 1 | AS7: 北海道・東北 | AT7: 1 | AU7: 北海道 （ほっかいどう） | AV7: 北海道 | AW7: 2001 | AX7: ほっかいどう | BC7: 平均表現： | BD7: =IF(BC4=1,"全国平均",IF(BC4=2,"都道府県平均","平均")) -> 都道府県平均 | BE7: ←北海道は、道州結果のときは、平均を表示しない
B8: 2 | C8: ②都道府県結果 | D8: - | E8: 2000 | H8: 2 | I8: 1 | J8: 2 | K8: 北海道・東北 | L8: 2 | M8: 青森県 （あおもりけん） | N8: 青森県 | O8: 2002 | P8: あおもりけん | T8: 0 | U8: 3 | V8: 23 | W8: 中部 | X8: 愛知県 | Y8: 愛知県 愛西市 （あいさいし） | Z8: 愛西市 | AA8: 443 | AB8: あいさいし | AE8: 2 | AF8: 1 | AG8: 2 | AH8: 北海道・東北 | AI8: 2 | AJ8: 青森県 （あおもりけん） | AK8: 青森県 | AL8: 2002 | AM8: あおもりけん | AP8: 2 | AQ8: 1 | AR8: - | AS8: 北海道・東北 | AT8: 48 | AU8: 東北 （とうほく） | AV8: 東北 | AW8: 3001 | AX8: とうほく | BC8: Q5ﾄｰﾀﾙ名： | BD8: =$BD$4&"のイメージ要素 (Q5)" -> 都道府県のイメージ要素 (Q5)
H9: 3 | I9: 1 | J9: 3 | K9: 北海道・東北 | L9: 3 | M9: 岩手県 （いわてけん） | N9: 岩手県 | O9: 2003 | P9: いわてけん | T9: 0 | U9: 5 | V9: 36 | W9: 中国・四国 | X9: 徳島県 | Y9: 徳島県 藍住町 （あいずみちょう） | Z9: 藍住町 | AA9: 931 | AB9: あいずみちょう | AE9: 3 | AF9: 1 | AG9: 3 | AH9: 北海道・東北 | AI9: 3 | AJ9: 岩手県 （いわてけん） | AK9: 岩手県 | AL9: 2003 | AM9: いわてけん | AP9: 3 | AQ9: 2 | AR9: - | AS9: 関東 | AT9: 49 | AU9: 北関東 （きたかんとう） | AV9: 北関東 | AW9: 3002 | AX9: きたかんとう | BC9: Q5-1： | BD9: ="歴史・文化の"&$BC$5 -> 歴史・文化の地域
H10: 4 | I10: 1 | J10: 4 | K10: 北海道・東北 | L10: 4 | M10: 宮城県 （みやぎけん） | N10: 宮城県 | O10: 2004 | P10: みやぎけん | T10: 0 | U10: 1 | V10: 7 | W10: 北海道・東北 | X10: 福島県 | Y10: 福島県 会津若松市 （あいづわかまつし） | Z10: 会津若松市 | AA10: 101 | AB10: あいづわかまつし | AE10: 4 | AF10: 1 | AG10: 4 | AH10: 北海道・東北 | AI10: 4 | AJ10: 宮城県 （みやぎけん） | AK10: 宮城県 | AL10: 2004 | AM10: みやぎけん | AP10: 4 | AQ10: 2 | AR10: - | AS10: 関東 | AT10: 50 | AU10: 首都圏 （しゅとけん） | AV10: 首都圏 | AW10: 3003 | AX10: しゅとけん | BC10: Q5-2： | BD10: ="学術・芸術の"&$BC$5 -> 学術・芸術の地域
H11: 5 | I11: 1 | J11: 5 | K11: 北海道・東北 | L11: 5 | M11: 秋田県 （あきたけん） | N11: 秋田県 | O11: 2005 | P11: あきたけん | T11: 0 | U11: 5 | V11: 38 | W11: 中国・四国 | X11: 愛媛県 | Y11: 愛媛県 愛南町 （あいなんちょう） | Z11: 愛南町 | AA11: 936 | AB11: あいなんちょう | AE11: 5 | AF11: 1 | AG11: 5 | AH11: 北海道・東北 | AI11: 5 | AJ11: 秋田県 （あきたけん） | AK11: 秋田県 | AL11: 2005 | AM11: あきたけん | AP11: 5 | AQ11: 3 | AR11: - | AS11: 中部 | AT11: 51 | AU11: 信州 （しんしゅう） | AV11: 信州 | AW11: 3004 | AX11: しんしゅう | BC11: Q5-3： | BD11: ="観光・レジャーの"&$BC$5 -> 観光・レジャーの地域
H12: 6 | I12: 1 | J12: 6 | K12: 北海道・東北 | L12: 6 | M12: 山形県 （やまがたけん） | N12: 山形県 | O12: 2006 | P12: やまがたけん | T12: 0 | U12: 6 | V12: 46 | W12: 九州・沖縄 | X12: 鹿児島県 | Y12: 鹿児島県 姶良市 （あいらし） | Z12: 姶良市 | AA12: 775 | AB12: あいらし | AE12: 6 | AF12: 1 | AG12: 6 | AH12: 北海道・東北 | AI12: 6 | AJ12: 山形県 （やまがたけん） | AK12: 山形県 | AL12: 2006 | AM12: やまがたけん | AP12: 6 | AQ12: 3 | AR12: - | AS12: 中部 | AT12: 52 | AU12: 中部 （ちゅうぶ） | AV12: 中部 | AW12: 3005 | AX12: ちゅうぶ | BC12: Q5-4： | BD12: ="スポーツの"&$BC$5 -> スポーツの地域
H13: 7 | I13: 1 | J13: 7 | K13: 北海道・東北 | L13: 7 | M13: 福島県 （ふくしまけん） | N13: 福島県 | O13: 2007 | P13: ふくしまけん | T13: 0 | U13: 1 | V13: 2 | W13: 北海道・東北 | X13: 青森県 | Y13: 青森県 青森市 （あおもりし） | Z13: 青森市 | AA13: 36 | AB13: あおもりし | AE13: 7 | AF13: 1 | AG13: 7 | AH13: 北海道・東北 | AI13: 7 | AJ13: 福島県 （ふくしまけん） | AK13: 福島県 | AL13: 2007 | AM13: ふくしまけん | AP13: 7 | AQ13: 3 | AR13: - | AS13: 中部 | AT13: 53 | AU13: 北陸 （ほくりく） | AV13: 北陸 | AW13: 3006 | AX13: ほくりく | BC13: Q5-5： | BD13: ="国際交流の"&$BC$5 -> 国際交流の地域
H14: 8 | I14: 2 | J14: 8 | K14: 関東 | L14: 8 | M14: 茨城県 （いばらきけん） | N14: 茨城県 | O14: 2008 | P14: いばらきけん | T14: 0 | U14: 5 | V14: 33 | W14: 中国・四国 | X14: 岡山県 | Y14: 岡山県 赤磐市 （あかいわし） | Z14: 赤磐市 | AA14: 597 | AB14: あかいわし | AE14: 8 | AF14: 2 | AG14: 8 | AH14: 関東 | AI14: 8 | AJ14: 茨城県 （いばらきけん） | AK14: 茨城県 | AL14: 2008 | AM14: いばらきけん | AP14: 8 | AQ14: 3 | AR14: - | AS14: 中部 | AT14: 54 | AU14: 東海 （とうかい） | AV14: 東海 | AW14: 3007 | AX14: とうかい | BC14: Q5-6： | BD14: ="環境にやさしい"&$BC$5 -> 環境にやさしい地域
H15: 9 | I15: 2 | J15: 9 | K15: 関東 | L15: 9 | M15: 栃木県 （とちぎけん） | N15: 栃木県 | O15: 2009 | P15: とちぎけん | T15: 0 | U15: 4 | V15: 28 | W15: 近畿 | X15: 兵庫県 | Y15: 兵庫県 明石市 （あかしし） | Z15: 明石市 | AA15: 531 | AB15: あかしし | AE15: 9 | AF15: 2 | AG15: 9 | AH15: 関東 | AI15: 9 | AJ15: 栃木県 （とちぎけん） | AK15: 栃木県 | AL15: 2009 | AM15: とちぎけん | AP15: 9 | AQ15: 3 | AR15: - | AS15: 中部 | AT15: 55 | AU15: 中京 （ちゅうきょう） | AV15: 中京 | AW15: 3008 | AX15: ちゅうきょう | BC15: Q5-7： | BD15: ="デザインやセンスの良い"&$BC$5 -> デザインやセンスの良い地域
H16: 10 | I16: 2 | J16: 10 | K16: 関東 | L16: 10 | M16: 群馬県 （ぐんまけん） | N16: 群馬県 | O16: 2010 | P16: ぐんまけん | T16: 0 | U16: 3 | V16: 15 | W16: 中部 | X16: 新潟県 | Y16: 新潟県 阿賀野市 （あがのし） | Z16: 阿賀野市 | AA16: 300 | AB16: あがのし | AE16: 10 | AF16: 2 | AG16: 10 | AH16: 関東 | AI16: 10 | AJ16: 群馬県 （ぐんまけん） | AK16: 群馬県 | AL16: 2010 | AM16: ぐんまけん | AP16: 10 | AQ16: 4 | AR16: - | AS16: 近畿 | AT16: 56 | AU16: 関西 （かんさい） | AV16: 関西 | AW16: 3009 | AX16: かんさい | BC16: Q5-8： | BD16: ="住民参加の"&$BC$5 -> 住民参加の地域
H17: 11 | I17: 2 | J17: 11 | K17: 関東 | L17: 11 | M17: 埼玉県 （さいたまけん） | N17: 埼玉県 | O17: 2011 | P17: さいたまけん | T17: 0 | U17: 1 | V17: 1 | W17: 北海道・東北 | X17: 北海道 | Y17: 北海道 赤平市 （あかびらし） | Z17: 赤平市 | AA17: 32 | AB17: あかびらし | AE17: 11 | AF17: 2 | AG17: 11 | AH17: 関東 | AI17: 11 | AJ17: 埼玉県 （さいたまけん） | AK17: 埼玉県 | AL17: 2011 | AM17: さいたまけん | AP17: 11 | AQ17: 4 | AR17: - | AS17: 近畿 | AT17: 57 | AU17: 近畿 （きんき） | AV17: 近畿 | AW17: 3010 | AX17: きんき | BC17: Q5-9： | BD17: ="教育・子育ての"&$BC$5 -> 教育・子育ての地域
H18: 12 | I18: 2 | J18: 12 | K18: 関東 | L18: 12 | M18: 千葉県 （ちばけん） | N18: 千葉県 | O18: 2012 | P18: ちばけん | T18: 0 | U18: 5 | V18: 39 | W18: 中国・四国 | X18: 高知県 | Y18: 高知県 安芸市 （あきし） | Z18: 安芸市 | AA18: 666 | AB18: あきし | AE18: 12 | AF18: 2 | AG18: 12 | AH18: 関東 | AI18: 12 | AJ18: 千葉県 （ちばけん） | AK18: 千葉県 | AL18: 2012 | AM18: ちばけん | AP18: 12 | AQ18: 5 | AR18: - | AS18: 中国・四国 | AT18: 58 | AU18: 中国 （ちゅうごく） | AV18: 中国 | AW18: 3011 | AX18: ちゅうごく | BC18: Q5-10： | BD18: ="健康増進・医療福祉の"&$BC$5 -> 健康増進・医療福祉の地域
H19: 13 | I19: 2 | J19: 13 | K19: 関東 | L19: 13 | M19: 東京都 （とうきょうと） | N19: 東京都 | O19: 2013 | P19: とうきょうと | T19: 0 | U19: 2 | V19: 13 | W19: 関東 | X19: 東京都 | Y19: 東京都 昭島市 （あきしまし） | Z19: 昭島市 | AA19: 261 | AB19: あきしまし | AE19: 13 | AF19: 2 | AG19: 13 | AH19: 関東 | AI19: 13 | AJ19: 東京都 （とうきょうと） | AK19: 東京都 | AL19: 2013 | AM19: とうきょうと | AP19: 13 | AQ19: 5 | AR19: - | AS19: 中国・四国 | AT19: 59 | AU19: 四国 （しこく） | AV19: 四国 | AW19: 3012 | AX19: しこく | BC19: Q5-11： | BD19: ="農林水産業が盛んな"&$BC$5 -> 農林水産業が盛んな地域
H20: 14 | I20: 2 | J20: 14 | K20: 関東 | L20: 14 | M20: 神奈川県 （かながわけん） | N20: 神奈川県 | O20: 2014 | P20: かながわけん | T20: 0 | U20: 5 | V20: 34 | W20: 中国・四国 | X20: 広島県 | Y20: 広島県 安芸高田市 （あきたかたし） | Z20: 安芸高田市 | AA20: 613 | AB20: あきたかたし | AE20: 14 | AF20: 2 | AG20: 14 | AH20: 関東 | AI20: 14 | AJ20: 神奈川県 （かながわけん） | AK20: 神奈川県 | AL20: 2014 | AM20: かながわけん | AP20: 14 | AQ20: 6 | AR20: - | AS20: 九州・沖縄 | AT20: 60 | AU20: 九州 （きゅうしゅう） | AV20: 九州 | AW20: 3013 | AX20: きゅうしゅう | BC20: Q5-12： | BD20: ="地場産業が盛んな"&$BC$5 -> 地場産業が盛んな地域
H21: 15 | I21: 3 | J21: 15 | K21: 中部 | L21: 15 | M21: 新潟県 （にいがたけん） | N21: 新潟県 | O21: 2015 | P21: にいがたけん | T21: 0 | U21: 1 | V21: 5 | W21: 北海道・東北 | X21: 秋田県 | Y21: 秋田県 秋田市 （あきたし） | Z21: 秋田市 | AA21: 72 | AB21: あきたし | AE21: 15 | AF21: 3 | AG21: 15 | AH21: 中部 | AI21: 15 | AJ21: 新潟県 （にいがたけん） | AK21: 新潟県 | AL21: 2015 | AM21: にいがたけん | BC21: Q5-13： | BD21: ="IT・先端技術の"&$BC$5 -> IT・先端技術の地域
H22: 16 | I22: 3 | J22: 16 | K22: 中部 | L22: 16 | M22: 富山県 （とやまけん） | N22: 富山県 | O22: 2016 | P22: とやまけん | T22: 0 | U22: 2 | V22: 13 | W22: 関東 | X22: 東京都 | Y22: 東京都 あきる野市 （あきるのし） | Z22: あきる野市 | AA22: 262 | AB22: あきるのし | AE22: 16 | AF22: 3 | AG22: 16 | AH22: 中部 | AI22: 16 | AJ22: 富山県 （とやまけん） | AK22: 富山県 | AL22: 2016 | AM22: とやまけん | BC22: Q5-14： | BD22: ="生活に便利・快適な"&$BC$5 -> 生活に便利・快適な地域
H23: 17 | I23: 3 | J23: 17 | K23: 中部 | L23: 17 | M23: 石川県 （いしかわけん） | N23: 石川県 | O23: 2017 | P23: いしかわけん | T23: 0 | U23: 6 | V23: 46 | W23: 九州・沖縄 | X23: 鹿児島県 | Y23: 鹿児島県 阿久根市 （あくねし） | Z23: 阿久根市 | AA23: 770 | AB23: あくねし | AE23: 17 | AF23: 3 | AG23: 17 | AH23: 中部 | AI23: 17 | AJ23: 石川県 （いしかわけん） | AK23: 石川県 | AL23: 2017 | AM23: いしかわけん | BC23: Q5-15： | BD23: ="災害リスクが大きい"&$BC$5 -> 災害リスクが大きい地域
H24: 18 | I24: 3 | J24: 18 | K24: 中部 | L24: 18 | M24: 福井県 （ふくいけん） | N24: 福井県 | O24: 2018 | P24: ふくいけん | T24: 0 | U24: 2 | V24: 11 | W24: 関東 | X24: 埼玉県 | Y24: 埼玉県 上尾市 （あげおし） | Z24: 上尾市 | AA24: 176 | AB24: あげおし | AE24: 18 | AF24: 3 | AG24: 18 | AH24: 中部 | AI24: 18 | AJ24: 福井県 （ふくいけん） | AK24: 福井県 | AL24: 2018 | AM24: ふくいけん | BC24: Q5-16： | BD24: ="事件・事故が多い"&$BC$5 -> 事件・事故が多い地域
H25: 19 | I25: 3 | J25: 19 | K25: 中部 | L25: 19 | M25: 山梨県 （やまなしけん） | N25: 山梨県 | O25: 2019 | P25: やまなしけん | T25: 0 | U25: 4 | V25: 28 | W25: 近畿 | X25: 兵庫県 | Y25: 兵庫県 赤穂市 （あこうし） | Z25: 赤穂市 | AA25: 544 | AB25: あこうし | AE25: 19 | AF25: 3 | AG25: 19 | AH25: 中部 | AI25: 19 | AJ25: 山梨県 （やまなしけん） | AK25: 山梨県 | AL25: 2019 | AM25: やまなしけん | BC25: Q6ﾄｰﾀﾙ名： | BD25: =$BD$4&"の地域資源に対する評価 (Q6)" -> 都道府県の地域資源に対する評価 (Q6)
H26: 20 | I26: 3 | J26: 20 | K26: 中部 | L26: 20 | M26: 長野県 （ながのけん） | N26: 長野県 | O26: 2020 | P26: ながのけん | T26: 0 | U26: 2 | V26: 11 | W26: 関東 | X26: 埼玉県 | Y26: 埼玉県 朝霞市 （あさかし） | Z26: 朝霞市 | AA26: 182 | AB26: あさかし | AE26: 20 | AF26: 3 | AG26: 20 | AH26: 中部 | AI26: 20 | AJ26: 長野県 （ながのけん） | AK26: 長野県 | AL26: 2020 | AM26: ながのけん
H27: 21 | I27: 3 | J27: 21 | K27: 中部 | L27: 21 | M27: 岐阜県 （ぎふけん） | N27: 岐阜県 | O27: 2021 | P27: ぎふけん | T27: 0 | U27: 5 | V27: 33 | W27: 中国・四国 | X27: 岡山県 | Y27: 岡山県 浅口市 （あさくちし） | Z27: 浅口市 | AA27: 601 | AB27: あさくちし | AE27: 21 | AF27: 3 | AG27: 21 | AH27: 中部 | AI27: 21 | AJ27: 岐阜県 （ぎふけん） | AK27: 岐阜県 | AL27: 2021 | AM27: ぎふけん
H28: 22 | I28: 3 | J28: 22 | K28: 中部 | L28: 22 | M28: 静岡県 （しずおかけん） | N28: 静岡県 | O28: 2022 | P28: しずおかけん | T28: 0 | U28: 6 | V28: 40 | W28: 九州・沖縄 | X28: 福岡県 | Y28: 福岡県 朝倉市 （あさくらし） | Z28: 朝倉市 | AA28: 695 | AB28: あさくらし | AE28: 22 | AF28: 3 | AG28: 22 | AH28: 中部 | AI28: 22 | AJ28: 静岡県 （しずおかけん） | AK28: 静岡県 | AL28: 2022 | AM28: しずおかけん
H29: 23 | I29: 3 | J29: 23 | K29: 中部 | L29: 23 | M29: 愛知県 （あいちけん） | N29: 愛知県 | O29: 2023 | P29: あいちけん | T29: 0 | U29: 4 | V29: 28 | W29: 近畿 | X29: 兵庫県 | Y29: 兵庫県 朝来市 （あさごし） | Z29: 朝来市 | AA29: 553 | AB29: あさごし | AE29: 23 | AF29: 3 | AG29: 23 | AH29: 中部 | AI29: 23 | AJ29: 愛知県 （あいちけん） | AK29: 愛知県 | AL29: 2023 | AM29: あいちけん
H30: 24 | I30: 4 | J30: 24 | K30: 近畿 | L30: 24 | M30: 三重県 （みえけん） | N30: 三重県 | O30: 2024 | P30: みえけん | T30: 0 | U30: 1 | V30: 1 | W30: 北海道・東北 | X30: 北海道 | Y30: 北海道 旭川市 （あさひかわし） | Z30: 旭川市 | AA30: 2 | AB30: あさひかわし | AE30: 24 | AF30: 4 | AG30: 24 | AH30: 近畿 | AI30: 24 | AJ30: 三重県 （みえけん） | AK30: 三重県 | AL30: 2024 | AM30: みえけん
H31: 25 | I31: 4 | J31: 25 | K31: 近畿 | L31: 25 | M31: 滋賀県 （しがけん） | N31: 滋賀県 | O31: 2025 | P31: しがけん | T31: 0 | U31: 2 | V31: 12 | W31: 関東 | X31: 千葉県 | Y31: 千葉県 旭市 （あさひし） | Z31: 旭市 | AA31: 231 | AB31: あさひし | AE31: 25 | AF31: 4 | AG31: 25 | AH31: 近畿 | AI31: 25 | AJ31: 滋賀県 （しがけん） | AK31: 滋賀県 | AL31: 2025 | AM31: しがけん
H32: 26 | I32: 4 | J32: 26 | K32: 近畿 | L32: 26 | M32: 京都府 （きょうとふ） | N32: 京都府 | O32: 2026 | P32: きょうとふ | T32: 0 | U32: 2 | V32: 9 | W32: 関東 | X32: 栃木県 | Y32: 栃木県 足利市 （あしかがし） | Z32: 足利市 | AA32: 145 | AB32: あしかがし | AE32: 26 | AF32: 4 | AG32: 26 | AH32: 近畿 | AI32: 26 | AJ32: 京都府 （きょうとふ） | AK32: 京都府 | AL32: 2026 | AM32: きょうとふ
H33: 27 | I33: 4 | J33: 27 | K33: 近畿 | L33: 27 | M33: 大阪府 （おおさかふ） | N33: 大阪府 | O33: 2027 | P33: おおさかふ | T33: 0 | U33: 1 | V33: 1 | W33: 北海道・東北 | X33: 北海道 | Y33: 北海道 芦別市 （あしべつし） | Z33: 芦別市 | AA33: 31 | AB33: あしべつし | AE33: 27 | AF33: 4 | AG33: 27 | AH33: 近畿 | AI33: 27 | AJ33: 大阪府 （おおさかふ） | AK33: 大阪府 | AL33: 2027 | AM33: おおさかふ
H34: 28 | I34: 4 | J34: 28 | K34: 近畿 | L34: 28 | M34: 兵庫県 （ひょうごけん） | N34: 兵庫県 | O34: 2028 | P34: ひょうごけん | T34: 0 | U34: 4 | V34: 28 | W34: 近畿 | X34: 兵庫県 | Y34: 兵庫県 芦屋市 （あしやし） | Z34: 芦屋市 | AA34: 538 | AB34: あしやし | AE34: 28 | AF34: 4 | AG34: 28 | AH34: 近畿 | AI34: 28 | AJ34: 兵庫県 （ひょうごけん） | AK34: 兵庫県 | AL34: 2028 | AM34: ひょうごけん
H35: 29 | I35: 4 | J35: 29 | K35: 近畿 | L35: 29 | M35: 奈良県 （ならけん） | N35: 奈良県 | O35: 2029 | P35: ならけん | T35: 0 | U35: 6 | V35: 43 | W35: 九州・沖縄 | X35: 熊本県 | Y35: 熊本県 阿蘇市 （あそし） | Z35: 阿蘇市 | AA35: 732 | AB35: あそし | AE35: 29 | AF35: 4 | AG35: 29 | AH35: 近畿 | AI35: 29 | AJ35: 奈良県 （ならけん） | AK35: 奈良県 | AL35: 2029 | AM35: ならけん
H36: 30 | I36: 4 | J36: 30 | K36: 近畿 | L36: 30 | M36: 和歌山県 （わかやまけん） | N36: 和歌山県 | O36: 2030 | P36: わかやまけん | T36: 0 | U36: 2 | V36: 13 | W36: 関東 | X36: 東京都 | Y36: 東京都 足立区 （あだちく） | Z36: 足立区 | AA36: 982 | AB36: あだちく | AE36: 30 | AF36: 4 | AG36: 30 | AH36: 近畿 | AI36: 30 | AJ36: 和歌山県 （わかやまけん） | AK36: 和歌山県 | AL36: 2030 | AM36: わかやまけん
H37: 31 | I37: 5 | J37: 31 | K37: 中国・四国 | L37: 31 | M37: 鳥取県 （とっとりけん） | N37: 鳥取県 | O37: 2031 | P37: とっとりけん | T37: 0 | U37: 3 | V37: 22 | W37: 中部 | X37: 静岡県 | Y37: 静岡県 熱海市 （あたみし） | Z37: 熱海市 | AA37: 411 | AB37: あたみし | AE37: 31 | AF37: 5 | AG37: 31 | AH37: 中国・四国 | AI37: 31 | AJ37: 鳥取県 （とっとりけん） | AK37: 鳥取県 | AL37: 2031 | AM37: とっとりけん
H38: 32 | I38: 5 | J38: 32 | K38: 中国・四国 | L38: 32 | M38: 島根県 （しまねけん） | N38: 島根県 | O38: 2032 | P38: しまねけん | T38: 0 | U38: 2 | V38: 14 | W38: 関東 | X38: 神奈川県 | Y38: 神奈川県 厚木市 （あつぎし） | Z38: 厚木市 | AA38: 278 | AB38: あつぎし | AE38: 32 | AF38: 5 | AG38: 32 | AH38: 中国・四国 | AI38: 32 | AJ38: 島根県 （しまねけん） | AK38: 島根県 | AL38: 2032 | AM38: しまねけん
H39: 33 | I39: 5 | J39: 33 | K39: 中国・四国 | L39: 33 | M39: 岡山県 （おかやまけん） | N39: 岡山県 | O39: 2033 | P39: おかやまけん | T39: 0 | U39: 3 | V39: 20 | W39: 中部 | X39: 長野県 | Y39: 長野県 安曇野市 （あづみのし） | Z39: 安曇野市 | AA39: 357 | AB39: あづみのし | AE39: 33 | AF39: 5 | AG39: 33 | AH39: 中国・四国 | AI39: 33 | AJ39: 岡山県 （おかやまけん） | AK39: 岡山県 | AL39: 2033 | AM39: おかやまけん
H40: 34 | I40: 5 | J40: 34 | K40: 中国・四国 | L40: 34 | M40: 広島県 （ひろしまけん） | N40: 広島県 | O40: 2034 | P40: ひろしまけん | T40: 0 | U40: 3 | V40: 17 | W40: 中部 | X40: 石川県 | Y40: 石川県 穴水町 （あなみずまち） | Z40: 穴水町 | AA40: 865 | AB40: あなみずまち | AE40: 34 | AF40: 5 | AG40: 34 | AH40: 中国・四国 | AI40: 34 | AJ40: 広島県 （ひろしまけん） | AK40: 広島県 | AL40: 2034 | AM40: ひろしまけん
H41: 35 | I41: 5 | J41: 35 | K41: 中国・四国 | L41: 35 | M41: 山口県 （やまぐちけん） | N41: 山口県 | O41: 2035 | P41: やまぐちけん | T41: 0 | U41: 5 | V41: 36 | W41: 中国・四国 | X41: 徳島県 | Y41: 徳島県 阿南市 （あなんし） | Z41: 阿南市 | AA41: 633 | AB41: あなんし | AE41: 35 | AF41: 5 | AG41: 35 | AH41: 中国・四国 | AI41: 35 | AJ41: 山口県 （やまぐちけん） | AK41: 山口県 | AL41: 2035 | AM41: やまぐちけん
H42: 36 | I42: 5 | J42: 36 | K42: 中国・四国 | L42: 36 | M42: 徳島県 （とくしまけん） | N42: 徳島県 | O42: 2036 | P42: とくしまけん | T42: 0 | U42: 1 | V42: 1 | W42: 北海道・東北 | X42: 北海道 | Y42: 北海道 網走市 （あばしりし） | Z42: 網走市 | AA42: 19 | AB42: あばしりし | AE42: 36 | AF42: 5 | AG42: 36 | AH42: 中国・四国 | AI42: 36 | AJ42: 徳島県 （とくしまけん） | AK42: 徳島県 | AL42: 2036 | AM42: とくしまけん
H43: 37 | I43: 5 | J43: 37 | K43: 中国・四国 | L43: 37 | M43: 香川県 （かがわけん） | N43: 香川県 | O43: 2037 | P43: かがわけん | T43: 0 | U43: 2 | V43: 12 | W43: 関東 | X43: 千葉県 | Y43: 千葉県 我孫子市 （あびこし） | Z43: 我孫子市 | AA43: 221 | AB43: あびこし | AE43: 37 | AF43: 5 | AG43: 37 | AH43: 中国・四国 | AI43: 37 | AJ43: 香川県 （かがわけん） | AK43: 香川県 | AL43: 2037 | AM43: かがわけん
H44: 38 | I44: 5 | J44: 38 | K44: 中国・四国 | L44: 38 | M44: 愛媛県 （えひめけん） | N44: 愛媛県 | O44: 2038 | P44: えひめけん | T44: 0 | U44: 4 | V44: 28 | W44: 近畿 | X44: 兵庫県 | Y44: 兵庫県 尼崎市 （あまがさきし） | Z44: 尼崎市 | AA44: 530 | AB44: あまがさきし | AE44: 38 | AF44: 5 | AG44: 38 | AH44: 中国・四国 | AI44: 38 | AJ44: 愛媛県 （えひめけん） | AK44: 愛媛県 | AL44: 2038 | AM44: えひめけん
H45: 39 | I45: 5 | J45: 39 | K45: 中国・四国 | L45: 39 | M45: 高知県 （こうちけん） | N45: 高知県 | O45: 2039 | P45: こうちけん | T45: 0 | U45: 6 | V45: 43 | W45: 九州・沖縄 | X45: 熊本県 | Y45: 熊本県 天草市 （あまくさし） | Z45: 天草市 | AA45: 722 | AB45: あまくさし | AE45: 39 | AF45: 5 | AG45: 39 | AH45: 中国・四国 | AI45: 39 | AJ45: 高知県 （こうちけん） | AK45: 高知県 | AL45: 2039 | AM45: こうちけん
H46: 40 | I46: 6 | J46: 40 | K46: 九州・沖縄 | L46: 40 | M46: 福岡県 （ふくおかけん） | N46: 福岡県 | O46: 2040 | P46: ふくおかけん | T46: 0 | U46: 3 | V46: 23 | W46: 中部 | X46: 愛知県 | Y46: 愛知県 あま市 （あまし） | Z46: あま市 | AA46: 450 | AB46: あまし | AE46: 40 | AF46: 6 | AG46: 40 | AH46: 九州・沖縄 | AI46: 40 | AJ46: 福岡県 （ふくおかけん） | AK46: 福岡県 | AL46: 2040 | AM46: ふくおかけん
H47: 41 | I47: 6 | J47: 41 | K47: 九州・沖縄 | L47: 41 | M47: 佐賀県 （さがけん） | N47: 佐賀県 | O47: 2041 | P47: さがけん | T47: 0 | U47: 5 | V47: 32 | W47: 中国・四国 | X47: 島根県 | Y47: 島根県 海士町 （あまちょう） | Z47: 海士町 | AA47: 920 | AB47: あまちょう | AE47: 41 | AF47: 6 | AG47: 41 | AH47: 九州・沖縄 | AI47: 41 | AJ47: 佐賀県 （さがけん） | AK47: 佐賀県 | AL47: 2041 | AM47: さがけん
H48: 42 | I48: 6 | J48: 42 | K48: 九州・沖縄 | L48: 42 | M48: 長崎県 （ながさきけん） | N48: 長崎県 | O48: 2042 | P48: ながさきけん | T48: 0 | U48: 6 | V48: 46 | W48: 九州・沖縄 | X48: 鹿児島県 | Y48: 鹿児島県 奄美市 （あまみし） | Z48: 奄美市 | AA48: 762 | AB48: あまみし | AE48: 42 | AF48: 6 | AG48: 42 | AH48: 九州・沖縄 | AI48: 42 | AJ48: 長崎県 （ながさきけん） | AK48: 長崎県 | AL48: 2042 | AM48: ながさきけん
H49: 43 | I49: 6 | J49: 43 | K49: 九州・沖縄 | L49: 43 | M49: 熊本県 （くまもとけん） | N49: 熊本県 | O49: 2043 | P49: くまもとけん | T49: 0 | U49: 2 | V49: 8 | W49: 関東 | X49: 茨城県 | Y49: 茨城県 阿見町 （あみまち） | Z49: 阿見町 | AA49: 840 | AB49: あみまち | AE49: 43 | AF49: 6 | AG49: 43 | AH49: 九州・沖縄 | AI49: 43 | AJ49: 熊本県 （くまもとけん） | AK49: 熊本県 | AL49: 2043 | AM49: くまもとけん
H50: 44 | I50: 6 | J50: 44 | K50: 九州・沖縄 | L50: 44 | M50: 大分県 （おおいたけん） | N50: 大分県 | O50: 2044 | P50: おおいたけん | T50: 0 | U50: 2 | V50: 14 | W50: 関東 | X50: 神奈川県 | Y50: 神奈川県 綾瀬市 （あやせし） | Z50: 綾瀬市 | AA50: 286 | AB50: あやせし | AE50: 44 | AF50: 6 | AG50: 44 | AH50: 九州・沖縄 | AI50: 44 | AJ50: 大分県 （おおいたけん） | AK50: 大分県 | AL50: 2044 | AM50: おおいたけん
H51: 45 | I51: 6 | J51: 45 | K51: 九州・沖縄 | L51: 45 | M51: 宮崎県 （みやざきけん） | N51: 宮崎県 | O51: 2045 | P51: みやざきけん | T51: 0 | U51: 6 | V51: 45 | W51: 九州・沖縄 | X51: 宮崎県 | Y51: 宮崎県 綾町 （あやちょう） | Z51: 綾町 | AA51: 962 | AB51: あやちょう | AE51: 45 | AF51: 6 | AG51: 45 | AH51: 九州・沖縄 | AI51: 45 | AJ51: 宮崎県 （みやざきけん） | AK51: 宮崎県 | AL51: 2045 | AM51: みやざきけん
H52: 46 | I52: 6 | J52: 46 | K52: 九州・沖縄 | L52: 46 | M52: 鹿児島県 （かごしまけん） | N52: 鹿児島県 | O52: 2046 | P52: かごしまけん | T52: 0 | U52: 4 | V52: 26 | W52: 近畿 | X52: 京都府 | Y52: 京都府 綾部市 （あやべし） | Z52: 綾部市 | AA52: 491 | AB52: あやべし | AE52: 46 | AF52: 6 | AG52: 46 | AH52: 九州・沖縄 | AI52: 46 | AJ52: 鹿児島県 （かごしまけん） | AK52: 鹿児島県 | AL52: 2046 | AM52: かごしまけん
H53: 47 | I53: 6 | J53: 47 | K53: 九州・沖縄 | L53: 47 | M53: 沖縄県 （おきなわけん） | N53: 沖縄県 | O53: 2047 | P53: おきなわけん | T53: 0 | U53: 6 | V53: 43 | W53: 九州・沖縄 | X53: 熊本県 | Y53: 熊本県 荒尾市 （あらおし） | Z53: 荒尾市 | AA53: 725 | AB53: あらおし | AE53: 47 | AF53: 6 | AG53: 47 | AH53: 九州・沖縄 | AI53: 47 | AJ53: 沖縄県 （おきなわけん） | AK53: 沖縄県 | AL53: 2047 | AM53: おきなわけん
H54: 48 | T54: 0 | U54: 2 | V54: 13 | W54: 関東 | X54: 東京都 | Y54: 東京都 荒川区 （あらかわく） | Z54: 荒川区 | AA54: 996 | AB54: あらかわく
H55: 49 | T55: 0 | U55: 4 | V55: 30 | W55: 近畿 | X55: 和歌山県 | Y55: 和歌山県 有田市 （ありだし） | Z55: 有田市 | AA55: 576 | AB55: ありだし
H56: 50 | T56: 0 | U56: 6 | V56: 41 | W56: 九州・沖縄 | X56: 佐賀県 | Y56: 佐賀県 有田町 （ありたちょう） | Z56: 有田町 | AA56: 945 | AB56: ありたちょう
H57: 51 | T57: 0 | U57: 5 | V57: 36 | W57: 中国・四国 | X57: 徳島県 | Y57: 徳島県 阿波市 （あわし） | Z57: 阿波市 | AA57: 636 | AB57: あわし
H58: 52 | T58: 0 | U58: 4 | V58: 28 | W58: 近畿 | X58: 兵庫県 | Y58: 兵庫県 淡路市 （あわじし） | Z58: 淡路市 | AA58: 547 | AB58: あわじし
H59: 53 | T59: 0 | U59: 3 | V59: 18 | W59: 中部 | X59: 福井県 | Y59: 福井県 あわら市 （あわらし） | Z59: あわら市 | AA59: 337 | AB59: あわらし
H60: 54 | T60: 0 | U60: 3 | V60: 23 | W60: 中部 | X60: 愛知県 | Y60: 愛知県 安城市 （あんじょうし） | Z60: 安城市 | AA60: 421 | AB60: あんじょうし
H61: 55 | T61: 0 | U61: 2 | V61: 10 | W61: 関東 | X61: 群馬県 | Y61: 群馬県 安中市 （あんなかし） | Z61: 安中市 | AA61: 168 | AB61: あんなかし
H62: 56 | T62: 0 | U62: 3 | V62: 20 | W62: 中部 | X62: 長野県 | Y62: 長野県 飯田市 （いいだし） | Z62: 飯田市 | AA62: 355 | AB62: いいだし
H63: 57 | T63: 0 | U63: 1 | V63: 7 | W63: 北海道・東北 | X63: 福島県 | Y63: 福島県 飯舘村 （いいたてむら） | Z63: 飯舘村 | AA63: 833 | AB63: いいたてむら
H64: 58 | T64: 0 | U64: 6 | V64: 40 | W64: 九州・沖縄 | X64: 福岡県 | Y64: 福岡県 飯塚市 （いいづかし） | Z64: 飯塚市 | AA64: 677 | AB64: いいづかし
H65: 59 | T65: 0 | U65: 3 | V65: 20 | W65: 中部 | X65: 長野県 | Y65: 長野県 飯綱町 （いいづなまち） | Z65: 飯綱町 | AA65: 880 | AB65: いいづなまち
H66: 60 | T66: 0 | U66: 5 | V66: 32 | W66: 中国・四国 | X66: 島根県 | Y66: 島根県 飯南町 （いいなんちょう） | Z66: 飯南町 | AA66: 921 | AB66: いいなんちょう
H67: 61 | T67: 0 | U67: 3 | V67: 20 | W67: 中部 | X67: 長野県 | Y67: 長野県 飯山市 （いいやまし） | Z67: 飯山市 | AA67: 370 | AB67: いいやまし
H68: 62 | T68: 0 | U68: 6 | V68: 47 | W68: 九州・沖縄 | X68: 沖縄県 | Y68: 沖縄県 伊江村 （いえそん） | Z68: 伊江村 | AA68: 973 | AB68: いえそん
H69: 63 | T69: 0 | U69: 4 | V69: 24 | W69: 近畿 | X69: 三重県 | Y69: 三重県 伊賀市 （いがし） | Z69: 伊賀市 | AA69: 457 | AB69: いがし
H70: 64 | T70: 0 | U70: 5 | V70: 38 | W70: 中国・四国 | X70: 愛媛県 | Y70: 愛媛県 伊方町 （いかたちょう） | Z70: 伊方町 | AA70: 939 | AB70: いかたちょう
H71: 65 | T71: =IF($D$2="-",0,IF($D$2=0,1,IF(INDEX($U71:$V71,1,$D$2)=$E$2,1,0))) -> 0 | U71: 6 | V71: 42 | W71: 九州・沖縄 | X71: 長崎県 | Y71: 長崎県 壱岐市 （いきし） | Z71: 壱岐市 | AA71: 718 | AB71: いきし
H72: 66 | T72: 0 | U72: 4 | V72: 27 | W72: 近畿 | X72: 大阪府 | Y72: 大阪府 池田市 （いけだし） | Z72: 池田市 | AA72: 514 | AB72: いけだし
H73: 67 | T73: 0 | U73: 3 | V73: 18 | W73: 中部 | X73: 福井県 | Y73: 福井県 池田町 （いけだちょう） | Z73: 池田町 | AA73: 868 | AB73: いけだちょう
H74: 68 | T74: 0 | U74: 4 | V74: 29 | W74: 近畿 | X74: 奈良県 | Y74: 奈良県 生駒市 （いこまし） | Z74: 生駒市 | AA74: 558 | AB74: いこまし
H75: 69 | T75: 0 | U75: 6 | V75: 46 | W75: 九州・沖縄 | X75: 鹿児島県 | Y75: 鹿児島県 伊佐市 （いさし） | Z75: 伊佐市 | AA75: 774 | AB75: いさし
H76: 70 | T76: 0 | U76: 6 | V76: 42 | W76: 九州・沖縄 | X76: 長崎県 | Y76: 長崎県 諫早市 （いさはやし） | Z76: 諫早市 | AA76: 709 | AB76: いさはやし
H77: 71 | T77: 0 | U77: 2 | V77: 8 | W77: 関東 | X77: 茨城県 | Y77: 茨城県 石岡市 （いしおかし） | Z77: 石岡市 | AA77: 120 | AB77: いしおかし
H78: 72 | T78: 0 | U78: 6 | V78: 47 | W78: 九州・沖縄 | X78: 沖縄県 | Y78: 沖縄県 石垣市 （いしがきし） | Z78: 石垣市 | AA78: 785 | AB78: いしがきし
H79: 73 | T79: 0 | U79: 1 | V79: 1 | W79: 北海道・東北 | X79: 北海道 | Y79: 北海道 石狩市 （いしかりし） | Z79: 石狩市 | AA79: 15 | AB79: いしかりし
H80: 74 | T80: 0 | U80: 1 | V80: 4 | W80: 北海道・東北 | X80: 宮城県 | Y80: 宮城県 石巻市 （いしのまきし） | Z80: 石巻市 | AA80: 60 | AB80: いしのまきし
H81: 75 | T81: 0 | U81: 3 | V81: 22 | W81: 中部 | X81: 静岡県 | Y81: 静岡県 伊豆市 （いずし） | Z81: 伊豆市 | AA81: 412 | AB81: いずし
H82: 76 | T82: 0 | U82: 3 | V82: 22 | W82: 中部 | X82: 静岡県 | Y82: 静岡県 伊豆の国市 （いずのくにし） | Z82: 伊豆の国市 | AA82: 408 | AB82: いずのくにし
H83: 77 | T83: 0 | U83: 4 | V83: 27 | W83: 近畿 | X83: 大阪府 | Y83: 大阪府 泉大津市 （いずみおおつし） | Z83: 泉大津市 | AA83: 518 | AB83: いずみおおつし
H84: 78 | T84: 0 | U84: 4 | V84: 27 | W84: 近畿 | X84: 大阪府 | Y84: 大阪府 泉佐野市 （いずみさのし） | Z84: 泉佐野市 | AA84: 515 | AB84: いずみさのし
H85: 79 | T85: 0 | U85: 2 | V85: 12 | W85: 関東 | X85: 千葉県 | Y85: 千葉県 いすみ市 （いすみし） | Z85: いすみ市 | AA85: 241 | AB85: いすみし
H86: 80 | T86: 0 | U86: 4 | V86: 27 | W86: 近畿 | X86: 大阪府 | Y86: 大阪府 和泉市 （いずみし） | Z86: 和泉市 | AA86: 505 | AB86: いずみし
H87: 81 | T87: 0 | U87: 6 | V87: 46 | W87: 九州・沖縄 | X87: 鹿児島県 | Y87: 鹿児島県 出水市 （いずみし） | Z87: 出水市 | AA87: 765 | AB87: いずみし
H88: 82 | T88: 0 | U88: 5 | V88: 32 | W88: 中国・四国 | X88: 島根県 | Y88: 島根県 出雲市 （いずもし） | Z88: 出雲市 | AA88: 582 | AB88: いずもし
H89: 83 | T89: 0 | U89: 2 | V89: 10 | W89: 関東 | X89: 群馬県 | Y89: 群馬県 伊勢崎市 （いせさきし） | Z89: 伊勢崎市 | AA89: 160 | AB89: いせさきし
H90: 84 | T90: 0 | U90: 4 | V90: 24 | W90: 近畿 | X90: 三重県 | Y90: 三重県 伊勢市 （いせし） | Z90: 伊勢市 | AA90: 458 | AB90: いせし
H91: 85 | T91: 0 | U91: 2 | V91: 14 | W91: 関東 | X91: 神奈川県 | Y91: 神奈川県 伊勢原市 （いせはらし） | Z91: 伊勢原市 | AA91: 285 | AB91: いせはらし
H92: 86 | T92: 0 | U92: 2 | V92: 8 | W92: 関東 | X92: 茨城県 | Y92: 茨城県 潮来市 （いたこし） | Z92: 潮来市 | AA92: 141 | AB92: いたこし
H93: 87 | T93: 0 | U93: 2 | V93: 13 | W93: 関東 | X93: 東京都 | Y93: 東京都 板橋区 （いたばしく） | Z93: 板橋区 | AA93: 984 | AB93: いたばしく
H94: 88 | T94: 0 | U94: 4 | V94: 28 | W94: 近畿 | X94: 兵庫県 | Y94: 兵庫県 伊丹市 （いたみし） | Z94: 伊丹市 | AA94: 534 | AB94: いたみし
H95: 89 | T95: 0 | U95: 2 | V95: 12 | W95: 関東 | X95: 千葉県 | Y95: 千葉県 市川市 （いちかわし） | Z95: 市川市 | AA95: 212 | AB95: いちかわし
H96: 90 | T96: 0 | U96: 6 | V96: 46 | W96: 九州・沖縄 | X96: 鹿児島県 | Y96: 鹿児島県 いちき串木野市 （いちきくしきのし） | Z96: いちき串木野市 | AA96: 768 | AB96: いちきくしきのし
H97: 91 | T97: 0 | U97: 1 | V97: 3 | W97: 北海道・東北 | X97: 岩手県 | Y97: 岩手県 一関市 （いちのせきし） | Z97: 一関市 | AA97: 48 | AB97: いちのせきし
H98: 92 | T98: 0 | U98: 3 | V98: 23 | W98: 中部 | X98: 愛知県 | Y98: 愛知県 一宮市 （いちのみやし） | Z98: 一宮市 | AA98: 418 | AB98: いちのみやし
H99: 93 | T99: 0 | U99: 2 | V99: 12 | W99: 関東 | X99: 千葉県 | Y99: 千葉県 市原市 （いちはらし） | Z99: 市原市 | AA99: 214 | AB99: いちはらし
H100: 94 | T100: 0 | U100: 3 | V100: 15 | W100: 中部 | X100: 新潟県 | Y100: 新潟県 糸魚川市 （いといがわし） | Z100: 糸魚川市 | AA100: 299 | AB100: いといがわし
H101: 95 | T101: 0 | U101: 3 | V101: 22 | W101: 中部 | X101: 静岡県 | Y101: 静岡県 伊東市 （いとうし） | Z101: 伊東市 | AA101: 405 | AB101: いとうし
H102: 96 | T102: 0 | U102: 6 | V102: 40 | W102: 九州・沖縄 | X102: 福岡県 | Y102: 福岡県 糸島市 （いとしまし） | Z102: 糸島市 | AA102: 696 | AB102: いとしまし
H103: 97 | T103: 0 | U103: 6 | V103: 47 | W103: 九州・沖縄 | X103: 沖縄県 | Y103: 沖縄県 糸満市 （いとまんし） | Z103: 糸満市 | AA103: 782 | AB103: いとまんし
H104: 98 | T104: 0 | U104: 2 | V104: 13 | W104: 関東 | X104: 東京都 | Y104: 東京都 稲城市 （いなぎし） | Z104: 稲城市 | AA104: 265 | AB104: いなぎし
H105: 99 | T105: 0 | U105: 3 | V105: 23 | W105: 中部 | X105: 愛知県 | Y105: 愛知県 稲沢市 （いなざわし） | Z105: 稲沢市 | AA105: 424 | AB105: いなざわし
H106: 100 | T106: 0 | U106: 3 | V106: 20 | W106: 中部 | X106: 長野県 | Y106: 長野県 伊那市 （いなし） | Z106: 伊那市 | AA106: 360 | AB106: いなし
H107: 101 | T107: 0 | U107: 2 | V107: 8 | W107: 関東 | X107: 茨城県 | Y107: 茨城県 稲敷市 （いなしきし） | Z107: 稲敷市 | AA107: 132 | AB107: いなしきし
H108: 102 | T108: 0 | U108: 4 | V108: 24 | W108: 近畿 | X108: 三重県 | Y108: 三重県 いなべ市 （いなべし） | Z108: いなべ市 | AA108: 462 | AB108: いなべし
H109: 103 | T109: 0 | U109: 3 | V109: 23 | W109: 中部 | X109: 愛知県 | Y109: 愛知県 犬山市 （いぬやまし） | Z109: 犬山市 | AA109: 437 | AB109: いぬやまし
H110: 104 | T110: 0 | U110: 4 | V110: 27 | W110: 近畿 | X110: 大阪府 | Y110: 大阪府 茨木市 （いばらきし） | Z110: 茨木市 | AA110: 502 | AB110: いばらきし
H111: 105 | T111: 0 | U111: 5 | V111: 33 | W111: 中国・四国 | X111: 岡山県 | Y111: 岡山県 井原市 （いばらし） | Z111: 井原市 | AA111: 596 | AB111: いばらし
H112: 106 | T112: 0 | U112: 6 | V112: 46 | W112: 九州・沖縄 | X112: 鹿児島県 | Y112: 鹿児島県 指宿市 （いぶすきし） | Z112: 指宿市 | AA112: 767 | AB112: いぶすきし
H113: 107 | T113: 0 | U113: 5 | V113: 38 | W113: 中国・四国 | X113: 愛媛県 | Y113: 愛媛県 今治市 （いまばりし） | Z113: 今治市 | AA113: 648 | AB113: いまばりし
H114: 108 | T114: 0 | U114: 1 | V114: 2 | W114: 北海道・東北 | X114: 青森県 | Y114: 青森県 今別町 （いまべつまち） | Z114: 今別町 | AA114: 819 | AB114: いまべつまち
H115: 109 | T115: 0 | U115: 6 | V115: 41 | W115: 九州・沖縄 | X115: 佐賀県 | Y115: 佐賀県 伊万里市 （いまりし） | Z115: 伊万里市 | AA115: 700 | AB115: いまりし
H116: 110 | T116: 0 | U116: 3 | V116: 16 | W116: 中部 | X116: 富山県 | Y116: 富山県 射水市 （いみずし） | Z116: 射水市 | AA116: 312 | AB116: いみずし
H117: 111 | T117: 0 | U117: 5 | V117: 38 | W117: 中国・四国 | X117: 愛媛県 | Y117: 愛媛県 伊予市 （いよし） | Z117: 伊予市 | AA117: 656 | AB117: いよし
H118: 112 | T118: 0 | U118: 2 | V118: 11 | W118: 関東 | X118: 埼玉県 | Y118: 埼玉県 入間市 （いるまし） | Z118: 入間市 | AA118: 180 | AB118: いるまし
H119: 113 | T119: 0 | U119: 1 | V119: 7 | W119: 北海道・東北 | X119: 福島県 | Y119: 福島県 いわき市 （いわきし） | Z119: いわき市 | AA119: 98 | AB119: いわきし
H120: 114 | T120: 0 | U120: 5 | V120: 35 | W120: 中国・四国 | X120: 山口県 | Y120: 山口県 岩国市 （いわくにし） | Z120: 岩国市 | AA120: 623 | AB120: いわくにし
H121: 115 | T121: 0 | U121: 3 | V121: 23 | W121: 中部 | X121: 愛知県 | Y121: 愛知県 岩倉市 （いわくらし） | Z121: 岩倉市 | AA121: 447 | AB121: いわくらし
H122: 116 | T122: 0 | U122: 3 | V122: 22 | W122: 中部 | X122: 静岡県 | Y122: 静岡県 磐田市 （いわたし） | Z122: 磐田市 | AA122: 396 | AB122: いわたし
H123: 117 | T123: 0 | U123: 4 | V123: 30 | W123: 近畿 | X123: 和歌山県 | Y123: 和歌山県 岩出市 （いわでし） | Z123: 岩出市 | AA123: 573 | AB123: いわでし
H124: 118 | T124: 0 | U124: 1 | V124: 1 | W124: 北海道・東北 | X124: 北海道 | Y124: 北海道 岩内町 （いわないちょう） | Z124: 岩内町 | AA124: 812 | AB124: いわないちょう
H125: 119 | T125: 0 | U125: 1 | V125: 4 | W125: 北海道・東北 | X125: 宮城県 | Y125: 宮城県 岩沼市 （いわぬまし） | Z125: 岩沼市 | AA125: 68 | AB125: いわぬまし
H126: 120 | T126: 0 | U126: 1 | V126: 1 | W126: 北海道・東北 | X126: 北海道 | Y126: 北海道 岩見沢市 （いわみざわし） | Z126: 岩見沢市 | AA126: 12 | AB126: いわみざわし
H127: 121 | T127: 0 | U127: 2 | V127: 12 | W127: 関東 | X127: 千葉県 | Y127: 千葉県 印西市 （いんざいし） | Z127: 印西市 | AA127: 234 | AB127: いんざいし
H128: 122 | T128: 0 | U128: 3 | V128: 20 | W128: 中部 | X128: 長野県 | Y128: 長野県 上田市 （うえだし） | Z128: 上田市 | AA128: 354 | AB128: うえだし
H129: 123 | T129: 0 | U129: 3 | V129: 19 | W129: 中部 | X129: 山梨県 | Y129: 山梨県 上野原市 （うえのはらし） | Z129: 上野原市 | AA129: 351 | AB129: うえのはらし
H130: 124 | T130: 0 | U130: 2 | V130: 10 | W130: 関東 | X130: 群馬県 | Y130: 群馬県 上野村 （うえのむら） | Z130: 上野村 | AA130: 852 | AB130: うえのむら
H131: 125 | T131: 0 | U131: 3 | V131: 16 | W131: 中部 | X131: 富山県 | Y131: 富山県 魚津市 （うおづし） | Z131: 魚津市 | AA131: 316 | AB131: うおづし
H132: 126 | T132: 0 | U132: 3 | V132: 15 | W132: 中部 | X132: 新潟県 | Y132: 新潟県 魚沼市 （うおぬまし） | Z132: 魚沼市 | AA132: 301 | AB132: うおぬまし
H133: 127 | T133: 0 | U133: 6 | V133: 43 | W133: 九州・沖縄 | X133: 熊本県 | Y133: 熊本県 宇城市 （うきし） | Z133: 宇城市 | AA133: 723 | AB133: うきし
H134: 128 | T134: 0 | U134: 6 | V134: 40 | W134: 九州・沖縄 | X134: 福岡県 | Y134: 福岡県 うきは市 （うきはし） | Z134: うきは市 | AA134: 692 | AB134: うきはし
H135: 129 | T135: =IF($D$2="-",0,IF($D$2=0,1,IF(INDEX($U135:$V135,1,$D$2)=$E$2,1,0))) -> 0 | U135: 1 | V135: 5 | W135: 北海道・東北 | X135: 秋田県 | Y135: 秋田県 羽後町 （うごまち） | Z135: 羽後町 | AA135: 829 | AB135: うごまち
H136: 130 | T136: 0 | U136: 6 | V136: 44 | W136: 九州・沖縄 | X136: 大分県 | Y136: 大分県 宇佐市 （うさし） | Z136: 宇佐市 | AA136: 739 | AB136: うさし
H137: 131 | T137: 0 | U137: 2 | V137: 8 | W137: 関東 | X137: 茨城県 | Y137: 茨城県 牛久市 （うしくし） | Z137: 牛久市 | AA137: 122 | AB137: うしくし
H138: 132 | T138: 0 | U138: 4 | V138: 26 | W138: 近畿 | X138: 京都府 | Y138: 京都府 宇治市 （うじし） | Z138: 宇治市 | AA138: 480 | AB138: うじし
H139: 133 | T139: 0 | U139: 6 | V139: 44 | W139: 九州・沖縄 | X139: 大分県 | Y139: 大分県 臼杵市 （うすきし） | Z139: 臼杵市 | AA139: 740 | AB139: うすきし
H140: 134 | T140: 0 | U140: 4 | V140: 29 | W140: 近畿 | X140: 奈良県 | Y140: 奈良県 宇陀市 （うだし） | Z140: 宇陀市 | AA140: 564 | AB140: うだし
H141: 135 | T141: 0 | U141: 1 | V141: 1 | W141: 北海道・東北 | X141: 北海道 | Y141: 北海道 歌志内市 （うたしないし） | Z141: 歌志内市 | AA141: 35 | AB141: うたしないし
H142: 136 | T142: 0 | U142: 5 | V142: 37 | W142: 中国・四国 | X142: 香川県 | Y142: 香川県 宇多津町 （うたづちょう） | Z142: 宇多津町 | AA142: 932 | AB142: うたづちょう
H143: 137 | T143: 0 | U143: 5 | V143: 38 | W143: 中国・四国 | X143: 愛媛県 | Y143: 愛媛県 内子町 （うちこちょう） | Z143: 内子町 | AA143: 938 | AB143: うちこちょう
H144: 138 | T144: 0 | U144: 2 | V144: 9 | W144: 関東 | X144: 栃木県 | Y144: 栃木県 宇都宮市 （うつのみやし） | Z144: 宇都宮市 | AA144: 143 | AB144: うつのみやし
H145: 139 | T145: 0 | U145: 6 | V145: 43 | W145: 九州・沖縄 | X145: 熊本県 | Y145: 熊本県 宇土市 （うとし） | Z145: 宇土市 | AA145: 729 | AB145: うとし
H146: 140 | T146: 0 | U146: 5 | V146: 35 | W146: 中国・四国 | X146: 山口県 | Y146: 山口県 宇部市 （うべし） | Z146: 宇部市 | AA146: 620 | AB146: うべし
H147: 141 | T147: 0 | U147: 5 | V147: 39 | W147: 中国・四国 | X147: 高知県 | Y147: 高知県 馬路村 （うまじむら） | Z147: 馬路村 | AA147: 942 | AB147: うまじむら
H148: 142 | T148: 0 | U148: 6 | V148: 47 | W148: 九州・沖縄 | X148: 沖縄県 | Y148: 沖縄県 浦添市 （うらそえし） | Z148: 浦添市 | AA148: 779 | AB148: うらそえし
H149: 143 | T149: 0 | U149: 2 | V149: 12 | W149: 関東 | X149: 千葉県 | Y149: 千葉県 浦安市 （うらやすし） | Z149: 浦安市 | AA149: 218 | AB149: うらやすし
H150: 144 | T150: 0 | U150: 6 | V150: 47 | W150: 九州・沖縄 | X150: 沖縄県 | Y150: 沖縄県 うるま市 （うるまし） | Z150: うるま市 | AA150: 778 | AB150: うるまし
H151: 145 | T151: 0 | U151: 6 | V151: 41 | W151: 九州・沖縄 | X151: 佐賀県 | Y151: 佐賀県 嬉野市 （うれしのし） | Z151: 嬉野市 | AA151: 705 | AB151: うれしのし
H152: 146 | T152: 0 | U152: 5 | V152: 38 | W152: 中国・四国 | X152: 愛媛県 | Y152: 愛媛県 宇和島市 （うわじまし） | Z152: 宇和島市 | AA152: 652 | AB152: うわじまし
H153: 147 | T153: 0 | U153: 6 | V153: 42 | W153: 九州・沖縄 | X153: 長崎県 | Y153: 長崎県 雲仙市 （うんぜんし） | Z153: 雲仙市 | AA153: 712 | AB153: うんぜんし
H154: 148 | T154: 0 | U154: 5 | V154: 32 | W154: 中国・四国 | X154: 島根県 | Y154: 島根県 雲南市 （うんなんし） | Z154: 雲南市 | AA154: 585 | AB154: うんなんし
H155: 149 | T155: 0 | U155: 3 | V155: 18 | W155: 中部 | X155: 福井県 | Y155: 福井県 永平寺町 （えいへいじちょう） | Z155: 永平寺町 | AA155: 867 | AB155: えいへいじちょう
H156: 150 | T156: 0 | U156: 5 | V156: 34 | W156: 中国・四国 | X156: 広島県 | Y156: 広島県 江田島市 （えたじまし） | Z156: 江田島市 | AA156: 616 | AB156: えたじまし
H157: 151 | T157: 0 | U157: 3 | V157: 18 | W157: 中部 | X157: 福井県 | Y157: 福井県 越前市 （えちぜんし） | Z157: 越前市 | AA157: 332 | AB157: えちぜんし
H158: 152 | T158: 0 | U158: 3 | V158: 18 | W158: 中部 | X158: 福井県 | Y158: 福井県 越前町 （えちぜんちょう） | Z158: 越前町 | AA158: 870 | AB158: えちぜんちょう
H159: 153 | T159: 0 | U159: 2 | V159: 13 | W159: 関東 | X159: 東京都 | Y159: 東京都 江戸川区 （えどがわく） | Z159: 江戸川区 | AA159: 981 | AB159: えどがわく
H160: 154 | T160: 0 | U160: 3 | V160: 21 | W160: 中部 | X160: 岐阜県 | Y160: 岐阜県 恵那市 （えなし） | Z160: 恵那市 | AA160: 381 | AB160: えなし
H161: 155 | T161: 0 | U161: 1 | V161: 1 | W161: 北海道・東北 | X161: 北海道 | Y161: 北海道 恵庭市 （えにわし） | Z161: 恵庭市 | AA161: 13 | AB161: えにわし
H162: 156 | T162: 0 | U162: 2 | V162: 14 | W162: 関東 | X162: 神奈川県 | Y162: 神奈川県 海老名市 （えびなし） | Z162: 海老名市 | AA162: 284 | AB162: えびなし
H163: 157 | T163: 0 | U163: 6 | V163: 45 | W163: 九州・沖縄 | X163: 宮崎県 | Y163: 宮崎県 えびの市 （えびのし） | Z163: えびの市 | AA163: 755 | AB163: えびのし
H164: 158 | T164: 0 | U164: 1 | V164: 1 | W164: 北海道・東北 | X164: 北海道 | Y164: 北海道 江別市 （えべつし） | Z164: 江別市 | AA164: 8 | AB164: えべつし
H165: 159 | T165: 0 | U165: 1 | V165: 2 | W165: 北海道・東北 | X165: 青森県 | Y165: 青森県 おいらせ町 （おいらせちょう） | Z165: おいらせ町 | AA165: 816 | AB165: おいらせちょう
H166: 160 | T166: 0 | U166: 1 | V166: 3 | W166: 北海道・東北 | X166: 岩手県 | Y166: 岩手県 奥州市 （おうしゅうし） | Z166: 奥州市 | AA166: 47 | AB166: おうしゅうし
H167: 161 | T167: 0 | U167: 4 | V167: 25 | W167: 近畿 | X167: 滋賀県 | Y167: 滋賀県 近江八幡市 （おうみはちまんし） | Z167: 近江八幡市 | AA167: 472 | AB167: おうみはちまんし
H168: 162 | T168: 0 | U168: 2 | V168: 13 | W168: 関東 | X168: 東京都 | Y168: 東京都 青梅市 （おうめし） | Z168: 青梅市 | AA168: 256 | AB168: おうめし
H169: 163 | T169: 0 | U169: 2 | V169: 8 | W169: 関東 | X169: 茨城県 | Y169: 茨城県 大洗町 （おおあらいまち） | Z169: 大洗町 | AA169: 839 | AB169: おおあらいまち
H170: 164 | T170: 0 | U170: 6 | V170: 44 | W170: 九州・沖縄 | X170: 大分県 | Y170: 大分県 大分市 （おおいたし） | Z170: 大分市 | AA170: 734 | AB170: おおいたし
H171: 165 | T171: 0 | U171: 3 | V171: 18 | W171: 中部 | X171: 福井県 | Y171: 福井県 おおい町 （おおいちょう） | Z171: おおい町 | AA171: 871 | AB171: おおいちょう
H172: 166 | T172: 0 | U172: 3 | V172: 21 | W172: 中部 | X172: 岐阜県 | Y172: 岐阜県 大垣市 （おおがきし） | Z172: 大垣市 | AA172: 372 | AB172: おおがきし
H173: 167 | T173: 0 | U173: 6 | V173: 40 | W173: 九州・沖縄 | X173: 福岡県 | Y173: 福岡県 大川市 （おおかわし） | Z173: 大川市 | AA173: 690 | AB173: おおかわし
H174: 168 | T174: 0 | U174: 1 | V174: 7 | W174: 北海道・東北 | X174: 福島県 | Y174: 福島県 大熊町 （おおくままち） | Z174: 大熊町 | AA174: 837 | AB174: おおくままち
H175: 169 | T175: 0 | U175: 3 | V175: 20 | W175: 中部 | X175: 長野県 | Y175: 長野県 大桑村 （おおくわむら） | Z175: 大桑村 | AA175: 885 | AB175: おおくわむら
H176: 170 | T176: 0 | U176: 4 | V176: 27 | W176: 近畿 | X176: 大阪府 | Y176: 大阪府 大阪狭山市 （おおさかさやまし） | Z176: 大阪狭山市 | AA176: 524 | AB176: おおさかさやまし
H177: 171 | T177: 0 | U177: 4 | V177: 27 | W177: 近畿 | X177: 大阪府 | Y177: 大阪府 大阪市 （おおさかし） | Z177: 大阪市 | AA177: 494 | AB177: おおさかし
H178: 172 | T178: 0 | U178: 1 | V178: 4 | W178: 北海道・東北 | X178: 宮城県 | Y178: 宮城県 大崎市 （おおさきし） | Z178: 大崎市 | AA178: 61 | AB178: おおさきし
H179: 173 | T179: 0 | U179: 5 | V179: 38 | W179: 中国・四国 | X179: 愛媛県 | Y179: 愛媛県 大洲市 （おおずし） | Z179: 大洲市 | AA179: 653 | AB179: おおずし
H180: 174 | T180: 0 | U180: 1 | V180: 1 | W180: 北海道・東北 | X180: 北海道 | Y180: 北海道 大空町 （おおぞらちょう） | Z180: 大空町 | AA180: 805 | AB180: おおぞらちょう
H181: 175 | T181: 0 | U181: 4 | V181: 24 | W181: 近畿 | X181: 三重県 | Y181: 三重県 大台町 （おおだいちょう） | Z181: 大台町 | AA181: 900 | AB181: おおだいちょう
H182: 176 | T182: 0 | U182: 2 | V182: 13 | W182: 関東 | X182: 東京都 | Y182: 東京都 大田区 （おおたく） | Z182: 大田区 | AA182: 980 | AB182: おおたく
H183: 177 | T183: 0 | U183: 5 | V183: 34 | W183: 中国・四国 | X183: 広島県 | Y183: 広島県 大竹市 （おおたけし） | Z183: 大竹市 | AA183: 615 | AB183: おおたけし
H184: 178 | T184: 0 | U184: 2 | V184: 10 | W184: 関東 | X184: 群馬県 | Y184: 群馬県 太田市 （おおたし） | Z184: 太田市 | AA184: 159 | AB184: おおたし
H185: 179 | T185: 0 | U185: 5 | V185: 32 | W185: 中国・四国 | X185: 島根県 | Y185: 島根県 大田市 （おおだし） | Z185: 大田市 | AA185: 587 | AB185: おおだし
H186: 180 | T186: 0 | U186: 1 | V186: 5 | W186: 北海道・東北 | X186: 秋田県 | Y186: 秋田県 大館市 （おおだてし） | Z186: 大館市 | AA186: 76 | AB186: おおだてし
H187: 181 | T187: 0 | U187: 2 | V187: 9 | W187: 関東 | X187: 栃木県 | Y187: 栃木県 大田原市 （おおたわらし） | Z187: 大田原市 | AA187: 150 | AB187: おおたわらし
H188: 182 | T188: 0 | U188: 3 | V188: 19 | W188: 中部 | X188: 山梨県 | Y188: 山梨県 大月市 （おおつきし） | Z188: 大月市 | AA188: 349 | AB188: おおつきし
H189: 183 | T189: 0 | U189: 4 | V189: 25 | W189: 近畿 | X189: 滋賀県 | Y189: 滋賀県 大津市 （おおつし） | Z189: 大津市 | AA189: 466 | AB189: おおつし
H190: 184 | T190: 0 | U190: 3 | V190: 18 | W190: 中部 | X190: 福井県 | Y190: 福井県 大野市 （おおのし） | Z190: 大野市 | AA190: 335 | AB190: おおのし
H191: 185 | T191: 0 | U191: 6 | V191: 40 | W191: 九州・沖縄 | X191: 福岡県 | Y191: 福岡県 大野城市 （おおのじょうし） | Z191: 大野城市 | AA191: 676 | AB191: おおのじょうし
H192: 186 | T192: 0 | U192: 3 | V192: 23 | W192: 中部 | X192: 愛知県 | Y192: 愛知県 大府市 （おおぶし） | Z192: 大府市 | AA192: 433 | AB192: おおぶし
H193: 187 | T193: 0 | U193: 1 | V193: 3 | W193: 北海道・東北 | X193: 岩手県 | Y193: 岩手県 大船渡市 （おおふなとし） | Z193: 大船渡市 | AA193: 52 | AB193: おおふなとし
H194: 188 | T194: 0 | U194: 3 | V194: 20 | W194: 中部 | X194: 長野県 | Y194: 長野県 大町市 （おおまちし） | Z194: 大町市 | AA194: 369 | AB194: おおまちし
H195: 189 | T195: 0 | U195: 1 | V195: 2 | W195: 北海道・東北 | X195: 青森県 | Y195: 青森県 大間町 （おおままち） | Z195: 大間町 | AA195: 821 | AB195: おおままち
H196: 190 | T196: 0 | U196: 6 | V196: 40 | W196: 九州・沖縄 | X196: 福岡県 | Y196: 福岡県 大牟田市 （おおむたし） | Z196: 大牟田市 | AA196: 672 | AB196: おおむたし
H197: 191 | T197: 0 | U197: 6 | V197: 42 | W197: 九州・沖縄 | X197: 長崎県 | Y197: 長崎県 大村市 （おおむらし） | Z197: 大村市 | AA197: 710 | AB197: おおむらし
H198: 192 | T198: 0 | U198: 3 | V198: 23 | W198: 中部 | X198: 愛知県 | Y198: 愛知県 岡崎市 （おかざきし） | Z198: 岡崎市 | AA198: 419 | AB198: おかざきし
H199: 193 | T199: =IF($D$2="-",0,IF($D$2=0,1,IF(INDEX($U199:$V199,1,$D$2)=$E$2,1,0))) -> 0 | U199: 1 | V199: 5 | W199: 北海道・東北 | X199: 秋田県 | Y199: 秋田県 男鹿市 （おがし） | Z199: 男鹿市 | AA199: 82 | AB199: おがし
H200: 194 | T200: 0 | U200: 3 | V200: 20 | W200: 中部 | X200: 長野県 | Y200: 長野県 岡谷市 （おかやし） | Z200: 岡谷市 | AA200: 362 | AB200: おかやし
... 826 more rows

Sheet GT個別用_県州 (hidden)
A1: ※データは全て値固定 | L1: INDEX | M1: 1 | N1: 2 | O1: 3 | P1: 4 | Q1: 5 | R1: 6 | S1: 7 | T1: 8 | U1: 9 | V1: 10 | W1: 11 | X1: 12 | Y1: 13 | Z1: 14 | AA1: 15 | AB1: 16 | AC1: 17 | AD1: 18 | AE1: 19 | AF1: 20 | AG1: 21 | AH1: 22 | AI1: 23 | AJ1: 24 | AK1: 25 | AL1: 26 | AM1: 27 | AN1: 28 | AO1: 29 | AP1: 30 | AQ1: 31 | AR1: 32 | AS1: 33 | AT1: 34 | AU1: 35 | AV1: 36 | AW1: 37 | AX1: 38 | AY1: 39 | AZ1: 40 | BA1: 41 | BB1: 42 | BC1: 43 | BD1: 44 | BE1: 45 | BF1: 46 | BG1: 47 | BH1: 48 | BI1: 49 | BJ1: 50 | BK1: 51 | BL1: 52 | BM1: 53 | BN1: 54 | BO1: 55 | BP1: 56 | BQ1: 57 | BR1: 58 | BS1: 59 | BT1: 60 | BU1: 61 | BV1: 62 | BW1: 63 | BX1: 64 | BY1: 65 | BZ1: 66 | CA1: 67 | CB1: 68 | CC1: 69 | CD1: 70 | CE1: 71 | CF1: 72 | CG1: 73 | CH1: 74 | CI1: 75 | CJ1: 76 | CK1: 77 | CL1: 78 | CM1: 79 | CN1: 80 | CO1: 81 | CP1: 82 | CQ1: 83 | CR1: 84 | CS1: 85 | CT1: 86 | CU1: 87 | CV1: 88 | CW1: 89 | CX1: 90 | CY1: 91 | CZ1: 92 | DA1: 93 | DB1: 94 | DC1: 95 | DD1: 96 | DE1: 97 | DF1: 98 | DG1: 99 | DH1: 100 | DI1: 101 | DJ1: 102 | DK1: 103 | DL1: 104 | DM1: 105 | DN1: 106 | DO1: 107 | DP1: 108 | DQ1: 109 | DR1: 110 | DS1: 111
A3: 地域ブランド調査2011《ウエイトバック集計》 | AM3: ↓選択肢順注意！！
A4: SEQ順にソート | L4: AVE（都道府県） | M4: 614.2765957 | N4: 4.893617021 | O4: 16.84042553 | P4: 35.75744681 | Q4: 41.97446809 | R4: 0.03617021277 | S4: 46.11914894 | T4: 7.30212766 | U4: 25.64255319 | V4: 50.13829787 | W4: 13.06170213 | X4: 2.757446809 | Y4: 20.12340426 | Z4: 20.14468085 | AA4: 48.11489362 | AB4: 31.25319149 | AC4: 44.19787234 | AD4: 4.123404255 | AE4: 1.825531915 | AF4: 17.35319149 | AG4: 7.627659574 | AH4: 8.104255319 | AI4: 1.64893617 | AJ4: 4.95106383 | AK4: 3.004255319 | AL4: 9.091489362 | AM4: 1.680851064 | AN4: 1.880851064 | AO4: 3.695744681 | AP4: 7.021276596 | AQ4: 25.45319149 | AR4: 8.629787234 | AS4: 49.9893617 | AT4: 50 | AU4: 50.00638298 | AV4: 49.99574468 | AW4: 49.99787234 | AX4: 2.414893617 | AY4: 4.19787234 | AZ4: 17.28723404 | BA4: 35.78297872 | BB4: 38.47659574 | BC4: 8.844680851 | BD4: 18.0893617 | BE4: 40.6787234 | BF4: 24.94042553 | BG4: 14.36170213 | BH4: 38.43617021 | BI4: 22.35106383 | BJ4: 2.7 | BK4: 25.02765957 | BL4: 18.1 | BM4: 2.491489362 | BN4: 1.206595745 | BO4: 1.079148936 | BP4: 15.87446809 | BQ4: 3.640425532 | BR4: 3.357446809 | BS4: 0.2723404255 | BT4: 2.461702128 | BU4: 2.844680851 | BV4: 0.8957446809 | BW4: 2.659574468 | BX4: 0.1659574468 | BY4: 2.436170213 | BZ4: 1.912765957 | CA4: 64.22978723 | CB4: 28.09787234 | CC4: 22.87234043 | CD4: 5.578723404 | CE4: 3.721276596 | CF4: 4.34893617 | CG4: 29.06382979 | CH4: 13.66382979 | CI4: 4.538297872 | CJ4: 8.508510638 | CK4: 9.734042553 | CL4: 8.870212766 | CM4: 3.761702128 | CN4: 7.90212766 | CO4: 4.974468085 | CP4: 3.329787234 | CQ4: 13.20425532 | CR4: 10.84893617 | CS4: 5.631914894 | CT4: 5.053191489 | CU4: 7.14893617 | CV4: 5.363829787 | CW4: 38.19361702 | CX4: 50.00851064 | CY4: 49.99574468 | CZ4: 50 | DA4: 50 | DB4: 50.00851064 | DC4: 15.21489362 | DD4: 3.791489362 | DE4: 25.96808511 | DF4: 3.217021277 | DG4: 4.344680851 | DH4: 5.929787234 | DI4: 2.742553191 | DJ4: 2.374468085 | DK4: 2.30212766 | DL4: 1.412765957 | DM4: 17.70638298 | DN4: 7.736170213 | DO4: 2.3 | DP4: 4.959574468 | DQ4: 7.870212766 | DR4: 5.046808511 | DS4: 65.13191489
A5: ＜都道府県と道州の単純集計（％）＞ | L5: SD（都道府県） | M5: 3.8318013 | N5: 3.362026062 | O5: 5.426451302 | P5: 3.714586096 | Q5: 10.46749561 | R5: 0.07350105564 | S5: 5.520146434 | T5: 9.027120716 | U5: 9.067278598 | V5: 11.78760501 | W5: 4.646436371 | X5: 1.153585089 | Y5: 12.58526075 | Z5: 13.7551225 | AA5: 5.943537913 | AB5: 12.91194006 | AC5: 13.06256665 | AD5: 4.48190627 | AE5: 1.738998723 | AF5: 7.132011457 | AG5: 3.973264025 | AH5: 5.070329611 | AI5: 1.233565412 | AJ5: 5.192547852 | AK5: 2.683764184 | AL5: 3.857337998 | AM5: 1.160704115 | AN5: 1.06089345 | AO5: 1.429800449 | AP5: 3.148977486 | AQ5: 13.71913692 | AR5: 1.890469794 | AS5: 9.995699815 | AT5: 10.00065215 | AU5: 10.00270407 | AV5: 10.00173805 | AW5: 9.9969667 | AX5: 2.608762719 | AY5: 3.409991034 | AZ5: 5.301747744 | BA5: 4.754143234 | BB5: 8.024154101 | BC5: 5.323402333 | BD5: 10.49078755 | BE5: 4.76276026 | BF5: 6.179019888 | BG5: 4.882958529 | BH5: 10.35750989 | BI5: 13.34926919 | BJ5: 2.103826741 | BK5: 14.46033108 | BL5: 9.394031408 | BM5: 1.937819235 | BN5: 0.1012589576 | BO5: 0.07646624112 | BP5: 6.074553771 | BQ5: 2.91104789 | BR5: 2.803549356 | BS5: 0.3542917783 | BT5: 3.30924615 | BU5: 2.381888957 | BV5: 1.619038556 | BW5: 2.980564549 | BX5: 0.2024594385 | BY5: 2.137392309 | BZ5: 1.235281524 | CA5: 11.23644913 | CB5: 12.12635451 | CC5: 10.11141632 | CD5: 5.870002451 | CE5: 4.509407373 | CF5: 3.056985752 | CG5: 14.6654048 | CH5: 6.849196257 | CI5: 5.380744784 | CJ5: 8.604544547 | CK5: 9.63246947 | CL5: 6.604113175 | CM5: 4.417089008 | CN5: 5.391438034 | CO5: 3.993062902 | CP5: 4.322937553 | CQ5: 8.104238221 | CR5: 7.878144571 | CS5: 8.881297065 | CT5: 3.749020224 | CU5: 4.292656639 | CV5: 4.44734535 | CW5: 10.58459513 | CX5: 10.00432145 | CY5: 10.00436769 | CZ5: 10.00197807 | DA5: 9.993280351 | DB5: 8.976850174 | DC5: 12.47893841 | DD5: 4.53919308 | DE5: 13.58611994 | DF5: 2.999950663 | DG5: 7.481769394 | DH5: 3.692054624 | DI5: 4.770048978 | DJ5: 1.049320295 | DK5: 1.588065457 | DL5: 0.8999074883 | DM5: 11.08142598 | DN5: 2.877379963 | DO5: 5.472540146 | DP5: 7.811743099 | DQ5: 11.80360879 | DR5: 9.064883295 | DS5: 11.69292068
M6: Ｑ１．認知度 | BI6: Ｑ11.産品購入意欲 | CC6: Ｑ８．訪問目的
F7: 1-6 | G7: 1-47 | M7: N | N7: 1 | O7: 2 | P7: 3 | Q7: 4 | R7: 5 | S7: AV | T7: 1 | U7: 2 | V7: 3 | W7: 4 | X7: 5 | Y7: AV | Z7: 1 | AA7: 2 | AB7: 3 | AC7: AV | AD7: 1 | AE7: 2 | AF7: 3 | AG7: 4 | AH7: 5 | AI7: 6 | AJ7: 7 | AK7: 8 | AL7: 9 | AM7: 10 | AN7: 11 | AO7: 12 | AP7: 13 | AQ7: 14 | AR7: 15 | AS7: 1+2 | AT7: 3+4+5 | AU7: 6+7+8 | AV7: 9+10+11 | AW7: 12+13 | AX7: 1 | AY7: 2 | AZ7: 3 | BA7: 4 | BB7: 5 | BC7: AV | BD7: 1 | BE7: 2 | BF7: 3 | BG7: 4 | BH7: AV | BI7: SC1 | BJ7: SC2 | BK7: SCT | BL7: 1 | BM7: 1 | BN7: AV | BO7: AV | BP7: 1 | BQ7: 2 | BR7: 3 | BS7: 4 | BT7: 5 | BU7: 6 | BV7: 7 | BW7: 8 | BX7: 9 | BY7: 10 | BZ7: 11 | CA7: 12 | CB7: SC | CC7: 1+2+3 | CD7: 4+5+6 | CE7: 7+8+9 | CF7: 10+11 | CG7: 1 | CH7: 2 | CI7: 3 | CJ7: 4 | CK7: 5 | CL7: 6 | CM7: 7 | CN7: 8 | CO7: 9 | CP7: 10 | CQ7: 11 | CR7: 12 | CS7: 13 | CT7: 14 | CU7: 15 | CV7: 16 | CW7: DK | CX7: SC1 | CY7: SC2 | CZ7: SC3 | DA7: SC4 | DB7: SCAVE | DC7: 1 | DD7: 2 | DE7: 3 | DF7: 4 | DG7: 5 | DH7: 6 | DI7: 7 | DJ7: 8 | DK7: 9 | DL7: 10 | DM7: 11 | DN7: 12 | DO7: 13 | DP7: 14 | DQ7: 15 | DR7: 16 | DS7: SC
A8: 番号 | B8: 2011SEQ(2000番台=都道府県/3000番台=道州） | C8: 2010SEQ | D8: 2009SEQ | E8: 個別と列合わせﾀﾞﾐｰ | F8: 地域No. | G8: 県No. | H8: 県内番号 | I8: よみがな | J8: 地域 | K8: 都道府県２（県入り） | L8: 都道府県・道州名 | M8: サンプル数 | N8: よく知っている | O8: 知っている | P8: 少しだけ知っている | Q8: 名前だけは知っている | R8: 名前も知らない | S8: 認知度 | T8: とても魅力的 | U8: やや魅力的 | V8: どちらでもない | W8: あまり魅力的でない | X8: 全く魅力的でない | Y8: 魅力度 | Z8: 何度も見聞きした | AA8: 見聞きしたことがある | AB8: 全く見聞きしていない | AC8: 情報接触度 | AD8: ドラマや映画 | AE8: 小説・エッセイ・マンガなど | AF8: 旅やグルメに関する番組 | AG8: 雑誌や新聞の旅行・グルメ関連記事 | AH8: 旅行パンフやガイドブック | AI8: 通販カタログや商品パンフレット | AJ8: 物産展や催事（イベント）など | AK8: 百貨店やスーパーの店頭および商品 | AL8: テレビＣＭや新聞雑誌の広告 | AM8: ポスターやチラシ | AN8: 市区町村や都道府県のホームページ | AO8: そのほかのサイトや掲示板など | AP8: 友人や知人・家族から | AQ8: 事件やニュース | AR8: その他のメディア | AS8: 物語系（偏差値） | AT8: 旅行系（偏差値） | AU8: 商品系（偏差値） | AV8: 広告系（偏差値） | AW8: 口コミ系（偏差値） | AX8: ぜひ住みたい | AY8: できれば住みたい | AZ8: 住んでもよい | BA8: どちらとも言えない | BB8: あまり住みたくない | BC8: 居住意欲度 | BD8: ぜひ行ってみたい | BE8: 機会があれば行ってみたい | BF8: どちらともいえない | BG8: あまり行きたいとは思わない | BH8: 観光意欲度 | BI8: 食品（100人当たり個数） | BJ8: 食品以外（100人当たり個数） | BK8: 産品購入意欲度 | BL8: 食品：想起した | BM8: 食品以外：想起した | BN8: 食品想起者ベース：平均（個）※小数2ケタ | BO8: 食品以外想起者ベース：平均（個）※小数2ケタ | BP8: 観光のため | BQ8: ビジネス（出張等）のため | BR8: 親戚・家族・友人の訪問のため | BS8: 医療・福祉のため | BT8: 買い物・食事のため | BU8: 趣味・娯楽のため | BV8: 通勤・通学している、していた | BW8: 住んでいる・住んでいた | BX8: セカンドハウスがあるため | BY8: 通過・乗り換えのため | BZ8: その他の目的のため | CA8: 訪れたことがない | CB8: 訪問率※100-cat12(%）-DK(%) | CC8: 来訪（％） | CD8: 生活（％） | CE8: 居住（％） | CF8: その他（％） | CG8: 海・山・川・湖などの自然が豊か | CH8: 魅力的な温泉やレジャー施設・公園などがある | CI8: スポーツの参加・観戦が楽しめる | CJ8: 魅力的な伝統芸能、祭り、イベントがある | CK8: 魅力的な街並みや歴史建造物がある | CL8: 歴史人物、著名人、職人などにゆかりがある | CM8: 魅力的な美術館・博物館がある | CN8: 買いたい土産や地域産品がある | CO8: 優れた伝統的技術がある | CP8: 魅力的な商店街や店舗がある | CQ8: 地元産の食材が豊富 | CR8: 食事がおいしい | CS8: 道路や交通の便がよい | CT8: 泊まりたい宿泊施設がある | CU8: 人のよさや優しさ、おもてなしがよい | CV8: 地域を代表する産業や企業がある | CW8: 無回答 | CX8: 自然資源（偏差値） | CY8: 歴史資源（偏差値） | CZ8: モノ資源（偏差値） | DA8: サービス資源（偏差値） | DB8: 地域資源総合点（偏差値の平均） | DC8: 歴史・文化のまち | DD8: 学術・芸術のまち | DE8: 観光・レジャーのまち | DF8: スポーツのまち | DG8: 国際交流のまち | DH8: 環境にやさしいまち | DI8: デザインやセンスの良いまち | DJ8: 住民参加のまち | DK8: 教育・子育てのまち | DL8: 健康増進・医療福祉のまち | DM8: 農林水産業が盛んなまち | DN8: 地場産業が盛んなまち | DO8: IT・先端技術のまち | DP8: 生活に便利・快適なまち | DQ8: 災害リスクが大きいまち | DR8: 事件・事故が多いまち | DS8: イメージ想起率（％）※100-DK(%)
A9: H0100 | B9: 2001 | C9: 2001 | D9: 2001 | E9: - | F9: 1 | G9: 1 | H9: 0 | I9: ほっかいどう | J9: 北海道・東北 | K9: - | L9: 北海道 | M9: 609 | N9: 12.7 | O9: 27.6 | P9: 41.3 | Q9: 18.3 | R9: 0 | S9: 58.7 | T9: 49.6 | U9: 42.2 | V9: 6.8 | W9: 1.1 | X9: 0 | Y9: 70.7 | Z9: 37.4 | AA9: 53.8 | AB9: 8 | AC9: 64.3 | AD9: 18.5 | AE9: 5.8 | AF9: 47.2 | AG9: 21.9 | AH9: 29.6 | AI9: 7.1 | AJ9: 35.8 | AK9: 17.7 | AL9: 22.7 | AM9: 5.4 | AN9: 4.4 | AO9: 7.2 | AP9: 13.3 | AQ9: 20.5 | AR9: 8.7 | AS9: 79.8 | AT9: 91.9 | AU9: 108 | AV9: 84.5 | AW9: 73.3 | AX9: 10.2 | AY9: 13.3 | AZ9: 29.7 | BA9: 23.4 | BB9: 22.4 | BC9: 24.3 | BD9: 63.1 | BE9: 30.5 | BF9: 4.2 | BG9: 1.4 | BH9: 78.3 | BI9: 82.7 | BJ9: 10.4 | BK9: 93.1 | BL9: 55.6 | BM9: 10 | BN9: 1.49 | BO9: 1.04 | BP9: 28 | BQ9: 3.7 | BR9: 3.6 | BS9: 0.3 | BT9: 2.9 | BU9: 3.5 | BV9: 1 | BW9: 5.8 | BX9: 0.2 | BY9: 0.3 | BZ9: 1.2 | CA9: 58.5 | CB9: 36.4 | CC9: 35.3 | CD9: 6.7 | CE9: 7 | CF9: 1.5 | CG9: 79.6 | CH9: 44.3 | CI9: 11.2 | CJ9: 15.6 | CK9: 20.8 | CL9: 11.9 | CM9: 6.1 | CN9: 35.4 | CO9: 5.5 | CP9: 6.9 | CQ9: 50.5 | CR9: 53.6 | CS9: 6.1 | CT9: 21.4 | CU9: 14.7 | CV9: 12.3 | CW9: 6.3 | CX9: 99.4 | CY9: 59.6 | CZ9: 98.3 | DA9: 82.4 | DB9: 84.9 | DC9: 13.3 | DD9: 3.6 | DE9: 75.4 | DF9: 7.2 | DG9: 3.2 | DH9: 22.6 | DI9: 2.6 | DJ9: 3.8 | DK9: 2.5 | DL9: 1.2 | DM9: 40.9 | DN9: 17.2 | DO9: 0.7 | DP9: 3.8 | DQ9: 2.3 | DR9: 3.9 | DS9: 91.6
A10: A0200 | B10: 2002 | C10: 2002 | D10: 2002 | E10: - | F10: 1 | G10: 2 | H10: 0 | I10: あおもりけん | J10: 北海道・東北 | K10: - | L10: 青森県 | M10: 617 | N10: 3.2 | O10: 18.4 | P10: 32.5 | Q10: 45.9 | R10: 0 | S10: 44.7 | T10: 4.6 | U10: 33.7 | V10: 48.2 | W10: 11.3 | X10: 2 | Y10: 21.4 | Z10: 15.6 | AA10: 59.5 | AB10: 24.8 | AC10: 45.4 | AD10: 4.7 | AE10: 3.1 | AF10: 20.2 | AG10: 8.5 | AH10: 9.4 | AI10: 2.5 | AJ10: 8.6 | AK10: 4.2 | AL10: 12.5 | AM10: 3.3 | AN10: 2 | AO10: 2.7 | AP10: 7 | AQ10: 33.2 | AR10: 4.5 | AS10: 53 | AT10: 53.2 | AU10: 56.5 | AV10: 58.9 | AW10: 47.6 | AX10: 0.4 | AY10: 1.5 | AZ10: 12.5 | BA10: 32.1 | BB10: 51.7 | BC10: 4.3 | BD10: 16.5 | BE10: 49.3 | BF10: 18.4 | BG10: 14.3 | BH10: 41.1 | BI10: 29.8 | BJ10: 2.8 | BK10: 32.6 | BL10: 25.9 | BM10: 2.8 | BN10: 1.15 | BO10: 1 | BP10: 10.8 | BQ10: 1.7 | BR10: 1.1 | BS10: 0.6 | BT10: 0.3 | BU10: 1 | BV10: 0.1 | BW10: 1.3 | BX10: 0 | BY10: 0.8 | BZ10: 1.7 | CA10: 75.9 | CB10: 16.3 | CC10: 13.6 | CD10: 1.9 | CE10: 1.4 | CF10: 2.5 | CG10: 56.8 | CH10: 15.9 | CI10: 0.6 | CJ10: 36.1 | CK10: 7.7 | CL10: 6.7 | CM10: 1.1 | CN10: 8 | CO10: 7.1 | CP10: 1.6 | CQ10: 29.1 | CR10: 16.7 | CS10: 0.7 | CT10: 2.9 | CU10: 18.5 | CV10: 3.7 | CW10: 17.4 | CX10: 62.4 | CY10: 60.5 | CZ10: 56.4 | DA10: 64.9 | DB10: 61.1 | DC10: 16.7 | DD10: 1.1 | DE10: 25.1 | DF10: 2.7 | DG10: 1.2 | DH10: 10.6 | DI10: 0.6 | DJ10: 2.7 | DK10: 1.2 | DL10: 0.6 | DM10: 47.8 | DN10: 12 | DO10: 0.1 | DP10: 0.2 | DQ10: 9.2 | DR10: 1.1 | DS10: 79.5
A11: I0300 | B11: 2003 | C11: 2003 | D11: 2003 | E11: - | F11: 1 | G11: 3 | H11: 0 | I11: いわてけん | J11: 北海道・東北 | K11: - | L11: 岩手県 | M11: 617 | N11: 4.2 | O11: 14.8 | P11: 33.5 | Q11: 47.5 | R11: 0 | S11: 43.9 | T11: 4.8 | U11: 21.5 | V11: 57.2 | W11: 13.4 | X11: 3.2 | Y11: 15.5 | Z11: 44.7 | AA11: 42.9 | AB11: 12.4 | AC11: 66.1 | AD11: 3.4 | AE11: 2 | AF11: 15.4 | AG11: 6.1 | AH11: 6.6 | AI11: 1.5 | AJ11: 9.3 | AK11: 4 | AL11: 13.4 | AM11: 1.8 | AN11: 2.4 | AO11: 3.7 | AP11: 6 | AQ11: 57.5 | AR11: 9.3 | AS11: 49.1 | AT11: 46.8 | AU11: 55.9 | AV11: 58.6 | AW11: 47.6 | AX11: 1.8 | AY11: 1.8 | AZ11: 11.9 | BA11: 37.2 | BB11: 46.5 | BC11: 5.7 | BD11: 14.3 | BE11: 41.9 | BF11: 22.9 | BG11: 18.6 | BH11: 35.3 | BI11: 21.9 | BJ11: 6.5 | BK11: 28.4 | BL11: 17.1 | BM11: 6 | BN11: 1.28 | BO11: 1.08 | BP11: 11.1 | BQ11: 3.5 | BR11: 1.8 | BS11: 0.3 | BT11: 1.8 | BU11: 2.5 | BV11: 0.3 | BW11: 1.4 | BX11: 0 | BY11: 1.1 | BZ11: 1.5 | CA11: 73.2 | CB11: 18.1 | CC11: 16.4 | CD11: 4.6 | CE11: 1.7 | CF11: 2.6 | CG11: 52.8 | CH11: 15.5 | CI11: 0.8 | CJ11: 13.6 | CK11: 12.2 | CL11: 11.9 | CM11: 1.7 | CN11: 7.4 | CO11: 8.1 | CP11: 1.4 | CQ11: 23 | CR11: 14.9 | CS11: 0.5 | CT11: 4.4 | CU11: 18.2 | CV11: 3 | CW11: 26.6 | CX11: 60.8 | CY11: 54.8 | CZ11: 53.8 | DA11: 56.6 | DB11: 56.5 | DC11: 28.2 | DD11: 2.3 | DE11: 17.2 | DF11: 0.8 | DG11: 0.4 | DH11: 6.1 | DI11: 1 | DJ11: 2.6 | DK11: 1.1 | DL11: 0.6 | DM11: 36.2 | DN11: 9.1 | DO11: 0.8 | DP11: 0.6 | DQ11: 37.1 | DR11: 1.7 | DS11: 79.1
A12: M0400 | B12: 2004 | C12: 2004 | D12: 2004 | E12: - | F12: 1 | G12: 4 | H12: 0 | I12: みやぎけん | J12: 北海道・東北 | K12: - | L12: 宮城県 | M12: 609 | N12: 5.4 | O12: 15.8 | P12: 39.8 | Q12: 38.2 | R12: 0 | S12: 47.1 | T12: 6.2 | U12: 29.7 | V12: 48.7 | W12: 11.9 | X12: 2.3 | Y12: 21 | Z12: 53.1 | AA12: 37 | AB12: 10 | AC12: 71.6 | AD12: 3.5 | AE12: 2.4 | AF12: 15.2 | AG12: 7.4 | AH12: 7.9 | AI12: 2.2 | AJ12: 7.9 | AK12: 5.2 | AL12: 11 | AM12: 1.5 | AN12: 3.7 | AO12: 5.6 | AP12: 5.8 | AQ12: 64.3 | AR12: 7.4 | AS12: 49.9 | AT12: 48.3 | AU12: 56.5 | AV12: 56.2 | AW12: 51.6 | AX12: 1.8 | AY12: 2.7 | AZ12: 14.7 | BA12: 34.6 | BB12: 45.1 | BC12: 6.8 | BD12: 13.8 | BE12: 40.6 | BF12: 25.9 | BG12: 18.1 | BH12: 34.2 | BI12: 35 | BJ12: 2.1 | BK12: 37.1 | BL12: 27.6 | BM12: 1.9 | BN12: 1.27 | BO12: 1.12 | BP12: 12 | BQ12: 4 | BR12: 2.5 | BS12: 0 | BT12: 2.8 | BU12: 2.5 | BV12: 0.6 | BW12: 2.4 | BX12: 0 | BY12: 0.5 | BZ12: 1.6 | CA12: 70.4 | CB12: 22.4 | CC12: 18.5 | CD12: 5.3 | CE12: 3 | CF12: 2.1 | CG12: 34.5 | CH12: 14.4 | CI12: 7.4 | CJ12: 15.8 | CK12: 8.6 | CL12: 15.7 | CM12: 2.8 | CN12: 12.8 | CO12: 5.5 | CP12: 3.1 | CQ12: 19.5 | CR12: 15.3 | CS12: 4.1 | CT12: 4.5 | CU12: 11 | CV12: 7 | CW12: 33.7 | CX12: 53.1 | CY12: 55.9 | CZ12: 55.5 | DA12: 56.8 | DB12: 55.3 | DC12: 18.4 | DD12: 2.3 | DE12: 21.1 | DF12: 4.5 | DG12: 1.7 | DH12: 5.8 | DI12: 1.2 | DJ12: 3 | DK12: 0.7 | DL12: 1.1 | DM12: 29.5 | DN12: 12 | DO12: 1.7 | DP12: 4 | DQ12: 46.9 | DR12: 6.5 | DS12: 80.3
A13: A0500 | B13: 2005 | C13: 2005 | D13: 2005 | E13: - | F13: 1 | G13: 5 | H13: 0 | I13: あきたけん | J13: 北海道・東北 | K13: - | L13: 秋田県 | M13: 617 | N13: 2.9 | O13: 16.5 | P13: 31.9 | Q13: 48.4 | R13: 0 | S13: 43.4 | T13: 5.7 | U13: 27.1 | V13: 52.3 | W13: 12 | X13: 1.9 | Y13: 19.3 | Z13: 13.1 | AA13: 58.1 | AB13: 28.6 | AC13: 42.1 | AD13: 3.1 | AE13: 1.6 | AF13: 17.7 | AG13: 7.8 | AH13: 7.7 | AI13: 2.2 | AJ13: 8.7 | AK13: 3.9 | AL13: 10.4 | AM13: 2.5 | AN13: 1.4 | AO13: 2.7 | AP13: 7.6 | AQ13: 28 | AR13: 5.4 | AS13: 48 | AT13: 50.1 | AU13: 55.9 | AV13: 52.9 | AW13: 49 | AX13: 1 | AY13: 2.3 | AZ13: 12 | BA13: 32.1 | BB13: 49.9 | BC13: 5.2 | BD13: 14.8 | BE13: 51.5 | BF13: 18.6 | BG13: 13.6 | BH13: 40.5 | BI13: 37 | BJ13: 4.1 | BK13: 41 | BL13: 31.4 | BM13: 3.9 | BN13: 1.18 | BO13: 1.03 | BP13: 9.1 | BQ13: 0.4 | BR13: 1.6 | BS13: 0.2 | BT13: 1 | BU13: 0.8 | BV13: 0.3 | BW13: 1 | BX13: 0 | BY13: 0.9 | BZ13: 2.1 | CA13: 76.2 | CB13: 15.3 | CC13: 11.1 | CD13: 2 | CE13: 1.3 | CF13: 3 | CG13: 49.2 | CH13: 16.8 | CI13: 1 | CJ13: 28.7 | CK13: 6.8 | CL13: 4.9 | CM13: 0.8 | CN13: 10.7 | CO13: 7.5 | CP13: 1.5 | CQ13: 24.2 | CR13: 17.3 | CS13: 0.9 | CT13: 3.5 | CU13: 16.7 | CV13: 3.2 | CW13: 21.6 | CX13: 58.5 | CY13: 56 | CZ13: 56 | DA13: 61.9 | DB13: 58.1 | DC13: 12 | DD13: 2.7 | DE13: 18.2 | DF13: 1.5 | DG13: 1 | DH13: 10.4 | DI13: 0.6 | DJ13: 3.2 | DK13: 6.2 | DL13: 0.8 | DM13: 43.4 | DN13: 11.6 | DO13: 0.6 | DP13: 0.3 | DQ13: 6.4 | DR13: 1.2 | DS13: 76.2
A14: Y0600 | B14: 2006 | C14: 2006 | D14: 2006 | E14: - | F14: 1 | G14: 6 | H14: 0 | I14: やまがたけん | J14: 北海道・東北 | K14: - | L14: 山形県 | M14: 617 | N14: 3.9 | O14: 14.5 | P14: 35.6 | Q14: 45.5 | R14: 0 | S14: 44.2 | T14: 3.4 | U14: 21.7 | V14: 57 | W14: 13.8 | X14: 3.1 | Y14: 14.3 | Z14: 22.7 | AA14: 52.1 | AB14: 24.6 | AC14: 48.8 | AD14: 2 | AE14: 1.1 | AF14: 14.9 | AG14: 6.3 | AH14: 5.1 | AI14: 1.5 | AJ14: 8 | AK14: 3.9 | AL14: 9.5 | AM14: 1.3 | AN14: 1.7 | AO14: 4.3 | AP14: 4.2 | AQ14: 35.3 | AR14: 9.8 | AS14: 45.4 | AT14: 45.7 | AU14: 54.3 | AV14: 49.7 | AW14: 44.7 | AX14: 0.9 | AY14: 2.3 | AZ14: 13 | BA14: 36.4 | BB14: 46.2 | BC14: 5.3 | BD14: 12.9 | BE14: 40.3 | BF14: 26.4 | BG14: 18.6 | BH14: 33.1 | BI14: 27.8 | BJ14: 4.4 | BK14: 32.2 | BL14: 23 | BM14: 4 | BN14: 1.21 | BO14: 1.09 | BP14: 9.5 | BQ14: 3 | BR14: 1.9 | BS14: 0 | BT14: 1.6 | BU14: 1.4 | BV14: 0.1 | BW14: 1.2 | BX14: 0 | BY14: 1 | BZ14: 0.9 | CA14: 75.3 | CB14: 16.5 | CC14: 14.4 | CD14: 3 | CE14: 1.3 | CF14: 1.9 | CG14: 46.9 | CH14: 14.6 | CI14: 1.2 | CJ14: 11.8 | CK14: 6 | CL14: 4.3 | CM14: 1.4 | CN14: 9.9 | CO14: 4.8 | CP14: 0.3 | CQ14: 21.4 | CR14: 12.7 | CS14: 0 | CT14: 3.1 | CU14: 14.8 | CV14: 3.1 | CW14: 28.9 | CX14: 55.3 | CY14: 47.7 | CZ14: 51.6 | DA14: 51.9 | DB14: 51.6 | DC14: 14.4 | DD14: 1.5 | DE14: 16.6 | DF14: 0.6 | DG14: 0.4 | DH14: 6.1 | DI14: 0.4 | DJ14: 2.8 | DK14: 1.2 | DL14: 0.5 | DM14: 34.6 | DN14: 10.4 | DO14: 0.3 | DP14: 0.5 | DQ14: 11.2 | DR14: 0.8 | DS14: 69.4
A15: H0700 | B15: 2007 | C15: 2007 | D15: 2007 | E15: - | F15: 1 | G15: 7 | H15: 0 | I15: ふくしまけん | J15: 北海道・東北 | K15: - | L15: 福島県 | M15: 609 | N15: 3.5 | O15: 18 | P15: 39.2 | Q15: 38.3 | R15: 0 | S15: 46.6 | T15: 2.6 | U15: 19.9 | V15: 52.1 | W15: 18.8 | X15: 5.5 | Y15: 12.6 | Z15: 58.1 | AA15: 33.2 | AB15: 8.5 | AC15: 74.7 | AD15: 1.6 | AE15: 0.6 | AF15: 10.2 | AG15: 4.1 | AH15: 5.3 | AI15: 0.9 | AJ15: 5.6 | AK15: 3.5 | AL15: 8.7 | AM15: 1 | AN15: 3.1 | AO15: 5.7 | AP15: 6.4 | AQ15: 69.8 | AR15: 7.1 | AS15: 43.9 | AT15: 41.4 | AU15: 50.4 | AV15: 50.3 | AW15: 53.3 | AX15: 0.4 | AY15: 1.8 | AZ15: 8.8 | BA15: 31.7 | BB15: 55.9 | BC15: 3.5 | BD15: 7.9 | BE15: 32 | BF15: 31.8 | BG15: 27 | BH15: 23.9 | BI15: 14.7 | BJ15: 2.1 | BK15: 16.8 | BL15: 12 | BM15: 1.9 | BN15: 1.22 | BO15: 1.15 | BP15: 14.7 | BQ15: 2.3 | BR15: 2.6 | BS15: 0.3 | BT15: 1.5 | BU15: 2 | BV15: 0.4 | BW15: 0.7 | BX15: 0 | BY15: 1.9 | BZ15: 2.9 | CA15: 68.3 | CB15: 24.6 | CC15: 19.6 | CD15: 3.8 | CE15: 1.1 | CF15: 4.8 | CG15: 33.5 | CH15: 13.5 | CI15: 2.4 | CJ15: 7.6 | CK15: 6.7 | CL15: 7.5 | CM15: 2.7 | CN15: 5.9 | CO15: 4.4 | CP15: 0.9 | CQ15: 12.9 | CR15: 7.2 | CS15: 1.7 | CT15: 2.6 | CU15: 9.8 | CV15: 4.2 | CW15: 41.7 | CX15: 48.2 | CY15: 47.6 | CZ15: 46.4 | DA15: 46.8 | DB15: 47.3 | DC15: 8.3 | DD15: 0.8 | DE15: 12.7 | DF15: 1.4 | DG15: 0.5 | DH15: 2.8 | DI15: 0.4 | DJ15: 3.4 | DK15: 0.9 | DL15: 0.7 | DM15: 23 | DN15: 7.9 | DO15: 0.4 | DP15: 0.7 | DQ15: 59.1 | DR15: 7.7 | DS15: 82.1
A16: I0800 | B16: 2008 | C16: 2008 | D16: 2008 | E16: - | F16: 2 | G16: 8 | H16: 0 | I16: いばらきけん | J16: 関東 | K16: - | L16: 茨城県 | M16: 617 | N16: 4.4 | O16: 14.9 | P16: 33.4 | Q16: 47 | R16: 0 | S16: 44.1 | T16: 2 | U16: 10.4 | V16: 60.2 | W16: 22.2 | X16: 4.3 | Y16: 7.2 | Z16: 22.7 | AA16: 51.7 | AB16: 25.2 | AC16: 48.6 | AD16: 0.9 | AE16: 1 | AF16: 11.4 | AG16: 4.1 | AH16: 2.8 | AI16: 1.6 | AJ16: 2.9 | AK16: 2.7 | AL16: 7.9 | AM16: 0.4 | AN16: 1.2 | AO16: 3.9 | AP16: 7.4 | AQ16: 40.7 | AR16: 7.9 | AS16: 43.4 | AT16: 40.6 | AU16: 47.3 | AV16: 44.5 | AW16: 51.4 | AX16: 0.7 | AY16: 1.2 | AZ16: 10.8 | BA16: 34.1 | BB16: 51.1 | BC16: 4 | BD16: 6.8 | BE16: 31.6 | BF16: 33.6 | BG16: 25.2 | BH16: 22.6 | BI16: 16.4 | BJ16: 0.8 | BK16: 17.2 | BL16: 14.3 | BM16: 0.8 | BN16: 1.15 | BO16: 1 | BP16: 10 | BQ16: 5.2 | BR16: 4 | BS16: 0.2 | BT16: 2.1 | BU16: 2.9 | BV16: 1.1 | BW16: 2.4 | BX16: 0.3 | BY16: 2.7 | BZ16: 4.2 | CA16: 64.3 | CB16: 28 | CC16: 19.2 | CD16: 5.2 | CE16: 3.8 | CF16: 6.9 | CG16: 20.3 | CH16: 4.5 | CI16: 6.3 | CJ16: 2.3 | CK16: 1.6 | CL16: 5.7 | CM16: 1.9 | CN16: 3.8 | CO16: 1.6 | CP16: 1.2 | CQ16: 10 | CR16: 3.9 | CS16: 6.7 | CT16: 1.2 | CU16: 5.2 | CV16: 6.5 | CW16: 51.1 | CX16: 39.2 | CY16: 42.1 | CZ16: 40.6 | DA16: 41.3 | DB16: 40.8 | DC16: 4.4 | DD16: 4.5 | DE16: 6.5 | DF16: 1.4 | DG16: 2.3 | DH16: 4.1 | DI16: 0.4 | DJ16: 3 | DK16: 2.5 | DL16: 1.2 | DM16: 19.5 | DN16: 8.7 | DO16: 6.3 | DP16: 3.3 | DQ16: 22 | DR16: 7.2 | DS16: 64.3
A17: T0900 | B17: 2009 | C17: 2009 | D17: 2009 | E17: - | F17: 2 | G17: 9 | H17: 0 | I17: とちぎけん | J17: 関東 | K17: - | L17: 栃木県 | M17: 617 | N17: 2.9 | O17: 14.2 | P17: 33.3 | Q17: 49.2 | R17: 0 | S17: 42.6 | T17: 2.2 | U17: 16.1 | V17: 61.6 | W17: 15 | X17: 3.1 | Y17: 10.3 | Z17: 18.6 | AA17: 52.8 | AB17: 27.8 | AC17: 45 | AD17: 0.7 | AE17: 1 | AF17: 14.9 | AG17: 5.1 | AH17: 4.2 | AI17: 0.7 | AJ17: 3.7 | AK17: 1.8 | AL17: 8 | AM17: 1.5 | AN17: 1.9 | AO17: 2.2 | AP17: 5 | AQ17: 30.6 | AR17: 9.9 | AS17: 43.1 | AT17: 44.3 | AU17: 46.1 | AV17: 47.8 | AW17: 41.6 | AX17: 1.3 | AY17: 1.6 | AZ17: 12.9 | BA17: 36.7 | BB17: 45.4 | BC17: 5.4 | BD17: 10.1 | BE17: 39.6 | BF17: 29.8 | BG17: 18.1 | BH17: 29.9 | BI17: 18 | BJ17: 2.1 | BK17: 20.1 | BL17: 15.1 | BM17: 2.1 | BN17: 1.19 | BO17: 1 | BP17: 15.9 | BQ17: 3.6 | BR17: 3.3 | BS17: 0.6 | BT17: 1.6 | BU17: 2.7 | BV17: 0.7 | BW17: 1.5 | BX17: 0 | BY17: 2.6 | BZ17: 1.8 | CA17: 65.1 | CB17: 26.4 | CC17: 22.8 | CD17: 4.9 | CE17: 2.2 | CF17: 4.4 | CG17: 28.8 | CH17: 12.1 | CI17: 1.9 | CJ17: 2.4 | CK17: 5.9 | CL17: 5.8 | CM17: 1.8 | CN17: 4.2 | CO17: 2.5 | CP17: 0.8 | CQ17: 10.3 | CR17: 6.2 | CS17: 1.9 | CT17: 3.1 | CU17: 8 | CV17: 2 | CW17: 43.5 | CX17: 45.2 | CY17: 44.1 | CZ17: 42.6 | DA17: 42.6 | DB17: 43.6 | DC17: 12.7 | DD17: 1.8 | DE17: 18.2 | DF17: 0.5 | DG17: 0.5 | DH17: 3.9 | DI17: 0.8 | DJ17: 1.6 | DK17: 1.9 | DL17: 1 | DM17: 17.8 | DN17: 7.8 | DO17: 0.6 | DP17: 1.7 | DQ17: 5.7 | DR17: 2.3 | DS17: 57.7
A18: G1000 | B18: 2010 | C18: 2010 | D18: 2010 | E18: - | F18: 2 | G18: 10 | H18: 0 | I18: ぐんまけん | J18: 関東 | K18: - | L18: 群馬県 | M18: 609 | N18: 3.4 | O18: 13.3 | P18: 36 | Q18: 46.8 | R18: 0 | S18: 43.3 | T18: 2.1 | U18: 15.4 | V18: 55.9 | W18: 21.2 | X18: 3.7 | Y18: 9.8 | Z18: 16.5 | AA18: 54.1 | AB18: 28.8 | AC18: 43.6 | AD18: 1.4 | AE18: 1.1 | AF18: 13.9 | AG18: 4 | AH18: 6.1 | AI18: 1.1 | AJ18: 1.8 | AK18: 1.1 | AL18: 8.2 | AM18: 1.4 | AN18: 2.4 | AO18: 5.3 | AP18: 5.3 | AQ18: 25.4 | AR18: 11.4 | AS18: 44.4 | AT18: 44.2 | AU18: 43.6 | AV18: 48.9 | AW18: 49.7 | AX18: 0.5 | AY18: 1.1 | AZ18: 11.8 | BA18: 36.6 | BB18: 48.5 | BC18: 4 | BD18: 7.3 | BE18: 30.9 | BF18: 36.7 | BG18: 22.9 | BH18: 22.8 | BI18: 11.3 | BJ18: 1.5 | BK18: 12.8 | BL18: 9.2 | BM18: 1.4 | BN18: 1.23 | BO18: 1.14 | BP18: 14.2 | BQ18: 3.2 | BR18: 2.6 | BS18: 0.2 | BT18: 1.4 | BU18: 2 | BV18: 1.3 | BW18: 2.3 | BX18: 0 | BY18: 3.2 | BZ18: 2 | CA18: 64.7 | CB18: 25.6 | CC18: 20 | CD18: 3.6 | CE18: 3.6 | CF18: 5.2 | CG18: 23.9 | CH18: 20 | CI18: 2.3 | CJ18: 4 | CK18: 2.7 | CL18: 3.6 | CM18: 1.7 | CN18: 4.5 | CO18: 3.5 | CP18: 1.3 | CQ18: 9.6 | CR18: 5.8 | CS18: 2.6 | CT18: 4.8 | CU18: 6.4 | CV18: 3.5 | CW18: 48.2 | CX18: 45.7 | CY18: 42.4 | CZ18: 45.8 | DA18: 43.6 | DB18: 44.4 | DC18: 6.2 | DD18: 1.9 | DE18: 15.8 | DF18: 2 | DG18: 0.9 | DH18: 5.2 | DI18: 0 | DJ18: 3.1 | DK18: 1.6 | DL18: 1.3 | DM18: 15.6 | DN18: 8.4 | DO18: 1.7 | DP18: 2.3 | DQ18: 6.5 | DR18: 4 | DS18: 53.5
A19: S1100 | B19: 2011 | C19: 2011 | D19: 2011 | E19: - | F19: 2 | G19: 11 | H19: 0 | I19: さいたまけん | J19: 関東 | K19: - | L19: 埼玉県 | M19: 617 | N19: 7.5 | O19: 18.2 | P19: 33.3 | Q19: 40 | R19: 0 | S19: 48.3 | T19: 2.8 | U19: 13.7 | V19: 56.5 | W19: 21.6 | X19: 3.2 | Y19: 9.6 | Z19: 19.1 | AA19: 50.4 | AB19: 29.9 | AC19: 44.3 | AD19: 1.3 | AE19: 1.4 | AF19: 9.6 | AG19: 4.3 | AH19: 2.7 | AI19: 0.6 | AJ19: 1.3 | AK19: 2.3 | AL19: 8.3 | AM19: 1 | AN19: 2.9 | AO19: 3.8 | AP19: 11.1 | AQ19: 30.2 | AR19: 8.9 | AS19: 44.7 | AT19: 39.5 | AU19: 43.9 | AV19: 49.2 | AW19: 60 | AX19: 2.5 | AY19: 3.8 | AZ19: 19.8 | BA19: 31.6 | BB19: 39.8 | BC19: 9.4 | BD19: 8.2 | BE19: 30.8 | BF19: 32.6 | BG19: 26.1 | BH19: 23.7 | BI19: 7.2 | BJ19: 1.2 | BK19: 8.4 | BL19: 6.7 | BM19: 1.2 | BN19: 1.07 | BO19: 1 | BP19: 6 | BQ19: 5.8 | BR19: 8.3 | BS19: 0.2 | BT19: 4 | BU19: 3.9 | BV19: 2.1 | BW19: 8.1 | BX19: 0.7 | BY19: 5.7 | BZ19: 4.5 | CA19: 55.3 | CB19: 36.9 | CC19: 20.1 | CD19: 8.1 | CE19: 10.9 | CF19: 10.2 | CG19: 7.2 | CH19: 3.4 | CI19: 13.9 | CJ19: 2.4 | CK19: 2.8 | CL19: 2.7 | CM19: 3.1 | CN19: 2.8 | CO19: 1.5 | CP19: 2.1 | CQ19: 2.6 | CR19: 1.4 | CS19: 20.9 | CT19: 0.8 | CU19: 2 | CV19: 4.1 | CW19: 51.6 | CX19: 37 | CY19: 41.3 | CZ19: 36.6 | DA19: 42.3 | DB19: 39.3 | DC19: 2.2 | DD19: 2.2 | DE19: 5.2 | DF19: 7.1 | DG19: 2.3 | DH19: 2.5 | DI19: 2.5 | DJ19: 2.1 | DK19: 7.4 | DL19: 1 | DM19: 4.2 | DN19: 5.1 | DO19: 3.5 | DP19: 20 | DQ19: 5.9 | DR19: 15 | DS19: 60.1
A20: T1200 | B20: 2012 | C20: 2012 | D20: 2012 | E20: - | F20: 2 | G20: 12 | H20: 0 | I20: ちばけん | J20: 関東 | K20: - | L20: 千葉県 | M20: 617 | N20: 6.6 | O20: 21.6 | P20: 40.3 | Q20: 31.1 | R20: 0 | S20: 50.9 | T20: 5.7 | U20: 30.3 | V20: 52.4 | W20: 8.9 | X20: 1.9 | Y20: 20.9 | Z20: 33.4 | AA20: 52.1 | AB20: 14.1 | AC20: 59.4 | AD20: 2.7 | AE20: 0.8 | AF20: 16.7 | AG20: 8 | AH20: 8 | AI20: 2.2 | AJ20: 3.9 | AK20: 2.9 | AL20: 10 | AM20: 2.1 | AN20: 1.9 | AO20: 4.2 | AP20: 9.4 | AQ20: 42.6 | AR20: 8.9 | AS20: 46 | AT20: 49.8 | AU20: 49.3 | AV20: 52.3 | AW20: 56.9 | AX20: 3.6 | AY20: 4.4 | AZ20: 22.6 | BA20: 38.1 | BB20: 29 | BC20: 11.5 | BD20: 17.8 | BE20: 42.6 | BF20: 25.6 | BG20: 11.8 | BH20: 39.1 | BI20: 16.7 | BJ20: 1.6 | BK20: 18.3 | BL20: 14.1 | BM20: 1.4 | BN20: 1.19 | BO20: 1.09 | BP20: 23.9 | BQ20: 6.2 | BR20: 6.8 | BS20: 0.7 | BT20: 4.2 | BU20: 7.4 | BV20: 2.3 | BW20: 6.5 | BX20: 0.4 | BY20: 2.8 | BZ20: 3.8 | CA20: 45.9 | CB20: 47.1 | CC20: 36.9 | CD20: 12.3 | CE20: 9.2 | CF20: 6.6 | CG20: 18.7 | CH20: 23 | CI20: 9.7 | CJ20: 1.7 | CK20: 2.3 | CL20: 4 | CM20: 2.3 | CN20: 4 | CO20: 2.4 | CP20: 1.8 | CQ20: 12.5 | CR20: 5.7 | CS20: 12.1 | CT20: 8 | CU20: 2.7 | CV20: 6.5 | CW20: 35.1 | CX20: 50.1 | CY20: 41.4 | CZ20: 48.5 | DA20: 45.2 | DB20: 46.3 | DC20: 3.7 | DD20: 1.6 | DE20: 37.3 | DF20: 4.2 | DG20: 5.1 | DH20: 1.5 | DI20: 3.3 | DJ20: 1.1 | DK20: 2.6 | DL20: 1.5 | DM20: 11.8 | DN20: 4.7 | DO20: 1.8 | DP20: 12.2 | DQ20: 13.6 | DR20: 9.7 | DS20: 72.3
A21: T1300 | B21: 2013 | C21: 2013 | D21: 2013 | E21: - | F21: 2 | G21: 13 | H21: 0 | I21: とうきょうと | J21: 関東 | K21: - | L21: 東京都 | M21: 609 | N21: 18.9 | O21: 34.9 | P21: 35.9 | Q21: 9.4 | R21: 0 | S21: 65.9 | T21: 20.4 | U21: 39.8 | V21: 27.6 | W21: 8.8 | X21: 1.9 | Y21: 40.3 | Z21: 62.5 | AA21: 31.1 | AB21: 6 | AC21: 78 | AD21: 24.4 | AE21: 10.3 | AF21: 35.5 | AG21: 21.1 | AH21: 15 | AI21: 4.9 | AJ21: 6 | AK21: 8.1 | AL21: 21.2 | AM21: 4.9 | AN21: 6 | AO21: 9.7 | AP21: 15.8 | AQ21: 51.5 | AR21: 10.5 | AS21: 96.7 | AT21: 74.6 | AU21: 60.7 | AV21: 83.8 | AW21: 85.2 | AX21: 10.3 | AY21: 13.3 | AZ21: 21.2 | BA21: 25.8 | BB21: 29.1 | BC21: 22.2 | BD21: 34.1 | BE21: 32.8 | BF21: 22.7 | BG21: 9.5 | BH21: 50.5 | BI21: 20.1 | BJ21: 2.9 | BK21: 23 | BL21: 16.4 | BM21: 2.7 | BN21: 1.23 | BO21: 1.05 | BP21: 29.6 | BQ21: 17 | BR21: 14.1 | BS21: 2.1 | BT21: 20.6 | BU21: 14.5 | BV21: 10.5 | BW21: 16 | BX21: 0.2 | BY21: 9.9 | BZ21: 5.3 | CA21: 24.7 | CB21: 72.2 | CC21: 60.7 | CD21: 37.2 | CE21: 26.7 | CF21: 15.2 | CG21: 2.5 | CH21: 16.4 | CI21: 27.1 | CJ21: 14.6 | CK21: 15 | CL21: 15.5 | CM21: 26.7 | CN21: 10.4 | CO21: 7.7 | CP21: 22.5 | CQ21: 2.3 | CR21: 13.8 | CS21: 43.1 | CT21: 13.2 | CU21: 1.4 | CV21: 19.9 | CW21: 24.2 | CX21: 55.4 | CY21: 58.1 | CZ21: 68.1 | DA21: 73.2 | DB21: 63.7 | DC21: 13.4 | DD21: 22.1 | DE21: 31.6 | DF21: 11.3 | DG21: 41.3 | DH21: 1 | DI21: 22.2 | DJ21: 2.1 | DK21: 6.2 | DL21: 4.4 | DM21: 1 | DN21: 1.5 | DO21: 36 | DP21: 34.1 | DQ21: 20 | DR21: 48.9 | DS21: 89.4
A22: K1400 | B22: 2014 | C22: 2014 | D22: 2014 | E22: - | F22: 2 | G22: 14 | H22: 0 | I22: かながわけん | J22: 関東 | K22: - | L22: 神奈川県 | M22: 617 | N22: 9.5 | O22: 25.5 | P22: 35.6 | Q22: 29.4 | R22: 0 | S22: 53.8 | T22: 8.7 | U22: 43.8 | V22: 39 | W22: 7.7 | X22: 0.8 | Y22: 30.6 | Z22: 27.5 | AA22: 49.5 | AB22: 22.7 | AC22: 52.3 | AD22: 6.1 | AE22: 3.9 | AF22: 21 | AG22: 9.7 | AH22: 8.6 | AI22: 1.6 | AJ22: 2.2 | AK22: 1.6 | AL22: 12.6 | AM22: 1.6 | AN22: 1.8 | AO22: 2.2 | AP22: 11.8 | AQ22: 29.6 | AR22: 7.6 | AS22: 56.6 | AT22: 54 | AU22: 45.2 | AV22: 55.8 | AW22: 57.8 | AX22: 5.4 | AY22: 14.1 | AZ22: 28.6 | BA22: 25.2 | BB22: 24.7 | BC22: 19.6 | BD22: 19.7 | BE22: 41.1 | BF22: 23.6 | BG22: 13 | BH22: 40.2 | BI22: 11.8 | BJ22: 3.6 | BK22: 15.4 | BL22: 10.3 | BM22: 3.5 | BN22: 1.14 | BO22: 1.03 | BP22: 19.6 | BQ22: 10.5 | BR22: 12.4 | BS22: 0.6 | BT22: 8.1 | BU22: 5.6 | BV22: 2.6 | BW22: 8.6 | BX22: 0.1 | BY22: 5.8 | BZ22: 4.9 | CA22: 39.4 | CB22: 54.9 | CC22: 42.5 | CD22: 14.3 | CE22: 11.3 | CF22: 10.7 | CG22: 13.2 | CH22: 16.6 | CI22: 15.5 | CJ22: 4.9 | CK22: 15.6 | CL22: 9.4 | CM22: 9.8 | CN22: 5.4 | CO22: 2.6 | CP22: 11.5 | CQ22: 3.3 | CR22: 7 | CS22: 29.4 | CT22: 7.7 | CU22: 1.4 | CV22: 9.1 | CW22: 33.6 | CX22: 53.2 | CY22: 51.3 | CZ22: 50.7 | DA22: 51.6 | DB22: 51.7 | DC22: 9.2 | DD22: 5.5 | DE22: 30.4 | DF22: 8.9 | DG22: 19.1 | DH22: 2.6 | DI22: 18.3 | DJ22: 2.3 | DK22: 5 | DL22: 2.2 | DM22: 1.5 | DN22: 2.7 | DO22: 7.4 | DP22: 32.6 | DQ22: 5.4 | DR22: 15.4 | DS22: 74.4
A23: N1500 | B23: 2015 | C23: 2015 | D23: 2015 | E23: - | F23: 3 | G23: 15 | H23: 0 | I23: にいがたけん | J23: 中部 | K23: - | L23: 新潟県 | M23: 617 | N23: 4.1 | O23: 17.8 | P23: 37.5 | Q23: 40.2 | R23: 0 | S23: 46.4 | T23: 4.7 | U23: 25.4 | V23: 57.4 | W23: 10.7 | X23: 1.3 | Y23: 17.4 | Z23: 23.2 | AA23: 57.2 | AB23: 19.1 | AC23: 51.9 | AD23: 1.9 | AE23: 1 | AF23: 16.7 | AG23: 5.3 | AH23: 4.4 | AI23: 1.2 | AJ23: 5 | AK23: 3.4 | AL23: 7 | AM23: 1 | AN23: 1.1 | AO23: 3.3 | AP23: 6.9 | AQ23: 34.4 | AR23: 10.6 | AS23: 45 | AT23: 45.7 | AU23: 50 | AV23: 43.8 | AW23: 48.8 | AX23: 2.5 | AY23: 2 | AZ23: 13.3 | BA23: 38.6 | BB23: 42 | BC23: 6.8 | BD23: 13.3 | BE23: 46.5 | BF23: 24.4 | BG23: 13.4 | BH23: 36.6 | BI23: 30.9 | BJ23: 1.9 | BK23: 32.8 | BL23: 25 | BM23: 1.8 | BN23: 1.24 | BO23: 1.08 | BP23: 14.5 | BQ23: 2.8 | BR23: 3.4 | BS23: 0.1 | BT23: 1.9 | BU23: 3.7 | BV23: 0.1 | BW23: 1.4 | BX23: 0.1 | BY23: 0.4 | BZ23: 1.2 | CA23: 65.9 | CB23: 25.4 | CC23: 20.7 | CD23: 5.7 | CE23: 1.6 | CF23: 1.6 | CG23: 36 | CH23: 10.8 | CI23: 2.7 | CJ23: 5.2 | CK23: 4.2 | CL23: 5.8 | CM23: 1.1 | CN23: 8 | CO23: 7.2 | CP23: 1.2 | CQ23: 23.4 | CR23: 18.7 | CS23: 2.4 | CT23: 3 | CU23: 9.3 | CV23: 5.5 | CW23: 34.1 | CX23: 51.2 | CY23: 44.6 | CZ23: 54.1 | DA23: 50.9 | DB23: 50.2 | DC23: 10.6 | DD23: 2.1 | DE23: 18 | DF23: 2.7 | DG23: 2.1 | DH23: 4.8 | DI23: 2 | DJ23: 2.5 | DK23: 1.8 | DL23: 1 | DM23: 33.1 | DN23: 11.8 | DO23: 0.5 | DP23: 1.2 | DQ23: 15 | DR23: 2 | DS23: 68.1
A24: T1600 | B24: 2016 | C24: 2016 | D24: 2016 | E24: - | F24: 3 | G24: 16 | H24: 0 | I24: とやまけん | J24: 中部 | K24: - | L24: 富山県 | M24: 609 | N24: 2.8 | O24: 13.1 | P24: 32.8 | Q24: 50.9 | R24: 0 | S24: 41.9 | T24: 3.4 | U24: 23.8 | V24: 51.3 | W24: 17.2 | X24: 2.8 | Y24: 15.3 | Z24: 11.6 | AA24: 51.3 | AB24: 36.5 | AC24: 37.3 | AD24: 1.8 | AE24: 0.4 | AF24: 17 | AG24: 5.9 | AH24: 6.8 | AI24: 1.2 | AJ24: 3.1 | AK24: 2.5 | AL24: 7.1 | AM24: 1 | AN24: 1.3 | AO24: 3.4 | AP24: 5.5 | AQ24: 14.4 | AR24: 9.2 | AS24: 43.9 | AT24: 47.8 | AU24: 46.8 | AV24: 44.3 | AW24: 45.7 | AX24: 0.8 | AY24: 1.9 | AZ24: 13.6 | BA24: 39.8 | BB24: 41.9 | BC24: 5.2 | BD24: 14.2 | BE24: 38.8 | BF24: 30.7 | BG24: 14.7 | BH24: 33.6 | BI24: 21.9 | BJ24: 2.9 | BK24: 24.8 | BL24: 18.4 | BM24: 2.7 | BN24: 1.19 | BO24: 1.05 | BP24: 14.6 | BQ24: 2.2 | BR24: 1.7 | BS24: 0.1 | BT24: 0.9 | BU24: 1.8 | BV24: 0.2 | BW24: 0.9 | BX24: 0.2 | BY24: 1.2 | BZ24: 1 | CA24: 70.6 | CB24: 21.6 | CC24: 18.5 | CD24: 2.8 | CE24: 1.3 | CF24: 2.2 | CG24: 33.8 | CH24: 11.9 | CI24: 1.6 | CJ24: 6 | CK24: 6.6 | CL24: 3.7 | CM24: 1.6 | CN24: 8.5 | CO24: 6.1 | CP24: 2.6 | CQ24: 15.8 | CR24: 13.3 | CS24: 0.6 | CT24: 3.8 | CU24: 7 | CV24: 6.2 | CW24: 43 | CX24: 48.7 | CY24: 45.1 | CZ24: 50.9 | DA24: 47.9 | DB24: 48.2 | DC24: 8.7 | DD24: 2.8 | DE24: 18.6 | DF24: 1.3 | DG24: 0.4 | DH24: 9.5 | DI24: 1.2 | DJ24: 2.8 | DK24: 3.5 | DL24: 1.4 | DM24: 24.5 | DN24: 10.1 | DO24: 0.8 | DP24: 2.6 | DQ24: 1.5 | DR24: 0.9 | DS24: 56.7
A25: I1700 | B25: 2017 | C25: 2017 | D25: 2017 | E25: - | F25: 3 | G25: 17 | H25: 0 | I25: いしかわけん | J25: 中部 | K25: - | L25: 石川県 | M25: 617 | N25: 3.5 | O25: 15.3 | P25: 33.7 | Q25: 46.9 | R25: 0 | S25: 43.8 | T25: 6.3 | U25: 32.7 | V25: 44.8 | W25: 13 | X25: 2.2 | Y25: 22.7 | Z25: 9.9 | AA25: 49.8 | AB25: 39.7 | AC25: 34.8 | AD25: 2.8 | AE25: 1.2 | AF25: 16.4 | AG25: 8 | AH25: 10 | AI25: 1.3 | AJ25: 3.6 | AK25: 1 | AL25: 7.2 | AM25: 0.8 | AN25: 1 | AO25: 2.6 | AP25: 6.2 | AQ25: 16.1 | AR25: 6.1 | AS25: 46.8 | AT25: 50.8 | AU25: 45.8 | AV25: 43.7 | AW25: 45.4 | AX25: 0.7 | AY25: 3.5 | AZ25: 17.7 | BA25: 35.9 | BB25: 40.1 | BC25: 6.9 | BD25: 20.1 | BE25: 46.2 | BF25: 19.3 | BG25: 12.5 | BH25: 43.2 | BI25: 11.7 | BJ25: 7.9 | BK25: 19.6 | BL25: 11.1 | BM25: 7.1 | BN25: 1.05 | BO25: 1.11 | BP25: 17.3 | BQ25: 2.2 | BR25: 2 | BS25: 0 | BT25: 1.1 | BU25: 1.8 | BV25: 0.6 | BW25: 2.3 | BX25: 0 | BY25: 1.2 | BZ25: 1.5 | CA25: 66.3 | CB25: 24.8 | CC25: 21.5 | CD25: 2.9 | CE25: 2.9 | CF25: 2.7 | CG25: 28.3 | CH25: 17.7 | CI25: 1.1 | CJ25: 11.7 | CK25: 16.8 | CL25: 10 | CM25: 5.7 | CN25: 8.8 | CO25: 14.6 | CP25: 1.7 | CQ25: 12.4 | CR25: 12.4 | CS25: 1.2 | CT25: 8.2 | CU25: 7 | CV25: 4.1 | CW25: 37.5 | CX25: 52.8 | CY25: 55.1 | CZ25: 54.6 | DA25: 56.2 | DB25: 54.7 | DC25: 26.8 | DD25: 5.8 | DE25: 29 | DF25: 2.1 | DG25: 1.2 | DH25: 6.1 | DI25: 3 | DJ25: 1.3 | DK25: 1.6 | DL25: 0.3 | DM25: 16.1 | DN25: 7.9 | DO25: 0.2 | DP25: 0.8 | DQ25: 2.2 | DR25: 0.6 | DS25: 66.2
A26: H1800 | B26: 2018 | C26: 2018 | D26: 2018 | E26: - | F26: 3 | G26: 18 | H26: 0 | I26: ふくいけん | J26: 中部 | K26: - | L26: 福井県 | M26: 617 | N26: 2.5 | O26: 13.7 | P26: 31.7 | Q26: 51 | R26: 0 | S26: 41.8 | T26: 2.4 | U26: 16.9 | V26: 60.1 | W26: 15.7 | X26: 3.6 | Y26: 10.9 | Z26: 14.5 | AA26: 49.8 | AB26: 35.6 | AC26: 39.4 | AD26: 1.3 | AE26: 0.7 | AF26: 12.9 | AG26: 4.3 | AH26: 4.7 | AI26: 0.4 | AJ26: 2.9 | AK26: 1.5 | AL26: 5.9 | AM26: 0.7 | AN26: 0.8 | AO26: 2.9 | AP26: 3.9 | AQ26: 25.7 | AR26: 9.3 | AS26: 43.6 | AT26: 42.9 | AU26: 44.5 | AV26: 40.9 | AW26: 40.7 | AX26: 1 | AY26: 1.9 | AZ26: 11.7 | BA26: 38.5 | BB26: 44.7 | BC26: 4.9 | BD26: 11.2 | BE26: 41.5 | BF26: 28.1 | BG26: 16.8 | BH26: 31.9 | BI26: 12.3 | BJ26: 4.3 | BK26: 16.6 | BL26: 11.1 | BM26: 3.9 | BN26: 1.11 | BO26: 1.11 | BP26: 11.6 | BQ26: 2.1 | BR26: 2.5 | BS26: 0.4 | BT26: 1.2 | BU26: 2.4 | BV26: 0.3 | BW26: 0.6 | BX26: 0.1 | BY26: 3.2 | BZ26: 0.6 | CA26: 69.4 | CB26: 21.8 | CC26: 16.2 | CD26: 4 | CE26: 1 | CF26: 3.8 | CG26: 32.3 | CH26: 8.5 | CI26: 1.2 | CJ26: 3.5 | CK26: 4.3 | CL26: 5.3 | CM26: 1.1 | CN26: 5.9 | CO26: 6.7 | CP26: 1.1 | CQ26: 15.2 | CR26: 9.5 | CS26: 0.7 | CT26: 3.1 | CU26: 6.4 | CV26: 3.1 | CW26: 41.6 | CX26: 45.9 | CY26: 43.7 | CZ26: 46.2 | DA26: 44.8 | DB26: 45.2 | DC26: 10.8 | DD26: 1.9 | DE26: 14.5 | DF26: 0.6 | DG26: 0 | DH26: 4.3 | DI26: 1.5 | DJ26: 1.4 | DK26: 6.2 | DL26: 1.7 | DM26: 16.9 | DN26: 9.5 | DO26: 1.1 | DP26: 0.7 | DQ26: 9.1 | DR26: 0.8 | DS26: 56.1
A27: Y1900 | B27: 2019 | C27: 2019 | D27: 2019 | E27: - | F27: 3 | G27: 19 | H27: 0 | I27: やまなしけん | J27: 中部 | K27: - | L27: 山梨県 | M27: 609 | N27: 2.6 | O27: 14.2 | P27: 39.6 | Q27: 43.3 | R27: 0 | S27: 44 | T27: 4.3 | U27: 26.4 | V27: 50.5 | W27: 15.6 | X27: 2.3 | Y27: 17.5 | Z27: 10.9 | AA27: 50.9 | AB27: 37.7 | AC27: 36.3 | AD27: 1.5 | AE27: 1 | AF27: 18.2 | AG27: 6.1 | AH27: 8 | AI27: 1.4 | AJ27: 2.7 | AK27: 1.6 | AL27: 6.1 | AM27: 0.6 | AN27: 0.9 | AO27: 2.8 | AP27: 4.1 | AQ27: 13.4 | AR27: 9.6 | AS27: 44.4 | AT27: 49.5 | AU27: 45.6 | AV27: 41.2 | AW27: 40.9 | AX27: 0.6 | AY27: 2.6 | AZ27: 17 | BA27: 40.7 | BB27: 37.9 | BC27: 6.1 | BD27: 14.9 | BE27: 41.3 | BF27: 28.9 | BG27: 13.7 | BH27: 35.5 | BI27: 35.7 | BJ27: 1.6 | BK27: 37.2 | BL27: 25.6 | BM27: 1.4 | BN27: 1.39 | BO27: 1.09 | BP27: 21.2 | BQ27: 2.9 | BR27: 1.6 | BS27: 0.2 | BT27: 1.7 | BU27: 2.6 | BV27: 0.1 | BW27: 0.7 | BX27: 0.3 | BY27: 2.1 | BZ27: 0.8 | CA27: 62.4 | CB27: 29.8 | CC27: 25.7 | CD27: 4.5 | CE27: 1.1 | CF27: 2.9 | CG27: 37.8 | CH27: 15.9 | CI27: 2.5 | CJ27: 3.5 | CK27: 5.5 | CL27: 8.6 | CM27: 4 | CN27: 9.5 | CO27: 3.4 | CP27: 2 | CQ27: 14.5 | CR27: 6.5 | CS27: 1.2 | CT27: 5.1 | CU27: 5 | CV27: 4.1 | CW27: 39.1 | CX27: 51.2 | CY27: 45.7 | CZ27: 49 | DA27: 44.2 | DB27: 47.5 | DC27: 7.8 | DD27: 1.1 | DE27: 28.2 | DF27: 2.1 | DG27: 1 | DH27: 11.2 | DI27: 0.5 | DJ27: 1.8 | DK27: 1.5 | DL27: 1.6 | DM27: 25 | DN27: 8.5 | DO27: 1 | DP27: 2.1 | DQ27: 1.7 | DR27: 1 | DS27: 62.4
A28: N2000 | B28: 2020 | C28: 2020 | D28: 2020 | E28: - | F28: 3 | G28: 20 | H28: 0 | I28: ながのけん | J28: 中部 | K28: - | L28: 長野県 | M28: 617 | N28: 3.9 | O28: 18.7 | P28: 39 | Q28: 38.4 | R28: 0 | S28: 47 | T28: 10.7 | U28: 36.3 | V28: 39.7 | W28: 10.3 | X28: 2.2 | Y28: 28.9 | Z28: 20.5 | AA28: 51.9 | AB28: 27.6 | AC28: 46.4 | AD28: 5.7 | AE28: 2.8 | AF28: 17.3 | AG28: 9.3 | AH28: 11.6 | AI28: 2.3 | AJ28: 4.7 | AK28: 2.4 | AL28: 8.1 | AM28: 1.6 | AN28: 1.7 | AO28: 3.3 | AP28: 8.8 | AQ28: 25 | AR28: 6.3 | AS28: 54.1 | AT28: 53.3 | AU28: 49.8 | AV28: 47.8 | AW28: 53.3 | AX28: 1.1 | AY28: 7.2 | AZ28: 21.8 | BA28: 32.4 | BB28: 35.3 | BC28: 10.2 | BD28: 22.8 | BE28: 46.8 | BF28: 18.6 | BG28: 10 | BH28: 46.2 | BI28: 24.1 | BJ28: 1.3 | BK28: 25.4 | BL28: 18.8 | BM28: 1.2 | BN28: 1.28 | BO28: 1.09 | BP28: 25.7 | BQ28: 3 | BR28: 2.6 | BS28: 0.3 | BT28: 0.7 | BU28: 3.5 | BV28: 0.1 | BW28: 2.1 | BX28: 0.3 | BY28: 2.8 | BZ28: 2.5 | CA28: 55.1 | CB28: 37.1 | CC28: 31.3 | CD28: 4.5 | CE28: 2.5 | CF28: 5.3 | CG28: 44.7 | CH28: 23.7 | CI28: 6.3 | CJ28: 7.8 | CK28: 9.5 | CL28: 7 | CM28: 5.3 | CN28: 8.7 | CO28: 4.7 | CP28: 2.1 | CQ28: 13.9 | CR28: 9.4 | CS28: 1.9 | CT28: 8 | CU28: 7.2 | CV28: 3.7 | CW28: 30.1 | CX28: 58.6 | CY28: 48.7 | CZ28: 52.7 | DA28: 51.5 | DB28: 52.9 | DC28: 13 | DD28: 4.3 | DE28: 37 | DF28: 7.5 | DG28: 1.5 | DH28: 12.2 | DI28: 1.9 | DJ28: 1.7 | DK28: 4.3 | DL28: 3.3 | DM28: 22.2 | DN28: 8 | DO28: 2.2 | DP28: 1.2 | DQ28: 4.4 | DR28: 0.7 | DS28: 73.2
A29: G2100 | B29: 2021 | C29: 2021 | D29: 2021 | E29: - | F29: 3 | G29: 21 | H29: 0 | I29: ぎふけん | J29: 中部 | K29: - | L29: 岐阜県 | M29: 617 | N29: 4 | O29: 15.8 | P29: 33.6 | Q29: 46.2 | R29: 0 | S29: 44.4 | T29: 2.2 | U29: 21 | V29: 57.1 | W29: 15.8 | X29: 3.2 | Y29: 12.6 | Z29: 11.5 | AA29: 51.4 | AB29: 36.7 | AC29: 37.2 | AD29: 1.9 | AE29: 0.5 | AF29: 11.7 | AG29: 5.6 | AH29: 6.6 | AI29: 0.7 | AJ29: 2.4 | AK29: 1.2 | AL29: 6.8 | AM29: 1 | AN29: 1.3 | AO29: 3.8 | AP29: 4.7 | AQ29: 19.7 | AR29: 9.9 | AS29: 44.2 | AT29: 44.1 | AU29: 44 | AV29: 43.8 | AW29: 44.7 | AX29: 1.6 | AY29: 1.5 | AZ29: 15.9 | BA29: 39.4 | BB29: 39.4 | BC29: 6.3 | BD29: 11.3 | BE29: 43.4 | BF29: 27.9 | BG29: 14.9 | BH29: 33 | BI29: 9.2 | BJ29: 4.1 | BK29: 13.2 | BL29: 7.1 | BM29: 3.6 | BN29: 1.3 | BO29: 1.13 | BP29: 17.8 | BQ29: 3.6 | BR29: 2.9 | BS29: 0.2 | BT29: 1.4 | BU29: 3.6 | BV29: 1.6 | BW29: 2.3 | BX29: 0.7 | BY29: 3.6 | BZ29: 2.3 | CA29: 60 | CB29: 32.4 | CC29: 24.3 | CD29: 5.2 | CE29: 4.6 | CF29: 5.9 | CG29: 29.5 | CH29: 10.3 | CI29: 1.1 | CJ29: 6.6 | CK29: 10.8 | CL29: 6.9 | CM29: 2.1 | CN29: 4 | CO29: 6 | CP29: 1.2 | CQ29: 9.7 | CR29: 6.3 | CS29: 1.1 | CT29: 4.2 | CU29: 6 | CV29: 2.2 | CW29: 41.8 | CX29: 46.4 | CY29: 48.7 | CZ29: 43.2 | DA29: 45.1 | DB29: 45.9 | DC29: 17.4 | DD29: 2.1 | DE29: 18.7 | DF29: 2 | DG29: 1.5 | DH29: 6.5 | DI29: 1.5 | DJ29: 0.8 | DK29: 1.3 | DL29: 1 | DM29: 11.8 | DN29: 6.4 | DO29: 0.4 | DP29: 0.9 | DQ29: 1.6 | DR29: 0.4 | DS29: 53.8
A30: S2200 | B30: 2022 | C30: 2022 | D30: 2022 | E30: - | F30: 3 | G30: 22 | H30: 0 | I30: しずおかけん | J30: 中部 | K30: - | L30: 静岡県 | M30: 609 | N30: 5.8 | O30: 17.9 | P30: 42.5 | Q30: 33.6 | R30: 0 | S30: 49 | T30: 6.2 | U30: 34.9 | V30: 45.1 | W30: 10.8 | X30: 1.8 | Y30: 23.6 | Z30: 21.2 | AA30: 55.6 | AB30: 23 | AC30: 49 | AD30: 2.4 | AE30: 1.4 | AF30: 23.6 | AG30: 9 | AH30: 8.2 | AI30: 2 | AJ30: 3.3 | AK30: 2.5 | AL30: 9.8 | AM30: 1.3 | AN30: 2 | AO30: 4 | AP30: 7.5 | AQ30: 23.8 | AR30: 10.4 | AS30: 46.5 | AT30: 54.9 | AU30: 47.9 | AV30: 50.8 | AW30: 51.9 | AX30: 4 | AY30: 4.7 | AZ30: 23.7 | BA30: 35.3 | BB30: 31.4 | BC30: 12.3 | BD30: 19 | BE30: 42.4 | BF30: 25.9 | BG30: 11.8 | BH30: 40.2 | BI30: 38.5 | BJ30: 2 | BK30: 40.4 | BL30: 29.6 | BM30: 1.6 | BN30: 1.3 | BO30: 1.21 | BP30: 23.7 | BQ30: 5.3 | BR30: 4 | BS30: 0.5 | BT30: 2.8 | BU30: 3.5 | BV30: 0.6 | BW30: 5.2 | BX30: 0.1 | BY30: 5.5 | BZ30: 2.1 | CA30: 51.5 | CB30: 42.6 | CC30: 33 | CD30: 6.8 | CE30: 5.9 | CF30: 7.6 | CG30: 36.6 | CH30: 20.5 | CI30: 8.1 | CJ30: 5.1 | CK30: 4.5 | CL30: 7.6 | CM30: 3.4 | CN30: 11.4 | CO30: 4.4 | CP30: 2.5 | CQ30: 18 | CR30: 11.6 | CS30: 5.9 | CT30: 7.2 | CU30: 6.5 | CV30: 9.5 | CW30: 36.8 | CX30: 55.5 | CY30: 45.5 | CZ30: 55.8 | DA30: 50.6 | DB30: 51.9 | DC30: 8.1 | DD30: 1.9 | DE30: 28 | DF30: 11.9 | DG30: 3.1 | DH30: 7.9 | DI30: 0.7 | DJ30: 3 | DK30: 3.3 | DL30: 1.7 | DM30: 25.1 | DN30: 12.9 | DO30: 3.3 | DP30: 5.6 | DQ30: 12.2 | DR30: 2.3 | DS30: 67.6
A31: A2300 | B31: 2023 | C31: 2023 | D31: 2023 | E31: - | F31: 3 | G31: 23 | H31: 0 | I31: あいちけん | J31: 中部 | K31: - | L31: 愛知県 | M31: 617 | N31: 7.8 | O31: 19.4 | P31: 33.6 | Q31: 38.8 | R31: 0 | S31: 49.1 | T31: 5.9 | U31: 23.5 | V31: 53.8 | W31: 13.4 | X31: 2.6 | Y31: 17.7 | Z31: 19.7 | AA31: 49.7 | AB31: 29.9 | AC31: 44.5 | AD31: 2.2 | AE31: 0.4 | AF31: 14.2 | AG31: 7.1 | AH31: 6.5 | AI31: 1.3 | AJ31: 2.8 | AK31: 3 | AL31: 8.5 | AM31: 1.2 | AN31: 2.3 | AO31: 2.9 | AP31: 7.7 | AQ31: 24.1 | AR31: 7.8 | AS31: 44.6 | AT31: 46.6 | AU31: 47.2 | AV31: 48.9 | AW31: 49.7 | AX31: 2 | AY31: 5.1 | AZ31: 18.4 | BA31: 34.9 | BB31: 36.8 | BC31: 9.2 | BD31: 13 | BE31: 37.9 | BF31: 30.8 | BG31: 14.6 | BH31: 31.9 | BI31: 24.3 | BJ31: 3.7 | BK31: 27.9 | BL31: 18.4 | BM31: 3 | BN31: 1.32 | BO31: 1.2 | BP31: 15.2 | BQ31: 8 | BR31: 4.2 | BS31: 0.6 | BT31: 3.4 | BU31: 3.3 | BV31: 1 | BW31: 4.8 | BX31: 0.1 | BY31: 4.9 | BZ31: 3.7 | CA31: 54.6 | CB31: 37.7 | CC31: 27.4 | CD31: 7.3 | CE31: 5.9 | CF31: 8.6 | CG31: 6.4 | CH31: 5 | CI31: 9.9 | CJ31: 4.4 | CK31: 5.7 | CL31: 9.4 | CM31: 3.1 | CN31: 5.9 | CO31: 4.4 | CP31: 3.8 | CQ31: 5 | CR31: 7.7 | CS31: 17.3 | CT31: 2.5 | CU31: 2 | CV31: 24.2 | CW31: 39.8 | CX31: 38.4 | CY31: 46.6 | CZ31: 48.7 | DA31: 45.8 | DB31: 44.9 | DC31: 6.3 | DD31: 3.8 | DE31: 13.7 | DF31: 7.5 | DG31: 8 | DH31: 2 | DI31: 3.1 | DJ31: 1.8 | DK31: 2.1 | DL31: 1.2 | DM31: 6 | DN31: 11.5 | DO31: 11.8 | DP31: 13.7 | DQ31: 3.6 | DR31: 12.4 | DS31: 64.4
A32: M2400 | B32: 2024 | C32: 2024 | D32: 2024 | E32: - | F32: 4 | G32: 24 | H32: 0 | I32: みえけん | J32: 近畿 | K32: - | L32: 三重県 | M32: 617 | N32: 4.1 | O32: 17.5 | P32: 33.5 | Q32: 44.1 | R32: 0 | S32: 45.4 | T32: 4.2 | U32: 19.1 | V32: 60.7 | W32: 11.6 | X32: 3.1 | Y32: 13.7 | Z32: 12.1 | AA32: 45.1 | AB32: 42.8 | AC32: 34.7 | AD32: 1.2 | AE32: 0.7 | AF32: 13.5 | AG32: 5.8 | AH32: 5.1 | AI32: 0.7 | AJ32: 1.9 | AK32: 1.1 | AL32: 6.7 | AM32: 1.4 | AN32: 1.5 | AO32: 2.7 | AP32: 5.1 | AQ32: 16.6 | AR32: 10.3 | AS32: 43.4 | AT32: 44.5 | AU32: 43.3 | AV32: 44.7 | AW32: 43 | AX32: 2 | AY32: 2.7 | AZ32: 15.9 | BA32: 42.5 | BB32: 34.2 | BC32: 7.3 | BD32: 13.7 | BE32: 43.7 | BF32: 26.1 | BG32: 13.2 | BH32: 35.6 | BI32: 18.3 | BJ32: 3.6 | BK32: 21.9 | BL32: 15.1 | BM32: 3.4 | BN32: 1.21 | BO32: 1.04 | BP32: 16.8 | BQ32: 1.7 | BR32: 2.1 | BS32: 0.4 | BT32: 0.6 | BU32: 3.3 | BV32: 0.3 | BW32: 1.2 | BX32: 0.5 | BY32: 2.3 | BZ32: 3.4 | CA32: 62.3 | CB32: 28.5 | CC32: 20.6 | CD32: 4.3 | CE32: 2 | CF32: 5.7 | CG32: 28.9 | CH32: 10.5 | CI32: 1.7 | CJ32: 2.3 | CK32: 7.4 | CL32: 4.1 | CM32: 1.1 | CN32: 5.1 | CO32: 3.8 | CP32: 1.6 | CQ32: 12.2 | CR32: 8 | CS32: 1.4 | CT32: 3.2 | CU32: 5.5 | CV32: 3.9 | CW32: 44.2 | CX32: 45.7 | CY32: 44 | CZ32: 44.6 | DA32: 42.5 | DB32: 44.2 | DC32: 14.8 | DD32: 1.1 | DE32: 26 | DF32: 1.9 | DG32: 0.7 | DH32: 5 | DI32: 0.5 | DJ32: 1.4 | DK32: 1.6 | DL32: 0.8 | DM32: 14.9 | DN32: 5.4 | DO32: 0.8 | DP32: 1.6 | DQ32: 1.3 | DR32: 0.4 | DS32: 54
A33: S2500 | B33: 2025 | C33: 2025 | D33: 2025 | E33: - | F33: 4 | G33: 25 | H33: 0 | I33: しがけん | J33: 近畿 | K33: - | L33: 滋賀県 | M33: 609 | N33: 2.3 | O33: 13.5 | P33: 36.5 | Q33: 47.4 | R33: 0 | S33: 42.7 | T33: 2 | U33: 19.7 | V33: 58.9 | W33: 15.5 | X33: 3.2 | Y33: 11.8 | Z33: 10.5 | AA33: 48.6 | AB33: 40.2 | AC33: 34.7 | AD33: 3.4 | AE33: 0.5 | AF33: 14.2 | AG33: 6.6 | AH33: 6.1 | AI33: 0.7 | AJ33: 2.1 | AK33: 1.7 | AL33: 8.5 | AM33: 1 | AN33: 1.3 | AO33: 2.9 | AP33: 6.9 | AQ33: 14 | AR33: 9.9 | AS33: 46.7 | AT33: 46 | AU33: 44.2 | AV33: 46.8 | AW33: 47.8 | AX33: 0.5 | AY33: 3.2 | AZ33: 15.4 | BA33: 41.8 | BB33: 37.2 | BC33: 6 | BD33: 13.9 | BE33: 38.1 | BF33: 30.6 | BG33: 16 | BH33: 33 | BI33: 6.6 | BJ33: 1.3 | BK33: 7.9 | BL33: 5.4 | BM33: 1.3 | BN33: 1.23 | BO33: 1 | BP33: 14.3 | BQ33: 3.9 | BR33: 1.4 | BS33: 0.1 | BT33: 1 | BU33: 2.7 | BV33: 0.5 | BW33: 0.4 | BX33: 0.8 | BY33: 8.1 | BZ33: 1.6 | CA33: 64.3 | CB33: 28 | CC33: 19.6 | CD33: 3.8 | CE33: 1.7 | CF33: 9.7 | CG33: 30.3 | CH33: 8 | CI33: 1.4 | CJ33: 3.1 | CK33: 8.4 | CL33: 8.5 | CM33: 2.3 | CN33: 3.2 | CO33: 2.2 | CP33: 1.7 | CQ33: 4.3 | CR33: 4.3 | CS33: 2.1 | CT33: 3.1 | CU33: 3.6 | CV33: 3.2 | CW33: 49.8 | CX33: 43.2 | CY33: 46.8 | CZ33: 39.2 | DA33: 40.3 | DB33: 42.4 | DC33: 17.3 | DD33: 3.2 | DE33: 20.8 | DF33: 1.3 | DG33: 1 | DH33: 6.5 | DI33: 0.8 | DJ33: 3.6 | DK33: 1.3 | DL33: 1.4 | DM33: 8.6 | DN33: 6.6 | DO33: 1 | DP33: 3 | DQ33: 0.8 | DR33: 0.9 | DS33: 52.1
A34: K2600 | B34: 2026 | C34: 2026 | D34: 2026 | E34: - | F34: 4 | G34: 26 | H34: 0 | I34: きょうとふ | J34: 近畿 | K34: - | L34: 京都府 | M34: 617 | N34: 9.6 | O34: 31.3 | P34: 37.3 | Q34: 21.6 | R34: 0.1 | S34: 57.2 | T34: 31.9 | U34: 43 | V34: 21.3 | W34: 2.6 | X34: 0.6 | Y34: 53.4 | Z34: 34.5 | AA34: 48.2 | AB34: 17.1 | AC34: 58.6 | AD34: 12.9 | AE34: 5.2 | AF34: 30.9 | AG34: 16.5 | AH34: 22.4 | AI34: 2.9 | AJ34: 8.7 | AK34: 5.4 | AL34: 17.6 | AM34: 4.5 | AN34: 3 | AO34: 5.4 | AP34: 14.1 | AQ34: 19 | AR34: 7.7 | AS34: 69.7 | AT34: 73.5 | AU34: 58.4 | AV34: 71.6 | AW34: 70.9 | AX34: 8.3 | AY34: 11.1 | AZ34: 30.4 | BA34: 25.7 | BB34: 22.8 | BC34: 21.4 | BD34: 43.6 | BE34: 39.7 | BF34: 10 | BG34: 5.3 | BH34: 63.4 | BI34: 32 | BJ34: 7.9 | BK34: 39.8 | BL34: 25.9 | BM34: 6.8 | BN34: 1.23 | BO34: 1.16 | BP34: 33 | BQ34: 5 | BR34: 5.9 | BS34: 0.2 | BT34: 5.8 | BU34: 3.8 | BV34: 2.2 | BW34: 2.6 | BX34: 0.3 | BY34: 2.7 | BZ34: 3.3 | CA34: 47.3 | CB34: 47.6 | CC34: 43.9 | CD34: 9.8 | CE34: 5.1 | CF34: 6 | CG34: 12.7 | CH34: 13.2 | CI34: 4.5 | CJ34: 40.2 | CK34: 53.9 | CL34: 39.8 | CM34: 14.7 | CN34: 18.1 | CO34: 24.6 | CP34: 13.1 | CQ34: 11.1 | CR34: 17.1 | CS34: 14.3 | CT34: 13.7 | CU34: 7.4 | CV34: 10.8 | CW34: 14.5 | CX34: 64.4 | CY34: 98.2 | CZ34: 69 | DA34: 80.1 | DB34: 77.9 | DC34: 68.5 | DD34: 22.3 | DE34: 53.5 | DF34: 2.7 | DG34: 20.5 | DH34: 6.2 | DI34: 12.6 | DJ34: 2.6 | DK34: 3.6 | DL34: 1.8 | DM34: 2.5 | DN34: 7.1 | DO34: 1.7 | DP34: 8.6 | DQ34: 0.8 | DR34: 2.8 | DS34: 87.9
A35: O2700 | B35: 2027 | C35: 2027 | D35: 2027 | E35: - | F35: 4 | G35: 27 | H35: 0 | I35: おおさかふ | J35: 近畿 | K35: - | L35: 大阪府 | M35: 617 | N35: 12.3 | O35: 27.1 | P35: 39.2 | Q35: 21.3 | R35: 0 | S35: 57.6 | T35: 10.9 | U35: 37.1 | V35: 39.9 | W35: 9.4 | X35: 2.1 | Y35: 29.4 | Z35: 41.6 | AA35: 47.3 | AB35: 10.7 | AC35: 65.3 | AD35: 9.3 | AE35: 3.2 | AF35: 22.7 | AG35: 10 | AH35: 6.4 | AI35: 1.6 | AJ35: 4.2 | AK35: 4.5 | AL35: 13.5 | AM35: 2.4 | AN35: 3.1 | AO35: 4.9 | AP35: 15 | AQ35: 42.3 | AR35: 12.3 | AS35: 60.6 | AT35: 53.8 | AU35: 50.8 | AV35: 61 | AW35: 71.9 | AX35: 4.9 | AY35: 7.8 | AZ35: 20.5 | BA35: 32.3 | BB35: 33 | BC35: 13.9 | BD35: 22.6 | BE35: 39.7 | BF35: 26 | BG35: 10.5 | BH35: 42.5 | BI35: 36.9 | BJ35: 1.4 | BK35: 38.3 | BL35: 27.4 | BM35: 1.3 | BN35: 1.35 | BO35: 1.09 | BP35: 24.1 | BQ35: 9.5 | BR35: 9.2 | BS35: 0.8 | BT35: 8.9 | BU35: 8.5 | BV35: 2.8 | BW35: 8.1 | BX35: 0.1 | BY35: 5.1 | BZ35: 3.5 | CA35: 40.1 | CB35: 53.4 | CC35: 42.8 | CD35: 18.2 | CE35: 11 | CF35: 8.6 | CG35: 3.3 | CH35: 15.2 | CI35: 14.3 | CJ35: 8.4 | CK35: 8.7 | CL35: 12.5 | CM35: 5.2 | CN35: 8.1 | CO35: 5.1 | CP35: 13.9 | CQ35: 5.7 | CR35: 18.6 | CS35: 26.9 | CT35: 3.8 | CU35: 5 | CV35: 10.9 | CW35: 31.4 | CX35: 45.7 | CY35: 51.1 | CZ35: 56.3 | DA35: 56.1 | DB35: 52.3 | DC35: 18.6 | DD35: 5.6 | DE35: 32.9 | DF35: 5.6 | DG35: 11.7 | DH35: 0.4 | DI35: 3.2 | DJ35: 4.4 | DK35: 2.2 | DL35: 1.6 | DM35: 1.4 | DN35: 7 | DO35: 4.7 | DP35: 21.9 | DQ35: 4.6 | DR35: 36.3 | DS35: 76.5
A36: H2800 | B36: 2028 | C36: 2028 | D36: 2028 | E36: - | F36: 4 | G36: 28 | H36: 0 | I36: ひょうごけん | J36: 近畿 | K36: - | L36: 兵庫県 | M36: 609 | N36: 6.9 | O36: 20.5 | P36: 39.5 | Q36: 32.9 | R36: 0 | S36: 50.4 | T36: 8.5 | U36: 37 | V36: 42.8 | W36: 9.7 | X36: 1.5 | Y36: 27 | Z36: 19.2 | AA36: 49.2 | AB36: 31.1 | AC36: 43.8 | AD36: 5.1 | AE36: 2.7 | AF36: 20.6 | AG36: 9.3 | AH36: 9.5 | AI36: 2 | AJ36: 3.3 | AK36: 4.1 | AL36: 10.9 | AM36: 1 | AN36: 3 | AO36: 4 | AP36: 8 | AQ36: 18.5 | AR36: 11.8 | AS36: 53 | AT36: 54 | AU36: 49.8 | AV36: 53.9 | AW36: 53.1 | AX36: 5.8 | AY36: 8.4 | AZ36: 25.1 | BA36: 35.9 | BB36: 23.9 | BC36: 16.3 | BD36: 23.1 | BE36: 43.7 | BF36: 20.2 | BG36: 11.5 | BH36: 45 | BI36: 19.3 | BJ36: 1.8 | BK36: 21 | BL36: 14.7 | BM36: 1.5 | BN36: 1.31 | BO36: 1.17 | BP36: 20.9 | BQ36: 5.4 | BR36: 6.9 | BS36: 0.2 | BT36: 6.7 | BU36: 5.4 | BV36: 1.8 | BW36: 4.8 | BX36: 0.1 | BY36: 5.2 | BZ36: 1.7 | CA36: 55.2 | CB36: 38.3 | CC36: 33.2 | CD36: 12.3 | CE36: 6.7 | CF36: 6.9 | CG36: 15.8 | CH36: 17.6 | CI36: 10.5 | CJ36: 7.6 | CK36: 19.3 | CL36: 7.9 | CM36: 5.8 | CN36: 7.4 | CO36: 3.6 | CP36: 10.6 | CQ36: 7.9 | CR36: 14.1 | CS36: 12.5 | CT36: 7.3 | CU36: 4.6 | CV36: 6.4 | CW36: 42.8 | CX36: 51.4 | CY36: 53.5 | CZ36: 53.3 | DA36: 53.4 | DB36: 52.9 | DC36: 15.5 | DD36: 7.1 | DE36: 28.2 | DF36: 5.7 | DG36: 14.5 | DH36: 4.5 | DI36: 16.7 | DJ36: 2.4 | DK36: 2.9 | DL36: 1.9 | DM36: 5.9 | DN36: 5.8 | DO36: 2.6 | DP36: 10.9 | DQ36: 3.5 | DR36: 8.2 | DS36: 61.9
A37: N2900 | B37: 2029 | C37: 2029 | D37: 2029 | E37: - | F37: 4 | G37: 29 | H37: 0 | I37: ならけん | J37: 近畿 | K37: - | L37: 奈良県 | M37: 617 | N37: 5.6 | O37: 25.8 | P37: 38.4 | Q37: 29.9 | R37: 0.1 | S37: 51.7 | T37: 15.9 | U37: 36.2 | V37: 37.4 | W37: 7.8 | X37: 2.4 | Y37: 34 | Z37: 21.6 | AA37: 46.8 | AB37: 30.9 | AC37: 45 | AD37: 5.4 | AE37: 2.7 | AF37: 20.8 | AG37: 9.6 | AH37: 12.4 | AI37: 1.2 | AJ37: 4 | AK37: 2.9 | AL37: 12.4 | AM37: 3.2 | AN37: 2.1 | AO37: 4.3 | AP37: 7.7 | AQ37: 17.5 | AR37: 6.7 | AS37: 53.5 | AT37: 56.2 | AU37: 48.3 | AV37: 58.8 | AW37: 53.1 | AX37: 3.6 | AY37: 6.3 | AZ37: 23.4 | BA37: 35.2 | BB37: 29.1 | BC37: 12.6 | BD37: 30.1 | BE37: 43.6 | BF37: 16.2 | BG37: 8.2 | BH37: 51.9 | BI37: 8.9 | BJ37: 1.9 | BK37: 10.8 | BL37: 8.4 | BM37: 1.6 | BN37: 1.06 | BO37: 1.16 | BP37: 24.7 | BQ37: 2.4 | BR37: 2.5 | BS37: 0.2 | BT37: 2 | BU37: 2.1 | BV37: 0.2 | BW37: 1.2 | BX37: 0 | BY37: 2.1 | BZ37: 2.8 | CA37: 59.1 | CB37: 33.6 | CC37: 29.6 | CD37: 4.3 | CE37: 1.4 | CF37: 4.9 | CG37: 15.1 | CH37: 10.8 | CI37: 1.9 | CJ37: 22.5 | CK37: 42.7 | CL37: 24.3 | CM37: 11.3 | CN37: 9.1 | CO37: 12 | CP37: 3.6 | CQ37: 5.4 | CR37: 3.7 | CS37: 5 | CT37: 4.7 | CU37: 4.3 | CV37: 2.8 | CW37: 25 | CX37: 52.5 | CY37: 78.1 | CZ37: 48.6 | DA37: 56.1 | DB37: 58.8 | DC37: 61.9 | DD37: 14.5 | DE37: 43.2 | DF37: 0.3 | DG37: 7.8 | DH37: 4.7 | DI37: 2.4 | DJ37: 2 | DK37: 1.2 | DL37: 0.4 | DM37: 3.6 | DN37: 4 | DO37: 0.3 | DP37: 2.6 | DQ37: 0.9 | DR37: 0.7 | DS37: 81.4
A38: W3000 | B38: 2030 | C38: 2030 | D38: 2030 | E38: - | F38: 4 | G38: 30 | H38: 0 | I38: わかやまけん | J38: 近畿 | K38: - | L38: 和歌山県 | M38: 617 | N38: 3.7 | O38: 15 | P38: 34.6 | Q38: 46 | R38: 0.1 | S38: 44 | T38: 3.5 | U38: 18.8 | V38: 59.9 | W38: 13.1 | X38: 3.6 | Y38: 12.9 | Z38: 12.5 | AA38: 48.9 | AB38: 37.7 | AC38: 36.9 | AD38: 2 | AE38: 1.2 | AF38: 12.4 | AG38: 6.6 | AH38: 5.9 | AI38: 1.1 | AJ38: 3.1 | AK38: 2.5 | AL38: 5.8 | AM38: 1.4 | AN38: 1 | AO38: 3.1 | AP38: 5.9 | AQ38: 20 | AR38: 9.4 | AS38: 45.5 | AT38: 44.8 | AU38: 46.7 | AV38: 42.3 | AW38: 45.9 | AX38: 1.4 | AY38: 3 | AZ38: 18.7 | BA38: 40.4 | BB38: 34.2 | BC38: 7.6 | BD38: 12.3 | BE38: 44.7 | BF38: 26.9 | BG38: 14.3 | BH38: 34.7 | BI38: 17.9 | BJ38: 1.2 | BK38: 19.1 | BL38: 14.9 | BM38: 1.2 | BN38: 1.2 | BO38: 1 | BP38: 14.6 | BQ38: 1.5 | BR38: 1.2 | BS38: 0.7 | BT38: 0.7 | BU38: 2.1 | BV38: 0.2 | BW38: 1.6 | BX38: 0 | BY38: 0.9 | BZ38: 1.6 | CA38: 68.6 | CB38: 22.4 | CC38: 17.3 | CD38: 3.5 | CE38: 1.8 | CF38: 2.5 | CG38: 36.7 | CH38: 12 | CI38: 1.3 | CJ38: 2.4 | CK38: 2.8 | CL38: 4.7 | CM38: 0.9 | CN38: 6.1 | CO38: 2.3 | CP38: 1.6 | CQ38: 10.2 | CR38: 6.8 | CS38: 1.3 | CT38: 3.5 | CU38: 3.1 | CV38: 3.1 | CW38: 44.2 | CX38: 46.7 | CY38: 42.2 | CZ38: 43.6 | DA38: 40.4 | DB38: 43.2 | DC38: 11.6 | DD38: 0.9 | DE38: 24.3 | DF38: 2.4 | DG38: 0.9 | DH38: 3.5 | DI38: 0.7 | DJ38: 1 | DK38: 1.2 | DL38: 1.2 | DM38: 21.6 | DN38: 8.5 | DO38: 0.4 | DP38: 0.1 | DQ38: 4.1 | DR38: 1 | DS38: 57.1
A39: T3100 | B39: 2031 | C39: 2031 | D39: 2031 | E39: - | F39: 5 | G39: 31 | H39: 0 | I39: とっとりけん | J39: 中国・四国 | K39: - | L39: 鳥取県 | M39: 609 | N39: 2.9 | O39: 12.8 | P39: 38.2 | Q39: 45.5 | R39: 0.1 | S39: 43.2 | T39: 1.5 | U39: 18.6 | V39: 57.2 | W39: 18.1 | X39: 3.8 | Y39: 10.8 | Z39: 9.3 | AA39: 44.3 | AB39: 45.5 | AC39: 31.4 | AD39: 1.6 | AE39: 1.1 | AF39: 13.4 | AG39: 5 | AH39: 6.5 | AI39: 0.9 | AJ39: 1.5 | AK39: 1.6 | AL39: 7.9 | AM39: 1 | AN39: 1.9 | AO39: 2.5 | AP39: 3.7 | AQ39: 14.3 | AR39: 8.3 | AS39: 44.7 | AT39: 44.8 | AU39: 43.6 | AV39: 46.8 | AW39: 39.2 | AX39: 0.7 | AY39: 1.8 | AZ39: 10.6 | BA39: 39.7 | BB39: 45.6 | BC39: 4.3 | BD39: 11.1 | BE39: 43.8 | BF39: 27.5 | BG39: 16.3 | BH39: 33 | BI39: 11.1 | BJ39: 1.1 | BK39: 12.2 | BL39: 10.4 | BM39: 1.1 | BN39: 1.06 | BO39: 1 | BP39: 13.9 | BQ39: 1.3 | BR39: 1.3 | BS39: 0 | BT39: 0.6 | BU39: 1.5 | BV39: 0.1 | BW39: 1.1 | BX39: 0 | BY39: 1.3 | BZ39: 0.9 | CA39: 72.9 | CB39: 19.8 | CC39: 16.5 | CD39: 2.1 | CE39: 1.2 | CF39: 2.2 | CG39: 30.1 | CH39: 9.6 | CI39: 0.7 | CJ39: 2.5 | CK39: 4.8 | CL39: 3.7 | CM39: 2.4 | CN39: 4.5 | CO39: 1.8 | CP39: 1.8 | CQ39: 8 | CR39: 5.4 | CS39: 1.5 | CT39: 2.8 | CU39: 5.3 | CV39: 2.4 | CW39: 48.1 | CX39: 43.4 | CY39: 42.7 | CZ39: 41.3 | DA39: 40.7 | DB39: 42 | DC39: 6.6 | DD39: 0.4 | DE39: 27.5 | DF39: 0.2 | DG39: 0.2 | DH39: 8 | DI39: 0.5 | DJ39: 2.8 | DK39: 1 | DL39: 1.4 | DM39: 17.9 | DN39: 5.9 | DO39: 0.9 | DP39: 1.3 | DQ39: 0.9 | DR39: 1.3 | DS39: 54.7
A40: S3200 | B40: 2032 | C40: 2032 | D40: 2032 | E40: - | F40: 5 | G40: 32 | H40: 0 | I40: しまねけん | J40: 中国・四国 | K40: - | L40: 島根県 | M40: 617 | N40: 2.1 | O40: 12.3 | P40: 27.9 | Q40: 57 | R40: 0.1 | S40: 39.8 | T40: 5.1 | U40: 16.8 | V40: 54.4 | W40: 17.9 | X40: 5 | Y40: 13.5 | Z40: 8.1 | AA40: 38.9 | AB40: 52.8 | AC40: 27.5 | AD40: 4.1 | AE40: 1.1 | AF40: 12 | AG40: 6.9 | AH40: 7 | AI40: 0.6 | AJ40: 2.4 | AK40: 1.6 | AL40: 6.1 | AM40: 0.8 | AN40: 2.2 | AO40: 3.2 | AP40: 5.2 | AQ40: 14 | AR40: 5.5 | AS40: 48.8 | AT40: 45.4 | AU40: 44.3 | AV40: 43.8 | AW40: 44.5 | AX40: 1.3 | AY40: 1.4 | AZ40: 11.5 | BA40: 36.4 | BB40: 46.3 | BC40: 4.9 | BD40: 14.8 | BE40: 37.1 | BF40: 28.3 | BG40: 17.5 | BH40: 33.4 | BI40: 7.4 | BJ40: 1.1 | BK40: 8.4 | BL40: 6.5 | BM40: 1 | BN40: 1.14 | BO40: 1.09 | BP40: 10.8 | BQ40: 1.1 | BR40: 1.5 | BS40: 0 | BT40: 0.2 | BU40: 1.3 | BV40: 0.1 | BW40: 0.3 | BX40: 0.3 | BY40: 0.9 | BZ40: 1.2 | CA40: 76.3 | CB40: 16.2 | CC40: 13.4 | CD40: 1.5 | CE40: 0.7 | CF40: 2.1 | CG40: 28.3 | CH40: 8.5 | CI40: 1.6 | CJ40: 3.7 | CK40: 10.9 | CL40: 6.3 | CM40: 2.8 | CN40: 3.6 | CO40: 3.3 | CP40: 0.8 | CQ40: 8 | CR40: 5.6 | CS40: 1 | CT40: 2.7 | CU40: 6.5 | CV40: 1.1 | CW40: 48.9 | CX40: 44.3 | CY40: 47.2 | CZ40: 40.6 | DA40: 42.7 | DB40: 43.7 | DC40: 16.8 | DD40: 2.5 | DE40: 13.5 | DF40: 1.2 | DG40: 0.7 | DH40: 7.7 | DI40: 0.8 | DJ40: 1.7 | DK40: 1.5 | DL40: 1.7 | DM40: 17.4 | DN40: 5.8 | DO40: 0.3 | DP40: 1.5 | DQ40: 1.8 | DR40: 0.8 | DS40: 52.9
A41: O3300 | B41: 2033 | C41: 2033 | D41: 2033 | E41: - | F41: 5 | G41: 33 | H41: 0 | I41: おかやまけん | J41: 中国・四国 | K41: - | L41: 岡山県 | M41: 617 | N41: 4.3 | O41: 13.6 | P41: 38.5 | Q41: 43.1 | R41: 0 | S41: 44.8 | T41: 3 | U41: 18.3 | V41: 63.3 | W41: 11.8 | X41: 2.9 | Y41: 12.1 | Z41: 8.9 | AA41: 46 | AB41: 44.8 | AC41: 31.9 | AD41: 0.9 | AE41: 0.7 | AF41: 10.5 | AG41: 5 | AH41: 5.6 | AI41: 0.8 | AJ41: 2.6 | AK41: 1.8 | AL41: 5 | AM41: 1.7 | AN41: 1.2 | AO41: 3.2 | AP41: 4.6 | AQ41: 16.1 | AR41: 10.9 | AS41: 42.9 | AT41: 42.3 | AU41: 45 | AV41: 41.7 | AW41: 43 | AX41: 2.9 | AY41: 3.1 | AZ41: 19.7 | BA41: 39.1 | BB41: 33.8 | BC41: 9.4 | BD41: 13.9 | BE41: 40 | BF41: 29.8 | BG41: 13.9 | BH41: 33.9 | BI41: 23.8 | BJ41: 2.8 | BK41: 26.6 | BL41: 19.6 | BM41: 2.6 | BN41: 1.21 | BO41: 1.05 | BP41: 14 | BQ41: 2.4 | BR41: 3.6 | BS41: 0.2 | BT41: 1.3 | BU41: 1.5 | BV41: 0.5 | BW41: 1.6 | BX41: 0.2 | BY41: 3.9 | BZ41: 1.6 | CA41: 64.3 | CB41: 27.4 | CC41: 20 | CD41: 3 | CE41: 2.3 | CF41: 5.5 | CG41: 23.9 | CH41: 7.5 | CI41: 1.1 | CJ41: 2.2 | CK41: 9.1 | CL41: 4.3 | CM41: 6.1 | CN41: 4.2 | CO41: 2.9 | CP41: 1 | CQ41: 10.5 | CR41: 5.5 | CS41: 2.5 | CT41: 2.5 | CU41: 3.4 | CV41: 3.6 | CW41: 45.6 | CX41: 43.1 | CY41: 44.8 | CZ41: 43.1 | DA41: 41.8 | DB41: 43.2 | DC41: 14.1 | DD41: 3.7 | DE41: 18.8 | DF41: 1.6 | DG41: 0.9 | DH41: 3.6 | DI41: 1.6 | DJ41: 1.8 | DK41: 2 | DL41: 1.7 | DM41: 15.9 | DN41: 6.9 | DO41: 0.3 | DP41: 1.6 | DQ41: 1.3 | DR41: 1.1 | DS41: 53.9
A42: H3400 | B42: 2034 | C42: 2034 | D42: 2034 | E42: - | F42: 5 | G42: 34 | H42: 0 | I42: ひろしまけん | J42: 中国・四国 | K42: - | L42: 広島県 | M42: 609 | N42: 6 | O42: 16 | P42: 42.8 | Q42: 34.8 | R42: 0 | S42: 48.3 | T42: 4.4 | U42: 26.6 | V42: 53.9 | W42: 11.3 | X42: 2.8 | Y42: 17.7 | Z42: 12.5 | AA42: 52.2 | AB42: 34.8 | AC42: 38.6 | AD42: 3.9 | AE42: 1.4 | AF42: 16.3 | AG42: 5.9 | AH42: 8.9 | AI42: 2.3 | AJ42: 4.6 | AK42: 2.3 | AL42: 8.4 | AM42: 0.9 | AN42: 1.4 | AO42: 3.5 | AP42: 8.4 | AQ42: 16.3 | AR42: 11.2 | AS42: 48.9 | AT42: 48.7 | AU42: 49.5 | AV42: 46.6 | AW42: 52.8 | AX42: 2.4 | AY42: 2.6 | AZ42: 19.9 | BA42: 37.6 | BB42: 35.2 | BC42: 8.7 | BD42: 15.8 | BE42: 45.4 | BF42: 24.6 | BG42: 13.1 | BH42: 38.5 | BI42: 35.6 | BJ42: 1.6 | BK42: 37.2 | BL42: 29.1 | BM42: 1.6 | BN42: 1.22 | BO42: 1 | BP42: 16.1 | BQ42: 3.7 | BR42: 3.1 | BS42: 0.3 | BT42: 1.9 | BU42: 2.3 | BV42: 1 | BW42: 2.4 | BX42: 0.1 | BY42: 3.9 | BZ42: 0.7 | CA42: 63.9 | CB42: 28.8 | CC42: 22.9 | CD42: 4.5 | CE42: 3.5 | CF42: 4.6 | CG42: 17.3 | CH42: 7.8 | CI42: 7.1 | CJ42: 5.5 | CK42: 15 | CL42: 8.4 | CM42: 4.4 | CN42: 11.1 | CO42: 1.9 | CP42: 2.7 | CQ42: 11.5 | CR42: 12.9 | CS42: 6 | CT42: 3.1 | CU42: 6 | CV42: 7.9 | CW42: 43.5 | CX42: 44.7 | CY42: 50.8 | CZ42: 49.1 | DA42: 48.5 | DB42: 48.3 | DC42: 21.8 | DD42: 4.1 | DE42: 31.2 | DF42: 7.6 | DG42: 6.9 | DH42: 3.7 | DI42: 1 | DJ42: 3.4 | DK42: 1.7 | DL42: 0.6 | DM42: 10.2 | DN42: 6 | DO42: 0.8 | DP42: 4.7 | DQ42: 1.2 | DR42: 4.6 | DS42: 60.8
A43: Y3500 | B43: 2035 | C43: 2035 | D43: 2035 | E43: - | F43: 5 | G43: 35 | H43: 0 | I43: やまぐちけん | J43: 中国・四国 | K43: - | L43: 山口県 | M43: 617 | N43: 1.7 | O43: 12.9 | P43: 29.8 | Q43: 55.3 | R43: 0.1 | S43: 40.1 | T43: 4 | U43: 15.2 | V43: 57.2 | W43: 17.7 | X43: 4.7 | Y43: 11.6 | Z43: 6.5 | AA43: 39.4 | AB43: 53.8 | AC43: 26.2 | AD43: 1.9 | AE43: 1 | AF43: 11.2 | AG43: 5.4 | AH43: 5.2 | AI43: 0.8 | AJ43: 1.6 | AK43: 0.4 | AL43: 5.4 | AM43: 0.6 | AN43: 1.1 | AO43: 2.7 | AP43: 4.3 | AQ43: 14.2 | AR43: 5.3 | AS43: 45 | AT43: 42.8 | AU43: 42.3 | AV43: 40.4 | AW43: 41.1 | AX43: 0.7 | AY43: 1.8 | AZ43: 14.2 | BA43: 36 | BB43: 44.8 | BC43: 5.1 | BD43: 13.6 | BE43: 39.4 | BF43: 28.1 | BG43: 15.9 | BH43: 33.3 | BI43: 12.3 | BJ43: 1.5 | BK43: 13.8 | BL43: 11.8 | BM43: 1.4 | BN43: 1.04 | BO43: 1.09 | BP43: 8.6 | BQ43: 1.5 | BR43: 2.3 | BS43: 0 | BT43: 0.8 | BU43: 1.1 | BV43: 0.4 | BW43: 0.9 | BX43: 0.1 | BY43: 2.2 | BZ43: 0.8 | CA43: 75.6 | CB43: 16.1 | CC43: 12.4 | CD43: 1.9 | CE43: 1.4 | CF43: 3 | CG43: 27.4 | CH43: 6.9 | CI43: 1.3 | CJ43: 2.9 | CK43: 7.2 | CL43: 13 | CM43: 1.2 | CN43: 3.3 | CO43: 2.3 | CP43: 1.1 | CQ43: 8.4 | CR43: 5.8 | CS43: 1.7 | CT43: 2.8 | CU43: 5.6 | CV43: 2 | CW43: 47.8 | CX43: 42.6 | CY43: 48.2 | CZ43: 39.8 | DA43: 41.1 | DB43: 42.9 | DC43: 14.1 | DD43: 2.8 | DE43: 14.7 | DF43: 0.7 | DG43: 1 | DH43: 6.9 | DI43: 0.3 | DJ43: 1.1 | DK43: 2.6 | DL43: 1.4 | DM43: 15.8 | DN43: 4 | DO43: 0 | DP43: 2.7 | DQ43: 1.8 | DR43: 0.9 | DS43: 51.6
A44: T3600 | B44: 2036 | C44: 2036 | D44: 2036 | E44: - | F44: 5 | G44: 36 | H44: 0 | I44: とくしまけん | J44: 中国・四国 | K44: - | L44: 徳島県 | M44: 617 | N44: 1.5 | O44: 11.3 | P44: 34.1 | Q44: 52.2 | R44: 0 | S44: 40.5 | T44: 2.2 | U44: 15.9 | V44: 63.4 | W44: 12.3 | X44: 4.3 | Y44: 10.1 | Z44: 8.4 | AA44: 43.3 | AB44: 47.6 | AC44: 30 | AD44: 1.6 | AE44: 0.4 | AF44: 10.7 | AG44: 5.7 | AH44: 4.7 | AI44: 0.6 | AJ44: 1.7 | AK44: 1.5 | AL44: 5 | AM44: 1.2 | AN44: 0.4 | AO44: 2.8 | AP44: 3.6 | AQ44: 14.6 | AR44: 9.3 | AS44: 43.6 | AT44: 42.3 | AU44: 43.4 | AV44: 39.5 | AW44: 39.7 | AX44: 1.1 | AY44: 1.8 | AZ44: 15.2 | BA44: 42.2 | BB44: 38 | BC44: 5.8 | BD44: 11.9 | BE44: 41.7 | BF44: 28.7 | BG44: 15.2 | BH44: 32.7 | BI44: 11.7 | BJ44: 1.3 | BK44: 13 | BL44: 10 | BM44: 1.2 | BN44: 1.17 | BO44: 1.11 | BP44: 10.4 | BQ44: 2 | BR44: 1.5 | BS44: 0.5 | BT44: 0.7 | BU44: 0.9 | BV44: 0 | BW44: 0.7 | BX44: 0.2 | BY44: 1.6 | BZ44: 1.8 | CA44: 71.5 | CB44: 18.9 | CC44: 13.9 | CD44: 2.1 | CE44: 0.9 | CF44: 3.4 | CG44: 28.6 | CH44: 5.6 | CI44: 0.7 | CJ44: 9 | CK44: 3 | CL44: 2.9 | CM44: 1 | CN44: 2.7 | CO44: 2.4 | CP44: 1.5 | CQ44: 11.3 | CR44: 7.7 | CS44: 0.8 | CT44: 2.3 | CU44: 5.7 | CV44: 2.4 | CW44: 46.3 | CX44: 41.7 | CY44: 44.5 | CZ44: 40.9 | DA44: 43.8 | DB44: 42.7 | DC44: 8.7 | DD44: 1.4 | DE44: 22 | DF44: 2.5 | DG44: 0.7 | DH44: 4.3 | DI44: 0.8 | DJ44: 1.5 | DK44: 1.4 | DL44: 2.4 | DM44: 14.1 | DN44: 6.9 | DO44: 0.8 | DP44: 0.5 | DQ44: 1.7 | DR44: 0.6 | DS44: 53.3
A45: K3700 | B45: 2037 | C45: 2037 | D45: 2037 | E45: - | F45: 5 | G45: 37 | H45: 0 | I45: かがわけん | J45: 中国・四国 | K45: - | L45: 香川県 | M45: 609 | N45: 3.1 | O45: 11.4 | P45: 37 | Q45: 47.6 | R45: 0 | S45: 42.4 | T45: 1.7 | U45: 23.3 | V45: 54.8 | W45: 15.6 | X45: 2.9 | Y45: 13.4 | Z45: 9 | AA45: 48.1 | AB45: 41.8 | AC45: 33 | AD45: 2.9 | AE45: 1.4 | AF45: 20.5 | AG45: 5.5 | AH45: 6.3 | AI45: 1.7 | AJ45: 3.1 | AK45: 2.4 | AL45: 6.7 | AM45: 0.9 | AN45: 1.8 | AO45: 4.4 | AP45: 4.3 | AQ45: 12.2 | AR45: 7.8 | AS45: 47.3 | AT45: 49.5 | AU45: 47.3 | AV45: 44.3 | AW45: 45.2 | AX45: 0.8 | AY45: 2.5 | AZ45: 14.3 | BA45: 42 | BB45: 39 | BC45: 5.6 | BD45: 15.4 | BE45: 42.7 | BF45: 26.9 | BG45: 13.8 | BH45: 36.8 | BI45: 29.3 | BJ45: 1.4 | BK45: 30.7 | BL45: 28.5 | BM45: 1.4 | BN45: 1.03 | BO45: 1 | BP45: 15.1 | BQ45: 2.2 | BR45: 1.2 | BS45: 0 | BT45: 2.1 | BU45: 1.2 | BV45: 0 | BW45: 0.8 | BX45: 0.2 | BY45: 1.4 | BZ45: 0.5 | CA45: 71 | CB45: 21 | CC45: 18.5 | CD45: 3.3 | CE45: 1 | CF45: 1.9 | CG45: 23.7 | CH45: 9.1 | CI45: 0.8 | CJ45: 4.9 | CK45: 3.3 | CL45: 3.7 | CM45: 2.1 | CN45: 8.8 | CO45: 3.4 | CP45: 1.6 | CQ45: 10.6 | CR45: 13.7 | CS45: 0.9 | CT45: 3 | CU45: 5 | CV45: 3.4 | CW45: 49.1 | CX45: 41.3 | CY45: 43.1 | CZ45: 46.7 | DA45: 45.4 | DB45: 44.1 | DC45: 6 | DD45: 1.7 | DE45: 24.6 | DF45: 0.7 | DG45: 0.6 | DH45: 7.6 | DI45: 1 | DJ45: 3.5 | DK45: 1.5 | DL45: 0.9 | DM45: 13.5 | DN45: 7 | DO45: 0.4 | DP45: 1.5 | DQ45: 0.7 | DR45: 0.7 | DS45: 52.6
A46: E3800 | B46: 2038 | C46: 2038 | D46: 2038 | E46: - | F46: 5 | G46: 38 | H46: 0 | I46: えひめけん | J46: 中国・四国 | K46: - | L46: 愛媛県 | M46: 617 | N46: 1.3 | O46: 11.8 | P46: 33.7 | Q46: 52.5 | R46: 0.1 | S46: 40.3 | T46: 2.7 | U46: 20 | V46: 56.6 | W46: 16 | X46: 3.6 | Y46: 12.8 | Z46: 5.7 | AA46: 43.1 | AB46: 50.7 | AC46: 27.2 | AD46: 2.1 | AE46: 1 | AF46: 11.2 | AG46: 5.1 | AH46: 5.7 | AI46: 2 | AJ46: 2.4 | AK46: 1.4 | AL46: 5.6 | AM46: 0.1 | AN46: 0.7 | AO46: 2 | AP46: 4.7 | AQ46: 13.4 | AR46: 6.7 | AS46: 45.4 | AT46: 42.9 | AU46: 45.7 | AV46: 39.1 | AW46: 40.4 | AX46: 0.3 | AY46: 2.9 | AZ46: 15.5 | BA46: 37.8 | BB46: 41.5 | BC46: 5.6 | BD46: 12.8 | BE46: 42.3 | BF46: 27.7 | BG46: 14.9 | BH46: 34 | BI46: 19.1 | BJ46: 2.3 | BK46: 21.4 | BL46: 18.1 | BM46: 2.2 | BN46: 1.06 | BO46: 1.04 | BP46: 9.9 | BQ46: 2.1 | BR46: 2.4 | BS46: 0 | BT46: 0.5 | BU46: 1.2 | BV46: 0 | BW46: 0.7 | BX46: 0 | BY46: 0.8 | BZ46: 1.9 | CA46: 76 | CB46: 16.8 | CC46: 14.4 | CD46: 1.7 | CE46: 0.7 | CF46: 2.7 | CG46: 25.5 | CH46: 10.8 | CI46: 1.8 | CJ46: 2.1 | CK46: 3.8 | CL46: 5.7 | CM46: 1.3 | CN46: 5.7 | CO46: 2.2 | CP46: 1.5 | CQ46: 12.3 | CR46: 4.7 | CS46: 1.4 | CT46: 2.7 | CU46: 4.7 | CV46: 3.7 | CW46: 48.4 | CX46: 43.3 | CY46: 43 | CZ46: 43.4 | DA46: 40.1 | DB46: 42.5 | DC46: 6 | DD46: 1.7 | DE46: 13.4 | DF46: 1.6 | DG46: 0.9 | DH46: 5.9 | DI46: 0.9 | DJ46: 3 | DK46: 2.1 | DL46: 1.4 | DM46: 26.4 | DN46: 7.2 | DO46: 1.3 | DP46: 1.5 | DQ46: 1.8 | DR46: 0.2 | DS46: 56.7
A47: K3900 | B47: 2039 | C47: 2039 | D47: 2039 | E47: - | F47: 5 | G47: 39 | H47: 0 | I47: こうちけん | J47: 中国・四国 | K47: - | L47: 高知県 | M47: 617 | N47: 1.7 | O47: 11.9 | P47: 35 | Q47: 50 | R47: 0 | S47: 41.2 | T47: 3 | U47: 20.2 | V47: 58.5 | W47: 12.7 | X47: 3.3 | Y47: 13 | Z47: 8 | AA47: 49.5 | AB47: 42.3 | AC47: 32.7 | AD47: 5.2 | AE47: 2 | AF47: 12.2 | AG47: 6.1 | AH47: 5.5 | AI47: 1.1 | AJ47: 2.8 | AK47: 1 | AL47: 5.4 | AM47: 1.5 | AN47: 0.9 | AO47: 3.2 | AP47: 3.9 | AQ47: 15.7 | AR47: 9.1 | AS47: 52 | AT47: 44.1 | AU47: 44.7 | AV47: 41.6 | AW47: 41.4 | AX47: 1 | AY47: 2.1 | AZ47: 16.9 | BA47: 41.2 | BB47: 37.2 | BC47: 6.3 | BD47: 16.1 | BE47: 41.6 | BF47: 25.9 | BG47: 14.1 | BH47: 36.9 | BI47: 17.7 | BJ47: 1.1 | BK47: 18.8 | BL47: 15.8 | BM47: 1.1 | BN47: 1.12 | BO47: 1 | BP47: 10.7 | BQ47: 1 | BR47: 0.4 | BS47: 0 | BT47: 1.3 | BU47: 0.7 | BV47: 0.1 | BW47: 0.7 | BX47: 0.4 | BY47: 0.6 | BZ47: 0.6 | CA47: 75.3 | CB47: 15.8 | CC47: 12.1 | CD47: 2 | CE47: 1.2 | CF47: 1.2 | CG47: 31.8 | CH47: 6.7 | CI47: 0.6 | CJ47: 7.7 | CK47: 4.8 | CL47: 19.2 | CM47: 1.7 | CN47: 5.2 | CO47: 3.1 | CP47: 1.4 | CQ47: 14.1 | CR47: 9.8 | CS47: 0.5 | CT47: 3.5 | CU47: 6 | CV47: 1.6 | CW47: 40.7 | CX47: 45 | CY47: 52.1 | CZ47: 43.8 | DA47: 45.2 | DB47: 46.5 | DC47: 20.3 | DD47: 2.2 | DE47: 25.5 | DF47: 1.3 | DG47: 0.5 | DH47: 3.7 | DI47: 0.4 | DJ47: 1 | DK47: 0.5 | DL47: 2.3 | DM47: 18.2 | DN47: 7.5 | DO47: 0.2 | DP47: 0.4 | DQ47: 3 | DR47: 0.4 | DS47: 59.6
A48: H4000 | B48: 2040 | C48: 2040 | D48: 2040 | E48: - | F48: 6 | G48: 40 | H48: 0 | I48: ふくおかけん | J48: 九州・沖縄 | K48: - | L48: 福岡県 | M48: 609 | N48: 8.8 | O48: 15.8 | P48: 37.7 | Q48: 37.2 | R48: 0 | S48: 49.1 | T48: 8.6 | U48: 36.2 | V48: 44.7 | W48: 7.9 | X48: 1.3 | Y48: 26.7 | Z48: 20.3 | AA48: 49.7 | AB48: 29.5 | AC48: 45.1 | AD48: 6.1 | AE48: 3.2 | AF48: 25 | AG48: 10.2 | AH48: 9.9 | AI48: 2.8 | AJ48: 8.1 | AK48: 5.9 | AL48: 10.7 | AM48: 1.4 | AN48: 2 | AO48: 5 | AP48: 9.1 | AQ48: 19.8 | AR48: 10 | AS48: 55.4 | AT48: 57.7 | AU48: 58.2 | AV48: 52.5 | AW48: 58.1 | AX48: 4.3 | AY48: 7.5 | AZ48: 25.8 | BA48: 32.3 | BB48: 28.4 | BC48: 14.5 | BD48: 26.1 | BE48: 39.3 | BF48: 23.4 | BG48: 10 | BH48: 45.7 | BI48: 34 | BJ48: 1.5 | BK48: 35.5 | BL48: 27 | BM48: 1.5 | BN48: 1.26 | BO48: 1 | BP48: 15.5 | BQ48: 6.4 | BR48: 4.4 | BS48: 0.2 | BT48: 3 | BU48: 4.4 | BV48: 1.7 | BW48: 6.7 | BX48: 0.4 | BY48: 3 | BZ48: 1 | CA48: 60 | CB48: 32.7 | CC48: 26.3 | CD48: 7.6 | CE48: 8.8 | CF48: 4 | CG48: 12.5 | CH48: 13.1 | CI48: 11.2 | CJ48: 15.3 | CK48: 7.3 | CL48: 11.7 | CM48: 4.9 | CN48: 11.8 | CO48: 4.3 | CP48: 7.3 | CQ48: 12.6 | CR48: 19.5 | CS48: 13 | CT48: 6.6 | CU48: 8 | CV48: 8.6 | CW48: 42.1 | CX48: 46.2 | CY48: 53.2 | CZ48: 56.1 | DA48: 59.7 | DB48: 53.8 | DC48: 11.3 | DD48: 5.5 | DE48: 33.4 | DF48: 8.2 | DG48: 9.5 | DH48: 2.9 | DI48: 5.2 | DJ48: 2.5 | DK48: 2.4 | DL48: 1.5 | DM48: 6 | DN48: 6.4 | DO48: 3.2 | DP48: 12.1 | DQ48: 2.9 | DR48: 13 | DS48: 61.7
A49: S4100 | B49: 2041 | C49: 2041 | D49: 2041 | E49: - | F49: 6 | G49: 41 | H49: 0 | I49: さがけん | J49: 九州・沖縄 | K49: - | L49: 佐賀県 | M49: 617 | N49: 1.6 | O49: 9.2 | P49: 27.8 | Q49: 61 | R49: 0.1 | S49: 37.8 | T49: 2 | U49: 11 | V49: 59.6 | W49: 21 | X49: 4.9 | Y49: 7.5 | Z49: 6.5 | AA49: 38.5 | AB49: 54.3 | AC49: 25.8 | AD49: 1.8 | AE49: 1 | AF49: 10.4 | AG49: 4 | AH49: 3.2 | AI49: 1.4 | AJ49: 2.6 | AK49: 1 | AL49: 5.4 | AM49: 0.4 | AN49: 0.4 | AO49: 2 | AP49: 3.8 | AQ49: 15 | AR49: 5.3 | AS49: 44.9 | AT49: 40.1 | AU49: 44.8 | AV49: 38.8 | AW49: 38.3 | AX49: 0 | AY49: 2.3 | AZ49: 10.2 | BA49: 36.9 | BB49: 48 | BC49: 3.7 | BD49: 10.6 | BE49: 36.1 | BF49: 30.6 | BG49: 20 | BH49: 28.7 | BI49: 5.9 | BJ49: 3 | BK49: 8.8 | BL49: 5.7 | BM49: 2.7 | BN49: 1.03 | BO49: 1.1 | BP49: 7.3 | BQ49: 2.3 | BR49: 1.5 | BS49: 0 | BT49: 1.6 | BU49: 1.5 | BV49: 0.6 | BW49: 0.1 | BX49: 0 | BY49: 0.9 | BZ49: 1.6 | CA49: 77.5 | CB49: 15.4 | CC49: 11.1 | CD49: 3.1 | CE49: 0.7 | CF49: 2.5 | CG49: 22 | CH49: 8.4 | CI49: 1.6 | CJ49: 1.8 | CK49: 2.7 | CL49: 4.6 | CM49: 2.5 | CN49: 2.8 | CO49: 5.6 | CP49: 0.8 | CQ49: 7.6 | CR49: 3.9 | CS49: 0.6 | CT49: 1.1 | CU49: 4.6 | CV49: 1.8 | CW49: 53.9 | CX49: 38.5 | CY49: 41.9 | CZ49: 40.6 | DA49: 40.8 | DB49: 40.5 | DC49: 6.3 | DD49: 1.1 | DE49: 8.9 | DF49: 0.9 | DG49: 1.2 | DH49: 6.1 | DI49: 1.1 | DJ49: 1.4 | DK49: 2 | DL49: 0.7 | DM49: 18.3 | DN49: 5.7 | DO49: 1.1 | DP49: 1 | DQ49: 3.2 | DR49: 1.3 | DS49: 46.1
A50: N4200 | B50: 2042 | C50: 2042 | D50: 2042 | E50: - | F50: 6 | G50: 42 | H50: 0 | I50: ながさきけん | J50: 九州・沖縄 | K50: - | L50: 長崎県 | M50: 617 | N50: 4.9 | O50: 15 | P50: 40.1 | Q50: 38.5 | R50: 0 | S50: 46.5 | T50: 9.3 | U50: 33.3 | V50: 45 | W50: 8.1 | X50: 2.4 | Y50: 25.9 | Z50: 14.5 | AA50: 49.8 | AB50: 35.2 | AC50: 39.4 | AD50: 4 | AE50: 1.9 | AF50: 17.3 | AG50: 7.2 | AH50: 7 | AI50: 0.7 | AJ50: 3.8 | AK50: 2.4 | AL50: 5.7 | AM50: 2 | AN50: 2.1 | AO50: 2.7 | AP50: 5 | AQ50: 21.3 | AR50: 8.9 | AS50: 49.9 | AT50: 49 | AU50: 46.9 | AV50: 45 | AW50: 42.8 | AX50: 2.3 | AY50: 4.4 | AZ50: 19.5 | BA50: 38.3 | BB50: 33.6 | BC50: 9.4 | BD50: 23.9 | BE50: 44.9 | BF50: 18.8 | BG50: 10.3 | BH50: 46.4 | BI50: 28.5 | BJ50: 2.7 | BK50: 31.2 | BL50: 21.8 | BM50: 2.6 | BN50: 1.3 | BO50: 1.05 | BP50: 17.9 | BQ50: 1.9 | BR50: 2.2 | BS50: 0 | BT50: 1 | BU50: 1.4 | BV50: 0.4 | BW50: 2.3 | BX50: 0 | BY50: 0.3 | BZ50: 0.6 | CA50: 66.7 | CB50: 24.1 | CC50: 22 | CD50: 2.4 | CE50: 2.7 | CF50: 0.9 | CG50: 26.5 | CH50: 13.5 | CI50: 1.4 | CJ50: 11.8 | CK50: 17.4 | CL50: 15.5 | CM50: 3.2 | CN50: 8.3 | CO50: 5 | CP50: 3.1 | CQ50: 12.7 | CR50: 11.3 | CS50: 1.4 | CT50: 6.4 | CU50: 7.2 | CV50: 3.3 | CW50: 37.3 | CX50: 50.5 | CY50: 57.9 | CZ50: 49.2 | DA50: 50.6 | DB50: 52.1 | DC50: 28.6 | DD50: 4.9 | DE50: 41.1 | DF50: 2.1 | DG50: 7.1 | DH50: 3.1 | DI50: 2.9 | DJ50: 1.1 | DK50: 1 | DL50: 1.7 | DM50: 11.8 | DN50: 5.7 | DO50: 0.4 | DP50: 0.9 | DQ50: 3.3 | DR50: 0.8 | DS50: 68.3
A51: K4300 | B51: 2043 | C51: 2043 | D51: 2043 | E51: - | F51: 6 | G51: 43 | H51: 0 | I51: くまもとけん | J51: 九州・沖縄 | K51: - | L51: 熊本県 | M51: 609 | N51: 3.8 | O51: 14.1 | P51: 33.3 | Q51: 47.5 | R51: 0.2 | S51: 43.4 | T51: 4.9 | U51: 26.3 | V51: 50 | W51: 15 | X51: 2 | Y51: 18.1 | Z51: 12.6 | AA51: 45.9 | AB51: 40.2 | AC51: 35.6 | AD51: 3.4 | AE51: 1.7 | AF51: 19.8 | AG51: 7.3 | AH51: 8.2 | AI51: 0.9 | AJ51: 6.4 | AK51: 1.6 | AL51: 8.2 | AM51: 2.4 | AN51: 1.1 | AO51: 3.5 | AP51: 6.5 | AQ51: 15.8 | AR51: 8.2 | AS51: 48.6 | AT51: 51.4 | AU51: 49.2 | AV51: 48.3 | AW51: 48.3 | AX51: 1 | AY51: 3.9 | AZ51: 19.1 | BA51: 36.7 | BB51: 37.6 | BC51: 7.7 | BD51: 19.9 | BE51: 41.3 | BF51: 25.4 | BG51: 12.5 | BH51: 40.5 | BI51: 18 | BJ51: 0.9 | BK51: 18.9 | BL51: 15.3 | BM51: 0.9 | BN51: 1.18 | BO51: 1 | BP51: 17.1 | BQ51: 3.2 | BR51: 2.8 | BS51: 0 | BT51: 2.4 | BU51: 1.9 | BV51: 0.9 | BW51: 1.1 | BX51: 0.2 | BY51: 1.4 | BZ51: 0.9 | CA51: 68.5 | CB51: 23.9 | CC51: 23.1 | CD51: 4.3 | CE51: 2.2 | CF51: 2.3 | CG51: 28 | CH51: 19.5 | CI51: 1.4 | CJ51: 4.5 | CK51: 9.8 | CL51: 11.4 | CM51: 2.6 | CN51: 6.9 | CO51: 2 | CP51: 2.1 | CQ51: 13.8 | CR51: 12.4 | CS51: 1.7 | CT51: 6.3 | CU51: 8 | CV51: 3.5 | CW51: 39.2 | CX51: 50.9 | CY51: 49.4 | CZ51: 49.9 | DA51: 47 | DB51: 49.3 | DC51: 17.2 | DD51: 2.8 | DE51: 30.4 | DF51: 1.2 | DG51: 0.5 | DH51: 6 | DI51: 0.9 | DJ51: 2.2 | DK51: 1.3 | DL51: 0.4 | DM51: 15.6 | DN51: 6.5 | DO51: 0.3 | DP51: 2.5 | DQ51: 3.3 | DR51: 1.9 | DS51: 57.9
A52: O4400 | B52: 2044 | C52: 2044 | D52: 2044 | E52: - | F52: 6 | G52: 44 | H52: 0 | I52: おおいたけん | J52: 九州・沖縄 | K52: - | L52: 大分県 | M52: 617 | N52: 2.7 | O52: 12.2 | P52: 26.9 | Q52: 57.7 | R52: 0.3 | S52: 39.8 | T52: 4.1 | U52: 17.4 | V52: 55.6 | W52: 18.2 | X52: 3.4 | Y52: 12.8 | Z52: 7.7 | AA52: 43.1 | AB52: 48 | AC52: 29.3 | AD52: 2.2 | AE52: 0.5 | AF52: 11.8 | AG52: 6.3 | AH52: 7 | AI52: 1 | AJ52: 3.3 | AK52: 0.8 | AL52: 6 | AM52: 1.4 | AN52: 0.5 | AO52: 2 | AP52: 6.3 | AQ52: 14.1 | AR52: 6 | AS52: 44.7 | AT52: 44.9 | AU52: 44.9 | AV52: 41.7 | AW52: 44.2 | AX52: 0.9 | AY52: 3 | AZ52: 13.5 | BA52: 35.5 | BB52: 44.6 | BC52: 5.8 | BD52: 14.7 | BE52: 40.5 | BF52: 24.5 | BG52: 17.2 | BH52: 35 | BI52: 8.7 | BJ52: 1 | BK52: 9.6 | BL52: 6.7 | BM52: 1 | BN52: 1.29 | BO52: 1 | BP52: 11.6 | BQ52: 2.2 | BR52: 2.4 | BS52: 0.2 | BT52: 0.3 | BU52: 1.1 | BV52: 0.1 | BW52: 1 | BX52: 0.1 | BY52: 0.4 | BZ52: 1.1 | CA52: 73.3 | CB52: 19 | CC52: 16.2 | CD52: 1.6 | CE52: 1.2 | CF52: 1.5 | CG52: 25.3 | CH52: 23 | CI52: 2 | CJ52: 1.7 | CK52: 5 | CL52: 3.4 | CM52: 1 | CN52: 3.7 | CO52: 1.8 | CP52: 0.5 | CQ52: 9.2 | CR52: 7.5 | CS52: 1.5 | CT52: 4.6 | CU52: 4.5 | CV52: 2.4 | CW52: 45.6 | CX52: 47.4 | CY52: 42.3 | CZ52: 45.6 | DA52: 41.5 | DB52: 44.2 | DC52: 5.4 | DD52: 1.3 | DE52: 21 | DF52: 1.1 | DG52: 1.5 | DH52: 7.1 | DI52: 0.5 | DJ52: 1.6 | DK52: 1.4 | DL52: 0.7 | DM52: 15.9 | DN52: 6.6 | DO52: 1.4 | DP52: 1.3 | DQ52: 2.9 | DR52: 0.3 | DS52: 50.8
A53: M4500 | B53: 2045 | C53: 2045 | D53: 2045 | E53: - | F53: 6 | G53: 45 | H53: 0 | I53: みやざきけん | J53: 九州・沖縄 | K53: - | L53: 宮崎県 | M53: 617 | N53: 3.6 | O53: 12.4 | P53: 38.2 | Q53: 45.3 | R53: 0.1 | S53: 43.5 | T53: 5.2 | U53: 23.6 | V53: 56.8 | W53: 9.9 | X53: 3 | Y53: 17 | Z53: 23 | AA53: 49.8 | AB53: 26.4 | AC53: 47.9 | AD53: 1.8 | AE53: 1.2 | AF53: 17.1 | AG53: 6.1 | AH53: 6.1 | AI53: 1 | AJ53: 5.6 | AK53: 2.9 | AL53: 8.3 | AM53: 2.2 | AN53: 2 | AO53: 3 | AP53: 3.6 | AQ53: 30.9 | AR53: 10 | AS53: 45.2 | AT53: 47.6 | AU53: 49.9 | AV53: 49.7 | AW53: 40.2 | AX53: 1.6 | AY53: 3.4 | AZ53: 17.2 | BA53: 40.8 | BB53: 35.4 | BC53: 7.6 | BD53: 16.4 | BE53: 45.4 | BF53: 24.3 | BG53: 11.5 | BH53: 39.1 | BI53: 26.8 | BJ53: 1 | BK53: 27.8 | BL53: 22 | BM53: 0.8 | BN53: 1.22 | BO53: 1.34 | BP53: 11.2 | BQ53: 2.3 | BR53: 1.5 | BS53: 0 | BT53: 1.1 | BU53: 2.2 | BV53: 0.1 | BW53: 1.6 | BX53: 0 | BY53: 0.5 | BZ53: 0.8 | CA53: 73 | CB53: 17.2 | CC53: 15 | CD53: 3.3 | CE53: 1.7 | CF53: 1.3 | CG53: 31 | CH53: 13.2 | CI53: 1.9 | CJ53: 2.5 | CK53: 2.7 | CL53: 3.7 | CM53: 0.7 | CN53: 8.3 | CO53: 3 | CP53: 0.7 | CQ53: 18 | CR53: 11 | CS53: 0.3 | CT53: 4.8 | CU53: 7.6 | CV53: 3.6 | CW53: 40.8 | CX53: 47.9 | CY53: 41.8 | CZ53: 48.6 | DA53: 44.8 | DB53: 45.8 | DC53: 7.4 | DD53: 2.7 | DE53: 29.4 | DF53: 3.2 | DG53: 0.6 | DH53: 3.8 | DI53: 0.1 | DJ53: 2.2 | DK53: 1.9 | DL53: 0.8 | DM53: 22.7 | DN53: 11.3 | DO53: 0.4 | DP53: 0.7 | DQ53: 6.2 | DR53: 2.9 | DS53: 64.8
A54: K4600 | B54: 2046 | C54: 2046 | D54: 2046 | E54: - | F54: 6 | G54: 46 | H54: 0 | I54: かごしまけん | J54: 九州・沖縄 | K54: - | L54: 鹿児島県 | M54: 609 | N54: 4.3 | O54: 13.8 | P54: 37.8 | Q54: 42.8 | R54: 0.3 | S54: 44.7 | T54: 6.8 | U54: 26.7 | V54: 47.5 | W54: 14.3 | X54: 2.3 | Y54: 20.2 | Z54: 13.4 | AA54: 51.3 | AB54: 34.7 | AC54: 39 | AD54: 5.3 | AE54: 1.7 | AF54: 20.6 | AG54: 6.6 | AH54: 8.2 | AI54: 1.7 | AJ54: 5.9 | AK54: 3.5 | AL54: 8.9 | AM54: 3 | AN54: 1.7 | AO54: 3.6 | AP54: 6.4 | AQ54: 18.5 | AR54: 9.5 | AS54: 51.7 | AT54: 51.5 | AU54: 51.7 | AV54: 51.6 | AW54: 48.3 | AX54: 1.1 | AY54: 4.2 | AZ54: 15.6 | BA54: 38.8 | BB54: 38.5 | BC54: 7.1 | BD54: 21.8 | BE54: 41.9 | BF54: 23.4 | BG54: 11.7 | BH54: 42.8 | BI54: 21.9 | BJ54: 1.1 | BK54: 23 | BL54: 17.5 | BM54: 0.8 | BN54: 1.25 | BO54: 1.27 | BP54: 13 | BQ54: 1.6 | BR54: 2.6 | BS54: 0 | BT54: 1 | BU54: 1.5 | BV54: 0 | BW54: 2.2 | BX54: 0 | BY54: 0.6 | BZ54: 0.8 | CA54: 74.2 | CB54: 17.8 | CC54: 17.2 | CD54: 2.5 | CE54: 2.2 | CF54: 1.4 | CG54: 33.1 | CH54: 19.9 | CI54: 1.3 | CJ54: 5 | CK54: 8.5 | CL54: 16 | CM54: 2.5 | CN54: 10.4 | CO54: 3.4 | CP54: 1.9 | CQ54: 15.3 | CR54: 11.7 | CS54: 1.8 | CT54: 5 | CU54: 9.9 | CV54: 4.3 | CW54: 38.3 | CX54: 52.4 | CY54: 51.1 | CZ54: 52 | DA54: 47.6 | DB54: 50.8 | DC54: 18 | DD54: 2.5 | DE54: 34.6 | DF54: 1.5 | DG54: 0.6 | DH54: 6.9 | DI54: 1.1 | DJ54: 3.1 | DK54: 1 | DL54: 1.6 | DM54: 17.8 | DN54: 8 | DO54: 0 | DP54: 1.6 | DQ54: 6.8 | DR54: 2 | DS54: 63.6
A55: O4700 | B55: 2047 | C55: 2047 | D55: 2047 | E55: - | F55: 6 | G55: 47 | H55: 0 | I55: おきなわけん | J55: 九州・沖縄 | K55: - | L55: 沖縄県 | M55: 617 | N55: 5.2 | O55: 20.2 | P55: 37.2 | Q55: 37.3 | R55: 0 | S55: 48.3 | T55: 30.9 | U55: 38.7 | V55: 21.8 | W55: 6.2 | X55: 1.6 | Y55: 50.3 | Z55: 32.4 | AA55: 48.5 | AB55: 18.8 | AC55: 56.7 | AD55: 9.9 | AE55: 2.8 | AF55: 28.7 | AG55: 16.8 | AH55: 22.3 | AI55: 4.6 | AJ55: 10.8 | AK55: 4.9 | AL55: 12.3 | AM55: 3.7 | AN55: 2.8 | AO55: 4.9 | AP55: 12.5 | AQ55: 26.4 | AR55: 9 | AS55: 61 | AT55: 72.2 | AU55: 62.2 | AV55: 60.7 | AW55: 65.9 | AX55: 9.5 | AY55: 10.5 | AZ55: 21 | BA55: 25.6 | BB55: 31.7 | BC55: 20 | BD55: 45 | BE55: 35 | BF55: 10.9 | BG55: 7.5 | BH55: 62.4 | BI55: 39.8 | BJ55: 6.6 | BK55: 46.3 | BL55: 29.3 | BM55: 6.2 | BN55: 1.36 | BO55: 1.07 | BP55: 18.6 | BQ55: 2.3 | BR55: 2.4 | BS55: 0.1 | BT55: 1.2 | BU55: 1.2 | BV55: 0.1 | BW55: 1.4 | BX55: 0 | BY55: 0.3 | BZ55: 1.1 | CA55: 68.9 | CB55: 24 | CC55: 23.3 | CD55: 2.5 | CE55: 1.5 | CF55: 1.4 | CG55: 54.9 | CH55: 16.5 | CI55: 5.4 | CJ55: 15 | CK55: 16.4 | CL55: 7.7 | CM55: 3.8 | CN55: 17.1 | CO55: 9.6 | CP55: 5.5 | CQ55: 20.8 | CR55: 12 | CS55: 1.6 | CT55: 11.7 | CU55: 17.3 | CV55: 4.7 | CW55: 20.3 | CX55: 65.4 | CY55: 55.4 | CZ55: 58.6 | DA55: 61.7 | DB55: 60.3 | DC55: 25.7 | DD55: 2.5 | DE55: 64.6 | DF55: 3.9 | DG55: 15 | DH55: 10.9 | DI55: 3.2 | DJ55: 6.4 | DK55: 2.3 | DL55: 4.8 | DM55: 8.7 | DN55: 6.1 | DO55: 1.6 | DP55: 3.5 | DQ55: 8.5 | DR55: 7.6 | DS55: 82.6
A56: - | B56: 3001 | C56: 3001 | D56: 3001 | E56: - | F56: 1 | G56: - | H56: - | I56: とうほく | J56: 北海道・東北 | K56: - | L56: 東北 | M56: 617 | N56: 3.8 | O56: 15.7 | P56: 38.8 | Q56: 40.9 | R56: 0 | S56: 45.6 | T56: 6.5 | U56: 24.9 | V56: 51.1 | W56: 12.6 | X56: 3.7 | Y56: 18.9 | Z56: 54.9 | AA56: 34.5 | AB56: 10.3 | AC56: 72.1 | AD56: 3.8 | AE56: 2 | AF56: 15.4 | AG56: 8.1 | AH56: 7.9 | AI56: 2.5 | AJ56: 11.7 | AK56: 4.9 | AL56: 13 | AM56: 2.8 | AN56: 2.3 | AO56: 5.7 | AP56: 7.1 | AQ56: 54.4 | AR56: 11.2 | AS56: 49.8 | AT56: 48.9 | AU56: 60.8 | AV56: 59.5 | AW56: 55 | AX56: 2.2 | AY56: 3.8 | AZ56: 12.5 | BA56: 35.1 | BB56: 44.1 | BC56: 7.2 | BD56: 21.4 | BE56: 38.1 | BF56: 22.1 | BG56: 15.9 | BH56: 40.5 | BI56: 17.5 | BJ56: 2.2 | BK56: 19.7 | BL56: 12.4 | BM56: 1.9 | BN56: 1.41 | BO56: 1.15 | BP56: 18.6 | BQ56: 4.8 | BR56: 4.2 | BS56: 0.3 | BT56: 2.1 | BU56: 3.4 | BV56: 0.4 | BW56: 3.1 | BX56: 0 | BY56: 1.6 | BZ56: 1.6 | CA56: 61.2 | CB56: 29 | CC56: 27.6 | CD56: 5.8 | CE56: 3.5 | CF56: 3.2 | CG56: 42.8 | CH56: 19.7 | CI56: 3.1 | CJ56: 17 | CK56: 10.1 | CL56: 9.5 | CM56: 2.6 | CN56: 10.2 | CO56: 9.3 | CP56: 1.9 | CQ56: 22.6 | CR56: 17.5 | CS56: 1.3 | CT56: 8.1 | CU56: 15.3 | CV56: 5.9 | CW56: 31.8 | CX56: 59.5 | CY56: 54.3 | CZ56: 58.5 | DA56: 60.9 | DB56: 58.3 | DC56: 18.2 | DD56: 3.4 | DE56: 20.6 | DF56: 1.3 | DG56: 0.7 | DH56: 4.8 | DI56: 0.7 | DJ56: 2.8 | DK56: 1.4 | DL56: 1 | DM56: 25.6 | DN56: 9.2 | DO56: 1.7 | DP56: 0.9 | DQ56: 30.7 | DR56: 4.5 | DS56: 72.3
A57: - | B57: 3002 | C57: 3002 | D57: 3002 | E57: - | F57: 2 | G57: - | H57: - | I57: きたかんとう | J57: 関東 | K57: - | L57: 北関東 | M57: 609 | N57: 2.2 | O57: 12.2 | P57: 33.1 | Q57: 47.8 | R57: 3 | S57: 40.6 | T57: 1.9 | U57: 19.9 | V57: 54.5 | W57: 16.2 | X57: 2.7 | Y57: 11.8 | Z57: 15 | AA57: 51.3 | AB57: 32.9 | AC57: 40.6 | AD57: 2.7 | AE57: 1 | AF57: 13.7 | AG57: 6.3 | AH57: 5.2 | AI57: 1.1 | AJ57: 1.9 | AK57: 1.5 | AL57: 7.4 | AM57: 0.5 | AN57: 1.4 | AO57: 4.1 | AP57: 4.1 | AQ57: 22.4 | AR57: 11.5 | AS57: 46.3 | AT57: 45 | AU57: 44.2 | AV57: 44.2 | AW57: 44 | AX57: 1 | AY57: 3.7 | AZ57: 16 | BA57: 38.3 | BB57: 39.6 | BC57: 6.8 | BD57: 9.9 | BE57: 36.2 | BF57: 35.2 | BG57: 16.2 | BH57: 28 | BI57: 5.2 | BJ57: 0.7 | BK57: 5.9 | BL57: 5 | BM57: 0.7 | BN57: 1.05 | BO57: 1 | BP57: 15.9 | BQ57: 5 | BR57: 3.7 | BS57: 0.3 | BT57: 2.1 | BU57: 3.7 | BV57: 1.3 | BW57: 3.5 | BX57: 0 | BY57: 3.4 | BZ57: 2.2 | CA57: 59.8 | CB57: 30.2 | CC57: 24.6 | CD57: 6.1 | CE57: 4.8 | CF57: 5.6 | CG57: 19.1 | CH57: 12.1 | CI57: 5 | CJ57: 2.8 | CK57: 5.7 | CL57: 4.4 | CM57: 2.4 | CN57: 4.4 | CO57: 3.8 | CP57: 1.3 | CQ57: 7.4 | CR57: 4 | CS57: 6.2 | CT57: 4.6 | CU57: 3.2 | CV57: 4.3 | CW57: 53.6 | CX57: 42.8 | CY57: 43.6 | CZ57: 42.6 | DA57: 42.6 | DB57: 42.9 | DC57: 7.4 | DD57: 2.4 | DE57: 18.7 | DF57: 3.7 | DG57: 3.9 | DH57: 4.7 | DI57: 2.3 | DJ57: 2.1 | DK57: 2.3 | DL57: 2.5 | DM57: 10.2 | DN57: 6.9 | DO57: 2.6 | DP57: 3.9 | DQ57: 6.7 | DR57: 9.7 | DS57: 51.6
A58: - | B58: 3003 | C58: 3003 | D58: 3004 | E58: - | F58: 2 | G58: - | H58: - | I58: しゅとけん | J58: 関東 | K58: - | L58: 首都圏 | M58: 617 | N58: 9.8 | O58: 29.4 | P58: 38.7 | Q58: 21 | R58: 0.1 | S58: 57.1 | T58: 16.8 | U58: 38.4 | V58: 34.7 | W58: 7 | X58: 1.7 | Y58: 36 | Z58: 56.6 | AA58: 35.4 | AB58: 7.9 | AC58: 74.3 | AD58: 10.3 | AE58: 5.4 | AF58: 21.8 | AG58: 11.5 | AH58: 9.1 | AI58: 2.3 | AJ58: 5.8 | AK58: 4.4 | AL58: 14.2 | AM58: 3.4 | AN58: 3.6 | AO58: 7.1 | AP58: 10.1 | AQ58: 51 | AR58: 12.6 | AS58: 65.8 | AT58: 56 | AU58: 53.3 | AV58: 64.9 | AW58: 65.5 | AX58: 14.9 | AY58: 11.9 | AZ58: 22.2 | BA58: 24.8 | BB58: 24.2 | BC58: 26.4 | BD58: 29.7 | BE58: 36.6 | BF58: 23.6 | BG58: 8.3 | BH58: 48 | BI58: 8.8 | BJ58: 1.8 | BK58: 10.6 | BL58: 5.9 | BM58: 1.5 | BN58: 1.51 | BO58: 1.18 | BP58: 30.8 | BQ58: 14.2 | BR58: 14.5 | BS58: 2.3 | BT58: 14 | BU58: 12.5 | BV58: 9.8 | BW58: 19.2 | BX58: 0.8 | BY58: 8.7 | BZ58: 5.1 | CA58: 25.6 | CB58: 69.4 | CC58: 59.5 | CD58: 28.8 | CE58: 29.8 | CF58: 13.8 | CG58: 3.7 | CH58: 17.7 | CI58: 22.9 | CJ58: 8.3 | CK58: 9.5 | CL58: 12.1 | CM58: 19.9 | CN58: 7.6 | CO58: 5.2 | CP58: 16.2 | CQ58: 4.1 | CR58: 11.4 | CS58: 41.7 | CT58: 13.2 | CU58: 2.4 | CV58: 15.1 | CW58: 25.2 | CX58: 54.6 | CY58: 51.3 | CZ58: 60.9 | DA58: 65 | DB58: 58 | DC58: 13 | DD58: 15.4 | DE58: 26.8 | DF58: 8.7 | DG58: 24.3 | DH58: 0.8 | DI58: 13.7 | DJ58: 1.6 | DK58: 5 | DL58: 2.1 | DM58: 0.9 | DN58: 2.6 | DO58: 29 | DP58: 32.2 | DQ58: 17.2 | DR58: 37.7 | DS58: 79.6
A59: - | B59: 3004 | C59: 3004 | D59: - | E59: - | F59: 3 | G59: - | H59: - | I59: しんしゅう | J59: 中部 | K59: - | L59: 信州 | M59: 617 | N59: 4.1 | O59: 16.6 | P59: 29.8 | Q59: 48.2 | R59: 0.7 | S59: 43.8 | T59: 12 | U59: 32.1 | V59: 42.7 | W59: 9 | X59: 1.9 | Y59: 28 | Z59: 15.6 | AA59: 46.9 | AB59: 36.8 | AC59: 39.1 | AD59: 6.2 | AE59: 1.4 | AF59: 19.5 | AG59: 8.2 | AH59: 12 | AI59: 1.7 | AJ59: 4.8 | AK59: 3 | AL59: 7.3 | AM59: 2.4 | AN59: 1.3 | AO59: 3.2 | AP59: 5.9 | AQ59: 16.7 | AR59: 5.7 | AS59: 52.7 | AT59: 54.2 | AU59: 49.9 | AV59: 47.1 | AW59: 46.1 | AX59: 1.5 | AY59: 5.8 | AZ59: 21.4 | BA59: 36.2 | BB59: 32.1 | BC59: 9.8 | BD59: 24.4 | BE59: 42.4 | BF59: 20.4 | BG59: 10.9 | BH59: 45.6 | BI59: 17.8 | BJ59: 0.9 | BK59: 18.7 | BL59: 14.7 | BM59: 0.6 | BN59: 1.21 | BO59: 1.53 | BP59: 21.1 | BQ59: 1.9 | BR59: 1.9 | BS59: 0.5 | BT59: 0.7 | BU59: 2.7 | BV59: 0 | BW59: 1.6 | BX59: 0.4 | BY59: 2.6 | BZ59: 1.8 | CA59: 61.1 | CB59: 29.5 | CC59: 24.9 | CD59: 3.9 | CE59: 2 | CF59: 4.4 | CG59: 36.8 | CH59: 20.3 | CI59: 1.9 | CJ59: 8.1 | CK59: 8.8 | CL59: 5.8 | CM59: 4 | CN59: 8 | CO59: 3.9 | CP59: 2.4 | CQ59: 13.4 | CR59: 10.3 | CS59: 2.3 | CT59: 5.6 | CU59: 7.3 | CV59: 3.5 | CW59: 38.4 | CX59: 53.7 | CY59: 48 | CZ59: 50.9 | DA59: 48.5 | DB59: 50.3 | DC59: 12.1 | DD59: 2.3 | DE59: 34.7 | DF59: 4.3 | DG59: 1.1 | DH59: 8.9 | DI59: 2.3 | DJ59: 2.8 | DK59: 3.2 | DL59: 1.6 | DM59: 15.9 | DN59: 6.6 | DO59: 1.4 | DP59: 2 | DQ59: 3 | DR59: 0.8 | DS59: 61.9
A60: - | B60: 3005 | C60: 3005 | D60: 3005 | E60: - | F60: 3 | G60: - | H60: - | I60: ちゅうぶ | J60: 中部 | K60: - | L60: 中部 | M60: 609 | N60: 8.3 | O60: 16.4 | P60: 33.9 | Q60: 39.1 | R60: 1.3 | S60: 47.8 | T60: 4.6 | U60: 23.7 | V60: 53.6 | W60: 13.3 | X60: 1.9 | Y60: 16.4 | Z60: 17.9 | AA60: 51.4 | AB60: 29.7 | AC60: 43.6 | AD60: 3 | AE60: 1.3 | AF60: 17.7 | AG60: 7.6 | AH60: 7.5 | AI60: 1.6 | AJ60: 4.4 | AK60: 3.3 | AL60: 10.5 | AM60: 0.9 | AN60: 2.6 | AO60: 4.6 | AP60: 6.6 | AQ60: 23.2 | AR60: 10.9 | AS60: 47.3 | AT60: 49.8 | AU60: 49.7 | AV60: 52.3 | AW60: 51.2 | AX60: 2.1 | AY60: 7.6 | AZ60: 18.9 | BA60: 38.5 | BB60: 31.1 | BC60: 10.6 | BD60: 15 | BE60: 38.3 | BF60: 32.1 | BG60: 12.9 | BH60: 34.2 | BI60: 14.5 | BJ60: 1.5 | BK60: 16 | BL60: 9.2 | BM60: 1.2 | BN60: 1.57 | BO60: 1.22 | BP60: 19 | BQ60: 5.8 | BR60: 5.2 | BS60: 1.1 | BT60: 3.2 | BU60: 4.6 | BV60: 3.8 | BW60: 12 | BX60: 0.1 | BY60: 4 | BZ60: 4.6 | CA60: 47.9 | CB60: 43.1 | CC60: 30 | CD60: 8.9 | CE60: 15.9 | CF60: 8.6 | CG60: 19 | CH60: 10.7 | CI60: 5.9 | CJ60: 4.7 | CK60: 5.2 | CL60: 8.3 | CM60: 4.2 | CN60: 5.2 | CO60: 4.3 | CP60: 2.6 | CQ60: 6.1 | CR60: 6.5 | CS60: 8.4 | CT60: 4.2 | CU60: 4.5 | CV60: 11.9 | CW60: 51 | CX60: 42.3 | CY60: 46 | CZ60: 46.3 | DA60: 45.9 | DB60: 45.1 | DC60: 8.2 | DD60: 3.8 | DE60: 18.9 | DF60: 3.5 | DG60: 6.7 | DH60: 3.8 | DI60: 2.2 | DJ60: 2.2 | DK60: 2.1 | DL60: 1 | DM60: 7.6 | DN60: 8.6 | DO60: 5.5 | DP60: 6.6 | DQ60: 5.6 | DR60: 6.3 | DS60: 51
A61: - | B61: 3006 | C61: 3006 | D61: 3006 | E61: - | F61: 3 | G61: - | H61: - | I61: ほくりく | J61: 中部 | K61: - | L61: 北陸 | M61: 617 | N61: 3.1 | O61: 14.9 | P61: 32.5 | Q61: 47.8 | R61: 0.8 | S61: 42.9 | T61: 7.9 | U61: 24.9 | V61: 51.2 | W61: 9.5 | X61: 3.4 | Y61: 20.3 | Z61: 12.6 | AA61: 49.8 | AB61: 36.8 | AC61: 37.5 | AD61: 4.4 | AE61: 1.1 | AF61: 17.4 | AG61: 7.4 | AH61: 10.6 | AI61: 1.6 | AJ61: 3.4 | AK61: 1.6 | AL61: 6.9 | AM61: 1.5 | AN61: 0.7 | AO61: 2.6 | AP61: 4.3 | AQ61: 19.6 | AR61: 6.5 | AS61: 49.3 | AT61: 51.5 | AU61: 46.6 | AV61: 43.8 | AW61: 40.9 | AX61: 0.7 | AY61: 3.6 | AZ61: 15.1 | BA61: 41.3 | BB61: 36.3 | BC61: 6.3 | BD61: 20.1 | BE61: 41.6 | BF61: 24 | BG61: 12.3 | BH61: 40.9 | BI61: 8.2 | BJ61: 1.8 | BK61: 10 | BL61: 6.9 | BM61: 1.7 | BN61: 1.18 | BO61: 1.08 | BP61: 17.8 | BQ61: 3.5 | BR61: 1.3 | BS61: 0.1 | BT61: 0.9 | BU61: 1.3 | BV61: 0.3 | BW61: 2.7 | BX61: 0 | BY61: 2 | BZ61: 1.2 | CA61: 64.6 | CB61: 26.5 | CC61: 22.6 | CD61: 2.3 | CE61: 3 | CF61: 3.2 | CG61: 29.2 | CH61: 14.8 | CI61: 0.7 | CJ61: 7.7 | CK61: 7 | CL61: 4.9 | CM61: 1.4 | CN61: 4.4 | CO61: 6.8 | CP61: 1.8 | CQ61: 12.7 | CR61: 11.6 | CS61: 1.6 | CT61: 5.5 | CU61: 7 | CV61: 2.9 | CW61: 44.8 | CX61: 48.1 | CY61: 46.6 | CZ61: 47.9 | DA61: 48.4 | DB61: 47.8 | DC61: 10.1 | DD61: 3.1 | DE61: 26.8 | DF61: 0.7 | DG61: 0 | DH61: 6.7 | DI61: 1.5 | DJ61: 2.7 | DK61: 2 | DL61: 1.2 | DM61: 16.9 | DN61: 7.9 | DO61: 0.5 | DP61: 1.8 | DQ61: 5.3 | DR61: 1 | DS61: 55.7
A62: - | B62: 3007 | C62: 3007 | D62: 3007 | E62: - | F62: 3 | G62: - | H62: - | I62: とうかい | J62: 中部 | K62: - | L62: 東海 | M62: 617 | N62: 6.4 | O62: 17.7 | P62: 36.8 | Q62: 38.1 | R62: 0 | S62: 48.1 | T62: 5.7 | U62: 26.6 | V62: 54.6 | W62: 8.9 | X62: 2.3 | Y62: 19 | Z62: 25.7 | AA62: 52.8 | AB62: 20 | AC62: 52.1 | AD62: 3.2 | AE62: 1.5 | AF62: 18.3 | AG62: 7.5 | AH62: 6.3 | AI62: 1.3 | AJ62: 2.9 | AK62: 2.8 | AL62: 8.8 | AM62: 2.7 | AN62: 2.1 | AO62: 4.8 | AP62: 5.9 | AQ62: 35.4 | AR62: 11.5 | AS62: 48 | AT62: 49.4 | AU62: 47 | AV62: 51.6 | AW62: 50 | AX62: 3.9 | AY62: 5.6 | AZ62: 24.9 | BA62: 35.5 | BB62: 28 | BC62: 12.9 | BD62: 18.9 | BE62: 40.3 | BF62: 27 | BG62: 11.5 | BH62: 39.1 | BI62: 11.2 | BJ62: 0.9 | BK62: 12.1 | BL62: 7.4 | BM62: 0.8 | BN62: 1.51 | BO62: 1.18 | BP62: 18.4 | BQ62: 7.3 | BR62: 4.6 | BS62: 0.9 | BT62: 3.2 | BU62: 4.3 | BV62: 3.1 | BW62: 8.7 | BX62: 0.4 | BY62: 5.9 | BZ62: 3.1 | CA62: 48.8 | CB62: 41.7 | CC62: 30.3 | CD62: 8.4 | CE62: 12.2 | CF62: 9 | CG62: 16.9 | CH62: 13.4 | CI62: 7 | CJ62: 6.3 | CK62: 7.1 | CL62: 8.3 | CM62: 4.6 | CN62: 6.9 | CO62: 4.7 | CP62: 4.1 | CQ62: 9.4 | CR62: 8.1 | CS62: 12.7 | CT62: 6.6 | CU62: 4.2 | CV62: 13.6 | CW62: 42.4 | CX62: 46.5 | CY62: 47.6 | CZ62: 50.6 | DA62: 48.7 | DB62: 48.4 | DC62: 11.6 | DD62: 3.3 | DE62: 18.9 | DF62: 5.5 | DG62: 2.6 | DH62: 2 | DI62: 2.3 | DJ62: 2 | DK62: 1 | DL62: 1.9 | DM62: 6.9 | DN62: 8.3 | DO62: 7.9 | DP62: 10 | DQ62: 18.4 | DR62: 5.8 | DS62: 61.3
A63: - | B63: 3008 | C63: 3008 | D63: 3008 | E63: - | F63: 3 | G63: - | H63: - | I63: ちゅうきょう | J63: 中部 | K63: - | L63: 中京 | M63: 617 | N63: 2.1 | O63: 14 | P63: 26.3 | Q63: 52.6 | R63: 4.8 | S63: 39 | T63: 3.6 | U63: 14.6 | V63: 59.6 | W63: 14.3 | X63: 2.9 | Y63: 10.9 | Z63: 8.8 | AA63: 43.9 | AB63: 46.9 | AC63: 30.7 | AD63: 1.4 | AE63: 1 | AF63: 11.7 | AG63: 5.7 | AH63: 5.6 | AI63: 0.5 | AJ63: 1.3 | AK63: 0.7 | AL63: 6.5 | AM63: 0.4 | AN63: 1 | AO63: 2.4 | AP63: 4.4 | AQ63: 16.6 | AR63: 6.8 | AS63: 44.2 | AT63: 43.6 | AU63: 41.9 | AV63: 41.7 | AW63: 40.7 | AX63: 0.8 | AY63: 3.1 | AZ63: 12.8 | BA63: 43.4 | BB63: 37.5 | BC63: 5.6 | BD63: 10.4 | BE63: 36.4 | BF63: 33.8 | BG63: 16.9 | BH63: 28.6 | BI63: 4.2 | BJ63: 1.1 | BK63: 5.3 | BL63: 3.4 | BM63: 0.8 | BN63: 1.25 | BO63: 1.32 | BP63: 13.8 | BQ63: 5.4 | BR63: 2.2 | BS63: 0.8 | BT63: 1.6 | BU63: 1.8 | BV63: 0.8 | BW63: 3.5 | BX63: 0 | BY63: 4.3 | BZ63: 1.9 | CA63: 64.8 | CB63: 26.8 | CC63: 21.4 | CD63: 4.2 | CE63: 4.3 | CF63: 6.2 | CG63: 8.9 | CH63: 2.7 | CI63: 5.1 | CJ63: 2.7 | CK63: 2.6 | CL63: 4.9 | CM63: 2.4 | CN63: 2.8 | CO63: 4.6 | CP63: 1.9 | CQ63: 4.5 | CR63: 3.6 | CS63: 11.3 | CT63: 1.5 | CU63: 2.2 | CV63: 11.1 | CW63: 54.8 | CX63: 34.9 | CY63: 42.4 | CZ63: 40.6 | DA63: 41.1 | DB63: 39.8 | DC63: 3.4 | DD63: 2.1 | DE63: 11.3 | DF63: 4.6 | DG63: 3.7 | DH63: 2.3 | DI63: 1.7 | DJ63: 2.7 | DK63: 0.9 | DL63: 1 | DM63: 3.8 | DN63: 8.2 | DO63: 8.2 | DP63: 7.1 | DQ63: 3.8 | DR63: 6.2 | DS63: 50.1
A64: - | B64: 3009 | C64: 3009 | D64: 3009 | E64: - | F64: 4 | G64: - | H64: - | I64: かんさい | J64: 近畿 | K64: - | L64: 関西 | M64: 609 | N64: 10.1 | O64: 22.3 | P64: 34.4 | Q64: 31.7 | R64: 0.3 | S64: 52.6 | T64: 10.8 | U64: 35.7 | V64: 42.1 | W64: 8.6 | X64: 0.9 | Y64: 28.7 | Z64: 29.9 | AA64: 50.5 | AB64: 18.5 | AC64: 55.2 | AD64: 6.6 | AE64: 3.4 | AF64: 23.8 | AG64: 10.6 | AH64: 11.1 | AI64: 1.7 | AJ64: 4.8 | AK64: 3.7 | AL64: 11.6 | AM64: 1.7 | AN64: 2.2 | AO64: 6.4 | AP64: 8.7 | AQ64: 25.8 | AR64: 12.5 | AS64: 56.6 | AT64: 57.9 | AU64: 50.7 | AV64: 54.9 | AW64: 60.4 | AX64: 6.9 | AY64: 8.3 | AZ64: 23 | BA64: 33.4 | BB64: 26.7 | BC64: 16.8 | BD64: 24.5 | BE64: 44.3 | BF64: 21.4 | BG64: 8.3 | BH64: 46.7 | BI64: 21 | BJ64: 1.9 | BK64: 22.9 | BL64: 15 | BM64: 1.5 | BN64: 1.4 | BO64: 1.24 | BP64: 27.5 | BQ64: 8.3 | BR64: 10.7 | BS64: 1.2 | BT64: 6.4 | BU64: 8.3 | BV64: 3.4 | BW64: 11.9 | BX64: 0.4 | BY64: 5.4 | BZ64: 2.8 | CA64: 39.2 | CB64: 54.9 | CC64: 46.5 | CD64: 15.9 | CE64: 15.7 | CF64: 8.2 | CG64: 9.8 | CH64: 11.6 | CI64: 10.8 | CJ64: 11.4 | CK64: 12 | CL64: 12.1 | CM64: 7.4 | CN64: 10.4 | CO64: 7.5 | CP64: 9.6 | CQ64: 6.3 | CR64: 19.3 | CS64: 17 | CT64: 7.3 | CU64: 7.7 | CV64: 11.5 | CW64: 41.2 | CX64: 45.8 | CY64: 53.8 | CZ64: 56.5 | DA64: 60.4 | DB64: 54.1 | DC64: 19 | DD64: 6.9 | DE64: 30.1 | DF64: 5 | DG64: 14.1 | DH64: 1.2 | DI64: 5.1 | DJ64: 3.4 | DK64: 2.1 | DL64: 1.4 | DM64: 3.2 | DN64: 6.2 | DO64: 5.3 | DP64: 16.3 | DQ64: 5.1 | DR64: 21.1 | DS64: 64.5
A65: - | B65: 3010 | C65: 3010 | D65: 3010 | E65: - | F65: 4 | G65: - | H65: - | I65: きんき | J65: 近畿 | K65: - | L65: 近畿 | M65: 617 | N65: 9.7 | O65: 18.6 | P65: 33.8 | Q65: 37.4 | R65: 0 | S65: 50.1 | T65: 8.8 | U65: 30.4 | V65: 47.1 | W65: 9 | X65: 2.4 | Y65: 23.9 | Z65: 27.6 | AA65: 51.5 | AB65: 20.6 | AC65: 53.4 | AD65: 5.1 | AE65: 2.9 | AF65: 19.8 | AG65: 7.4 | AH65: 8.1 | AI65: 1.1 | AJ65: 4 | AK65: 3.3 | AL65: 8.6 | AM65: 3.2 | AN65: 2.1 | AO65: 4.3 | AP65: 8.3 | AQ65: 31.6 | AR65: 12 | AS65: 53.3 | AT65: 51.4 | AU65: 48.6 | AV65: 52.2 | AW65: 54.5 | AX65: 5.5 | AY65: 9.4 | AZ65: 22.9 | BA65: 34.2 | BB65: 26 | BC65: 15.9 | BD65: 21.2 | BE65: 41.5 | BF65: 23.3 | BG65: 11.2 | BH65: 42 | BI65: 8.8 | BJ65: 1.6 | BK65: 10.4 | BL65: 6.1 | BM65: 1 | BN65: 1.44 | BO65: 1.6 | BP65: 26.6 | BQ65: 8.1 | BR65: 6.5 | BS65: 0.5 | BT65: 5.8 | BU65: 5.9 | BV65: 2.4 | BW65: 9.1 | BX65: 1 | BY65: 5.1 | BZ65: 4.7 | CA65: 42.5 | CB65: 49 | CC65: 41.2 | CD65: 12.2 | CE65: 12.5 | CF65: 9.8 | CG65: 13.2 | CH65: 13.8 | CI65: 9.9 | CJ65: 9.5 | CK65: 15.1 | CL65: 12.6 | CM65: 6.1 | CN65: 6.9 | CO65: 6.6 | CP65: 6.5 | CQ65: 8.9 | CR65: 11.6 | CS65: 16.7 | CT65: 6.8 | CU65: 6 | CV65: 9.5 | CW65: 41.3 | CX65: 49.4 | CY65: 54.5 | CZ65: 52.2 | DA65: 54.5 | DB65: 52.7 | DC65: 20.5 | DD65: 7 | DE65: 27.8 | DF65: 3.5 | DG65: 6 | DH65: 1.9 | DI65: 3.3 | DJ65: 2.2 | DK65: 2 | DL65: 1.2 | DM65: 3.8 | DN65: 7.2 | DO65: 3.8 | DP65: 13.4 | DQ65: 6.3 | DR65: 12.7 | DS65: 63.1
A66: - | B66: 3011 | C66: 3011 | D66: 3011 | E66: - | F66: 5 | G66: - | H66: - | I66: ちゅうごく | J66: 中国・四国 | K66: - | L66: 中国 | M66: 609 | N66: 4.1 | O66: 14.1 | P66: 35.4 | Q66: 44.8 | R66: 0.5 | S66: 44.1 | T66: 2.7 | U66: 20.5 | V66: 55.7 | W66: 15.9 | X66: 2.3 | Y66: 13 | Z66: 10.3 | AA66: 53.2 | AB66: 34.9 | AC66: 36.9 | AD66: 2.1 | AE66: 0.8 | AF66: 16.5 | AG66: 5.5 | AH66: 7.4 | AI66: 0.9 | AJ66: 3.3 | AK66: 1.6 | AL66: 8.8 | AM66: 0.7 | AN66: 2.4 | AO66: 4 | AP66: 6 | AQ66: 20.4 | AR66: 11.6 | AS66: 45 | AT66: 47.6 | AU66: 45.7 | AV66: 48.7 | AW66: 48.3 | AX66: 1.8 | AY66: 4.4 | AZ66: 14.5 | BA66: 41.2 | BB66: 35.5 | BC66: 7.6 | BD66: 12.9 | BE66: 40.3 | BF66: 29 | BG66: 16.1 | BH66: 33 | BI66: 5 | BJ66: 0.9 | BK66: 6 | BL66: 3.9 | BM66: 0.8 | BN66: 1.29 | BO66: 1.14 | BP66: 16.6 | BQ66: 3.4 | BR66: 4.5 | BS66: 0.3 | BT66: 1.9 | BU66: 1.7 | BV66: 0.5 | BW66: 3.7 | BX66: 0.4 | BY66: 3.2 | BZ66: 0.9 | CA66: 66.4 | CB66: 26.4 | CC66: 24.5 | CD66: 3.9 | CE66: 4.6 | CF66: 4.1 | CG66: 23.4 | CH66: 8.6 | CI66: 2.5 | CJ66: 3.8 | CK66: 5.2 | CL66: 6.6 | CM66: 3.1 | CN66: 5.8 | CO66: 1.9 | CP66: 1.8 | CQ66: 9.5 | CR66: 8 | CS66: 2.3 | CT66: 3.3 | CU66: 4.3 | CV66: 4.4 | CW66: 51 | CX66: 41.9 | CY66: 44.8 | CZ66: 43.6 | DA66: 43 | DB66: 43.3 | DC66: 12 | DD66: 2 | DE66: 20.2 | DF66: 1.8 | DG66: 0.9 | DH66: 6.9 | DI66: 1.1 | DJ66: 2.7 | DK66: 2.4 | DL66: 1 | DM66: 12.8 | DN66: 6.6 | DO66: 0.1 | DP66: 3.1 | DQ66: 1.2 | DR66: 2 | DS66: 50.3
A67: - | B67: 3012 | C67: 3012 | D67: 3012 | E67: - | F67: 5 | G67: - | H67: - | I67: しこく | J67: 中国・四国 | K67: - | L67: 四国 | M67: 617 | N67: 2 | O67: 14.9 | P67: 35.5 | Q67: 46.9 | R67: 0.2 | S67: 42.8 | T67: 8.2 | U67: 23.5 | V67: 51.3 | W67: 12.6 | X67: 1.9 | Y67: 19.9 | Z67: 10.9 | AA67: 53.2 | AB67: 35.4 | AC67: 37.5 | AD67: 5.9 | AE67: 2.9 | AF67: 17.9 | AG67: 8.2 | AH67: 9.8 | AI67: 1.9 | AJ67: 4.1 | AK67: 2 | AL67: 7.6 | AM67: 1.9 | AN67: 1.2 | AO67: 3 | AP67: 8.6 | AQ67: 17.1 | AR67: 7.7 | AS67: 54.6 | AT67: 51.8 | AU67: 48.2 | AV67: 46.6 | AW67: 52.1 | AX67: 0.3 | AY67: 2.6 | AZ67: 16.9 | BA67: 40.9 | BB67: 35.8 | BC67: 5.8 | BD67: 18.5 | BE67: 44.1 | BF67: 22.3 | BG67: 11.2 | BH67: 40.5 | BI67: 18.1 | BJ67: 1.9 | BK67: 20 | BL67: 13.7 | BM67: 1.8 | BN67: 1.32 | BO67: 1.08 | BP67: 15.3 | BQ67: 4.3 | BR67: 3.9 | BS67: 0 | BT67: 0.9 | BU67: 1 | BV67: 0.1 | BW67: 1.6 | BX67: 0 | BY67: 0.4 | BZ67: 1.8 | CA67: 68.2 | CB67: 23.3 | CC67: 23.5 | CD67: 1.9 | CE67: 1.7 | CF67: 2.2 | CG67: 35.1 | CH67: 11.8 | CI67: 0.8 | CJ67: 7 | CK67: 5 | CL67: 8.3 | CM67: 2.2 | CN67: 6.5 | CO67: 3.8 | CP67: 1.2 | CQ67: 13.2 | CR67: 10.3 | CS67: 0.9 | CT67: 4.1 | CU67: 7.8 | CV67: 3.1 | CW67: 42.7 | CX67: 47.9 | CY67: 46.9 | CZ67: 46.5 | DA67: 46.6 | DB67: 47 | DC67: 10.8 | DD67: 1.7 | DE67: 26.8 | DF67: 1.4 | DG67: 1.2 | DH67: 8.6 | DI67: 1.1 | DJ67: 2.3 | DK67: 1 | DL67: 1.6 | DM67: 19.9 | DN67: 8.1 | DO67: 0.4 | DP67: 1.3 | DQ67: 4.8 | DR67: 0.5 | DS67: 58.5
A68: - | B68: 3013 | C68: 3013 | D68: 3013 | E68: - | F68: 6 | G68: - | H68: - | I68: きゅうしゅう | J68: 九州・沖縄 | K68: - | L68: 九州 | M68: 617 | N68: 6 | O68: 21.9 | P68: 36.5 | Q68: 34.1 | R68: 0 | S68: 49.9 | T68: 10.6 | U68: 35.4 | V68: 43.7 | W68: 5.8 | X68: 2.3 | Y68: 28.3 | Z68: 27.5 | AA68: 53.3 | AB68: 18.4 | AC68: 54.1 | AD68: 6.7 | AE68: 1.9 | AF68: 24.5 | AG68: 9.1 | AH68: 12.9 | AI68: 2.5 | AJ68: 9.8 | AK68: 5.5 | AL68: 12.4 | AM68: 3.5 | AN68: 3.2 | AO68: 4.3 | AP68: 9 | AQ68: 35.6 | AR68: 10.4 | AS68: 54.3 | AT68: 58.6 | AU68: 59.3 | AV68: 61.2 | AW68: 56.2 | AX68: 7.1 | AY68: 5.9 | AZ68: 25.8 | BA68: 35.7 | BB68: 23.6 | BC68: 16.5 | BD68: 31 | BE68: 43.1 | BF68: 17.9 | BG68: 6 | BH68: 52.5 | BI68: 24.4 | BJ68: 2.5 | BK68: 26.9 | BL68: 18 | BM68: 1.9 | BN68: 1.35 | BO68: 1.32 | BP68: 23 | BQ68: 6.6 | BR68: 8.1 | BS68: 1.5 | BT68: 4 | BU68: 4.8 | BV68: 2.8 | BW68: 8.8 | BX68: 0.7 | BY68: 1.2 | BZ68: 2.9 | CA68: 56 | CB68: 35.5 | CC68: 37.7 | CD68: 10.3 | CE68: 12.3 | CF68: 4.1 | CG68: 39.4 | CH68: 30.7 | CI68: 5.5 | CJ68: 14.6 | CK68: 10.8 | CL68: 16.2 | CM68: 4.4 | CN68: 12.8 | CO68: 6.4 | CP68: 3.9 | CQ68: 22 | CR68: 20.7 | CS68: 3 | CT68: 11.8 | CU68: 9.2 | CV68: 7.1 | CW68: 29.4 | CX68: 63.9 | CY68: 56.5 | CZ68: 64.3 | DA68: 60.8 | DB68: 61.4 | DC68: 23.5 | DD68: 4.1 | DE68: 38.1 | DF68: 2.5 | DG68: 4.5 | DH68: 3.9 | DI68: 2.4 | DJ68: 1.5 | DK68: 1.3 | DL68: 1.7 | DM68: 18.9 | DN68: 9 | DO68: 0.7 | DP68: 3.8 | DQ68: 9.3 | DR68: 2.7 | DS68: 70.1

Sheet GT全国順位_県州 (hidden)
A1: ※データは全て値固定 | G1: INDEX | H1: 1 | I1: 2 | J1: 3 | K1: 4 | L1: 5 | M1: 6 | N1: 7 | O1: 8 | P1: 9 | Q1: 10 | R1: 11 | S1: 12 | T1: 13 | U1: 14 | V1: 15 | W1: 16 | X1: 17 | Y1: 18 | Z1: 19 | AA1: 20 | AB1: 21 | AC1: 22 | AD1: 23 | AE1: 24 | AF1: 25 | AG1: 26 | AH1: 27 | AI1: 28 | AJ1: 29 | AK1: 30 | AL1: 31 | AM1: 32 | AN1: 33 | AO1: 34 | AP1: 35 | AQ1: 36 | AR1: 37 | AS1: 38 | AT1: 39 | AU1: 40 | AV1: 41 | AW1: 42 | AX1: 43 | AY1: 44 | AZ1: 45 | BA1: 46 | BB1: 47 | BC1: 48 | BD1: 49 | BE1: 50 | BF1: 51 | BG1: 52 | BH1: 53 | BI1: 54 | BJ1: 55 | BK1: 56 | BL1: 57 | BM1: 58 | BN1: 59 | BO1: 60 | BP1: 61 | BQ1: 62 | BR1: 63 | BS1: 64 | BT1: 65 | BU1: 66 | BV1: 67 | BW1: 68 | BX1: 69 | BY1: 70 | BZ1: 71 | CA1: 72 | CB1: 73 | CC1: 74 | CD1: 75 | CE1: 76 | CF1: 77 | CG1: 78 | CH1: 79 | CI1: 80 | CJ1: 81 | CK1: 82 | CL1: 83 | CM1: 84 | CN1: 85 | CO1: 86 | CP1: 87 | CQ1: 88 | CR1: 89 | CS1: 90 | CT1: 91 | CU1: 92 | CV1: 93 | CW1: 94 | CX1: 95 | CY1: 96 | CZ1: 97 | DA1: 98 | DB1: 99 | DC1: 100 | DD1: 101 | DE1: 102 | DF1: 103 | DG1: 104 | DH1: 105 | DI1: 106 | DJ1: 107 | DK1: 108 | DL1: 109 | DM1: 110 | DN1: 111
A2: 全国順位（都道府県のみ）
A3: 地域ブランド調査2011《ウエイトバック集計》 | AH3: ↓選択肢順注意！！
A4: SEQ順にソート
A5: ＜都道府県と道州の単純集計（％）＞
H6: Ｑ１．認知度 | BD6: Ｑ11.産品購入意欲 | BX6: Ｑ８．訪問目的
H7: N | I7: 1 | J7: 2 | K7: 3 | L7: 4 | M7: 5 | N7: AV | O7: 1 | P7: 2 | Q7: 3 | R7: 4 | S7: 5 | T7: AV | U7: 1 | V7: 2 | W7: 3 | X7: AV | Y7: 1 | Z7: 2 | AA7: 3 | AB7: 4 | AC7: 5 | AD7: 6 | AE7: 7 | AF7: 8 | AG7: 9 | AH7: 10 | AI7: 11 | AJ7: 12 | AK7: 13 | AL7: 14 | AM7: 15 | AN7: 1+2 | AO7: 3+4+5 | AP7: 6+7+8 | AQ7: 9+10+11 | AR7: 12+13 | AS7: 1 | AT7: 2 | AU7: 3 | AV7: 4 | AW7: 5 | AX7: AV | AY7: 1 | AZ7: 2 | BA7: 3 | BB7: 4 | BC7: AV | BD7: SC1 | BE7: SC2 | BF7: SCT | BG7: 1 | BH7: 1 | BI7: AV | BJ7: AV | BK7: 1 | BL7: 2 | BM7: 3 | BN7: 4 | BO7: 5 | BP7: 6 | BQ7: 7 | BR7: 8 | BS7: 9 | BT7: 10 | BU7: 11 | BV7: 12 | BW7: SC | BX7: 1+2+3 | BY7: 4+5+6 | BZ7: 7+8+9 | CA7: 10+11 | CB7: 1 | CC7: 2 | CD7: 3 | CE7: 4 | CF7: 5 | CG7: 6 | CH7: 7 | CI7: 8 | CJ7: 9 | CK7: 10 | CL7: 11 | CM7: 12 | CN7: 13 | CO7: 14 | CP7: 15 | CQ7: 16 | CR7: DK | CS7: SC1 | CT7: SC2 | CU7: SC3 | CV7: SC4 | CW7: SCAVE | CX7: 1 | CY7: 2 | CZ7: 3 | DA7: 4 | DB7: 5 | DC7: 6 | DD7: 7 | DE7: 8 | DF7: 9 | DG7: 10 | DH7: 11 | DI7: 12 | DJ7: 13 | DK7: 14 | DL7: 15 | DM7: 16 | DN7: SC
A8: 番号 | B8: 2011SEQ(2000番台=都道府県/3000番台=道州） | C8: 2010SEQ | D8: 2009SEQ | E8: 個別と列合わせﾀﾞﾐｰ | F8: 都道府県２（県入り） | G8: 都道府県・道州名 | H8: サンプル数 | I8: よく知っている | J8: 知っている | K8: 少しだけ知っている | L8: 名前だけは知っている | M8: 名前も知らない | N8: 認知度 | O8: とても魅力的 | P8: やや魅力的 | Q8: どちらでもない | R8: あまり魅力的でない | S8: 全く魅力的でない | T8: 魅力度 | U8: 何度も見聞きした | V8: 見聞きしたことがある | W8: 全く見聞きしていない | X8: 情報接触度 | Y8: ドラマや映画 | Z8: 小説・エッセイ・マンガなど | AA8: 旅やグルメに関する番組 | AB8: 雑誌や新聞の旅行・グルメ関連記事 | AC8: 旅行パンフやガイドブック | AD8: 通販カタログや商品パンフレット | AE8: 物産展や催事（イベント）など | AF8: 百貨店やスーパーの店頭および商品 | AG8: テレビＣＭや新聞雑誌の広告 | AH8: ポスターやチラシ | AI8: 市区町村や都道府県のホームページ | AJ8: そのほかのサイトや掲示板など | AK8: 友人や知人・家族から | AL8: 事件やニュース | AM8: その他のメディア | AN8: 物語系（偏差値） | AO8: 旅行系（偏差値） | AP8: 商品系（偏差値） | AQ8: 広告系（偏差値） | AR8: 口コミ系（偏差値） | AS8: ぜひ住みたい | AT8: できれば住みたい | AU8: 住んでもよい | AV8: どちらとも言えない | AW8: あまり住みたくない | AX8: 居住意欲度 | AY8: ぜひ行ってみたい | AZ8: 機会があれば行ってみたい | BA8: どちらともいえない | BB8: あまり行きたいとは思わない | BC8: 観光意欲度 | BD8: 食品（100人当たり個数） | BE8: 食品以外（100人当たり個数） | BF8: 産品購入意欲度 | BG8: 食品：想起した | BH8: 食品以外：想起した | BI8: 食品想起者ベース：平均（個）※小数2ケタ | BJ8: 食品以外想起者ベース：平均（個）※小数2ケタ | BK8: 観光のため | BL8: ビジネス（出張等）のため | BM8: 親戚・家族・友人の訪問のため | BN8: 医療・福祉のため | BO8: 買い物・食事のため | BP8: 趣味・娯楽のため | BQ8: 通勤・通学している、していた | BR8: 住んでいる・住んでいた | BS8: セカンドハウスがあるため | BT8: 通過・乗り換えのため | BU8: その他の目的のため | BV8: 訪れたことがない | BW8: 訪問率※100-cat12(%）-DK(%) | BX8: 来訪（％） | BY8: 生活（％） | BZ8: 居住（％） | CA8: その他（％） | CB8: 海・山・川・湖などの自然が豊か | CC8: 魅力的な温泉やレジャー施設・公園などがある | CD8: スポーツの参加・観戦が楽しめる | CE8: 魅力的な伝統芸能、祭り、イベントがある | CF8: 魅力的な街並みや歴史建造物がある | CG8: 歴史人物、著名人、職人などにゆかりがある | CH8: 魅力的な美術館・博物館がある | CI8: 買いたい土産や地域産品がある | CJ8: 優れた伝統的技術がある | CK8: 魅力的な商店街や店舗がある | CL8: 地元産の食材が豊富 | CM8: 食事がおいしい | CN8: 道路や交通の便がよい | CO8: 泊まりたい宿泊施設がある | CP8: 人のよさや優しさ、おもてなしがよい | CQ8: 地域を代表する産業や企業がある | CR8: 無回答 | CS8: 自然資源（偏差値） | CT8: 歴史資源（偏差値） | CU8: モノ資源（偏差値） | CV8: サービス資源（偏差値） | CW8: 地域資源総合点（偏差値の平均） | CX8: 歴史・文化のまち | CY8: 学術・芸術のまち | CZ8: 観光・レジャーのまち | DA8: スポーツのまち | DB8: 国際交流のまち | DC8: 環境にやさしいまち | DD8: デザインやセンスの良いまち | DE8: 住民参加のまち | DF8: 教育・子育てのまち | DG8: 健康増進・医療福祉のまち | DH8: 農林水産業が盛んなまち | DI8: 地場産業が盛んなまち | DJ8: IT・先端技術のまち | DK8: 生活に便利・快適なまち | DL8: 災害リスクが大きいまち | DM8: 事件・事故が多いまち | DN8: イメージ想起率（％）※100-DK(%)
A9: H0100 | B9: 2001 | C9: 2001 | D9: 2001 | E9: - | F9: - | G9: 北海道 | H9: - | I9: - | J9: - | K9: - | L9: - | M9: - | N9: 2 | O9: - | P9: - | Q9: - | R9: - | S9: - | T9: 1 | U9: - | V9: - | W9: - | X9: 6 | Y9: 2 | Z9: 2 | AA9: 1 | AB9: 1 | AC9: 1 | AD9: 1 | AE9: 1 | AF9: 1 | AG9: 1 | AH9: 1 | AI9: 2 | AJ9: 2 | AK9: 4 | AL9: 23 | AM9: 28 | AN9: 2 | AO9: 1 | AP9: 1 | AQ9: 1 | AR9: 2 | AS9: - | AT9: - | AU9: - | AV9: - | AW9: - | AX9: 1 | AY9: - | AZ9: - | BA9: - | BB9: - | BC9: 1 | BD9: 1 | BE9: 1 | BF9: 1 | BG9: - | BH9: - | BI9: - | BJ9: - | BK9: 3 | BL9: 14 | BM9: 12 | BN9: 13 | BO9: 10 | BP9: 11 | BQ9: 12 | BR9: 7 | BS9: 13 | BT9: 45 | BU9: 29 | BV9: - | BW9: 11 | BX9: 6 | BY9: 11 | BZ9: 7 | CA9: 41 | CB9: 1 | CC9: 1 | CD9: 5 | CE9: 6 | CF9: 3 | CG9: 10 | CH9: 5 | CI9: 1 | CJ9: 14 | CK9: 7 | CL9: 1 | CM9: 1 | CN9: 11 | CO9: 1 | CP9: 6 | CQ9: 3 | CR9: - | CS9: 1 | CT9: 4 | CU9: 1 | CV9: 1 | CW9: 1 | CX9: 23 | CY9: 15 | CZ9: 1 | DA9: 8 | DB9: 13 | DC9: 1 | DD9: 12 | DE9: 3 | DF9: 13 | DG9: 25 | DH9: 3 | DI9: 1 | DJ9: 28 | DK9: 13 | DL9: 31 | DM9: 15 | DN9: 1
A10: A0200 | B10: 2002 | C10: 2002 | D10: 2002 | E10: - | F10: - | G10: 青森県 | H10: - | I10: - | J10: - | K10: - | L10: - | M10: - | N10: 22 | O10: - | P10: - | Q10: - | R10: - | S10: - | T10: 14 | U10: - | V10: - | W10: - | X10: 17 | Y10: 13 | Z10: 7 | AA10: 13 | AB10: 12 | AC10: 10 | AD10: 6 | AE10: 6 | AF10: 8 | AG10: 7 | AH10: 5 | AI10: 16 | AJ10: 36 | AK10: 18 | AL10: 10 | AM10: 47 | AN10: 10 | AO10: 12 | AP10: 6 | AQ10: 6 | AR10: 25 | AS10: - | AT10: - | AU10: - | AV10: - | AW10: - | AX10: 42 | AY10: - | AZ10: - | BA10: - | BB10: - | BC10: 13 | BD10: 12 | BE10: 16 | BF10: 12 | BG10: - | BH10: - | BI10: - | BJ10: - | BK10: 37 | BL10: 39 | BM10: 46 | BN10: 5 | BO10: 45 | BP10: 44 | BQ10: 33 | BR10: 28 | BS10: 30 | BT10: 37 | BU10: 20 | BV10: - | BW10: 42 | BX10: 42 | BY10: 43 | BZ10: 31 | CA10: 30 | CB10: 2 | CC10: 15 | CD10: 46 | CE10: 2 | CF10: 21 | CG10: 26 | CH10: 39 | CI10: 21 | CJ10: 9 | CK10: 25 | CL10: 2 | CM10: 7 | CN10: 40 | CO10: 36 | CP10: 1 | CQ10: 23 | CR10: - | CS10: 4 | CT10: 3 | CU10: 5 | CV10: 4 | CW10: 4 | CX10: 16 | CY10: 41 | CZ10: 23 | DA10: 16 | DB10: 22 | DC10: 5 | DD10: 35 | DE10: 18 | DF10: 37 | DG10: 41 | DH10: 1 | DI10: 3 | DJ10: 45 | DK10: 46 | DL10: 10 | DM10: 27 | DN10: 8
A11: I0300 | B11: 2003 | C11: 2003 | D11: 2003 | E11: - | F11: - | G11: 岩手県 | H11: - | I11: - | J11: - | K11: - | L11: - | M11: - | N11: 29 | O11: - | P11: - | Q11: - | R11: - | S11: - | T11: 25 | U11: - | V11: - | W11: - | X11: 4 | Y11: 18 | Z11: 13 | AA11: 25 | AB11: 26 | AC11: 24 | AD11: 20 | AE11: 3 | AF11: 10 | AG11: 5 | AH11: 14 | AI11: 10 | AJ11: 19 | AK11: 26 | AL11: 3 | AM11: 19 | AN11: 16 | AO11: 25 | AP11: 8 | AQ11: 8 | AR11: 25 | AS11: - | AT11: - | AU11: - | AV11: - | AW11: - | AX11: 32 | AY11: - | AZ11: - | BA11: - | BB11: - | BC11: 26 | BD11: 20 | BE11: 5 | BF11: 16 | BG11: - | BH11: - | BI11: - | BJ11: - | BK11: 36 | BL11: 18 | BM11: 34 | BN11: 13 | BO11: 19 | BP11: 20 | BQ11: 26 | BR11: 25 | BS11: 30 | BT11: 31 | BU11: 27 | BV11: - | BW11: 37 | BX11: 35 | BY11: 17 | BZ11: 26 | CA11: 29 | CB11: 4 | CC11: 17 | CD11: 42 | CE11: 10 | CF11: 11 | CG11: 10 | CH11: 32 | CI11: 23 | CJ11: 5 | CK11: 32 | CL11: 5 | CM11: 9 | CN11: 44 | CO11: 21 | CP11: 2 | CQ11: 37 | CR11: - | CS11: 5 | CT11: 11 | CU11: 13 | CV11: 9 | CW11: 8 | CX11: 4 | CY11: 25 | CZ11: 36 | DA11: 40 | DB11: 43 | DC11: 18 | DD11: 24 | DE11: 19 | DF11: 41 | DG11: 41 | DH11: 4 | DI11: 12 | DJ11: 23 | DK11: 41 | DL11: 3 | DM11: 23 | DN11: 9
A12: M0400 | B12: 2004 | C12: 2004 | D12: 2004 | E12: - | F12: - | G12: 宮城県 | H12: - | I12: - | J12: - | K12: - | L12: - | M12: - | N12: 15 | O12: - | P12: - | Q12: - | R12: - | S12: - | T12: 15 | U12: - | V12: - | W12: - | X12: 3 | Y12: 17 | Z12: 12 | AA12: 26 | AB12: 16 | AC12: 18 | AD12: 9 | AE12: 9 | AF12: 5 | AG12: 10 | AH12: 18 | AI12: 3 | AJ12: 4 | AK12: 28 | AL12: 2 | AM12: 36 | AN12: 14 | AO12: 22 | AP12: 6 | AQ12: 9 | AR12: 16 | AS12: - | AT12: - | AU12: - | AV12: - | AW12: - | AX12: 24 | AY12: - | AZ12: - | BA12: - | BB12: - | BC12: 29 | BD12: 8 | BE12: 20 | BF12: 9 | BG12: - | BH12: - | BI12: - | BJ12: - | BK12: 32 | BL12: 12 | BM12: 23 | BN12: 34 | BO12: 11 | BP12: 20 | BQ12: 17 | BR12: 12 | BS12: 30 | BT12: 41 | BU12: 22 | BV12: - | BW12: 29 | BX12: 29 | BY12: 13 | BZ12: 16 | CA12: 36 | CB12: 12 | CC12: 20 | CD12: 11 | CE12: 5 | CF12: 18 | CG12: 5 | CH12: 19 | CI12: 4 | CJ12: 14 | CK12: 11 | CL12: 8 | CM12: 8 | CN12: 15 | CO12: 20 | CP12: 7 | CQ12: 10 | CR12: - | CS12: 12 | CT12: 8 | CU12: 10 | CV12: 8 | CW12: 9 | CX12: 10 | CY12: 25 | CZ12: 27 | DA12: 12 | DB12: 18 | DC12: 24 | DD12: 20 | DE12: 11 | DF12: 46 | DG12: 29 | DH12: 7 | DI12: 3 | DJ12: 12 | DK12: 12 | DL12: 2 | DM12: 12 | DN12: 7
A13: A0500 | B13: 2005 | C13: 2005 | D13: 2005 | E13: - | F13: - | G13: 秋田県 | H13: - | I13: - | J13: - | K13: - | L13: - | M13: - | N13: 32 | O13: - | P13: - | Q13: - | R13: - | S13: - | T13: 18 | U13: - | V13: - | W13: - | X13: 25 | Y13: 21 | Z13: 18 | AA13: 16 | AB13: 15 | AC13: 19 | AD13: 9 | AE13: 4 | AF13: 11 | AG13: 13 | AH13: 8 | AI13: 29 | AJ13: 36 | AK13: 15 | AL13: 15 | AM13: 44 | AN13: 20 | AO13: 16 | AP13: 8 | AQ13: 12 | AR13: 20 | AS13: - | AT13: - | AU13: - | AV13: - | AW13: - | AX13: 37 | AY13: - | AZ13: - | BA13: - | BB13: - | BC13: 14 | BD13: 4 | BE13: 8 | BF13: 3 | BG13: - | BH13: - | BI13: - | BJ13: - | BK13: 44 | BL13: 47 | BM13: 36 | BN13: 18 | BO13: 33 | BP13: 46 | BQ13: 26 | BR13: 34 | BS13: 30 | BT13: 33 | BU13: 14 | BV13: - | BW13: 47 | BX13: 46 | BY13: 41 | BZ13: 34 | CA13: 24 | CB13: 5 | CC13: 11 | CD13: 41 | CE13: 3 | CF13: 25 | CG13: 33 | CH13: 46 | CI13: 8 | CJ13: 7 | CK13: 29 | CL13: 3 | CM13: 5 | CN13: 37 | CO13: 25 | CP13: 4 | CQ13: 32 | CR13: - | CS13: 7 | CT13: 7 | CU13: 8 | CV13: 5 | CW13: 7 | CX13: 26 | CY13: 20 | CZ13: 33 | DA13: 29 | DB13: 25 | DC13: 6 | DD13: 35 | DE13: 8 | DF13: 2 | DG13: 35 | DH13: 2 | DI13: 6 | DJ13: 29 | DK13: 45 | DL13: 15 | DM13: 26 | DN13: 11
A14: Y0600 | B14: 2006 | C14: 2006 | D14: 2006 | E14: - | F14: - | G14: 山形県 | H14: - | I14: - | J14: - | K14: - | L14: - | M14: - | N14: 25 | O14: - | P14: - | Q14: - | R14: - | S14: - | T14: 27 | U14: - | V14: - | W14: - | X14: 13 | Y14: 29 | Z14: 26 | AA14: 27 | AB14: 24 | AC14: 39 | AD14: 20 | AE14: 8 | AF14: 11 | AG14: 16 | AH14: 26 | AI14: 25 | AJ14: 11 | AK14: 40 | AL14: 8 | AM14: 15 | AN14: 27 | AO14: 28 | AP14: 10 | AQ14: 18 | AR14: 31 | AS14: - | AT14: - | AU14: - | AV14: - | AW14: - | AX14: 36 | AY14: - | AZ14: - | BA14: - | BB14: - | BC14: 35 | BD14: 15 | BE14: 6 | BF14: 13 | BG14: - | BH14: - | BI14: - | BJ14: - | BK14: 43 | BL14: 21 | BM14: 33 | BN14: 34 | BO14: 21 | BP14: 36 | BQ14: 33 | BR14: 29 | BS14: 30 | BT14: 32 | BU14: 36 | BV14: - | BW14: 41 | BX14: 39 | BY14: 32 | BZ14: 34 | CA14: 38 | CB14: 6 | CC14: 19 | CD14: 36 | CE14: 11 | CF14: 28 | CG14: 36 | CH14: 36 | CI14: 11 | CJ14: 18 | CK14: 47 | CL14: 6 | CM14: 15 | CN14: 47 | CO14: 29 | CP14: 5 | CQ14: 34 | CR14: - | CS14: 10 | CT14: 23 | CU14: 17 | CV14: 14 | CW14: 18 | CX14: 19 | CY14: 38 | CZ14: 37 | DA14: 43 | DB14: 43 | DC14: 18 | DD14: 41 | DE14: 15 | DF14: 37 | DG14: 44 | DH14: 5 | DI14: 9 | DJ14: 38 | DK14: 42 | DL14: 9 | DM14: 34 | DN14: 15
A15: H0700 | B15: 2007 | C15: 2007 | D15: 2007 | E15: - | F15: - | G15: 福島県 | H15: - | I15: - | J15: - | K15: - | L15: - | M15: - | N15: 17 | O15: - | P15: - | Q15: - | R15: - | S15: - | T15: 35 | U15: - | V15: - | W15: - | X15: 2 | Y15: 37 | Z15: 41 | AA15: 46 | AB15: 44 | AC15: 37 | AD15: 34 | AE15: 13 | AF15: 13 | AG15: 18 | AH15: 30 | AI15: 4 | AJ15: 3 | AK15: 22 | AL15: 1 | AM15: 37 | AN15: 40 | AO15: 44 | AP15: 13 | AQ15: 17 | AR15: 10 | AS15: - | AT15: - | AU15: - | AV15: - | AW15: - | AX15: 47 | AY15: - | AZ15: - | BA15: - | BB15: - | BC15: 44 | BD15: 33 | BE15: 20 | BF15: 34 | BG15: - | BH15: - | BI15: - | BJ15: - | BK15: 23 | BL15: 27 | BM15: 19 | BN15: 13 | BO15: 24 | BP15: 27 | BQ15: 23 | BR15: 39 | BS15: 30 | BT15: 24 | BU15: 10 | BV15: - | BW15: 25 | BX15: 26 | BY15: 25 | BZ15: 40 | CA15: 18 | CB15: 14 | CC15: 21 | CD15: 19 | CE15: 18 | CF15: 26 | CG15: 23 | CH15: 21 | CI15: 27 | CJ15: 20 | CK15: 41 | CL15: 18 | CM15: 30 | CN15: 23 | CO15: 41 | CP15: 9 | CQ15: 18 | CR15: - | CS15: 23 | CT15: 24 | CU15: 29 | CV15: 24 | CW15: 25 | CX15: 34 | CY15: 46 | CZ15: 44 | DA15: 31 | DB15: 39 | DC15: 41 | DD15: 41 | DE15: 6 | DF15: 45 | DG15: 38 | DH15: 12 | DI15: 19 | DJ15: 32 | DK15: 38 | DL15: 1 | DM15: 9 | DN15: 5
A16: I0800 | B16: 2008 | C16: 2008 | D16: 2008 | E16: - | F16: - | G16: 茨城県 | H16: - | I16: - | J16: - | K16: - | L16: - | M16: - | N16: 26 | O16: - | P16: - | Q16: - | R16: - | S16: - | T16: 47 | U16: - | V16: - | W16: - | X16: 14 | Y16: 45 | Z16: 30 | AA16: 40 | AB16: 44 | AC16: 46 | AD16: 17 | AE16: 30 | AF16: 20 | AG16: 28 | AH16: 45 | AI16: 34 | AJ16: 16 | AK16: 17 | AL16: 7 | AM16: 31 | AN16: 44 | AO16: 45 | AP16: 23 | AQ16: 31 | AR16: 17 | AS16: - | AT16: - | AU16: - | AV16: - | AW16: - | AX16: 44 | AY16: - | AZ16: - | BA16: - | BB16: - | BC16: 47 | BD16: 32 | BE16: 47 | BF16: 33 | BG16: - | BH16: - | BI16: - | BJ16: - | BK16: 41 | BL16: 10 | BM16: 10 | BN16: 18 | BO16: 14 | BP16: 16 | BQ16: 11 | BR16: 12 | BS16: 8 | BT16: 17 | BU16: 4 | BV16: - | BW16: 18 | BX16: 28 | BY16: 14 | BZ16: 13 | CA16: 8 | CB16: 36 | CC16: 46 | CD16: 13 | CE16: 41 | CF16: 47 | CG16: 30 | CH16: 30 | CI16: 40 | CJ16: 46 | CK16: 35 | CL16: 32 | CM16: 44 | CN16: 10 | CO16: 45 | CP16: 31 | CQ16: 11 | CR16: - | CS16: 44 | CT16: 43 | CU16: 42 | CV16: 41 | CW16: 45 | CX16: 45 | CY16: 10 | CZ16: 46 | DA16: 31 | DB16: 15 | DC16: 32 | DD16: 41 | DE16: 11 | DF16: 13 | DG16: 25 | DH16: 16 | DI16: 13 | DJ16: 4 | DK16: 15 | DL16: 4 | DM16: 11 | DN16: 22
A17: T0900 | B17: 2009 | C17: 2009 | D17: 2009 | E17: - | F17: - | G17: 栃木県 | H17: - | I17: - | J17: - | K17: - | L17: - | M17: - | N17: 37 | O17: - | P17: - | Q17: - | R17: - | S17: - | T17: 42 | U17: - | V17: - | W17: - | X17: 19 | Y17: 47 | Z17: 30 | AA17: 27 | AB17: 38 | AC17: 44 | AD17: 39 | AE17: 22 | AF17: 29 | AG17: 27 | AH17: 18 | AI17: 20 | AJ17: 43 | AK17: 33 | AL17: 12 | AM17: 12 | AN17: 46 | AO17: 35 | AP17: 29 | AQ17: 24 | AR17: 38 | AS17: - | AT17: - | AU17: - | AV17: - | AW17: - | AX17: 35 | AY17: - | AZ17: - | BA17: - | BB17: - | BC17: 42 | BD17: 27 | BE17: 20 | BF17: 27 | BG17: - | BH17: - | BI17: - | BJ17: - | BK17: 19 | BL17: 16 | BM17: 15 | BN17: 5 | BO17: 21 | BP17: 17 | BQ17: 16 | BR17: 24 | BS17: 30 | BT17: 19 | BU17: 18 | BV17: - | BW17: 21 | BX17: 18 | BY17: 16 | BZ17: 21 | CA17: 20 | CB17: 23 | CC17: 26 | CD17: 22 | CE17: 38 | CF17: 29 | CG17: 28 | CH17: 31 | CI17: 36 | CJ17: 35 | CK17: 42 | CL17: 30 | CM17: 35 | CN17: 20 | CO17: 29 | CP17: 11 | CQ17: 43 | CR17: - | CS17: 33 | CT17: 34 | CU17: 39 | CV17: 36 | CW17: 37 | CX17: 25 | CY17: 34 | CZ17: 33 | DA17: 45 | DB17: 39 | DC17: 33 | DD17: 29 | DE17: 35 | DF17: 22 | DG17: 30 | DH17: 20 | DI17: 21 | DJ17: 29 | DK17: 23 | DL17: 18 | DM17: 18 | DN17: 31
A18: G1000 | B18: 2010 | C18: 2010 | D18: 2010 | E18: - | F18: - | G18: 群馬県 | H18: - | I18: - | J18: - | K18: - | L18: - | M18: - | N18: 34 | O18: - | P18: - | Q18: - | R18: - | S18: - | T18: 44 | U18: - | V18: - | W18: - | X18: 24 | Y18: 41 | Z18: 26 | AA18: 31 | AB18: 46 | AC18: 30 | AD18: 29 | AE18: 43 | AF18: 41 | AG18: 24 | AH18: 21 | AI18: 10 | AJ18: 6 | AK18: 30 | AL18: 18 | AM18: 3 | AN18: 37 | AO18: 36 | AP18: 43 | AQ18: 21 | AR18: 18 | AS18: - | AT18: - | AU18: - | AV18: - | AW18: - | AX18: 44 | AY18: - | AZ18: - | BA18: - | BB18: - | BC18: 46 | BD18: 39 | BE18: 30 | BF18: 40 | BG18: - | BH18: - | BI18: - | BJ18: - | BK18: 28 | BL18: 19 | BM18: 19 | BN18: 18 | BO18: 25 | BP18: 27 | BQ18: 10 | BR18: 15 | BS18: 30 | BT18: 12 | BU18: 16 | BV18: - | BW18: 22 | BX18: 24 | BY18: 27 | BZ18: 14 | CA18: 16 | CB18: 32 | CC18: 6 | CD18: 20 | CE18: 30 | CF18: 43 | CG18: 44 | CH18: 32 | CI18: 34 | CJ18: 26 | CK18: 34 | CL18: 34 | CM18: 36 | CN18: 16 | CO18: 16 | CP18: 22 | CQ18: 28 | CR18: - | CS18: 30 | CT18: 40 | CU18: 31 | CV18: 34 | CW18: 32 | CX18: 41 | CY18: 31 | CZ18: 38 | DA18: 24 | DB18: 29 | DC18: 25 | DD18: 47 | DE18: 9 | DF18: 26 | DG18: 24 | DH18: 28 | DI18: 16 | DJ18: 12 | DK18: 21 | DL18: 14 | DM18: 14 | DN18: 40
A19: S1100 | B19: 2011 | C19: 2011 | D19: 2011 | E19: - | F19: - | G19: 埼玉県 | H19: - | I19: - | J19: - | K19: - | L19: - | M19: - | N19: 12 | O19: - | P19: - | Q19: - | R19: - | S19: - | T19: 45 | U19: - | V19: - | W19: - | X19: 22 | Y19: 42 | Z19: 19 | AA19: 47 | AB19: 42 | AC19: 47 | AD19: 44 | AE19: 47 | AF19: 27 | AG19: 22 | AH19: 30 | AI19: 8 | AJ19: 17 | AK19: 7 | AL19: 13 | AM19: 25 | AN19: 33 | AO19: 47 | AP19: 42 | AQ19: 20 | AR19: 6 | AS19: - | AT19: - | AU19: - | AV19: - | AW19: - | AX19: 13 | AY19: - | AZ19: - | BA19: - | BB19: - | BC19: 45 | BD19: 45 | BE19: 38 | BF19: 45 | BG19: - | BH19: - | BI19: - | BJ19: - | BK19: 47 | BL19: 7 | BM19: 4 | BN19: 18 | BO19: 7 | BP19: 7 | BQ19: 6 | BR19: 3 | BS19: 2 | BT19: 4 | BU19: 3 | BV19: - | BW19: 10 | BX19: 23 | BY19: 7 | BZ19: 4 | CA19: 3 | CB19: 44 | CC19: 47 | CD19: 4 | CE19: 38 | CF19: 41 | CG19: 47 | CH19: 17 | CI19: 45 | CJ19: 47 | CK19: 16 | CL19: 46 | CM19: 47 | CN19: 4 | CO19: 47 | CP19: 44 | CQ19: 19 | CR19: - | CS19: 47 | CT19: 47 | CU19: 47 | CV19: 38 | CW19: 47 | CX19: 47 | CY19: 27 | CZ19: 47 | DA19: 9 | DB19: 15 | DC19: 43 | DD19: 13 | DE19: 27 | DF19: 1 | DG19: 30 | DH19: 42 | DI19: 42 | DJ19: 6 | DK19: 4 | DL19: 17 | DM19: 4 | DN19: 28
A20: T1200 | B20: 2012 | C20: 2012 | D20: 2012 | E20: - | F20: - | G20: 千葉県 | H20: - | I20: - | J20: - | K20: - | L20: - | M20: - | N20: 7 | O20: - | P20: - | Q20: - | R20: - | S20: - | T20: 16 | U20: - | V20: - | W20: - | X20: 7 | Y20: 24 | Z20: 37 | AA20: 21 | AB20: 13 | AC20: 16 | AD20: 9 | AE20: 20 | AF20: 17 | AG20: 14 | AH20: 12 | AI20: 20 | AJ20: 13 | AK20: 8 | AL20: 5 | AM20: 25 | AN20: 25 | AO20: 17 | AP20: 19 | AQ20: 14 | AR20: 9 | AS20: - | AT20: - | AU20: - | AV20: - | AW20: - | AX20: 11 | AY20: - | AZ20: - | BA20: - | BB20: - | BC20: 18 | BD20: 31 | BE20: 27 | BF20: 32 | BG20: - | BH20: - | BI20: - | BJ20: - | BK20: 7 | BL20: 6 | BM20: 6 | BN20: 3 | BO20: 6 | BP20: 3 | BQ20: 4 | BR20: 6 | BS20: 5 | BT20: 15 | BU20: 5 | BV20: - | BW20: 5 | BX20: 5 | BY20: 4 | BZ20: 5 | CA20: 10 | CB20: 37 | CC20: 3 | CD20: 9 | CE20: 46 | CF20: 46 | CG20: 39 | CH20: 26 | CI20: 38 | CJ20: 36 | CK20: 21 | CL20: 21 | CM20: 38 | CN20: 9 | CO20: 6 | CP20: 43 | CQ20: 11 | CR20: - | CS20: 21 | CT20: 46 | CU20: 27 | CV20: 27 | CW20: 27 | CX20: 46 | CY20: 37 | CZ20: 6 | DA20: 13 | DB20: 12 | DC20: 45 | DD20: 6 | DE20: 42 | DF20: 11 | DG20: 17 | DH20: 33 | DI20: 43 | DJ20: 11 | DK20: 6 | DL20: 7 | DM20: 7 | DN20: 14
A21: T1300 | B21: 2013 | C21: 2013 | D21: 2013 | E21: - | F21: - | G21: 東京都 | H21: - | I21: - | J21: - | K21: - | L21: - | M21: - | N21: 1 | O21: - | P21: - | Q21: - | R21: - | S21: - | T21: 4 | U21: - | V21: - | W21: - | X21: 1 | Y21: 1 | Z21: 1 | AA21: 2 | AB21: 2 | AC21: 4 | AD21: 2 | AE21: 11 | AF21: 2 | AG21: 2 | AH21: 2 | AI21: 1 | AJ21: 1 | AK21: 1 | AL21: 4 | AM21: 7 | AN21: 1 | AO21: 2 | AP21: 3 | AQ21: 2 | AR21: 1 | AS21: - | AT21: - | AU21: - | AV21: - | AW21: - | AX21: 2 | AY21: - | AZ21: - | BA21: - | BB21: - | BC21: 5 | BD21: 23 | BE21: 14 | BF21: 22 | BG21: - | BH21: - | BI21: - | BJ21: - | BK21: 2 | BL21: 1 | BM21: 1 | BN21: 1 | BO21: 1 | BP21: 1 | BQ21: 1 | BR21: 1 | BS21: 13 | BT21: 1 | BU21: 1 | BV21: - | BW21: 1 | BX21: 1 | BY21: 1 | BZ21: 1 | CA21: 1 | CB21: 47 | CC21: 14 | CD21: 1 | CE21: 9 | CF21: 9 | CG21: 6 | CH21: 1 | CI21: 9 | CJ21: 6 | CK21: 1 | CL21: 47 | CM21: 11 | CN21: 1 | CO21: 3 | CP21: 46 | CQ21: 2 | CR21: - | CS21: 9 | CT21: 5 | CU21: 3 | CV21: 3 | CW21: 3 | CX21: 22 | CY21: 2 | CZ21: 11 | DA21: 2 | DB21: 1 | DC21: 46 | DD21: 1 | DE21: 27 | DF21: 2 | DG21: 2 | DH21: 47 | DI21: 47 | DJ21: 1 | DK21: 1 | DL21: 5 | DM21: 1 | DN21: 2
A22: K1400 | B22: 2014 | C22: 2014 | D22: 2014 | E22: - | F22: - | G22: 神奈川県 | H22: - | I22: - | J22: - | K22: - | L22: - | M22: - | N22: 5 | O22: - | P22: - | Q22: - | R22: - | S22: - | T22: 6 | U22: - | V22: - | W22: - | X22: 10 | Y22: 6 | Z22: 4 | AA22: 8 | AB22: 7 | AC22: 12 | AD22: 17 | AE22: 40 | AF22: 32 | AG22: 6 | AH22: 16 | AI22: 23 | AJ22: 43 | AK22: 6 | AL22: 14 | AM22: 35 | AN22: 6 | AO22: 8 | AP22: 33 | AQ22: 10 | AR22: 8 | AS22: - | AT22: - | AU22: - | AV22: - | AW22: - | AX22: 5 | AY22: - | AZ22: - | BA22: - | BB22: - | BC22: 16 | BD22: 36 | BE22: 11 | BF22: 36 | BG22: - | BH22: - | BI22: - | BJ22: - | BK22: 11 | BL22: 2 | BM22: 2 | BN22: 5 | BO22: 3 | BP22: 4 | BQ22: 3 | BR22: 2 | BS22: 20 | BT22: 3 | BU22: 2 | BV22: - | BW22: 2 | BX22: 4 | BY22: 3 | BZ22: 2 | CA22: 2 | CB22: 41 | CC22: 12 | CD22: 2 | CE22: 26 | CF22: 8 | CG22: 15 | CH22: 4 | CI22: 31 | CJ22: 34 | CK22: 4 | CL22: 45 | CM22: 31 | CN22: 2 | CO22: 8 | CP22: 46 | CQ22: 7 | CR22: - | CS22: 11 | CT22: 15 | CU22: 19 | CV22: 15 | CW22: 17 | CX22: 31 | CY22: 7 | CZ22: 13 | DA22: 3 | DB22: 3 | DC22: 42 | DD22: 2 | DE22: 24 | DF22: 5 | DG22: 6 | DH22: 45 | DI22: 46 | DJ22: 3 | DK22: 2 | DL22: 19 | DM22: 3 | DN22: 12
A23: N1500 | B23: 2015 | C23: 2015 | D23: 2015 | E23: - | F23: - | G23: 新潟県 | H23: - | I23: - | J23: - | K23: - | L23: - | M23: - | N23: 19 | O23: - | P23: - | Q23: - | R23: - | S23: - | T23: 23 | U23: - | V23: - | W23: - | X23: 11 | Y23: 31 | Z23: 30 | AA23: 21 | AB23: 37 | AC23: 43 | AD23: 26 | AE23: 15 | AF23: 15 | AG23: 32 | AH23: 30 | AI23: 36 | AJ23: 24 | AK23: 19 | AL23: 9 | AM23: 6 | AN23: 30 | AO23: 28 | AP23: 14 | AQ23: 34 | AR23: 21 | AS23: - | AT23: - | AU23: - | AV23: - | AW23: - | AX23: 24 | AY23: - | AZ23: - | BA23: - | BB23: - | BC23: 23 | BD23: 11 | BE23: 24 | BF23: 11 | BG23: - | BH23: - | BI23: - | BJ23: - | BK23: 26 | BL23: 24 | BM23: 14 | BN23: 30 | BO23: 17 | BP23: 9 | BQ23: 33 | BR23: 25 | BS23: 20 | BT23: 43 | BU23: 29 | BV23: - | BW23: 23 | BX23: 21 | BY23: 12 | BZ23: 29 | CA23: 40 | CB23: 11 | CC23: 29 | CD23: 17 | CE23: 23 | CF23: 37 | CG23: 28 | CH23: 39 | CI23: 21 | CJ23: 8 | CK23: 35 | CL23: 4 | CM23: 3 | CN23: 18 | CO23: 34 | CP23: 10 | CQ23: 15 | CR23: - | CS23: 17 | CT23: 32 | CU23: 12 | CV23: 17 | CW23: 20 | CX23: 30 | CY23: 29 | CZ23: 35 | DA23: 16 | DB23: 17 | DC23: 27 | DD23: 15 | DE23: 21 | DF23: 24 | DG23: 30 | DH23: 6 | DI23: 5 | DJ23: 31 | DK23: 32 | DL23: 6 | DM23: 20 | DN23: 17
A24: T1600 | B24: 2016 | C24: 2016 | D24: 2016 | E24: - | F24: - | G24: 富山県 | H24: - | I24: - | J24: - | K24: - | L24: - | M24: - | N24: 39 | O24: - | P24: - | Q24: - | R24: - | S24: - | T24: 26 | U24: - | V24: - | W24: - | X24: 30 | Y24: 34 | Z24: 45 | AA24: 20 | AB24: 30 | AC24: 23 | AD24: 26 | AE24: 27 | AF24: 21 | AG24: 31 | AH24: 30 | AI24: 31 | AJ24: 23 | AK24: 29 | AL24: 39 | AM24: 22 | AN24: 40 | AO24: 23 | AP24: 27 | AQ24: 32 | AR24: 28 | AS24: - | AT24: - | AU24: - | AV24: - | AW24: - | AX24: 37 | AY24: - | AZ24: - | BA24: - | BB24: - | BC24: 32 | BD24: 20 | BE24: 14 | BF24: 21 | BG24: - | BH24: - | BI24: - | BJ24: - | BK24: 24 | BL24: 31 | BM24: 35 | BN24: 30 | BO24: 37 | BP24: 30 | BQ24: 30 | BR24: 36 | BS24: 13 | BT24: 29 | BU24: 34 | BV24: - | BW24: 32 | BX24: 29 | BY24: 35 | BZ24: 34 | CA24: 34 | CB24: 13 | CC24: 28 | CD24: 27 | CE24: 21 | CF24: 27 | CG24: 40 | CH24: 35 | CI24: 17 | CJ24: 11 | CK24: 14 | CL24: 11 | CM24: 13 | CN24: 42 | CO24: 23 | CP24: 18 | CQ24: 14 | CR24: - | CS24: 22 | CT24: 30 | CU24: 18 | CV24: 21 | CW24: 23 | CX24: 32 | CY24: 17 | CZ24: 32 | DA24: 33 | DB24: 43 | DC24: 7 | DD24: 20 | DE24: 15 | DF24: 8 | DG24: 19 | DH24: 11 | DI24: 10 | DJ24: 23 | DK24: 18 | DL24: 39 | DM24: 31 | DN24: 33
A25: I1700 | B25: 2017 | C25: 2017 | D25: 2017 | E25: - | F25: - | G25: 石川県 | H25: - | I25: - | J25: - | K25: - | L25: - | M25: - | N25: 30 | O25: - | P25: - | Q25: - | R25: - | S25: - | T25: 13 | U25: - | V25: - | W25: - | X25: 35 | Y25: 23 | Z25: 23 | AA25: 23 | AB25: 13 | AC25: 7 | AD25: 24 | AE25: 23 | AF25: 43 | AG25: 30 | AH25: 40 | AI25: 39 | AJ25: 41 | AK25: 25 | AL25: 33 | AM25: 41 | AN25: 22 | AO25: 15 | AP25: 30 | AQ25: 37 | AR25: 29 | AS25: - | AT25: - | AU25: - | AV25: - | AW25: - | AX25: 23 | AY25: - | AZ25: - | BA25: - | BB25: - | BC25: 10 | BD25: 37 | BE25: 2 | BF25: 28 | BG25: - | BH25: - | BI25: - | BJ25: - | BK25: 15 | BL25: 31 | BM25: 32 | BN25: 34 | BO25: 31 | BP25: 30 | BQ25: 17 | BR25: 15 | BS25: 30 | BT25: 29 | BU25: 27 | BV25: - | BW25: 24 | BX25: 20 | BY25: 34 | BZ25: 17 | CA25: 27 | CB25: 25 | CC25: 9 | CD25: 38 | CE25: 13 | CF25: 6 | CG25: 14 | CH25: 8 | CI25: 14 | CJ25: 2 | CK25: 23 | CL25: 22 | CM25: 16 | CN25: 33 | CO25: 5 | CP25: 18 | CQ25: 19 | CR25: - | CS25: 13 | CT25: 10 | CU25: 11 | CV25: 10 | CW25: 10 | CX25: 5 | CY25: 5 | CZ25: 16 | DA25: 21 | DB25: 22 | DC25: 18 | DD25: 10 | DE25: 41 | DF25: 26 | DG25: 47 | DH25: 24 | DI25: 19 | DJ25: 43 | DK25: 37 | DL25: 32 | DM25: 41 | DN25: 19
A26: H1800 | B26: 2018 | C26: 2018 | D26: 2018 | E26: - | F26: - | G26: 福井県 | H26: - | I26: - | J26: - | K26: - | L26: - | M26: - | N26: 40 | O26: - | P26: - | Q26: - | R26: - | S26: - | T26: 40 | U26: - | V26: - | W26: - | X26: 26 | Y26: 42 | Z26: 38 | AA26: 34 | AB26: 42 | AC26: 41 | AD26: 47 | AE26: 30 | AF26: 37 | AG26: 39 | AH26: 42 | AI26: 43 | AJ26: 31 | AK26: 42 | AL26: 17 | AM26: 19 | AN26: 42 | AO26: 39 | AP26: 38 | AQ26: 43 | AR26: 42 | AS26: - | AT26: - | AU26: - | AV26: - | AW26: - | AX26: 40 | AY26: - | AZ26: - | BA26: - | BB26: - | BC26: 40 | BD26: 34 | BE26: 7 | BF26: 35 | BG26: - | BH26: - | BI26: - | BJ26: - | BK26: 33 | BL26: 35 | BM26: 23 | BN26: 11 | BO26: 29 | BP26: 22 | BQ26: 26 | BR26: 44 | BS26: 20 | BT26: 12 | BU26: 44 | BV26: - | BW26: 31 | BX26: 36 | BY26: 24 | BZ26: 42 | CA26: 22 | CB26: 16 | CC26: 36 | CD26: 36 | CE26: 32 | CF26: 36 | CG26: 32 | CH26: 39 | CI26: 27 | CJ26: 10 | CK26: 38 | CL26: 13 | CM26: 24 | CN26: 40 | CO26: 29 | CP26: 22 | CQ26: 34 | CR26: - | CS26: 29 | CT26: 36 | CU26: 30 | CV26: 30 | CW26: 30 | CX26: 29 | CY26: 31 | CZ26: 40 | DA26: 43 | DB26: 47 | DC26: 30 | DD26: 18 | DE26: 38 | DF26: 2 | DG26: 9 | DH26: 23 | DI26: 11 | DJ26: 18 | DK26: 38 | DL26: 11 | DM26: 34 | DN26: 35
A27: Y1900 | B27: 2019 | C27: 2019 | D27: 2019 | E27: - | F27: - | G27: 山梨県 | H27: - | I27: - | J27: - | K27: - | L27: - | M27: - | N27: 27 | O27: - | P27: - | Q27: - | R27: - | S27: - | T27: 22 | U27: - | V27: - | W27: - | X27: 33 | Y27: 40 | Z27: 30 | AA27: 15 | AB27: 26 | AC27: 16 | AD27: 22 | AE27: 34 | AF27: 32 | AG27: 36 | AH27: 43 | AI27: 41 | AJ27: 34 | AK27: 41 | AL27: 45 | AM27: 16 | AN27: 37 | AO27: 18 | AP27: 32 | AQ27: 42 | AR27: 41 | AS27: - | AT27: - | AU27: - | AV27: - | AW27: - | AX27: 28 | AY27: - | AZ27: - | BA27: - | BB27: - | BC27: 25 | BD27: 6 | BE27: 27 | BF27: 7 | BG27: - | BH27: - | BI27: - | BJ27: - | BK27: 9 | BL27: 23 | BM27: 36 | BN27: 18 | BO27: 20 | BP27: 19 | BQ27: 33 | BR27: 39 | BS27: 8 | BT27: 22 | BU27: 39 | BV27: - | BW27: 15 | BX27: 13 | BY27: 18 | BZ27: 40 | CA27: 26 | CB27: 8 | CC27: 15 | CD27: 18 | CE27: 32 | CF27: 31 | CG27: 17 | CH27: 13 | CI27: 12 | CJ27: 27 | CK27: 19 | CL27: 14 | CM27: 33 | CN27: 33 | CO27: 14 | CP27: 32 | CQ27: 19 | CR27: - | CS27: 17 | CT27: 28 | CU27: 23 | CV27: 32 | CW27: 24 | CX27: 36 | CY27: 41 | CZ27: 17 | DA27: 21 | DB27: 25 | DC27: 3 | DD27: 37 | DE27: 30 | DF27: 29 | DG27: 14 | DH27: 10 | DI27: 14 | DJ27: 20 | DK27: 22 | DL27: 36 | DM27: 29 | DN27: 24
A28: N2000 | B28: 2020 | C28: 2020 | D28: 2020 | E28: - | F28: - | G28: 長野県 | H28: - | I28: - | J28: - | K28: - | L28: - | M28: - | N28: 16 | O28: - | P28: - | Q28: - | R28: - | S28: - | T28: 8 | U28: - | V28: - | W28: - | X28: 16 | Y28: 8 | Z28: 8 | AA28: 17 | AB28: 9 | AC28: 6 | AD28: 7 | AE28: 16 | AF28: 24 | AG28: 26 | AH28: 16 | AI28: 25 | AJ28: 24 | AK28: 10 | AL28: 19 | AM28: 40 | AN28: 8 | AO28: 11 | AP28: 16 | AQ28: 24 | AR28: 10 | AS28: - | AT28: - | AU28: - | AV28: - | AW28: - | AX28: 12 | AY28: - | AZ28: - | BA28: - | BB28: - | BC28: 7 | BD28: 18 | BE28: 35 | BF28: 20 | BG28: - | BH28: - | BI28: - | BJ28: - | BK28: 4 | BL28: 21 | BM28: 19 | BN28: 13 | BO28: 39 | BP28: 11 | BQ28: 33 | BR28: 20 | BS28: 8 | BT28: 15 | BU28: 12 | BV28: - | BW28: 9 | BX28: 9 | BY28: 18 | BZ28: 19 | CA28: 15 | CB28: 7 | CC28: 2 | CD28: 13 | CE28: 16 | CF28: 15 | CG28: 24 | CH28: 9 | CI28: 16 | CJ28: 19 | CK28: 16 | CL28: 16 | CM28: 25 | CN28: 20 | CO28: 6 | CP28: 16 | CQ28: 23 | CR28: - | CS28: 6 | CT28: 20 | CU28: 15 | CV28: 16 | CW28: 12 | CX28: 24 | CY28: 11 | CZ28: 7 | DA28: 6 | DB28: 19 | DC28: 2 | DD28: 16 | DE28: 33 | DF28: 6 | DG28: 3 | DH28: 14 | DI28: 17 | DJ28: 10 | DK28: 32 | DL28: 21 | DM28: 38 | DN28: 13
A29: G2100 | B29: 2021 | C29: 2021 | D29: 2021 | E29: - | F29: - | G29: 岐阜県 | H29: - | I29: - | J29: - | K29: - | L29: - | M29: - | N29: 24 | O29: - | P29: - | Q29: - | R29: - | S29: - | T29: 35 | U29: - | V29: - | W29: - | X29: 31 | Y29: 31 | Z29: 42 | AA29: 39 | AB29: 34 | AC29: 24 | AD29: 39 | AE29: 37 | AF29: 40 | AG29: 33 | AH29: 30 | AI29: 31 | AJ29: 17 | AK29: 35 | AL29: 26 | AM29: 12 | AN29: 39 | AO29: 37 | AP29: 41 | AQ29: 34 | AR29: 31 | AS29: - | AT29: - | AU29: - | AV29: - | AW29: - | AX29: 26 | AY29: - | AZ29: - | BA29: - | BB29: - | BC29: 36 | BD29: 41 | BE29: 8 | BF29: 38 | BG29: - | BH29: - | BI29: - | BJ29: - | BK29: 14 | BL29: 16 | BM29: 17 | BN29: 18 | BO29: 25 | BP29: 10 | BQ29: 9 | BR29: 15 | BS29: 2 | BT29: 11 | BU29: 13 | BV29: - | BW29: 14 | BX29: 14 | BY29: 14 | BZ29: 12 | CA29: 12 | CB29: 21 | CC29: 33 | CD29: 38 | CE29: 20 | CF29: 13 | CG29: 25 | CH29: 28 | CI29: 38 | CJ29: 12 | CK29: 35 | CL29: 33 | CM29: 34 | CN29: 35 | CO29: 22 | CP29: 24 | CQ29: 42 | CR29: - | CS29: 27 | CT29: 20 | CU29: 37 | CV29: 29 | CW29: 28 | CX29: 12 | CY29: 29 | CZ29: 31 | DA29: 24 | DB29: 19 | DC29: 15 | DD29: 18 | DE29: 47 | DF29: 34 | DG29: 30 | DH29: 33 | DI29: 32 | DJ29: 32 | DK29: 35 | DL29: 38 | DM29: 43 | DN29: 39
